{"text_format":"1","workbook":"xlsx","n_sheets":7,"sheets":["Pendientes old","Pendientes","Hoja1","Tablas dinamicas","Dashboard","Hoja3","Combos"],"not_rendered":{"charts":1,"images":1,"macros":1,"external_links":0,"defined_names":3,"comments":0,"pivot_tables":5},"unopened":[],"bounds":{"document_bytes":16777216,"sheet_cells":100000,"rows_first":2000,"rows_last":500,"rows_between":2000,"halvings":0,"cell_chars":16384,"cell_head_chars":4096},"cells_cut":0,"cells_raw":0,"read":"whole","date_system":"1900"}

{"sheet":"Pendientes old","index":0,"n_rows":528,"n_cols":26,"rows_kept":528,"cut":false,"hidden":true,"merged":[[0,10,0,11],[0,12,0,13]]}
[null,null,null,null,null,null,null,null,null,null,"DWG",null,"Fuerza"]
["Sitio","Nodo","Emplazamiento","Sprint","Contratista","Plan","Mesa Ingeniería","Epum","Adjudicacion","Fecha de ingreso","BPM","MAIL","BPM","MAIL","Observaciones","Fecha devolucion","Antena","observaciones","Energia","Definicion","Fuego / SOLPE","Rebote Logistica x antena","ESTADO ","Asignado","Adelanto","V"]
["BM129","CBM129","ARBA13484",null,"Ericsson","Sitios Nuevos","Completed","1279211-1",null,null,null,null,null,null,null,null,"RAN 2 - Ericsson Mudanza del sitio BM029","ok stock","Sin planilla","2019-03-12",7000079199,null,"FIN"]
["BM141","CBM141","ARBA0853","Ericsson","Sitios Nuevos","Active",null,"1317143-1",234194,"2019-04-25",null,null,null,null,null,null,null,null,null,"2019-04-26",7000079918,null,"FIN","Barbara"]
["QN084","CQN084","ARNQ0565","SPRINT BK","Tesur","SITIOS NUEVOS","Active",null,null,null,null,null,null,null,null,null,null,null,null,0,null,null,"A REASIGNAR CONTRATA","NA"]
["AC008","FAC008","ARSA0032","SPRINT BK","CIS SRL","RAN 1","On Hold",null,null,null,null,null,null,null,null,null,"ATD4516R8","falta hacer 3500",null,"2019-04-25",7000079898,null,"FIN","Rodrigo"]
["KS111","FKS111","ARBA0928","SPRINT 6","Sidaco","AMBA",0,"1232430-1",null,null,null,null,null,null,null,null,null,null,null,null,null,null,"TO DO"]
["KS126","FKS126","ARBA0976","SPRINT 6","Sidaco","AMBA",0,"1232432-1",null,null,null,null,null,null,null,null,null,null,null,null,null,null,"TO DO"]
["KS183","FKS183",null,null,"Sidaco","AMBA","Sin HW 3500","1232429-1",null,null,null,null,null,null,null,null,null,null,null,null,null,null,"TO DO"]
["OC001","FOC001","ARCT0016","SPRINT BK","CIS SRL","RAN 1","On Hold",null,null,null,null,null,null,null,null,null,"antenas TDD ingresadas / faltan las RRUS","falta hacer 3500",null,null,null,null,"TO DO"]
["QC006","FQC006","ARNQ0047","Sprint 10","Huawei","R1","On Hold",null,null,null,null,null,null,null,null,null,null,"Falta ingreso de las RRUs + Antenas TDD",null,0,0,null,"TO DO"]
["XC180","FXC180","ARCO0359","SPRINT BK","CIS SRL","RAN 1","On Hold",null,null,null,null,null,null,null,null,null,"antenas TDD ingresadas / faltan las RRUS","falta hacer 3500",null,null,null,null,"TO DO"]
["BM129","GBM129","ARBA13484",null,"Ericsson","Sitios Nuevos","Completed","1279210-1",null,null,null,null,null,null,null,null,"RAN 2 - Ericsson Mudanza del sitio BM029","ok stock","Sin planilla","2019-03-12",7000079199,null,"FIN"]
["GC310","GGC310","ARSE0288",null,"CIS SRL","Sitios Nuevos","Completed","1104316-1",null,null,null,null,null,null,null,null,"ATR4518R6 ","ok stock","OK energia","2019-03-18",7000079310,null,"FIN"]
["SR319","GSR319","ARSF1764",null,"Sidaco","Sitios Nuevos","Completed","916500-1",null,null,null,null,null,null,null,null,"ODV-065R16M18JJG / 4000084591","ok stock",null,"2019-03-18",7000079309,null,"FIN"]
["XC349","GXC349","ARCO1905","Sprint 14/15","CIS SRL","SITIOS NUEVOS","In Planning",null,null,null,null,null,null,null,null,null,"Mudanza del GXC049. Configuración (3x2).  ATR4518R6 (usar puerto libre de alta para 2G diplexado con 3G mudanza del XC049 - sitio NO RAN","Faltan los planos","fuerza OK","2019-04-11","7000079667/7000079668 ",null,"FIN","Barbara"]
["ZW012","GZW012",null,null,{"$error":"#N/A"},{"$error":"#N/A"},{"$error":"#N/A"},{"$error":"#N/A"},null,null,null,null,null,null,null,null,null,null,null,null,null,null,"TO DO"]
["KS323","KS323",null,null,{"$error":"#N/A"},{"$error":"#N/A"},{"$error":"#N/A"},{"$error":"#N/A"},null,null,null,null,null,null,null,null,null,null,null,null,null,null,"TO DO"]
["KS348","KS348",null,null,{"$error":"#N/A"},{"$error":"#N/A"},{"$error":"#N/A"},{"$error":"#N/A"},null,null,null,null,null,null,null,null,null,null,null,null,null,null,"TO DO"]
["KS463","KS463",null,null,{"$error":"#N/A"},{"$error":"#N/A"},{"$error":"#N/A"},{"$error":"#N/A"},null,null,null,null,null,null,null,null,null,null,null,null,null,null,"TO DO"]
["KS496","KS496",null,null,{"$error":"#N/A"},{"$error":"#N/A"},{"$error":"#N/A"},{"$error":"#N/A"},null,null,null,null,null,null,null,null,null,null,null,null,null,null,"TO DO"]
["AN003","LAN003",null,"S16",null,0,0,null,null,null,null,null,null,null,null,null,"ASI4517R3V06 ( Grande)",null,null,null,null,null,"SIN STOCK"]
["BB482","LBB482",null,null,"Guzman Nacich","RAN 1","Completed",null,null,null,null,null,null,null,null,null,null,null,null,"2019-03-29",7000079247,null,"FIN"]
["BM129","LBM129","ARBA13484",null,"Ericsson","Sitios Nuevos","Completed","1279212-1",null,null,null,null,null,null,null,null,"RAN 2 - Ericsson Mudanza del sitio BM029","ok stock","Sin planilla","2019-03-12",7000079199,null,"FIN"]
["BM141","LBM141","ARBA0853","Ericsson","Sitios Nuevos","Active",null,"1317142-1",234193,"2019-04-25",null,null,null,null,null,null,null,null,null,"2019-04-26",7000079918,null,"FIN","Barbara"]
["BM795","LBM795","ARBA13155","Guzmán Nacich","Sitios Nuevos","Active",null,"944039-1",210150,"2019-04-25",null,null,null,null,null,null,null,null,null,null,null,null,"TO DO"]
["BN901","LBN901","ARBA13471",null,"Tesur","SITIOS NUEVOS","Active",null,null,null,null,null,null,null,null,null,"Tribanda trisector","sin stock","ok ingenieria / falta actualizar  ingenieria fuerza","2019-03-25",7000079430,null,"FIN"]
["BO013","LBO013","ARBA13267","Ericsson","Sitios Nuevos","Active",null,"1115549-1",235504,"2019-04-25",null,null,null,null,null,null,null,null,null,null,null,null,"TO DO"]
["BO018","LBO018",0,null,"Sidaco","SITIO NUEVO","Planificar Ing","1331410-1",null,null,null,null,null,null,null,null,null,null,null,null,null,null,"TO DO"]
["BS144","LBS144",null,null,null,null,"Active",null,null,null,null,null,null,null,null,null,null,null,null,"2019-03-06",7000079131,null,"FIN"]
["IC002","LC002",null,null,"Guzman Nacich","RAN 1",{"$error":"#N/A"},null,null,null,null,null,null,null,null,null,null,null,null,"2019-03-29",7000079503,null,"FIN"]
["CE017","LCE017",null,null,"MULTIRADIO","Porticos",{"$error":"#N/A"},null,null,null,null,null,null,null,null,null,null,null,null,"2019-04-05",7000079586,null,"FIN","Ricky","SI"]
["CE018 ","LCE018 ",null,null,"MULTIRADIO","Porticos",{"$error":"#N/A"},null,null,null,null,null,null,null,null,null,null,null,null,"2019-04-05",7000079586,null,"FIN","Ricky","SI"]
["CM505","LCM505","ARCF1097","Sprint 10","PEM","Sitios Nuevos","Active",null,null,null,null,null,null,null,null,null,null,"ok planos","ok fuerza","2019-04-11",7000079696,null,"FIN","LUCRECIA"]
["CS352","LCS352",null,null,"TELXIUS",null,"Active",null,null,null,null,null,null,null,null,null,"\"Antena a definir por RDA\"","no contamos con ninguna definicion para emitir la SOLPE",null,"2019-04-10","69396 /7000079681",null,"FIN","Lucrecia","SI"]
["CS546","LCS546",null,"S11","PEM",null,"Completed",null,null,null,null,null,null,null,null,null,null,null,"falta ingenieria / OK fuerza","2019-04-08","stock contratista",null,"FIN"]
["CS817","LCS817","ARCF9072","S12","Sidaco","Sitios Nuevos",0,"1323609-1",null,null,null,null,null,null,null,null,null,null,null,null,null,null,"TO DO"]
["CU514","LCU514","ARCF9849","SPRINT 11","PEM","Sitios Nuevos","Active",null,null,null,null,null,null,null,null,null,null,"ok planos","ok fuerza","2019-04-11",7000079697,null,"FIN","LUCRECIA"]
["FE047","LFE047","ARSL4836","BK","CIS SRL","Sitios Nuevos","Completed",null,null,null,null,null,null,null,null,null,null,null,null,"2019-04-10","7000078847/7000079682",null,"FIN","Rodrigo"]
["FE048","LFE048","ARSL4838","BK","CIS SRL","Sitios Nuevos","Completed",null,null,null,null,null,null,null,null,null,null,null,null,"2019-04-10","7000078846/7000079682",null,"FIN","Rodrigo"]
["FE049","LFE049","ARSL4830","BK","CIS SRL","Sitios Nuevos","Completed",null,null,null,null,null,null,null,null,null,null,null,null,"2019-04-10","7000078848/7000079682",null,"FIN","Rodrigo"]
["FE052","LFE052","ARSL4839","BK","CIS SRL","Sitios Nuevos","Completed",null,null,null,null,null,null,null,null,null,null,null,null,"2019-04-10","7000078849/7000079682",null,"FIN","Rodrigo"]
["GC310","LGC310","ARSE0288",null,"CIS SRL","Sitios Nuevos","Completed","1108369-1",null,null,null,null,null,null,null,null,"ATR4518R6 ","ok stock","OK energia","2019-03-18",7000079310,null,"FIN"]
["IC009","LIC009",null,null,"Guzman Nacich","RAN 1",{"$error":"#N/A"},null,null,null,null,null,null,null,null,null,null,null,null,"2019-03-29",7000079505,null,"FIN"]
["IC024","LIC024",null,null,"Guzman Nacich","RAN 1","Completed",null,null,null,null,null,null,null,null,null,null,null,null,"2019-04-05",7000079596,null,"FIN","Carolina H - Ricky","SI"]
["IN001","LIN001",null,null,"Guzman Nacich","RAN 1",{"$error":"#N/A"},null,null,null,null,null,null,null,null,null,null,"Planos OK enviados 12-4-19",null,"2019-03-29",7000079506,null,"FIN",null,"SI"]
["JC201","LJC201","ARSJ4867",null,"PEM","Sitios Nuevos","Completed","1263061-1",null,null,null,null,null,null,null,null,"Terminada","ok stock",null,"2019-03-11","7000079191 ",null,"FIN"]
["JS015","LJS015","ARSJ0030","SPRINT 5","Sidaco","R1 - NO RAN",{"$error":"#N/A"},null,null,null,null,null,null,null,null,null,null,"sin ingenieria falta DWG","falta fuerza","2019-04-05",7000079600,null,"FIN","Lucrecia","SI"]
["JS017","LJS017","ARSJ0004","SPRINT 5","Sidaco","R1 - NO RAN",{"$error":"#N/A"},null,null,null,null,null,null,null,null,null,null,"verificar ingenieria","falta fuerza","2019-04-05",7000079589,null,"FIN","Lucrecia","SI"]
["JS037","LJS037","ARSJ0072","SPRINT 5","Sidaco","R1 - NO RAN",{"$error":"#N/A"},null,null,null,null,null,null,null,null,null,null,"sin ingenieria falta DWG","falta fuerza","2019-04-05",7000079601,null,"FIN","Lucrecia","SI"]
["KS119","LKS119",{"$error":"#N/A"},null,"Sidaco","Sitios Nuevos","Completed","1247967-1",null,null,null,null,null,null,null,null,null,"Sitio Finalizado",null,"FIN","Finalizado 2018",null,"Finalizado 2018"]
["KS323","LKS323"]
["KS348","LKS348"]
["KS378","LKS378","ARBA13485","S12","Sidaco","SITIO NUEVO","Completed",null,null,null,null,null,null,null,null,null,null,null,null,"2019-04-04",7000079378,null,"FIN"]
["KS463","LKS463"]
["KS496","LKS496"]
["KS702","LKS702","ARBA13486","S12","Sidaco","SITIO NUEVO","Active",null,null,null,null,null,null,null,null,null,null,null,null,"2019-04-04",7000079377,null,"FIN"]
["KS703","LKS703",null,null,"Sidaco",null,"Active",null,null,null,null,null,null,null,null,null,null,null,null,"2019-04-04",7000079390,null,"FIN",null,"SI"]
["KS704","LKS704",null,null,"Sidaco",null,"Active",null,null,null,null,null,null,null,null,null,null,null,null,"2019-04-04",7000079379,null,"FIN",null,"SI"]
["KS706","LKS706","ARBA13495","S12","Sidaco","SITIO NUEVO","Completed",null,null,null,null,null,null,null,null,null,null,null,null,"2019-04-04",7000079376,null,"FIN"]
["LP148","LLP148","ARBA13128",null,"Ericsson","Sitios Nuevos","Completed","916521-1",null,null,null,null,null,null,null,null,"ODV065R16M18JG=4000084568","ok stock","Validar planilla 2017","2019-03-22",7000079403,null,"FIN","Rodrigo"]
["M0005","LM0005","ARME1211","SPRINT BK","PEM","SITIOS NUEVOS","Active",null,null,null,null,null,null,null,null,null,null,null,null,"2019-04-01","7000079520/7000079521",null,"FIN","Barbara"]
["MC004","LMC004",null,null,"Sidaco","RAN 1",{"$error":"#N/A"},null,null,null,null,null,null,null,null,null,null,null,null,"2019-03-29",7000079482,null,"FIN"]
["MC017","LMC017",null,null,"Sidaco","RAN 1",{"$error":"#N/A"},null,null,null,null,null,null,null,null,null,null,null,null,"2019-03-29",7000079483,null,"FIN"]
["MC028","LMC028",null,null,"Sidaco","RAN 1",{"$error":"#N/A"},null,null,null,null,null,null,null,null,null,null,null,null,"2019-03-29",7000079485,null,"FIN"]
["MC038","LMC038",null,null,"Sidaco","RAN 1",{"$error":"#N/A"},null,null,null,null,null,null,null,null,null,null,null,null,"2019-03-29",7000079484,null,"FIN"]
["MC215","LMC215","ARME1202","S11","PEM","Sitios Nuevos",0,"1148289-1",null,null,null,null,null,null,null,null,null,null,null,"2019-04-24",7000079885,null,"FIN","Barbara"]
["QCM12","LQCM12",null,null,null,null,null,null,null,null,null,null,null,null,null,null,null,"4 RRU’s 3971 de B4 (4T4R",null,"2019-04-24",7000079869,null,"FIN","Ricky"]
["QN084","LQN084","ARNQ0565","SPRINT BK","Tesur","SITIOS NUEVOS","Active",null,null,null,null,null,null,null,null,null,null,null,null,0,null,null,"A REASIGNAR CONTRATA","NA"]
["QW018","LQW018","ARNQ0037","SPRINT BK","PEM","Obligaciones de pliego","Completed",null,null,null,null,null,null,null,null,null,null,null,null,"2019-04-04","7000079570 / 7000079573",null,"FIN","RICKY"]
["RN015","LRN015",null,null,"Huawei","RAN R1","Active",null,null,null,null,null,null,null,null,null,null," Adelanto Mario",null,"2019-04-12",69439,null,"FIN","Ricky"]
["RN078","LRN078","ARRN0460",null,"Sidaco","Sitios Nuevos","Completed","888896-1",null,null,null,null,null,null,null,null,"RRZZ (AQU4518R24+ AAU3910)","ok stock","planilla ok 2019","2019-03-12",7000079204,null,"FIN"]
["RN344","LRN344","ARRN0461",null,"Sidaco","Sitios Nuevos","Completed","651468-1",null,null,null,null,null,null,null,null,"Hexabanda Chica","ok stock","Validar planilla 2016","2019-03-12",7000079206,null,"FIN"]
["SC044","LSC044",null,null,"Sidaco","RAN R2","Completed",null,null,null,null,null,null,null,null,null,null,"ok stock",null,"2019-03-13",70000079244,null,"FIN"]
["SR319","LSR319","ARSF1764",null,"Sidaco","Sitios Nuevos","Completed","916499-1",null,null,null,null,null,null,null,null,"ODV-065R16M18JJG / 4000084591","ok stock",null,"2019-03-18",7000079309,null,"FIN"]
["SR609","LSR609","ARSF1544","Sprint 10","Ericsson","Sitios Nuevos","Active","540476-1",null,null,null,null,null,null,null,null,"ATR4518R6 ","Falta definicion de RRU,  Energia desactualizada , sin planilla de materiales / verificar tipo de antena","falta fuerza",0,null,null,"INGENIERIA FUERZA + DWG"]
["TE010","LTE010"]
["UE205","LUE205","ARCB0525","Sprint 10","PEM","Sitios Nuevos","Active",null,null,null,null,null,null,null,null,null,null,null,null,"2019-04-10",7000079691,null,"FIN","Barbara"]
["UE207","LUE207","ARCB0526","Sprint 10","PEM","Sitios Nuevos","Active",null,null,null,null,null,null,null,null,null,null,null,null,"2019-04-10",7000079691,null,"FIN","Barbara"]
["XC349","LXC349","ARCO1905","Sprint 14/15","CIS SRL","SITIOS NUEVOS","Active",null,null,null,null,null,null,null,null,null,"Mudanza del GXC049. Configuración (3x2).  ATR4518R6 (usar puerto libre de alta para 2G diplexado con 3G mudanza del XC049 - sitio NO RAN","Faltan los planos","fuerza OK","2019-04-11","7000079667/7000079668 ",null,"FIN","Barbara"]
["XC615","LXC615","ARCO1904",null,"CIS SRL","SITIOS NUEVOS","Active",null,null,null,null,null,null,null,null,null," ATR4518R6",null,null,"2019-03-29","7000079497 / 7000079498",null,"FIN","Lucre"]
["YE002","LYE002",null,"S16",null,0,0,null,null,null,null,null,null,null,null,null,null,null,null,null,null,null,"TO DO"]
["ZW012","LZW012"]
["AC301","MAC301",null,null,"CIS SRL","RAN 1","Completed",null,null,null,null,null,null,null,null,null,null,null,null,"2019-04-09",7000079637,null,"FIN","RICKY","SI"]
["AN003","MAN003",null,"S16",null,0,0,null,null,null,null,null,null,null,null,null,null,null,null,null,null,null,"TO DO"]
["AW008","MAW008","ARSA0384",null,"CIS SRL","Sitios Nuevos","Completed","1239123-1",null,null,null,null,null,null,null,null,"AQU4518R24","ok stock","RDA debe confirmar antenas","2019-03-18",700079311,null,"FIN","Lucrecia"]
["BA034","MBA034","ARBA13153","BK","Ericsson","Sitios Nuevos","Completed",null,null,null,null,null,null,null,null,null,null,"planos ok 12-4-19","Energia OK","2019-04-12",7000077608,null,"FIN","Barbara"]
["BB475","MBB475",null,null,"Guzman Nacich","RAN 1",{"$error":"#N/A"},null,null,null,null,null,null,null,null,null,null,null,null,"2019-03-29","7000079459/7000079508",null,"FIN"]
["BB482","MBB482",null,null,"Guzman Nacich","RAN 1","Completed",null,null,null,null,null,null,null,null,null,null,null,null,"2019-03-29",7000079247,null,"FIN"]
["BM129","MBM129","ARBA13484",null,"Ericsson","Sitios Nuevos","Completed","1279214-1",null,null,null,null,null,null,null,null,"RAN 2 - Ericsson Mudanza del sitio BM029","ok stock","Sin planilla","2019-03-12",7000079199,null,"FIN"]
["BM795","MBM795","ARBA13155","Guzmán Nacich","Sitios Nuevos","Active",null,"944184-1",210149,"2019-04-25",null,null,null,null,null,null,null,null,null,null,null,null,"TO DO"]
["BN131","MBN131","ARBA4819","Sprint 9","Sidaco","AMBA","On Hold",null,null,null,null,null,null,null,null,null,"ODI2-065R16MJJ-GQ ( Hexa grande)","Sin Stock",null,null,null,null,"SIN STOCK"]
["BN163","MBN163","ARBA6904","SPRINT 11","Sidaco","AMBA","Active",null,null,null,null,null,null,null,null,null,"Cambia AIR32 x Hexabanda","a verificar estructura por cambio de antena AIR32 x HEXA",null,"2019-04-09",7000079657,null,"FIN","Lucrecia"]
["BN169","MBN169","ARBA4733",null,"Sidaco","AMBA","Completed",null,null,null,null,null,null,null,null,null,"ODI-065R15M18JJ-G= 2000018373",null,"ok fuerza","2019-03-25",7000079422,null,"FIN"]
["BN273","MBN273","ARBA7224","SPRINT 11","Sidaco","AMBA","Active",null,null,null,null,null,null,null,null,null,"ODV-065R16M18J-G",null,null,"2019-04-01",7000079541,null,"FIN","Lucre"]
["BN327","MBN327","ARBA8335","Sprint 9","Sidaco","AMBA","Active",null,null,null,null,null,null,null,null,null,null,null,null,"2019-04-08",7000079626,null,"FIN","Rodrigo"]
["BO013","MBO013","ARBA13267","Ericsson","Sitios Nuevos","Active",null,"1100978-1",235503,"2019-04-25",null,null,null,null,null,null,null,null,null,null,null,null,"TO DO"]
["BO018","MBO018",0,null,"Sidaco","SITIO NUEVO","Planificar Ing","1331411-1",null,null,null,null,null,null,null,null,null,null,null,null,null,null,"TO DO"]
["BO133","MBO133","ARBA3652",null,"CIS SRL","AMBA","Planificar Ing","1254836-1",231830,null,null,null,null,null,null,null,null,null,null,null,null,null,"TO DO"]
["BO153","MBO153","ARBA4770","CIS SRL","AMBA",null,"Active",null,null,null,null,null,null,null,null,null,"ASI4517R3V06",null,"Energia OK","2019-04-22",7000079826,null,"FIN","lucreia"]
["BO181","MBO181","ARBA4529","Sprint 12/13","CIS SRL","AMBA",0,"1254698-1",null,null,null,null,null,null,null,null,null,null,null,"2019-04-23",7000079838,null,"FIN","Lucrecia"]
["BO185","MBO185"]
["BO192","MBO192","ARBA4299","Sprint 12/13","CIS SRL","AMBA",0,"1254810-1",null,null,null,null,null,null,null,null,null,"Se remplazó la ODV-065R14M17JJ-G COMBA TRIBANDA por CE_ANTP_TB_2H1L_SBNHH1D65A.",null,"2019-04-24","7000079886/7000079826",null,"FIN","Barbara"]
["BO206","MBO206","ARBA5403","Sprint 12/13","CIS SRL","AMBA",0,"1254699-1",null,null,null,null,null,null,null,null,null,null,null,"2019-04-25",7000079900,null,"FIN","Barbara"]
["BO341","MBO341","ARBA6840","Sprint 9","Sidaco","AMBA","Active",null,null,null,null,null,null,null,null,null,null,null,null,"2019-04-08",7000079624,null,"FIN","Barbara"]
["BS036","MBS036",null,null,"Sidaco","AMBA","On Hold",null,null,null,null,null,null,null,null,null,"Requiere antena AIR32, sin stock./ cambia por ASI4517R3v06","No Liberado es operadora","OK","2019-04-22",7000079835,null,"FIN","Lucrecia"]
["BS114","MBS114","ARBA5330","Sprint 9","Sidaco","AMBA","Active",null,null,null,null,null,null,null,null,null,null,null,null,"2019-04-10",7000079677,null,"FIN","Rodrigo"]
["BS129","MBS129",null,"SPRINT 11","Sidaco","AMBA","Active",null,null,null,null,null,null,null,null,null,"ODI2-065R16MJJ-GQ ( Hexa grande)","Planos OK / TO DO / Hexa que ingresan 140 unidades el 15 de Abril","fuerza ok",1,null,null,"SIN STOCK"]
["BS136","MBS136",null,null,"Sidaco","AMBA","Active",null,null,null,null,null,null,null,null,null,"ODI2-065R16MJJ-GQ ( Hexa grande)","mc condicionante se cierra semana 22 de abril","OK",0,null,null,"SIN STOCK"]
["BS155","MBS155","ARBA6909","SPRINT 9","Tesur","AMBA","On Hold",null,null,null,null,null,null,null,null,null,"ODI2-065R16MJJ-GQ ( Hexa grande)","Sin Stock","ok fuerza",0,null,null,"SIN STOCK","NA"]
["BS160","MBS160","ARBA6393","S12","Sidaco","AMBA","Completed",null,null,null,null,null,null,null,null,null,"ODI2-065R16MJJ-GQ ( Hexa grande)","TO DO / Hexa que ingresan 140 unidades el 15 de Abril","se conecta a planta existente",null,null,null,"SIN STOCK"]
["BS169","MBS169",{"$error":"#N/A"},"SPRINT 11","Sidaco","AMBA","On Hold","1254650-1",null,null,null,null,null,null,null,null,"TNA770A00RI","sin stock",null,0,null,null,"SIN STOCK"]
["BS229","MBS229","ARBA9890","SPRINT 11","Sidaco","AMBA","Active",null,null,null,null,null,null,null,null,"2019-04-17","TNA770A00RI","ANTENA TNA770A00RI sin stock","Energia OK",1,null,null,"SIN STOCK"]
[null,"MC010",null,"CIS SRL",null,null,null,null,null,"2019-04-25",null,null,null,null,null,null,null,null,null,"2019-04-25",7000079922,null,"FIN","LUCRECIA"]
["CE017","MCE017",null,null,"MULTIRADIO",null,{"$error":"#N/A"},null,null,null,null,null,null,null,null,null,null,null,null,"2019-04-01",7000079523,null,"FIN","Ricky","SI"]
["CE018 ","MCE018 ",null,null,"MULTIRADIO","Porticos",{"$error":"#N/A"},null,null,null,null,null,null,null,null,null,null,null,null,"2019-04-05",7000079586,null,"FIN","Ricky","SI"]
["CN349","MCN349","ARCF8639","S12","MULTIRADIO","AMBA","Active",null,null,null,null,null,null,null,null,null,"ODV-065R14M17JJ-G","sin stock",null,0,null,null,"SIN STOCK","NA"]
["CN423","MCN423","ARCF8852","Sprint 12/13","MULTIRADIO","AMBA","Active",null,null,null,null,null,null,null,null,null,null,null,null,0,null,null,"TO DO","NA"]
["CS111","MCS111",null,"Sprint 12/13","Tesur","AMBA","On Hold",null,null,null,null,null,null,null,null,null,"ODI2-065R16MJJ-GQ ( Hexa grande)","sin stock",null,0,null,null,"SIN STOCK","NA"]
["CS124","MCS124","ARCF9268","Sprint 12/13","CIS SRL","AMBA","Active",null,null,null,null,null,null,null,null,null,null,null,null,0,null,null,"TO DO","NA"]
["CS205","MCS205",null,null,"Sidaco","Sitios Nuevos","Active",null,null,null,null,null,null,null,null,null,"ODI2-065R16MJJ-GQ ( Hexa grande)","planos recibidos 12-4-19","Energia OK",0,null,null,"SIN STOCK"]
["CS256","MCS256","ARCF8724","Sprint 12/13","Sidaco","AMBA","Active",null,null,null,null,null,null,null,null,null,null,null,null,0,null,null,"TO DO","NA"]
["CS293","MCS293","ARCF8684","Sprint 12/13","Sidaco","AMBA","Active",null,null,null,null,null,null,null,null,null,null,null,null,0,null,null,"TO DO","NA"]
["CS296","MCS296","ARCF8685","S12","Sidaco","AMBA","Active",null,null,null,null,null,null,null,null,null,null,null,null,0,null,null,"TO DO","NA"]
["CS311","MCS311","ARCF8564","SPRINT 9","Tesur","AMBA","On Hold",null,null,null,null,null,null,null,null,null,"ODI2-065R16MJJ-GQ ( Hexa grande)","sin stock","falta fuerza",0,null,null,"SIN STOCK","NA"]
["CS352","MCS352",null,null,"TELXIUS",null,"Active",null,null,null,null,null,null,null,null,null,"\"Antena a definir por RDA\"","no contamos con ninguna definicion para emitir la SOLPE",null,"2019-04-10","69396 /7000079681",null,"FIN","Lucrecia","SI"]
["HC020","MHC020"]
["IC021","MIC021",null,null,"Guzman Nacich","RAN 1","Completed",null,null,null,null,null,null,null,null,null,null,null,null,"2019-04-05","USA HW DEL IC004",null,"FIN","Carolina H - Ricky","SI"]
["IC024","MIC024",null,null,"Guzman Nacich","RAN 1","Completed",null,null,null,null,null,null,null,null,null,null,null,null,"2019-04-05",7000079596,null,"FIN","Carolina H - Ricky","SI"]
["IE001","MIE001",null,null,"Guzman Nacich","RAN 1",{"$error":"#N/A"},null,null,null,null,null,null,null,null,null,null,null,null,"2019-04-05",7000079597,null,"FIN","Carolina H - Ricky","SI"]
["IN004","MIN004",null,null,"Guzman Nacich","RAN 1","Active",null,null,null,null,null,null,null,null,null,null,null,null,"2019-03-29",7000079507,null,"FIN"]
["JC004","MJC004","ARSJ4749",null,"Sidaco","RAN R1","Completed","1059182-1",null,null,null,null,null,null,null,null,"Terminada","ok stock",null,"2019-03-08","7000079143 ",null,"FIN"]
["JC006","MJC006","ARSJ0245",null,"Sidaco","RAN R1","Completed","905749-1",null,null,null,null,null,null,null,null,"Terminada","ok stock",null,"2019-03-08","7000079143/7000079268/7000079308",null,"FIN"]
["JC035","MJC035","ARSJ0033",null,"Sidaco","RAN R1","Active",null,null,null,null,null,null,null,null,null,null,"ok stock",null,"2019-03-28","7000079269/7000079302",null,"FIN","Rodrigo"]
["JC056","MJC056","ARSJ4732","S11","Sidaco","RAN R1","Completed",null,null,null,null,null,null,null,null,null,null,null,null,"2019-04-01",7000079317,null,"FIN","SI"]
["JC303","MJC303","ARSJ0054",null,"Sidaco","RAN R1","Completed",null,null,null,null,null,null,null,null,null,null,"ok stock",null,"2019-03-28",7000079318,null,"FIN","Rodrigo"]
["JC326","MJC326","ARSJ0090","S11","Sidaco","RAN R1","Completed",null,null,null,null,null,null,null,null,null,null,null,null,"2019-04-01",7000079319,null,"FIN","SI"]
["JC329","MJC329","ARSJ0179","S11","Sidaco","RAN 1","Completed",null,null,null,null,null,null,null,null,null,null,null,null,"2019-04-01",7000079330,null,"FIN","SI"]
["JC339","MJC339","ARSJ4770","S11","Sidaco","RAN R1","Completed",null,null,null,null,null,null,null,null,null,null,null,null,"2019-04-01","7000079266/7000079307",null,"FIN","SI"]
["JE008","MJE008","ARSJ0009",null,null,"Obligraciones Pliego",{"$error":"#N/A"},null,null,null,null,null,null,null,null,null,null,null,null,"2019-04-04",7000079584,null,"FIN","Rodrigo","SI"]
["JS025","MJS025","ARSJ4730","S11","Sidaco","RAN R1","Completed",null,null,null,null,null,null,null,null,null,null,null,null,"1900-01-01",7000079144,null,"FIN"]
["JS052","MJS052","ARSJ4779","CIS SRL","Sitios Nuevos",null,"Active",null,null,null,null,null,null,null,null,null,"ADU4518R7","Las RRUS son PARALLEL , llegan en Mayo","Energia OK",0,null,null,"Esperar compra Parallel"]
["JS099","MJS099","ARSJ0188","SPRINT 5","Sidaco","R1 - NO RAN",{"$error":"#N/A"},"1087723-1",null,null,null,null,null,null,null,null,"ADU4518R7","se envio a Claudio Creteur para definicion /Según lo indicado por RDA se suma una RRU de 700 , se manda a ingenieria","Ingenieria a revision ( Fuerza + Materiales)","2019-04-08",7000079627,null,"FIN","Lucrecia","si"]
["KN284","MKN284",null,null,null,null,"Completed",null,null,null,null,null,null,null,null,null,null,null,"la saco Ricky","2019-03-20",7000079362,null,"FIN"]
["KS061","MKS061","ARBA1528","SPRINT 9","Tesur","AMBA","On Hold",null,null,null,null,null,null,null,null,null,"ODI2-065R16MJJ-GQ ( Hexa grande)","sin stock","fuerza ok",0,null,null,"SIN STOCK","NA"]
["KS165","MKS165","ARBA4358","Sprint 9","Sidaco","AMBA","Active",null,null,null,null,null,null,null,null,null,null,"Ingresaron los planos desde MI 12/04/19","Energia OK","2019-04-12",7000079711,null,"FIN","Barbara"]
["KS171","MKS171","ARBA5612","Sprint 12/13","Sidaco","AMBA","Active",null,null,null,null,null,null,null,null,null,"\"Antena a definir por RDA\"","se envia mail consulta RDA / OK PLANOS 12/4/19","ok fuerza","2019-04-12",7000079712,null,"FIN","Rodrigo"]
["KS238","MKS238",null,null,"Sidaco","AMBA","Active",null,null,null,null,null,null,null,null,null,"ODI2-065R16MJJ-GQ ( Hexa grande)","se cierra hoy","OK",0,null,null,"SIN STOCK"]
["KS244","MKS244","ARBA13098","SPRINT BK","Sidaco","Despliegue","Active",null,null,null,null,null,null,null,null,null,null,"Envio de planos de MI 12-4-19","falta energia","2019-04-12",7000079713,null,"FIN","Rodrigo"]
["KS298","MKS298","ARBA7272","Sprint 9","Sidaco","AMBA","Active",null,null,null,null,null,null,null,null,null,null,null,null,"2019-04-08",7000079631,null,"FIN","Rodrigo"]
["KS457","MKS457","ARBA9719","SPRINT BK","Guzman Nacich","AMBA","On Hold",null,null,null,null,null,null,null,null,null,"AIR32","sin stock ",null,0,null,null,"INGENIERIA RDA","Barbara"]
["KS616","MKS616",null,null,"Sidaco",null,"Active",null,null,null,null,null,null,null,null,null,"Falta definicion de antena.","conflicto con el locador nos cambio nuevamente la solucion de mimetizado","OK","2019-04-12",7000079702,null,"FIN","Lucrecia"]
["LC043","MLC043","ARBA6868","S12","Guzmán Nacich","AMBA",0,"1255229-1",null,null,null,null,null,null,null,null,null,null,null,null,null,null,"TO DO"]
["LP025","MLP025","ARBA4070","SPRINT 4","Ericsson","AMBA","Active",null,null,null,null,null,null,null,null,null,"TNA770A00RI","planos ok","Energia OK",null,null,null,"SIN STOCK"]
["LP110","MLP110","ARBA8074",null,"CIS SRL","AMBA","Completed","1255283-1",null,null,null,null,null,null,null,null,"ASI4518R14v06","ok stock","Planilla OK 2019 / Falta definir antena","2019-03-14",7000079236,null,"FIN"]
["MC001 ","MMC001 ",null,null,"Sidaco","RAN R1","Active",null,null,null,null,null,null,null,null,null,null,"Planos OK 11-04-19","Energia OK","2019-04-12",7000079334,null,"FIN","Rodrigo"]
["MC004","MMC004",null,null,"Sidaco","RAN 1","Active",null,null,null,null,null,null,null,null,null,null,null,null,"2019-03-29",7000079482,null,"FIN"]
["MC010","MMC010","ARME0645","CIS SRL","CIS SRL",null,"Active",null,null,null,null,null,null,null,null,"2019-04-17","Quad Band + Activa","consultar a RDA por el cambio de antena , no hay el modelo pedido AQU4518R24, se pide verificar si se cambia por ODI2-065R16M18J-Q -----CATALOGO 2000019816","Energia OK","2019-04-25",7000079922,null,"FIN"]
["MC016","MMC016","ARME0653",null,"Sidaco","RAN R1","Completed",null,null,null,null,null,null,null,null,null,null,"ok stock",null,"2019-03-28","7000079281/7000079300",null,"FIN","Rodrigo"]
["MC017","MMC017",null,null,"Sidaco","RAN 1","On Hold",null,null,null,null,null,null,null,null,null,null,null,null,"2019-03-29",7000079483,null,"FIN"]
["MC019","MMC019","ARME0325","S11","Sidaco","R1","Active",null,null,null,null,null,null,null,null,null,null,null,null,"2019-04-12",7000079731,null,"FIN","Lucrecia"]
["MC025","MMC025","ARME0426",null,"Sidaco","RAN R1","Completed",null,null,null,null,null,null,null,null,null,null,"ok stock",null,"2019-03-28",7000079456,null,"FIN","Rodrigo"]
["MC027","MMC027","ARME0657",null,"Sidaco","RAN R1","Active",null,null,null,null,null,null,null,null,null,null,"ok stock",null,"2019-03-28",7000079457,null,"FIN","Rodrigo"]
["MC038","MMC038",null,null,"Sidaco","RAN 1","Active",null,null,null,null,null,null,null,null,null,null,null,null,"2019-03-29",7000079484,null,"FIN"]
["MC039","MMC039","ARME0836","S11","Sidaco","RAN R1","Completed",null,null,null,null,null,null,null,null,null,null,null,null,"2019-04-04",7000079341,null,"FIN",null,"si"]
["MC064","MMC064","ARME0666","S11","Sidaco","RAN R1","Completed",null,null,null,null,null,null,null,null,null,null,null,null,"2019-04-01",7000079337,null,"FIN","SI"]
["MC065","MMC065","ARME0543","S11","Sidaco","RAN R1","Completed",null,null,null,null,null,null,null,null,null,null,null,null,"2019-04-01",7000079338,null,"FIN","SI"]
["MC084","MMC084",null,"CIS SRL",null,"RAN",null,null,null,null,null,null,null,null,null,null,null,null,null,"2019-04-25",7000079923,null,"FIN","Barbara","SI"]
["MC330","MMC330",null,null,"CIS SRL","R1","Active",null,null,null,null,null,null,null,null,"2019-04-17","Sin planos / Validar modelo de antena x ODI2-065R16M18J-GQ/ Validar con Ingenieria ","ing no cerrada fecha de fin 17 de abril - falta la ingenieria / falta Excel materiales",null,"2019-04-23",7000079826,null,"FIN","Barbara"]
["MC355","MMC355","ARME0257","SPRINT BK","Sidaco","RAN R1","Active",null,null,null,null,null,null,null,null,null,null,null,null,"1900-01-01","Espera a la ing del SMC355",null,"FIN"]
["MN078","MMN078","ARME0161",null,"CIS SRL","R1","Planificar Ing","905791-1",234615,null,null,null,null,null,null,null,null,null,null,null,null,null,"TO DO"]
["MS003","MMS003","ARME0061",null,"Sidaco","RAN R1","Completed","905809-1",null,null,null,null,null,null,null,null,"AQU4518R24","ok stock",null,"2019-03-18",7000077204,null,"FIN"]
["MS004","MMS004","ARME0099","SPRINT BK","Sidaco","RAN R1\\Plan Calidad","Active",null,null,null,null,null,null,null,null,null,null,null,"Falta Energia",null,null,null,"INGENIERIA DWG"]
["MS036","MMS036"]
["OC009","MOC009",null,"S16","CIS SRL",null,0,null,null,null,null,null,null,null,null,null,null,null,null,"2019-03-29",7000079854,"ASI4517R3v06","FIN","Lucrecia"]
["QC011","MQC011","ARNQ0377","SPRINT 8","Huawei","RAN R1","Active","879117-1",null,null,null,null,null,null,null,null,"TNA770A00RI","Adelanto Mario","Validar planilla 2017","2019-04-12",69427,null,"FIN","Ricky"]
["QC053","MQC053","ARNQ0071","SPRINT 10","Huawei","RAN R1","Active",null,null,null,null,null,null,null,null,null,null,"Adelanto Mario ( planos ingresaron 12/4/19)","Energia OK","2019-04-12",69428,null,"FIN","Ricky"]
["QC058","MQC058","ARNQ0375","SPRINT 10","Huawei","RAN R1","Active",null,null,null,null,null,null,null,null,null,"Tribanda Trisector","Adelanto Mario ",null,"2019-04-12",69433,null,"FIN","Ricky"]
["QC346","MQC346","ARNQ0379","Sprint 10","Huawei","RAN R1","Completed",null,null,null,null,null,null,null,null,null,null,null,null,"2019-04-11","69136/7000079699",null,"FIN"]
["QCM12","MQCM12",null,null,null,null,null,null,null,null,null,null,null,null,null,null,null,"-          4 RRU’s 3262 de B28 (4T4R)",null,"2019-04-24",7000079869,null,"FIN","Ricky"]
["QN084","MQN084","ARNQ0565","SPRINT BK","Tesur","SITIOS NUEVOS","Active",null,null,null,null,null,null,null,null,null,null,null,null,0,null,null,"A REASIGNAR CONTRATA","NA"]
["QW018","MQW018","ARNQ0037","SPRINT BK","PEM","Obligaciones de pliego","Completed",null,null,null,null,null,null,null,null,null,null,null,null,"2019-04-04","7000079570 / 7000079573",null,"FIN","RICKY"]
["QW033","MQW033","ARNQ0235","Sprint 10","Huawei","RAN R1","Active","905684-1",null,null,null,null,null,null,null,null,"ANTENA A DEFINIR","INGENIERIA","Ingenieria a revision ( Fuerza + Materiales)",1,null,null,"INGENIERIA FUERZA + DWG"]
["RC066","MRC066",null,null,"Huawei","RAN R1","Active",null,null,null,null,null,null,null,null,null,null,"Adelanto Mario",null,"2019-04-12",69451,null,"FIN","Ricky"]
["RE007","MRE007","ARRN0312","Sprint 10","Huawei","RAN R1","Active","1130613-1",null,null,null,null,null,null,null,null,"TNA770A00RI","Adelanto Mario",null,"2019-04-12",69452,null,"FIN","Ricky"]
["RE024","MRE024",0,null,"CIS SRL","RAN R1","Nuevo Sprint",0,null,null,null,null,null,null,null,null,null,null,null,null,null,null,"TO DO"]
["RE308","MRE308","ARRN0313","Sprint 10","Huawei","RAN R1","Active","1130625-1",null,null,null,null,null,null,null,null,"En relevaniento, no estan las ingenierias","Adelanto Mario /Falta definición de antenas según PDG",null,"2019-04-12",69453,null,"FIN","Ricky"]
["RN001","MRN001","ARRN0224","Sprint 10","Huawei","RAN R1","Active","905685-1",null,null,null,null,null,null,null,null,"En relevaniento, no estan las ingenierias","Falta definición de antenas según PDG",null,0,null,null,"INGENIERIA DWG"]
["RN014","MRN014","ARRN0093","Sprint 10","Huawei","RAN R1","Active","905671-1",null,null,null,null,null,null,null,null,"AAU3910 + Falta definir banda baja"," Adelanto Mario","falta definicion de ingenieria","2019-04-12",69436,null,"FIN","Ricky"]
["RN022","MRN022","ARRN0014","Sprint 10","Huawei","RAN R1","Active","1059136-1",null,null,null,null,null,null,null,null,"En relevaniento, no estan las ingenierias","Falta definición de antenas según PDG",null,0,null,null,"INGENIERIA DWG"]
["RN027","MRN027","ARRN0031",null,"Tesur","RAN R1","Completed","905672-1",null,null,null,null,null,null,null,null,"AQU4518R24","ok stock",null,"2019-03-19",7000079057,null,"FIN"]
["RN063","MRN063",0,"Huawei",0,"Active",null,0,null,"2019-04-25",null,null,null,null,null,null,null,null,null,"2019-04-26",69602,null,"FIN","LUCRECIA"]
["RN078","MRN078","ARRN0460",null,"Sidaco","Sitios Nuevos","Completed","888898-1",null,null,null,null,null,null,null,null,"RRZZ (AQU4518R24+ AAU3910)","ok stock","planilla ok 2019","2019-03-12",7000079204,null,"FIN"]
["RN344","MRN344","ARRN0461",null,"Sidaco","Sitios Nuevos","Completed","922220-1",null,null,null,null,null,null,null,null,"Hexabanda Chica","ok stock","Validar planilla 2016","2019-03-12",7000079206,null,"FIN"]
[null,"MS322",null,"CIS SRL",null,null,null,null,null,null,null,null,null,null,null,null,null,null,null,null,null,null,"TO DO"]
["SR319","MSR319","ARSF1764",null,"Sidaco","Sitios Nuevos","Completed","1231046-1",null,null,null,null,null,null,null,null,"ODV-065R16M18JJG / 4000084591","ok stock",null,"2019-03-18",7000079309,null,"FIN"]
["SS148","MSS148",0,"CIS SRL","CIS SRL",null,"Active",null,null,"2019-04-12",null,null,null,null,null,null,"ATR4518R6","Sitio en ejecucion con materiales informo Ruben Retamar","Energia OK","2019-04-23",7000079200,null,"FIN","Barbara"]
["TC032","MTC032","ARTC0049","SPRINT 7","CIS SRL","R1","Active",null,null,null,null,null,null,null,null,null,"HExabanda grande o Hexabanda Chica?","Ingresaron los planos desde MI 12/04/19 - discrepancia entre DWG y PDG RDA","Energia OK","2019-04-17",7000079795,null,"FIN"]
["UW005","MUW005","ARCB0277",null,"Guzman Nacich","RAN R1","Completed","905695-1",null,null,null,null,null,null,null,null,"ok hw, falta definicion energia","ok stock",null,"2019-03-12",7000079178,null,"FIN"]
["UW009","MUW009","ARCB0332",null,"Guzman Nacich","RAN R1","Completed","1059095-1",null,null,null,null,null,null,null,null,"TNA770A00RI","ok stock",null,"2019-03-28",7000079490,null,"FIN","Rodrigo"]
["UW018","MUW018","ARCB0015",null,"Guzman Nacich","RAN R1","Completed","1059051-1",null,null,null,null,null,null,null,null,"ok hw, falta definicion energia","ok stock",null,"2019-03-12",7000079179,null,"FIN"]
["UW019","MUW019"]
["XC350","MXC350","ARCO1896","SPRINT 7","CIS SRL","Sitios Nuevos","On Hold",null,null,null,null,null,null,null,null,null,"ASI4517R3v06 (Interior)","sin stock",null,"2019-04-15","7000079755/7000079633",null,"FIN","Barbara"]
["XN023","MXN023",null,null,{"$error":"#N/A"},{"$error":"#N/A"},{"$error":"#N/A"},{"$error":"#N/A"},null,null,null,null,null,null,null,null,null,null,null,null,null,null,"TO DO"]
["XN108","MXN108","ARCO1859","CIS SRL","Sitios Nuevos","Active",null,"1130587-1",234150,"2019-04-25",null,null,null,null,null,null,null,null,null,"2019-04-26",7000079939,null,"FIN","LUCRECIA"]
["XS027","MXS027",null,"S16",null,null,0,null,null,null,null,null,null,null,null,null,null,null,null,"2019-04-24","7000079874/7000079875",null,"FIN","Lucrecia"]
["XS048","MXS048",null,null,null,"RAN",null,null,null,null,null,null,null,null,null,null,null,null,null,"2019-04-24","7000079884/7000079883",null,"FIN","Lucrecia"]
["XS089","MXS089"]
["XW107","MXW107","ARCO1867","Sprint 14/15","CIS SRL","SITIOS NUEVOS","Active",null,null,null,null,null,null,null,null,null,"Ant RRZZ-65B-R4",null,null,"2019-04-08",7000079634,null,"FIN","Caro L"]
["XW133","MXW133","ARCO1817","S11","CIS SRL","Sitios Nuevos",0,"1130668-1",null,null,null,null,null,null,null,null,null,null,null,"2019-04-25","7000079901/7000079902",null,"FIN","Barbara"]
["XW162","MXW162",0,0,0,"Active",null,0,null,"2019-04-25",null,null,null,null,null,null,null,null,null,null,null,null,"TO DO"]
["ZC015","MZC015",null,"S16",null,"RAN 1",0,null,null,null,null,null,null,null,null,null,null,null,null,"2019-04-23",7000079856,null,"FIN","Lucrecia"]
["ZC024","MZC024","ARLR0131","Sprint 10","Sidaco","Sitios Nuevos","Active",null,null,null,null,null,null,null,null,null,null,"Planos OK  - 2G 1900 NO FIGURA EN PDG","fuerza OK","2019-04-15","7000079763/ 7000079657",null,"FIN","Rodrigo"]
["ZW012","MZW012"]
["BM141","NBM141","ARBA0853","Ericsson","Sitios Nuevos","Active",null,"1317140-1",234191,"2019-04-25",null,null,null,null,null,null,null,null,null,"2019-04-26",7000079918,null,"FIN","Barbara"]
["BN036","NBN036","ARBA0037","SPRINT BK","Ericsson","Proyecto N","On Hold",null,null,null,null,null,null,null,null,null,null,"HW 1900 SIN STOCK",null,null,null,null,"INGENIERIA RDA"]
["BN901","NBN901","ARBA13471","S11","Tesur","SITIOS NUEVOS","On Hold",null,null,null,null,null,null,null,null,null,"Tribanda Trisector","Sin stock",null,"2019-03-25",7000079430,null,"FIN"]
["BO001","NBO001","ARBA0299","SPRINT BK","Sidaco","AMBA","On Hold",null,null,null,null,null,null,null,null,null,null,"HW 1900 SIN STOCK",null,null,null,null,"INGENIERIA RDA"]
["BO099","NBO099","ARBA0218","SPRINT BK","Sidaco","AMBA","On Hold",null,null,null,null,null,null,null,null,null,null,"HW 1900 SIN STOCK",null,null,null,null,"INGENIERIA RDA"]
["BO106","NBO106","ARBA0601","SPRINT BK","Ericsson","AMBA","On Hold",null,null,null,null,null,null,null,null,null,null,"HW 1900 SIN STOCK",null,null,null,null,"INGENIERIA RDA"]
["BS160","NBS160","ARBA6393","S12","Sidaco","AMBA","On Hold",null,null,null,null,null,null,null,null,null,"ODI2-065R16MJJ-GQ ( Hexa grande)","TO DO / Hexa que ingresan 140 unidades el 15 de Abril","se conecta a planta existente",null,null,null,"SIN STOCK"]
["CN060","NCN060","ARCF0463","SPRINT BK","ICS","AMBA","On Hold",null,null,null,null,null,null,null,null,null,null,"sin dwg/ sin hw 1900",null,null,null,null,"INGENIERIA DWG"]
["CN129","NCN129","ARCF0393","SPRINT BK","Ericsson","Proyecto N","On Hold",null,null,null,null,null,null,null,null,null,null,"HW 1900 SIN STOCK",null,null,null,null,"INGENIERIA RDA"]
["CN493","NCN493","ARCF8654","SPRINT BK","Ericsson","AMBA","On Hold",null,null,null,null,null,null,null,null,null,null,"HW 1900 SIN STOCK",null,null,null,null,"INGENIERIA RDA"]
["CS330","NCS330","ARCF9812","SPRINT BK","Tesur","SITIOS NUEVOS","Active",null,null,null,null,null,null,null,null,null,null,null,null,"2019-04-01",7000078990,null,"FIN","SI"]
["CS352","NCS352",null,null,"TELXIUS",null,{"$error":"#N/A"},null,null,null,null,null,null,null,null,null,"\"Antena a definir por RDA\"","no contamos con ninguna definicion para emitir la SOLPE",null,"2019-04-10","69396 /7000079681",null,"FIN","Lucrecia","SI"]
["KN082","NKN082","ARBA5663","SPRINT BK","Ericsson","AMBA","On Hold",null,null,null,null,null,null,null,null,null,null,"HW 1900 SIN STOCK",null,null,null,null,"INGENIERIA RDA"]
["KO046","NKO046","ARBA1694","SPRINT BK","Sidaco","AMBA","On Hold",null,null,null,null,null,null,null,null,null,null,"HW 1900 SIN STOCK",null,null,null,null,"INGENIERIA RDA"]
["KS005","NKS005","ARBA0407","SPRINT BK","Ericsson","AMBA","On Hold",null,null,null,null,null,null,null,null,null,null,"HW 1900 SIN STOCK",null,null,null,null,"INGENIERIA RDA"]
["KS050","NKS050","ARBA0319","SPRINT 9","Tesur","AMBA","On Hold",null,null,null,null,null,null,null,null,null,"Cambia AIR32 x Hexabanda ASI4517R3v06","a verificar estructura por cambio de antena AIR32 x HEXA",null,0,null,null,"SIN STOCK","NA"]
["KS057","NKS057","ARBA0262","SPRINT BK","Ericsson","AMBA","On Hold",null,null,null,null,null,null,null,null,null,null,"HW 1900 SIN STOCK",null,null,null,null,"INGENIERIA RDA"]
["KS310","NKS310","ARBA6570",null,"Tesur","AMBA","Completed",null,null,null,null,null,null,null,null,null,"ODV-065R14M17JJG= 2000012532/2000012416/4000085241","sin stock"," energia OK / Tribanda","2019-03-21",7000079398,null,"FIN"]
["KS461","NKS461","ARBA9360","SPRINT BK","Ericsson","AMBA","On Hold",null,null,null,null,null,null,null,null,null,null,"HW 1900 SIN STOCK",null,null,null,null,"INGENIERIA RDA"]
["BN131","OBN131","ARBA4819","Sprint 9","Sidaco","AMBA","On Hold",null,null,null,null,null,null,null,null,null,"ODI2-065R16MJJ-GQ ( Hexa grande)","Sin Stock",null,null,null,null,"SIN STOCK"]
["BN135","OBN135","ARBA4522","Sprint 12/13","Sidaco","AMBA","Active",null,null,null,null,null,null,null,null,null,"ODI2-065R16MJJ-GQ ( Hexa grande)","Llego ingenieria de MI 12-4-19","Energia OK",0,null,null,"SIN STOCK"]
["BN163","OBN163","ARBA6904","SPRINT 11","Sidaco","AMBA","Active",null,null,null,null,null,null,null,null,null,"AIR32","sin stock",null,"2019-04-09",7000079657,null,"FIN","Lucrecia"]
["BN180","OBN180","ARBA6135","SPRINT 11","Sidaco","AMBA","Completed",null,null,null,null,null,null,null,null,null,"ODI2-065R16MJJ-GQ ( Hexa grande)",null,"Energia OK",null,null,null,"SIN STOCK"]
["BN273","OBN273","ARBA7224","SPRINT 11","Sidaco","AMBA","Active",null,null,null,null,null,null,null,null,null,"ODV-065R16M18J-G",null,null,"2019-04-01",7000079541,null,"FIN","Lucre"]
["BN327","OBN327","ARBA8335","Sprint 9","Sidaco","AMBA","Active",null,null,null,null,null,null,null,null,null,null,null,null,"2019-04-08",7000079626,null,"FIN","Rodrigo"]
["BO013","OBO013","ARBA13267","Ericsson","Sitios Nuevos","Active",null,"1100979-1",235502,"2019-04-25",null,null,null,null,null,null,null,null,null,null,null,null,"TO DO"]
["BO055","OBO055","ARBA4071",null,"CIS SRL","AMBA","Planificar Ing","1255479-1",231747,null,null,null,null,null,null,null,null,null,null,null,null,null,"TO DO"]
["BO096","OBO096","ARBA0468","SPRINT 4","Sidaco","AMBA","Active","900941-1",null,null,null,null,null,null,null,null,"sale con AIR32 de TESUR","ok stock","Energia OK","2019-04-16","7000079758/7000079648",null,"FIN","Lucrecia"]
["BO133","OBO133","ARBA3652",null,"CIS SRL","AMBA","Planificar Ing","1255230-1",231831,null,null,null,null,null,null,null,null,null,null,null,null,null,"TO DO"]
["BO135","OBO135","ARBA3687","CIS SRL","AMBA",null,"Active",null,null,null,null,null,null,null,null,null,"ASI4517R3V06",null,"Energia OK","2019-04-17",7000079783,null,"FIN","Lucrecia"]
["BO153","OBO153","ARBA4770","CIS SRL","AMBA",null,"Active",null,null,null,null,null,null,null,null,null,"ASI4517R3V06",null,"Energia OK","2019-04-22",7000079826,null,"FIN","lucreia"]
["BO185","OBO185"]
["BO430","OBO430",null,null,"Sidaco","AMBA","Completed",null,null,null,null,null,null,null,null,null,"ODI2-065R16MJJ-GQ ( Hexa grande)","mc condicionante se cierra semana 22 de abril","EXISTENTE",0,null,null,"SIN STOCK"]
["BS036","OBS036",null,null,"Sidaco","AMBA","On Hold",null,null,null,null,null,null,null,null,null,"Requiere antena AIR32, sin stock./ cambia por ASI4517R3v06","No Liberado es operadora","OK","2019-04-22",7000079835,null,"FIN","Lucrecia"]
["BS043","OBS043","ARBA1369","SPRINT BK","Ericsson","LTE 2600","On Hold",null,null,null,null,null,null,null,null,null,null,"Figura \"suspendido\" por SEGOBRA / se envio parte del hw",null,null,null,null,"SITIOS"]
["BS085","OBS085","ARBA3546","Sprint 9","Sidaco","AMBA","Completed",null,null,null,null,null,null,null,null,null,"AIR32=? ODI2","discrepancias entre planilla y plano / AIR32",null,0,null,null,"INGENIERIA RDA"]
["BS096","OBS096","ARBA9977","SPRINT 11","Sidaco","AMBA","On Hold",null,null,null,null,null,null,null,null,null,"Tricedctor Tribanda ","faltan planos","ok fuerza",null,null,null,"INGENIERIA RDA","Caro Lanfranco"]
["BS104","OBS104",null,"SPRINT 11","Sidaco","AMBA","On Hold",null,null,null,null,null,null,null,null,null,"TNA770A00RI","sin stock","Falta planilla de materiales / fuerza OK",null,null,null,"SIN STOCK"]
["BS129","OBS129",null,"SPRINT 11","Sidaco","AMBA","Active",null,null,null,null,null,null,null,null,null,"ODI2-065R16MJJ-GQ ( Hexa grande)","Planos OK / TO DO / Hexa que ingresan 140 unidades el 15 de Abril","fuerza ok",1,null,null,"SIN STOCK"]
["BS136","OBS136",null,null,"Sidaco","AMBA","Active",null,null,null,null,null,null,null,null,null,"ODI2-065R16MJJ-GQ ( Hexa grande)","mc condicionante se cierra semana 22 de abril",null,0,null,null,"SIN STOCK"]
["BS155","OBS155","ARBA6909","SPRINT 9","Tesur","AMBA","On Hold",null,null,null,null,null,null,null,null,null,"ODI2-065R16MJJ-GQ ( Hexa grande)","Sin Stock","ok fuerza",0,null,null,"SIN STOCK","NA"]
["BS160","OBS160","ARBA6393","S12","Sidaco","AMBA","Completed",null,null,null,null,null,null,null,null,null,"ODI2-065R16MJJ-GQ ( Hexa grande)","TO DO / Hexa que ingresan 140 unidades el 15 de Abril","se conecta a planta existente",null,null,null,"SIN STOCK"]
["BS169","OBS169",{"$error":"#N/A"},"SPRINT 11","Sidaco","AMBA","On Hold","1255329-1",null,null,null,null,null,null,null,null,"TNA770A00RI","sin stock",null,0,null,null,"SIN STOCK"]
["BS195","OBS195","ARBA7903","SPRINT 4","Ericsson","AMBA","On Hold",null,null,null,null,null,null,null,null,null,"AIR32",null,null,null,null,null,"INGENIERIA RDA"]
["BS229","OBS229","ARBA9890","SPRINT 11","Sidaco","AMBA","Active",null,null,null,null,null,null,null,null,"2019-04-17","TNA770A00RI","ANTENA TNA770A00RI sin stock","Energia OK",1,null,null,"SIN STOCK"]
["BS247","OBS247",{"$error":"#N/A"},"SPRINT 11","Guzman Nacich","Sitios Nuevos","On Hold","1131335-1",null,null,null,null,null,null,null,null,"ODI2-065R16MJJ-GQ ( Hexa grande)","sin stock","ODI2-065R16MJJ-GQ ( Hexa Grande)",0,null,null,"SIN STOCK"]
["BS275","OBS275","ARBA11527","Sprint 12/13","Sidaco","AMBA","On Hold",null,null,null,null,null,null,null,null,null,"Cambia AIR32 x Hexabanda CHICA: ASI4518R14v06 - 2000014747","a verificar estructura por cambio de antena AIR32 x HEXA / NO VERIFICA LA ESTRUCTURA HAY QUE PONER MIMETIZADO",null,"2019-04-22",7000079843,null,"FIN","Barbara"]
["CM010","OCM010","ARCF0093","SPRINT BK","Ericsson","AMBA","Active",null,null,null,null,null,null,null,null,null,null,null,null,"2019-04-08",7000079625,null,"FIN","Barbara"]
["CN202","OCN202","ARCF3675","Sprint 12/13","MULTIRADIO","AMBA","Active",null,null,null,null,null,null,null,null,null,null,null,null,0,null,null,"TO DO","NA"]
["CN262","OCN262",null,"Sprint 12/13","Tesur","AMBA","On Hold",null,null,null,null,null,null,null,null,null,"ODI2-065R16MJJ-GQ ( Hexa grande)","sin stock",null,0,null,null,"SIN STOCK","NA"]
["CN266","OCN266","ARCF8462","SPRINT BK","CIS SRL","LTE 2600","On Hold",null,null,null,null,null,null,null,null,null,"AIR32","AIR32",null,null,null,null,"INGENIERIA RDA"]
["CN349","OCN349","ARCF8639","S12","Tesur","AMBA","Active",null,null,null,null,null,null,null,null,null,"ODV-065R14M17JJ-G","sin stock",null,0,null,null,"SIN STOCK","NA"]
["CN394","OCN394","ARCF9064",null,"CIS SRL","AMBA","Completed","900724-1",null,null,null,null,null,null,null,null,"Cambia AIR32 x Hexabanda","YA ESTA EN OBRA y QUEDA CON AIR32","validar planilla","2019-04-08","stock contratista",null,"FIN"]
["CN423","OCN423","ARCF8852","Sprint 12/13","MULTIRADIO","AMBA","Active",null,null,null,null,null,null,null,null,null,null,null,null,0,null,null,"TO DO","NA"]
["CS077","OCS077","ARCF0007","SPRINT BK","CIS SRL","LTE 2600","Active",null,null,null,null,null,null,null,null,null,null,null,null,"2019-04-12",7000079667,null,"FIN","Barbara"]
["CS100","OCS100","ARCF0536","SPRINT BK","Guzmán Nacich","AMBA","Active",null,null,null,null,null,null,null,null,null,"faltan planos","conflicto Escuela sin ingreso para relevar","falta fuerza",0,null,null,"SITIOS"]
["CS111","OCS111",null,"Sprint 12/13","Tesur","AMBA","On Hold",null,null,null,null,null,null,null,null,null,"ODI2-065R16MJJ-GQ ( Hexa grande)","sin stock",null,0,null,null,"SIN STOCK","NA"]
["CS115","OCS115","ARCF3870","Sprint 12/13","CIS SRL","AMBA","Active",null,null,null,null,null,null,null,null,null,null,null,null,0,null,null,"TO DO","NA"]
["CS120","OCS120","ARCF3903","Sprint 12/13","CIS SRL","AMBA","Active",null,null,null,null,null,null,null,null,null,null,null,null,0,null,null,"TO DO","NA"]
["CS124","OCS124","ARCF9268","Sprint 12/13","CIS SRL","AMBA","Active",null,null,null,null,null,null,null,null,null,null,null,null,0,null,null,"TO DO","NA"]
["CS140","OCS140","ARCF4956","Sprint 12/13","CIS SRL","AMBA","Active",null,null,null,null,null,null,null,null,null,null,null,null,0,null,null,"TO DO","NA"]
["CS148","OCS148","ARCF4059","Sprint 12/13","CIS SRL","AMBA","Active",null,null,null,null,null,null,null,null,null,null,null,null,0,null,null,"TO DO","NA"]
["CS205","OCS205",null,null,"Sidaco","Sitios Nuevos","Active",null,null,null,null,null,null,null,null,null,"ODI2-065R16MJJ-GQ ( Hexa grande)","planos recibidos 12-4-19","Energia OK",0,null,null,"SIN STOCK"]
["CS256","OCS256","ARCF8724","Sprint 12/13","Sidaco","AMBA","Active",null,null,null,null,null,null,null,null,null,null,null,null,0,null,null,"TO DO","NA"]
["CS293","OCS293","ARCF8684","Sprint 12/13","Sidaco","AMBA","Active",null,null,null,null,null,null,null,null,null,null,null,null,0,null,null,"TO DO","NA"]
["CS296","OCS296","ARCF8685","S12","Sidaco","AMBA","Active",null,null,null,null,null,null,null,null,null,null,null,null,0,null,null,"TO DO","NA"]
["CS311","OCS311","ARCF8564","SPRINT 9","Tesur","AMBA","On Hold",null,null,null,null,null,null,null,null,null,"ODI2-065R16MJJ-GQ ( Hexa grande)","sin stock","falta fuerza",0,null,null,"SIN STOCK","NA"]
["CS352","OCS352",null,null,"TELXIUS",null,"Active",null,null,null,null,null,null,null,null,null,"\"Antena a definir por RDA\"","no contamos con ninguna definicion para emitir la SOLPE",null,"2019-04-10","69396 /7000079681",null,"FIN","Lucrecia","SI"]
["CS508","OCS508",null,"SPRINT 9","TESUR",null,"Active",null,null,null,null,null,null,null,null,null,null,"se consulta por cambio de antena ","fuerza ok","2019-04-11",7000079683,null,"FIN","Barbara"]
["CU021","OCU021"]
["CU046","OCU046","ARCF9553","SPRINT 5","CIS SRL","AMBA","On Hold",null,null,null,null,null,null,null,null,null,null,"Arsobispado",null,null,null,null,"SITIOS"]
["IC001","OIC001",null,null,"Guzman Nacich","RAN 1","Active",null,null,null,null,null,null,null,null,null,null,null,null,"2019-04-05",7000079599,null,"FIN","Carolina H - Ricky","SI"]
["IC002","OIC002",null,null,"Guzman Nacich","RAN 1","Active",null,null,null,null,null,null,null,null,null,null,null,null,"2019-03-29",7000079503,null,"FIN"]
["IC008","OIC008",null,null,"Guzman Nacich","RAN 1","Completed",null,null,null,null,null,null,null,null,null,null,null,null,"2019-04-05",7000079598,null,"FIN","Carolina H - Ricky","SI"]
["IC009","OIC009",null,null,"Guzman Nacich","RAN 1","Completed",null,null,null,null,null,null,null,null,null,null,null,null,"2019-03-29",7000079505,null,"FIN"]
["IC014","OIC014","ARTF0029","S12","Guzman Nacich","RAN R1","Completed",null,null,null,null,null,null,null,null,null,null,null,null,"2019-04-05",7000079595,null,"FIN","Carolina H - Ricky","SI"]
["IE001","OIE001",null,null,"Guzman Nacich","RAN 1",{"$error":"#N/A"},null,null,null,null,null,null,null,null,null,null,null,null,"2019-04-05",7000079597,null,"FIN","Carolina H - Ricky","SI"]
["IE006","OIE006",null,null,"Guzman Nacich","RAN 1","Completed",null,null,null,null,null,null,null,null,null,null,null,null,"2019-04-05",7000079587,null,"FIN","Carolina H - Ricky","SI"]
["IN001","OIN001",null,null,"Guzman Nacich","RAN 1","Completed",null,null,null,null,null,null,null,null,null,null,"Planos OK enviados 12-4-19",null,"2019-03-29",7000079506,null,"FIN",null,"SI"]
["IN010","OIN010",null,null,"Guzman Nacich","RAN 1","Completed",null,null,null,null,null,null,null,null,null,"TNA770A00RI","Llego ingenieria de MI 12/4/19","Energia OK",0,null,null,"SIN STOCK"]
["JC005","OJC005","JC005",null,"SIDACO",null,"Completed",null,null,null,null,null,null,null,null,null,null,null,null,"2019-03-21",7000079397,null,"FIN"]
["JC006","OJC006","ARSJ0245",null,"Sidaco","RAN R1","Completed","905879-1",null,null,null,null,null,null,null,null,"Terminada","ok stock",null,"2019-03-08","7000079143/7000079268/7000079308",null,"FIN"]
["JC035","OJC035","ARSJ0033",null,"Sidaco","RAN R1","Active",null,null,null,null,null,null,null,null,null,null,"ok stock",null,"2019-03-28","7000079269/7000079302",null,"FIN","Rodrigo"]
["JC047","OJC047",null,null,null,null,"Completed",null,null,null,null,null,null,null,null,null,null,null,null,"2019-03-22","7000079280 / 7000079304",null,"FIN"]
["JC048","OJC048","ARSJ0192",null,"Sidaco","RAN R1","Completed",null,null,null,null,null,null,null,null,null,null,"ok stock",null,"2019-03-28","7000079264/7000079305",null,"FIN","Rodrigo"]
["JC053","OJC053",null,null,null,null,"Completed",null,null,null,null,null,null,null,null,null,null,null,null,"2019-03-22",7000079345,null,"FIN"]
["JC322","OJC322","ARSJ0092",null,"Sidaco","RAN R1","Completed",null,null,null,null,null,null,null,null,null,null,"ok stock",null,"2019-03-28",7000079346,null,"FIN","Rodrigo"]
["JC337","OJC337","ARSJ4821",null,"Sidaco","RAN R1","Completed",null,null,null,null,null,null,null,null,null,null,"ok stock",null,"2019-03-28","7000079265/7000079306",null,"FIN","Rodrigo"]
["JC339","OJC339","ARSJ4770","S11","Sidaco","RAN R1","Completed",null,null,null,null,null,null,null,null,null,null,null,null,"2019-04-01","7000079266/7000079307",null,"FIN","SI"]
["KN073","OKN073","ARBA0664","SPRINT BK","Tesur","AMBA","On Hold","LTE 2600",null,null,null,null,null,null,null,null,"Cambia AIR32 x Hexabanda ASI4517R3v06","a verificar estructura por cambio de antena AIR32 x HEXA",null,0,null,null,"SIN STOCK","NA"]
["KN091","OKN091","ARBA7091","Sprint 12/13","CIS SRL","AMBA","Active",null,null,null,null,null,null,null,null,null,"ODI2-065R16MJJ-GQ ( Hexa grande)","TO DO / Hexa que ingresan 140 unidades el 15 de Abril",null,null,null,null,"SIN STOCK"]
["KO024","OKO024","ARBA0502","SPRINT BK","Guzmán Nacich","LTE 2600","On Hold",null,null,null,null,null,null,null,null,null,"AIR32","sin stock AIR32",null,null,null,null,"INGENIERIA RDA"]
["KO059","OKO059","ARBA10241","SPRINT BK","Guzmán Nacich","LTE 2600","Active",null,null,null,null,null,null,null,null,null,"antenas Hexa chicas",null,null,"2019-04-12",7000079700,null,"FIN","Barbara"]
["KO062","OKO062","ARBA4989","SPRINT 9","Tesur","AMBA","On Hold",null,null,null,null,null,null,null,null,null,"ODI2-065R16MJJ-GQ ( Hexa grande)","sin stock",null,0,null,null,"SIN STOCK","NA"]
["KS007","OKS007","ARBA0381","SPRINT 4","Ericsson","AMBA","Active","915887-1",null,null,null,null,null,null,null,null,"Cambia AIR32 x Hexabanda","a verificar estructura por cambio de antena AIR32 x HEXA","planilla ok 2019","2019-04-09",7000079655,null,"FIN","Barbara"]
["KS034","OKS034","ARBA0197",null,"Ericsson","AMBA","Completed",null,null,null,null,null,null,null,null,null,"Cambia AIR32 x Hexabanda","a verificar estructura por cambio de antena AIR32 x HEXA /según Vera la contratista tiene la AIR32",null,"2019-04-08","stock contratista",null,"FIN"]
["KS050","OKS050","ARBA0319","SPRINT 9","Tesur","AMBA","On Hold",null,null,null,null,null,null,null,null,null,"Cambia AIR32 x Hexabanda ASI4517R3v06","a verificar estructura por cambio de antena AIR32 x HEXA",null,0,null,null,"SIN STOCK","NA"]
["KS132","OKS132","ARBA5556","Sprint 12/13","Sidaco","AMBA","Active",null,null,null,null,null,null,null,null,null,"ODI2-065R16MJJ-GQ ( Hexa grande)","TO DO / Hexa que ingresan 140 unidades el 15 de Abril","fuerza ok",null,null,null,"SIN STOCK"]
["KS134","OKS134","ARBA4036","SPRINT BK","Ericsson","Despliegue","On Hold",null,null,null,null,null,null,null,null,null,"TNA770A00RI",null,"Energia OK",0,null,null,"SIN STOCK"]
["KS165","OKS165","ARBA4358","Sprint 9","Sidaco","AMBA","Active",null,null,null,null,null,null,null,null,null,null,"Ingresaron los planos desde MI 12/04/19","Energia OK","2019-04-12",7000079711,null,"FIN","Barbara"]
["KS171","OKS171","ARBA5612","Sprint 12/13","Sidaco","AMBA","Active",null,null,null,null,null,null,null,null,null,"\"Antena a definir por RDA\"","se envia mail consulta RDA / OK PLANOS 12/4/19","ok fuerza","2019-04-12",7000079712,null,"FIN","Rodrigo"]
["KS173","OKS173","ARBA7761","Sprint 12/13","Sidaco","AMBA","Completed",null,null,null,null,null,null,null,null,null,"ASI4518R14v06 (HEXA CHICA)","ok stock","Energia OK","2019-04-05",7000079588,null,"FIN","Barbara"]
["KS238","OKS238",null,null,"Sidaco","AMBA","Active",null,null,null,null,null,null,null,null,null,"ODI2-065R16MJJ-GQ ( Hexa grande)","se cierra hoy",null,0,null,null,"SIN STOCK"]
["KS269","OKS269","ARBA7406","Sprint 12/13","Sidaco","AMBA","Active",null,null,null,null,null,null,null,null,null,"ASI4517R3v06",null,"Energia OK","2019-04-22",7000079821,null,"FIN","Barbara"]
["KS276","OKS276","ARBA6159","SPRINT 4","Ericsson","AMBA","Active","901198-1",null,null,null,null,null,null,null,null,"Cambia AIR32 x Hexabanda","a verificar estructura por cambio de antena AIR32 x HEXA","AIR32 + odv065R14M17JG","2019-04-09",7000079656,null,"FIN","Barbara"]
["KS287","OKS287","ARBA6501","SPRINT 9","Tesur","AMBA","On Hold",null,null,null,null,null,null,null,null,null,"ODI2-065R16MJJ-GQ ( Hexa grande)","sin stock",null,0,null,null,"SIN STOCK","NA"]
["KS307","OKS307","ARBA7267","Sprint 9","Sidaco","AMBA","Completed","1255318-1",null,null,null,null,null,null,null,null,"ASI4518R14v06 (HEXA CHICA)","faltan planos","falta energia","2019-04-05",7000079593,null,"FIN","Rodrigo"]
["KS310","OKS310","ARBA6570",null,"Tesur","AMBA","Completed",null,null,null,null,null,null,null,null,null,"ODV-065R14M17JJG= 2000012532/2000012416/4000085241","sin stock","falta energia / Tribanda","2019-03-21",7000079398,null,"FIN"]
["KS315","OKS315","ARBA6760","CIS SRL","AMBA",null,"Active",null,null,null,null,null,null,null,null,null,"ASI4517R3V06",null,"Energia OK","2019-04-17",7000079787,null,"FIN","Rodrigo"]
["KS317","OKS317","ARBA7219","Sprint 9","Sidaco","AMBA","Active",null,null,null,null,null,null,null,null,null,"ASI4518R14v06 (HEXA CHICA)","ok stock","ok fuerza","2019-04-08",7000079623,null,"FIN","Barbara"]
["KS440","OKS440","ARBA10089","Sprint 9","Sidaco","AMBA","On Hold",null,null,null,null,null,null,null,null,null,"AIR32","sin stock ",null,null,null,null,"INGENIERIA RDA","Caro Lanfranco"]
["KS457","OKS457","ARBA9719","SPRINT BK","Guzman Nacich","AMBA","On Hold",null,null,null,null,null,null,null,null,null,"AIR32","sin stock",null,0,null,null,"INGENIERIA RDA","Barbara"]
["LC043","OLC043","ARBA6868","S12","Guzmán Nacich","AMBA",0,"1255075-1",null,null,null,null,null,null,null,null,null,null,null,null,null,null,"TO DO"]
["LP015","OLP015","ARBA0608","CIS SRL","AMBA",null,"Active",null,null,null,null,null,null,null,null,null,"ASI4518R14v06",null,"Energia OK","2019-04-17",7000079798,null,"FIN"]
["LP034","OLP034","ARBA1530","SPRINT 9","CIS SRL","AMBA","On Hold","1255174-1",null,null,null,null,null,null,null,null,"ASI4517R3v06","ok stock","Planilla OK 2019","2019-04-17",7000079796,null,"FIN","Lucrecia"]
["LP038","OLP038","ARBA7514","Guzmán Nacich","AMBA","Active",null,"1255191-1",231923,"2019-04-25",null,null,null,null,null,null,null,null,null,null,null,null,"TO DO"]
["LP109","OLP109","ARBA7943","SPRINT 9","CIS SRL","AMBA","Active","1255193-1",null,null,null,null,null,null,null,null,"ASI4517R3v06","ok stock","Sin planilla de fuerza","2019-04-05",7000079564,null,"FIN","Rodrigo"]
["LP110","OLP110","ARBA8074",null,"CIS SRL","AMBA","Completed","1254899-1",null,null,null,null,null,null,null,null,"ASI4518R14v06","ok stock","Planilla OK 2019 / Falta definir antena","2019-03-14",7000079236,null,"FIN"]
["LP135","OLP135","ARBA9359","CIS SRL","AMBA",null,"Active",null,null,null,null,null,null,null,null,null,"ASI4518R14v06",null,"Energia OK","2019-04-22",7000079833,null,"FIN","Barbara"]
["MC016","OMC016","ARME0653",null,"Sidaco","RAN R1","Completed",null,null,null,null,null,null,null,null,null,null,"ok stock",null,"2019-03-28","7000079281/7000079300",null,"FIN","Rodrigo"]
["MC025","OMC025","ARME0426",null,"Sidaco","RAN R1","Completed",null,null,null,null,null,null,null,null,null,null,"ok stock",null,"2019-03-28",7000079456,null,"FIN","Rodrigo"]
["MC027","OMC027","ARME0657",null,"Sidaco","RAN R1","Active",null,null,null,null,null,null,null,null,null,null,"ok stock",null,"2019-03-28",7000079457,null,"FIN","Rodrigo"]
["MC028","OMC028",null,null,"Sidaco","RAN 1","Active",null,null,null,null,null,null,null,null,null,null,null,null,"2019-03-29",7000079485,null,"FIN"]
["MC038","OMC038",null,null,"Sidaco","RAN 1","Active",null,null,null,null,null,null,null,null,null,null,null,null,"2019-03-29",7000079484,null,"FIN"]
["MC039","OMC039","ARME0836","S11","Sidaco","RAN R1","Completed",null,null,null,null,null,null,null,null,null,null,null,null,"2019-04-04",7000079341,null,"FIN",null,"si"]
["MS003","OMS003","ARME0061",null,"Sidaco","RAN R1","Completed","905916-1",null,null,null,null,null,null,null,null,"AQU4518R24","ok stock",null,"2019-03-18",7000077204,null,"FIN"]
["QC045","OQC045","ARNQ0026",null,"Huawei","RAN R1","Completed","905943-1",null,null,null,null,null,null,null,null,"ok hw, falta definicion energia","ok stock",null,"2019-03-12",69135,null,"FIN"]
["QC053","OQC053","ARNQ0071","SPRINT 10","Huawei","RAN R1","Active",null,null,null,null,null,null,null,null,null,null,"Adelanto Mario ( planos ingresaron 12/4/19)","Energia OK","2019-04-12",69428,null,"FIN","Ricky"]
["QC058","OQC058","ARNQ0375","SPRINT 10","Huawei","RAN R1","Active",null,null,null,null,null,null,null,null,null,"Tribanda Trisector","Adelanto Mario ",null,"2019-04-12",69433,null,"FIN","Ricky"]
["QC074","OQC074","ARNQ0058","SPRINT 10","Huawei","RAN R1","Active",null,null,null,null,null,null,null,null,null,null,null,null,"2019-04-08",69137,null,"FIN",null,"si"]
["QC348","OQC348","ARNQ0171",null,"Huawei","RAN R1","On Hold","905951-1",null,null,null,null,null,null,null,null,"ASI4517R3v06 (Interior)","sin stock / requiere reingenieria de calculo",null,0,null,null,"INGENIERIA DWG"]
["QC349","OQC349","ARNQ0178",null,"Huawei","RAN R1","On Hold","905946-1",null,null,null,null,null,null,null,null,"ASI4517R3v06 (Interior)","sin stock / requiere reingenieria de calculo","Falta aprobacion de ingenieias",0,null,null,"INGENIERIA DWG"]
["QCM12","OQCM12",null,null,null,null,null,null,null,null,null,null,null,null,null,null,null,"-          4 RRU’s 3281 de B7 (4T4R)",null,"2019-04-24",7000079869,null,"FIN","Ricky"]
["RC010","ORC010","ARRN0325","Sprint 10","Huawei","RAN R1","Active","905954-1",null,null,null,null,null,null,null,null,"TNA770A00RI","Adelanto Mario",null,"2019-04-12",69450,null,"FIN","Ricky"]
["RC066","ORC066",null,null,"Huawei","RAN R1","Active",null,null,null,null,null,null,null,null,null,null," Adelanto Mario",null,"2019-04-12",69451,null,"FIN","Ricky"]
["RC317","ORC317","ARRN0137",null,"Huawei","RAN R1","Active","905955-1",null,null,null,null,null,null,null,null,"AQU4518R24 = ODI2-065R16M18JG-Q","Falta ingenieria ","OK energia a verificar","2019-03-21",69226,null,"FIN"]
["RN001","ORN001","ARRN0224","Sprint 10","Huawei","RAN R1","Active","905941-1",null,null,null,null,null,null,null,null,"En relevaniento, no estan las ingenierias","Falta definición de antenas según PDG",null,0,null,null,"INGENIERIA DWG"]
["RN004","ORN004","ARRN0321",null,"Tesur","RAN R1","Completed","905948-1",null,null,null,null,null,null,null,null,"En relevaniento, no estan las ingenierias","Falta definición de antenas según PDG",null,"2019-03-21",7000079078,null,"FIN"]
["TC032","OTC032","ARTC0049","SPRINT 7","CIS SRL","R1","Active",null,null,null,null,null,null,null,null,null,"HExabanda grande o Hexabanda Chica?","Ingresaron los planos desde MI 12/04/19 - discrepancia entre DWG y PDG RDA","Energia OK","2019-04-17",7000079795,null,"FIN"]
["UW005","OUW005","ARCB0277",null,"Guzman Nacich","RAN R1","Completed","905987-1",null,null,null,null,null,null,null,null,"ok hw, falta definicion energia","ok stock",null,"2019-03-12",7000079178,null,"FIN"]
["RN015","RN015",null,null,"Huawei","RAN R1","Active",null,null,null,null,null,null,null,null,null,null,"Adelanto Mario",null,"2019-04-12",69439,null,"FIN","Ricky"]
["AC301","SAC301",null,null,"CIS SRL","RAN 1","Completed",null,null,null,null,null,null,null,null,null,null,null,null,"2019-04-09",7000079637,null,"FIN","RICKY","SI"]
["AN003","SAN003",null,"S16",null,0,0,null,null,null,null,null,null,null,null,null,null,null,null,null,null,null,"TO DO"]
["BB475","SBB475",null,null,"Guzman Nacich","RAN 1",{"$error":"#N/A"},null,null,null,null,null,null,null,null,null,null,null,null,"2019-03-29","7000079459/7000079508",null,"FIN"]
["IC001","SIC001",null,null,"Guzman Nacich","RAN 1","Active",null,null,null,null,null,null,null,null,null,null,null,null,"2019-04-05",7000079599,null,"FIN","Carolina H - Ricky","SI"]
["IC004","SIC004",null,null,"Guzman Nacich","RAN 1","Active",null,null,null,null,null,null,null,null,null,null,"Sin Fecha (requiere refuerzo)",null,"1900-01-01",7000077399,null,"FIN"]
["IC008","SIC008",null,null,"Guzman Nacich","RAN 1","Completed",null,null,null,null,null,null,null,null,null,null,null,null,"2019-04-05",7000079598,null,"FIN","Carolina H - Ricky","SI"]
["IC014","SIC014","ARTF0029","S12","Guzman Nacich","RAN R1","Completed",null,null,null,null,null,null,null,null,null,null,null,null,"2019-04-05",7000079595,null,"FIN","Carolina H - Ricky","SI"]
["IC021","SIC021",null,null,"Guzman Nacich","RAN 1","Completed",null,null,null,null,null,null,null,null,null,null,null,null,"2019-04-05","USA HW DEL IC004",null,"FIN","Carolina H - Ricky","SI"]
["IC024","SIC024",null,null,"Guzman Nacich","RAN 1","Completed",null,null,null,null,null,null,null,null,null,null,null,null,"2019-04-05",7000079596,null,"FIN","Carolina H - Ricky","SI"]
["IE001","SIE001",null,null,"Guzman Nacich","RAN 1",{"$error":"#N/A"},null,null,null,null,null,null,null,null,null,null,null,null,"2019-04-05",7000079597,null,"FIN","Carolina H - Ricky","SI"]
["IE006","SIE006",null,null,"Guzman Nacich","RAN 1","Completed",null,null,null,null,null,null,null,null,null,null,null,null,"2019-04-05",7000079587,null,"FIN","Carolina H - Ricky","SI"]
["IN010","SIN010",null,null,"Guzman Nacich","RAN 1","Completed",null,null,null,null,null,null,null,null,null,"TNA770A00RI","Llego ingenieria de MI 12/4/19","Energia OK",0,null,null,"SIN STOCK"]
["IS005","SIS005",null,null,"Guzman Nacich","RAN 1","Active",null,null,null,null,null,null,null,null,null,null,"Sin Fecha (requiere refuerzo)",null,"1900-01-01",7000077452,null,"FIN"]
["JC004","SJC004","ARSJ4749",null,"Sidaco","RAN R1","Completed","1129227-1",null,null,null,null,null,null,null,null,"Terminada","ok stock",null,"2019-03-08","7000079143 ",null,"FIN"]
["JC005","SJC005",null,null,"Sidaco","RAN 1","Completed",null,null,null,null,null,null,null,null,null,null,null,null,"2019-03-29",7000079486,null,"FIN"]
["JC006","SJC006","ARSJ0245",null,"Sidaco","RAN R1","Completed","1129119-1",null,null,null,null,null,null,null,null,"Terminada","ok stock",null,"2019-03-08","7000079143/7000079268/7000079308",null,"FIN"]
["JC035","SJC035",null,null,"Sidaco","RAN R1","Active",null,null,null,null,null,null,null,null,null,null,null,null,"2019-03-15",7000079269,null,"FIN"]
["JC047","SJC047",null,null,"Sidaco","RAN R1","Completed",null,null,null,null,null,null,null,null,null,null,null,null,"2019-03-15",7000079280,null,"FIN"]
["JC048","SJC048",null,null,"Sidaco","RAN R1","Completed",null,null,null,null,null,null,null,null,null,null,null,null,"2019-03-15",7000079264,null,"FIN"]
["JC053","SJC053",null,null,null,null,"Completed",null,null,null,null,null,null,null,null,null,null,null,null,"2019-03-22",7000079345,null,"FIN"]
["JC056","SJC056","ARSJ4732","S11","Sidaco","RAN R1","Completed",null,null,null,null,null,null,null,null,null,null,null,null,"2019-04-01",7000079317,null,"FIN","SI"]
["JC303","SJC303","ARSJ0054",null,"Sidaco","RAN R1","Completed",null,null,null,null,null,null,null,null,null,null,"ok stock",null,"2019-03-28",7000079318,null,"FIN","Rodrigo"]
["JC322","SJC322","ARSJ0092",null,"Sidaco","RAN R1","Completed",null,null,null,null,null,null,null,null,null,null,"ok stock",null,"2019-03-28",7000079346,null,"FIN","Rodrigo"]
["JC326","SJC326","ARSJ0090","S11","Sidaco","RAN R1","Completed",null,null,null,null,null,null,null,null,null,null,null,null,"2019-04-01",7000079319,null,"FIN","SI"]
["JC329","SJC329","ARSJ0179","S11","Sidaco","RAN 1","Completed",null,null,null,null,null,null,null,null,null,null,null,null,"2019-04-01",7000079330,null,"FIN","SI"]
["JC332","SJC332","ARSJ0172",null,"Sidaco","RAN 1","Completed",null,null,null,null,null,null,null,null,null,null,"ok stock",null,"2019-03-28",7000079347,null,"FIN","Rodrigo"]
["JC337","SJC337",null,null,"Sidaco","RAN R1","Completed",null,null,null,null,null,null,null,null,null,null,null,null,"2019-03-15",7000079265,null,"FIN"]
["JC339","SJC339",null,"S11","Sidaco","RAN R1","Completed",null,null,null,null,null,null,null,null,null,null,null,null,"2019-03-15",7000079266,null,"FIN"]
["JS025","SJS025","ARSJ4730","S11","Sidaco","RAN R1","Completed",null,null,null,null,null,null,null,null,null,null,null,null,"1900-01-01",7000079144,null,"FIN"]
["MC001 ","SMC001 ",null,null,"Sidaco","RAN R1","Active",null,null,null,null,null,null,null,null,null,null,null,null,"2019-04-12",7000079334,null,"FIN","Rodrigo"]
["MC010","SMC010","ARME0645","CIS SRL","CIS SRL",null,"Active",null,null,null,null,null,null,null,null,"2019-04-17","Quad Band + Activa","consultar a RDA por el cambio de antena , no hay el modelo pedido AQU4518R24, se pide verificar si se cambia por ODI2-065R16M18J-Q -----CATALOGO 2000019816","Energia OK","2019-04-25",7000079922,null,"FIN"]
["MC016","SMC016",null,null,"Sidaco","RAN R1","Completed",null,null,null,null,null,null,null,null,null,null,null,null,"2019-03-15",7000079281,null,"FIN"]
["MC019","SMC019","ARME0325","S11","Sidaco","R1","Active",null,null,null,null,null,null,null,null,null,null,null,null,"2019-04-12",7000079731,null,"FIN","Lucrecia"]
["MC025","SMC025","ARME0426",null,"Sidaco","RAN R1","Completed",null,null,null,null,null,null,null,null,null,null,"ok stock",null,"2019-03-28",7000079456,null,"FIN","Rodrigo"]
["MC027","SMC027","ARME0657",null,"Sidaco","RAN R1","Active",null,null,null,null,null,null,null,null,null,null,"ok stock",null,"2019-03-28",7000079457,null,"FIN","Rodrigo"]
["MC039","SMC039","ARME0836","S11","Sidaco","RAN R1","Completed",null,null,null,null,null,null,null,null,null,null,null,null,"2019-04-04",7000079341,null,"FIN",null,"si"]
["MC054","SMC054",null,null,"Sidaco","RAN R1","Completed",null,null,null,null,null,null,null,null,null,null,"ingreso de planos 12-4-19","Energia OK","2019-03-15",7000079267,null,"FIN"]
["MC064","SMC064","ARME0666","S11","Sidaco","RAN R1","Completed",null,null,null,null,null,null,null,null,null,null,null,null,"2019-04-01",7000079337,null,"FIN","SI"]
["MC065","SMC065","ARME0543","S12","Sidaco","RAN R1","Completed",null,null,null,null,null,null,null,null,null,null,null,null,"2019-04-01",7000079338,null,"FIN","SI"]
["MC330","SMC330",null,null,"CIS SRL","R1","Active",null,null,null,null,null,null,null,null,"2019-04-17","Sin planos / Validar modelo de antena x ODI2-065R16M18J-GQ/ Validar con Ingenieria ","ing no cerrada fecha de fin 17 de abril - falta la ingenieria / falta Excel materiales",null,"2019-04-23",7000079826,null,"FIN","Barbara"]
["MC355","SMC355","ARME0257","SPRINT BK","Sidaco","RAN R1","Active",null,null,null,null,null,null,null,null,null,null,null,null,0,null,null,"INGENIERIA FUERZA + DWG"]
["MN078","SMN078","ARME0161",null,"CIS SRL","R1","Planificar Ing","1129148-1",234693,null,null,null,null,null,null,null,null,null,null,null,null,null,"TO DO"]
["MS003","SMS003","ARME0061",null,"Sidaco","RAN R1","Completed","1128987-1",null,null,null,null,null,null,null,null,"AQU4518R24","ok stock",null,"2019-03-18",7000077204,null,"FIN"]
["MS036","SMS036"]
["OC009","SOC009",null,"S16","CIS SRL",null,0,null,null,null,null,null,null,null,null,null,null,null,null,"2019-03-29",7000079854,"ASI4517R3v06","FIN","Lucrecia"]
["QC006","SQC006","ARNQ0047","Sprint 10","Huawei","R1","Active",null,null,null,null,null,null,null,null,null,null,"Falta ingreso de las RRUs + Antenas TDD",null,"2019-04-12",69449,null,"FIN","Ricky"]
["QC011","SQC011","ARNQ0377","SPRINT 8","Huawei","RAN R1","Active",null,null,null,null,null,null,null,null,null,"TNA770A00RI","Adelanto Mario","Validar planilla 2017","2019-04-12",69427,null,"FIN","Ricky"]
["QC045","SQC045","ARNQ0026",null,"Huawei","RAN R1","Completed","1128968-1",null,null,null,null,null,null,null,null,"ok hw, falta definicion energia","ok stock",null,"2019-03-12",69135,null,"FIN"]
["QC053","SQC053","ARNQ0071","SPRINT 10","Huawei","RAN R1","Active",null,null,null,null,null,null,null,null,null,null,"Adelanto Mario ( planos ingresaron 12/4/19)","Energia OK","2019-04-12",69428,null,"FIN","Ricky"]
["QC058","SQC058","ARNQ0375","SPRINT 10","Huawei","RAN R1","Active",null,null,null,null,null,null,null,null,null,"Tribanda Trisector","Adelanto Mario ",null,"2019-04-12",69433,null,"FIN","Ricky"]
["QC074","SQC074",null,null,"Huawei",null,"Active","1129213-1",null,null,null,null,null,null,null,null,"ok hw, falta definicion energia","ok stock","Sin planilla","2019-03-12",69137,null,"FIN",null,"si"]
["QC346","SQC346",null,null,"Huawei",null,"Completed","1129160-1",null,null,null,null,null,null,null,null,"ok hw, falta definicion energia","ok stock","Sin planilla","2019-03-12","69136/7000079699",null,"FIN"]
["QC348","SQC348","ARNQ0171",null,"Huawei","RAN R1","On Hold","1129256-1",null,null,null,null,null,null,null,null,"ASI4517R3v06 (Interior)","sin stock / requiere reingenieria de calculo",null,0,null,null,"INGENIERIA DWG"]
["QC349","SQC349","ARNQ0178",null,"Huawei","RAN R1","On Hold","1129013-1",null,null,null,null,null,null,null,null,"ASI4517R3v06 (Interior)","sin stock / requiere reingenieria de calculo","Falta aprobacion de ingenieias",0,null,null,"INGENIERIA DWG"]
["QW018","SQW018","ARNQ0037","SPRINT BK","PEM","Obligaciones de pliego","Completed",null,null,null,null,null,null,null,null,null,null,null,null,"2019-04-04","7000079570 / 7000079573",null,"FIN","RICKY"]
["QW033","SQW033","ARNQ0235","Sprint 10","Huawei","RAN R1","Active","1129265-1",null,null,null,null,null,null,null,null,"ANTENA A DEFINIR","INGENIERIA","Ingenieria a revision ( Fuerza + Materiales)",1,null,null,"INGENIERIA FUERZA + DWG"]
["RC010","SRC010","ARRN0325","Sprint 10","Huawei","RAN R1","Active","1129019-1",null,null,null,null,null,null,null,null,"TNA770A00RI","Adelanto Mario",null,"2019-04-12",69450,null,"FIN","Ricky"]
["RC066","SRC066",null,null,"Huawei","RAN R1","Active",null,null,null,null,null,null,null,null,null,null," Adelanto Mario",null,"2019-04-12",69451,null,"FIN","Ricky"]
["RC317","SRC317","ARRN0137",null,"Huawei","RAN R1","Active","1129300-1",null,null,null,null,null,null,null,null,"AQU4518R24 = ODI2-065R16M18JG-Q","Falta ingenieria ","OK energia a verificar","2019-03-21",69226,null,"FIN"]
["RE007","SRE007","ARRN0312","Sprint 10","Huawei","RAN R1","Active","1129301-1",null,null,null,null,null,null,null,null,"TNA770A00RI","Adelanto Mario",null,"2019-04-12",69452,null,"FIN","Ricky"]
["RE024","SRE024",0,null,"CIS SRL","RAN R1","Nuevo Sprint",0,null,null,null,null,null,null,null,null,null,null,null,null,null,null,"TO DO"]
["RE308","SRE308","ARRN0313","Sprint 10","Huawei","RAN R1","Active","1129021-1",null,null,null,null,null,null,null,null,"En relevaniento, no estan las ingenierias","Adelanto Mario /Falta definición de antenas según PDG",null,"2019-04-12",69453,null,"FIN","Ricky"]
["RN001","SRN001","ARRN0224","Sprint 10","Huawei","RAN R1","Active","1129276-1",null,null,null,null,null,null,null,null,"En relevaniento, no estan las ingenierias","Falta definición de antenas según PDG",null,0,null,null,"INGENIERIA DWG"]
["RN004","SRN004","ARRN0321",null,"Tesur","RAN R1","Completed","1129022-1",null,null,null,null,null,null,null,null,"En relevaniento, no estan las ingenierias","Falta definición de antenas según PDG",null,"2019-03-21",7000079078,null,"FIN"]
["RN014","SRN014","ARRN0093","Sprint 10","Huawei","RAN R1","Active","1129023-1",null,null,null,null,null,null,null,null,"AAU3910 + Falta definir banda baja","Adelanto Mario","falta definicion de ingenieria","2019-04-12",69436,null,"FIN","Ricky"]
["RN015","SRN015",null,null,"Huawei","RAN R1","Active",null,null,null,null,null,null,null,null,null,null," Adelanto Mario",null,"2019-04-12",69439,null,"FIN","Ricky"]
["RN022","SRN022","ARRN0014","Sprint 10","Huawei","RAN R1","Active","1129267-1",null,null,null,null,null,null,null,null,"En relevaniento, no estan las ingenierias","Falta definición de antenas según PDG",null,0,null,null,"INGENIERIA DWG"]
["RN027","SRN027","ARRN0031",null,"Tesur","RAN R1","Completed","1128971-1",null,null,null,null,null,null,null,null,"AQU4518R24","ok stock",null,"2019-03-19",7000079057,null,"FIN"]
["RN063","SRN063",0,"Huawei",0,"Active",null,0,null,"2019-04-25",null,null,null,null,null,null,null,null,null,"2019-04-26",69602,null,"FIN","LUCRECIA"]
["TC032","STC032","ARTC0049","SPRINT 7","CIS SRL","R1","Active",null,null,null,null,null,null,null,null,null,"HExabanda grande o Hexabanda Chica?","Ingresaron los planos desde MI 12/04/19 - discrepancia entre DWG y PDG RDA","Energia OK","2019-04-17",7000079795,null,"FIN"]
["TE010","STE010"]
["UW005","SUW005","ARCB0277",null,"Guzman Nacich","RAN R1","Completed","1129071-1",null,null,null,null,null,null,null,null,"ok hw, falta definicion energia","ok stock",null,"2019-03-12",7000079178,null,"FIN"]
["UW009","SUW009","ARCB0332",null,"Guzman Nacich","RAN R1","Completed","1129031-1",null,null,null,null,null,null,null,null,"TNA770A00RI","ok stock",null,"2019-03-28",7000079490,null,"FIN","Rodrigo"]
["UW018","SUW018","ARCB0015",null,"Guzman Nacich","RAN R1","Completed","1129034-1",null,null,null,null,null,null,null,null,"ok hw, falta definicion energia","ok stock",null,"2019-03-12",7000079179,null,"FIN"]
["UW019","SUW019"]
["XC350","SXC350","ARCO1896","SPRINT 7","CIS SRL","Sitios Nuevos","On Hold",null,null,null,null,null,null,null,null,null,"ASI4517R3v06 (Interior)","sin stock",null,"2019-04-15","7000079755/7000079633",null,"FIN","Barbara"]
["XN023","SXN023",null,null,{"$error":"#N/A"},{"$error":"#N/A"},{"$error":"#N/A"},{"$error":"#N/A"},null,null,null,null,null,null,null,null,null,null,null,null,null,null,"TO DO"]
["XS027","SXS027",null,"S16",null,null,0,null,null,null,null,null,null,null,null,null,null,null,null,"2019-04-24","7000079874/7000079875",null,"FIN","Lucrecia"]
["XS048","SXS048",null," ",null,"RAN",null,null,null,null,null,null,null,null,null,null,null,null,null,"2019-04-24","7000079884/7000079883",null,"FIN","Lucrecia"]
["XS089","SXS089"]
["XW162","SXW162",0,0,0,"Active",null,0,null,"2019-04-25",null,null,null,null,null,null,null,null,null,null,null,null,"TO DO"]
["YE002","SYE002",null,"S16",null,0,0,null,null,null,null,null,null,null,null,null,null,null,null,null,null,null,"TO DO"]
["ZC015","SZC015",null,"S16",null,"RAN 1",0,null,null,null,null,null,null,null,null,null,null,null,null,"2019-04-23",7000079856,null,"FIN","Lucrecia"]
["ZC024","SZC024","ARLR0131","Sprint 10","Sidaco","Sitios Nuevos","Active",null,null,null,null,null,null,null,null,null,null,"Planos OK  - 2G 1900 NO FIGURA EN PDG","fuerza OK","2019-04-15","7000079763/ 7000079657",null,"FIN","Rodrigo"]
["ZW012","SZW012"]
["AW008","VAW008","ARSA0384",null,"CIS SRL","Sitios Nuevos","Completed","1239122-1",null,null,null,null,null,null,null,null,"AQU4518R24","ok stock","RDA debe confirmar antenas","2019-03-18",700079311,null,"FIN","Lucrecia"]
["BB482","VBB482",null,null,"Guzman Nacich","RAN 1","Completed",null,null,null,null,null,null,null,null,null,null,null,null,"2019-03-29",7000079247,null,"FIN"]
["BM129","VBM129","ARBA13484",null,"Ericsson","Sitios Nuevos","Completed","1279215-1",null,null,null,null,null,null,null,null,"RAN 2 - Ericsson Mudanza del sitio BM029","ok stock","Sin planilla","2019-03-12",7000079199,null,"FIN"]
["BM795","VBM795","ARBA13155","Guzmán Nacich","Sitios Nuevos","Active",null,"944183-1",210148,"2019-04-25",null,null,null,null,null,null,null,null,null,null,null,null,"TO DO"]
["IC002","VC002",null,null,"Guzman Nacich","RAN 1",{"$error":"#N/A"},null,null,null,null,null,null,null,null,null,null,null,null,"2019-03-29",7000079503,null,"FIN"]
["CN155","VCN155","ARCF0582","SPRINT BK","Ericsson","Despliegue","On Hold",null,null,null,null,null,null,null,null,null,null,"FALTAN PLANOS",null,null,null,null,"INGENIERIA DWG"]
["FE047","VFE047","ARSL4836","BK","CIS SRL","Sitios Nuevos","Completed",null,null,null,null,null,null,null,null,null,null,null,null,"2019-04-10","7000078847/7000079682",null,"FIN","Rodrigo"]
["FE048","VFE048","ARSL4838","BK","CIS SRL","Sitios Nuevos","Completed",null,null,null,null,null,null,null,null,null,null,null,null,"2019-04-10","7000078846/7000079682",null,"FIN","Rodrigo"]
["FE049","VFE049","ARSL4830","BK","CIS SRL","Sitios Nuevos","Completed",null,null,null,null,null,null,null,null,null,null,null,null,"2019-04-10","7000078848/7000079682",null,"FIN","Rodrigo"]
["FE052","VFE052","ARSL4839","BK","CIS SRL","Sitios Nuevos","Completed",null,null,null,null,null,null,null,null,null,null,null,null,"2019-04-10","7000078849/7000079682",null,"FIN","Rodrigo"]
["GC310","VGC310","ARSE0288",null,"CIS SRL","Sitios Nuevos","Completed","1113390-1",null,null,null,null,null,null,null,null,"ATR4518R6 ","ok stock","OK energia","2019-03-18",7000079310,null,"FIN"]
["IC009","VIC009",null,null,"Guzman Nacich","RAN 1",{"$error":"#N/A"},null,null,null,null,null,null,null,null,null,null,null,null,"2019-03-29",7000079505,null,"FIN"]
["IN001","VIN001",null,null,"Guzman Nacich","RAN 1",{"$error":"#N/A"},null,null,null,null,null,null,null,null,null,null,"Planos OK enviados 12-4-19",null,"2019-03-29",7000079506,null,"FIN",null,"SI"]
["JC201","VJC201","ARSJ4867",null,"PEM","Sitios Nuevos","Completed","1263062-1",null,null,null,null,null,null,null,null,"Terminada","ok stock",null,"2019-03-11","7000079191 ",null,"FIN"]
["MC004","VMC004",null,null,"Sidaco","RAN 1",{"$error":"#N/A"},null,null,null,null,null,null,null,null,null,null,null,null,"2019-03-29",7000079482,null,"FIN"]
["MC017","VMC017",null,null,"Sidaco","RAN 1",{"$error":"#N/A"},null,null,null,null,null,null,null,null,null,null,null,null,"2019-03-29",7000079483,null,"FIN"]
["MC028","VMC028",null,null,"Sidaco","RAN 1",{"$error":"#N/A"},null,null,null,null,null,null,null,null,null,null,null,null,"2019-03-29",7000079485,null,"FIN"]
["MC038","VMC038",null,null,"Sidaco","RAN 1",{"$error":"#N/A"},null,null,null,null,null,null,null,null,null,null,null,null,"2019-03-29",7000079484,null,"FIN"]
["MC215","VMC215","ARME1202","S11","PEM","Sitios Nuevos",0,"1148290-1",null,null,null,null,null,null,null,null,null,null,null,"2019-04-24",7000079885,null,"FIN","Barbara"]
["QCM12","VQCM12",null,null,null,null,null,null,null,null,null,null,null,null,null,null,null,"-          4 RRU’s 3971 de B2 (4T4R)",null,"2019-04-24",7000079869,null,"FIN","Ricky"]
["QN084","VQN084","ARNQ0565","SPRINT BK","Tesur","SITIOS NUEVOS","Active",null,null,null,null,null,null,null,null,null,null,null,null,0,null,null,"A REASIGNAR CONTRATA","NA"]
["QW018","VQW018","ARNQ0037","SPRINT BK","PEM","Obligaciones de pliego","Completed",null,null,null,null,null,null,null,null,null,null,null,null,"2019-04-04","7000079570 / 7000079573",null,"FIN","RICKY"]
["RN078","VRN078","ARRN0460",null,"Sidaco","Sitios Nuevos","Completed","888900-1",null,null,null,null,null,null,null,null,"RRZZ (AQU4518R24+ AAU3910)","ok stock","planilla ok 2019","2019-03-12",7000079204,null,"FIN"]
["RN344","VRN344","ARRN0461",null,"Sidaco","Sitios Nuevos","Completed","651466-1",null,null,null,null,null,null,null,null,"Hexabanda Chica","ok stock","Validar planilla 2016","2019-03-12",7000079206,null,"FIN"]
["SC044","VSC044",null,null,"Sidaco","Despliegue","Completed",null,null,null,null,null,null,null,null,null,null,"ok stock",null,"2019-03-13",70000079244,null,"FIN"]
["SR319","VSR319","ARSF1764",null,"Sidaco","Sitios Nuevos","Completed","916501-1",null,null,null,null,null,null,null,null,"ODV-065R16M18JJG / 4000084591","ok stock",null,"2019-03-18",7000079309,null,"FIN"]
["SR609","VSR609","ARSF1544","Sprint 10","Ericsson","Sitios Nuevos","Active","540478-1",null,null,null,null,null,null,null,null,"ATR4518R6 ","Falta definicion de RRU,  Energia desactualizada , sin planilla de materiales / verificar tipo de antena","falta fuerza",0,null,null,"INGENIERIA FUERZA + DWG"]
["SS148","VSS148",null,null,"CIS SRL",0,"Active",null,null,"2019-04-12",null,null,null,null,null,null,"ATR4518R6","Sitio en ejecucion con materiales informo Ruben Retamar","Energia OK","2019-04-23",7000079200,null,"FIN","Barbara"]
["UE205","VUE205","ARCB0525","Sprint 10","PEM","Sitios Nuevos","Active",null,null,null,null,null,null,null,null,null,null,null,null,"2019-04-10",7000079691,null,"FIN","Barbara"]
["UE207","VUE207","ARCB0526","Sprint 10","PEM","Sitios Nuevos","Active",null,null,null,null,null,null,null,null,null,null,null,null,"2019-04-10",7000079691,null,"FIN","Barbara"]
["UW018","VUW018","ARCB0015",null,"Ericsson","RAN R1","Completed","390753-1",null,null,null,null,null,null,null,null,"ok hw, falta definicion energia","ok stock",null,"2019-03-12",7000079179,null,"FIN"]
["XC349","VXC349","ARCO1905","Sprint 14/15","CIS SRL","SITIOS NUEVOS","Active",null,null,null,null,null,null,null,null,null,"Mudanza del GXC049. Configuración (3x2).  ATR4518R6 (usar puerto libre de alta para 2G diplexado con 3G mudanza del XC049 - sitio NO RAN","Faltan los planos","fuerza OK","2019-04-11","7000079667/7000079668 ",null,"FIN","Barbara"]
["XC615","VXC615","ARCO1904","Sprint 14/15","CIS SRL","SITIOS NUEVOS","Active",null,null,null,null,null,null,null,null,null," ATR4518R6",null,null,"2019-03-29","7000079497 / 7000079498",null,"FIN","Lucre"]
["XN108","VXN108","ARCO1859","CIS SRL","Sitios Nuevos","Active",null,"1058943-1",234149,"2019-04-25",null,null,null,null,null,null,null,null,null,"2019-04-26",7000079939,null,"FIN","LUCRECIA"]
["XS027","VXS027",null,"S16",null,null,0,null,null,null,null,null,null,null,null,null,null,null,null,"2019-04-24","7000079874/7000079875",null,"FIN","Lucrecia"]
["XS048","VXS048",null,null,null,"RAN",null,null,null,null,null,null,null,null,null,null,null,null,null,"2019-04-24","7000079884/7000079883",null,"FIN","Lucrecia"]
["XS089","VXS089",null,null,{"$error":"#N/A"},{"$error":"#N/A"},{"$error":"#N/A"},{"$error":"#N/A"},null,null,null,null,null,null,null,null,null,null,null,null,null,null,"TO DO"]
["XW107","VXW107","ARCO1867","Sprint 14/15","CIS SRL","Despliegue","Active",null,null,null,null,null,null,null,null,null," Ant RRZZ-65B-R4",null,null,"2019-04-08",7000079634,null,"FIN","Caro L"]
["XW162","VXW162",null,null,null,"RAN",null,null,null,null,null,null,null,null,null,null,null,null,null,null,null,null,"TO DO"]
["YE002","VYE002",null,"S16",null,0,0,null,null,null,null,null,null,null,null,null,null,null,null,null,null,null,"TO DO"]
["ZC024","VZC024","ARLR0131","Sprint 10","Sidaco","Sitios Nuevos","Active",null,null,null,null,null,null,null,null,null,null,"Planos OK  - 2G 1900 NO FIGURA EN PDG","fuerza OK","2019-04-15","7000079763/ 7000079657",null,"FIN","Rodrigo"]
["ZW012","VZW012"]
["BA034","WBA034","ARBA13153","BK","Ericsson","Sitios Nuevos","Completed",null,null,null,null,null,null,null,null,null,null,"planos ok 12-4-19","Energia OK","2019-04-12",7000077608,null,"FIN","Barbara"]
["BB482","WBB482",null,null,"Guzman Nacich","RAN 1","Completed",null,null,null,null,null,null,null,null,null,null,null,null,"2019-03-29",7000079247,null,"FIN"]
["BC408","WBC408","ARBA2794",null,"Guzman Nacich","Sitios Nuevos","Active","1135653-1",null,null,null,null,null,null,null,null,"ADU4518R7","ok stock","Validar planilla 2018","2019-03-13",7000079223,null,"FIN"]
["BM129","WBM129","ARBA13484",null,"Ericsson","Sitios Nuevos","Completed","1279213-1",null,null,null,null,null,null,null,null,"RAN 2 - Ericsson Mudanza del sitio BM029","ok stock","Sin planilla","2019-03-12",7000079199,null,"FIN"]
["BM141","WBM141","ARBA0853","Ericsson","Sitios Nuevos","Active",null,"1317141-1",234192,"2019-04-25",null,null,null,null,null,null,null,null,null,"2019-04-26",7000079918,null,"FIN","Barbara"]
["BM795","WBM795","ARBA13155","Guzmán Nacich","Sitios Nuevos","Active",null,"944040-1",210147,"2019-04-25",null,null,null,null,null,null,null,null,null,null,null,null,"TO DO"]
["BN901","WBN901","ARBA13471",null,"Tesur","SITIOS NUEVOS","Active",null,null,null,null,null,null,null,null,null,"Tribanda trisector","sin stock",null,"2019-03-25",7000079430,null,"FIN"]
["BO013","WBO013","ARBA13267","Ericsson","Sitios Nuevos","Active",null,"1115548-1",235501,"2019-04-25",null,null,null,null,null,null,null,null,null,null,null,null,"TO DO"]
["BO018","WBO018",0,null,"Sidaco","SITIO NUEVO","Planificar Ing","1331409-1",null,null,null,null,null,null,null,null,null,null,null,null,null,null,"TO DO"]
["BO123","WBO123","ARBA3936","SPRINT BK","Ericsson",{"$error":"#N/A"},"Active",null,null,null,null,null,null,null,null,null,"SIN DWG ","Shopping NINE Conflicto ingreso","Falta Energia",0,null,null,"SITIOS","se consulta por contratista"]
["BS144","WBS144",null,null,null,null,"Active",null,null,null,null,null,null,null,null,null,null,null,null,"2019-03-22",7000079131,null,"FIN"]
["BS247","WBS247",{"$error":"#N/A"},"SPRINT 11","Guzman Nacich","Sitios Nuevos","On Hold","1131328-1",null,null,null,null,null,null,null,null,"ODI2-065R16MJJ-GQ ( Hexa grande)","sin stock","ODI2-065R16MJJ-GQ ( Hexa Grande)",0,null,null,"SIN STOCK"]
["CE017","WCE017",null,null,"MULTIRADIO",null,{"$error":"#N/A"},null,null,null,null,null,null,null,null,null,null,null,null,"2019-04-01",7000079523,null,"FIN","Ricky","SI"]
["CE018 ","WCE018 ",null,null,"MULTIRADIO","Porticos",{"$error":"#N/A"},null,null,null,null,null,null,null,null,null,null,null,null,"2019-04-05",7000079586,null,"FIN","Ricky","SI"]
["CS352","WCS352",null,null,"TELXIUS",null,"Active",null,null,null,null,null,null,null,null,null,"\"Antena a definir por RDA\"","no contamos con ninguna definicion para emitir la SOLPE",null,"2019-04-10","69396 /7000079681",null,"FIN","Lucrecia","SI"]
["CS817","WCS817","ARCF9072","S12","Sidaco","Sitios Nuevos",0,"1323610-1",null,null,null,null,null,null,null,null,null,null,null,null,null,null,"TO DO"]
["FE047","WFE047","ARSL4836","BK","CIS SRL","Sitios Nuevos","Completed",null,null,null,null,null,null,null,null,null,null,null,null,"2019-04-10","7000078847/7000079682",null,"FIN","Rodrigo"]
["FE048","WFE048","ARSL4838","BK","CIS SRL","Sitios Nuevos","Completed",null,null,null,null,null,null,null,null,null,null,null,null,"2019-04-10","7000078846/7000079682",null,"FIN","Rodrigo"]
["FE049","WFE049","ARSL4830","BK","CIS SRL","Sitios Nuevos","Completed",null,null,null,null,null,null,null,null,null,null,null,null,"2019-04-10","7000078848/7000079682",null,"FIN","Rodrigo"]
["FE052","WFE052","ARSL4839","BK","CIS SRL","Sitios Nuevos","Completed",null,null,null,null,null,null,null,null,null,null,null,null,"2019-04-10","7000078849/7000079682",null,"FIN","Rodrigo"]
["IN001","WIN001",null,null,"Guzman Nacich","RAN 1",{"$error":"#N/A"},null,null,null,null,null,null,null,null,null,null,"Planos OK enviados 12-4-19",null,"2019-03-29",7000079506,null,"FIN",null,"SI"]
["IN004","WIN004",null,null,"Guzman Nacich","RAN 1",{"$error":"#N/A"},null,null,null,null,null,null,null,null,null,null,null,null,"2019-03-29",7000079507,null,"FIN"]
["JE008","WJE008","ARSJ0009","SPRINT 5","Sidaco","Obligraciones Pliego","Completed",null,null,null,null,null,null,null,null,null,null,"sin ingenieria falta DWG","falta fuerza","2019-04-04",7000079584,null,"FIN","Rodrigo"]
["JS015","WJS015","ARSJ0030","SPRINT 5","Sidaco","R1 - NO RAN","Completed",null,null,null,null,null,null,null,null,null,null,"sin ingenieria falta DWG","falta fuerza","2019-04-05",7000079600,null,"FIN","Lucrecia"]
["JS017","WJS017","ARSJ0004","SPRINT 5","Sidaco","R1 - NO RAN","Completed",null,null,null,null,null,null,null,null,null,null,"verificar ingenieria","falta fuerza","2019-04-05",7000079589,null,"FIN","Lucrecia"]
["JS037","WJS037","ARSJ0072","SPRINT 5","Sidaco","R1 - NO RAN","Active",null,null,null,null,null,null,null,null,null,null,"sin ingenieria falta DWG","falta fuerza","2019-04-05",7000079601,null,"FIN","Lucrecia"]
["JS099","WJS099","ARSJ0188","SPRINT 5","Sidaco","R1 - NO RAN","Active","1087723-1",null,null,null,null,null,null,null,null,"ADU4518R7","se envio a Claudio Creteur para definicion /Según lo indicado por RDA se suma una RRU de 700 , se manda a ingenieria","Ingenieria a revision ( Fuerza + Materiales)","2019-04-08",7000079627,null,"FIN","Lucrecia"]
["KS119","WKS119",{"$error":"#N/A"},null,"Sidaco","Sitios Nuevos","Completed","1247968-1",null,null,null,null,null,null,null,null,null,"Sitio Finalizado",null,"FIN","Finalizado 2018",null,"Finalizado 2018"]
["KS323","WKS323"]
["KS463","WKS463"]
["KS496","WKS496"]
["LP148","WLP148","ARBA13128",null,"Ericsson","Sitios Nuevos","Completed","916520-1",null,null,null,null,null,null,null,null,"ODV065R16M18JG=4000084568","ok stock","Validar planilla 2017","2019-03-22",7000079403,null,"FIN","Rodrigo"]
["M0005","WM0005","ARME1211","SPRINT BK","PEM","SITIOS NUEVOS","Active",null,null,null,null,null,null,null,null,null,null,null,null,"2019-04-01","7000079520/7000079521",null,"FIN","Barbara"]
["MC004","WMC004",null,null,"Sidaco","RAN 1",{"$error":"#N/A"},null,null,null,null,null,null,null,null,null,null,null,null,"2019-03-29",7000079482,null,"FIN"]
["MC017","WMC017",null,null,"Sidaco","RAN 1",{"$error":"#N/A"},null,null,null,null,null,null,null,null,null,null,null,null,"2019-03-29",7000079483,null,"FIN"]
["MC028","WMC028",null,null,"Sidaco","RAN 1",{"$error":"#N/A"},null,null,null,null,null,null,null,null,null,null,null,null,"2019-03-29",7000079485,null,"FIN"]
["MC038","WMC038",null,null,"Sidaco","RAN 1",{"$error":"#N/A"},null,null,null,null,null,null,null,null,null,null,null,null,"2019-03-29",7000079484,null,"FIN"]
["MC084","WMC084",null,"CIS SRL",null,null,null,null,null,null,null,null,null,null,null,null,null,null,null,"2019-04-25",7000079923,null,"FIN","Barbara","SI"]
["QCM12","WQCM12",null,null,null,null,null,null,null,null,null,null,null,null,null,null,null,"-          4 RRU’s 3952 de B5 (4T4R)",null,"2019-04-24",7000079869,null,"FIN","Ricky"]
["QN084","WQN084","ARNQ0565","SPRINT BK","Tesur","SITIOS NUEVOS","Active",null,null,null,null,null,null,null,null,null,null,null,null,0,null,null,"A REASIGNAR CONTRATA","NA"]
["QW018","WQW018","ARNQ0037","SPRINT BK","PEM","Obligaciones de pliego","Completed",null,null,null,null,null,null,null,null,null,null,null,null,"2019-04-04","7000079570 / 7000079573",null,"FIN","RICKY"]
["RE024","WRE024",0,null,"CIS SRL","RAN R1","Nuevo Sprint",0,null,null,null,null,null,null,null,null,null,null,null,null,null,null,"TO DO"]
["RN063","WRN063",0,"Huawei",0,"Active",null,0,null,"2019-04-25",null,null,null,null,null,null,null,null,null,"2019-04-26",69602,null,"FIN","LUCRECIA"]
["RN078","WRN078","ARRN0460",null,"Sidaco","Sitios Nuevos","Completed","888899-1",null,null,null,null,null,null,null,null,"RRZZ (AQU4518R24+ AAU3910)","ok stock","planilla ok 2019","2019-03-12",7000079204,null,"FIN"]
["RN344","WRN344","ARRN0461",null,"Sidaco","Sitios Nuevos","Completed","651482-1",null,null,null,null,null,null,null,null,"Hexabanda Chica","ok stock","Validar planilla 2016","2019-03-12",7000079206,null,"FIN"]
["UW019","WUW019"]

{"sheet":"Pendientes","index":1,"n_rows":742,"n_cols":30,"rows_kept":742,"cut":false,"hidden":false,"merged":[]}
[]
[]
[]
["NODO","FECHA_DE_INGRESO","PROPIETARIO","PRIORIDAD","DWG_BPM","DWG_MAIL","DWG_IU","MATERIALES_BPM","MATERIALES_MAIL","MATERIALES_IU","FUERZA_BPM","FUERZA_MAIL","FUERZA_IU","OBSERVACIONES_INGRESO","ESTADO ","SOLPE_FUEGO","FECHA_FIN","HORAS_ESTIMADAS","OBSERVACIONES_FINALES","ANTENA_TIPO","ENERGIA","Verificaciones","Pedido Remo","Contratista","Prio","Programacion","Sitio","EPUM","diferencia","Rango"]
["a","2019-01-28","a","xxx","xxx","xxx","xx","xx","xx","xx","xx","xx","xx","xx","xx","xx","2019-02-18","xx","xx","xx","xx","v","v","xx","v","x","x","x","x",{"$f":"VLOOKUP(Pendientes!$AC5,Hoja1!A:B,2,TRUE)","v":{"$error":"#N/A"}}]
["WQE022","2019-05-09","Cristian","Adelanto","No","No","No","No","No","No","No","Si","No","Borde Montuoso - evento IDEA ","FIN",7000080211,"2019-05-13",null,"Sale con el HW sw Fri Music Neuquen","ASI4518R14v06","Nueva",null,null,"Multiradio",null,{"$error":"#N/A"},null,null,{"$f":"Pendientes!$Q6-Pendientes!$B6","v":4},{"$f":"VLOOKUP(Pendientes!$AC6,Hoja1!A:B,2,TRUE)","v":"Entre 3 y 5 dias"}]
["MQE022","2019-05-09","Cristian","Adelanto","No","No","No","No","No","No","No","Si","No","Borde Montuoso - evento IDEA ","FIN",7000080211,"2019-05-13",null,"Sale con el HW sw Fri Music Neuquen","ASI4518R14v06","Nueva",null,null,"Multiradio",null,{"$error":"#N/A"},null,null,{"$f":"Pendientes!$Q7-Pendientes!$B7","v":4},{"$f":"VLOOKUP(Pendientes!$AC7,Hoja1!A:B,2,TRUE)","v":"Entre 3 y 5 dias"}]
["JS006","2019-05-06","Barbara","Adelanto","No","No","No","No","Si","No","No","No","No","SIN INFORMACION - ADELANTO OBLIGACIONES - REALIZA O&M - MATERIAL LOGISTICA INVERSA","FIN",7000080223,"2019-05-10",null,null,"EXISTENTE","EXISTENTE",null,null,"PEM",null,{"$error":"#N/A"},null,null,{"$f":"Pendientes!$Q8-Pendientes!$B8","v":4},{"$f":"VLOOKUP(Pendientes!$AC8,Hoja1!A:B,2,TRUE)","v":"Entre 3 y 5 dias"}]
["JW018","2019-05-06","Barbara","Adelanto","No","No","No","No","Si","No","No","No","No","SIN INFORMACION - ADELANTO OBLIGACIONES - REALIZA O&M - MATERIAL LOGISTICA INVERSA","FIN",7000080223,"2019-05-10",null,null,"EXISTENTE","EXISTENTE",null,null,"PEM",null,{"$error":"#N/A"},null,null,{"$f":"Pendientes!$Q9-Pendientes!$B9","v":4},{"$f":"VLOOKUP(Pendientes!$AC9,Hoja1!A:B,2,TRUE)","v":"Entre 3 y 5 dias"}]
["JS027","2019-05-06","Barbara","Adelanto","No","No","No","No","Si","No","No","No","No","SIN INFORMACION - ADELANTO OBLIGACIONES - REALIZA O&M - MATERIAL LOGISTICA INVERSA","FIN",7000080223,"2019-05-10",null,null,"EXISTENTE","EXISTENTE",null,null,"PEM",null,{"$error":"#N/A"},null,null,{"$f":"Pendientes!$Q10-Pendientes!$B10","v":4},{"$f":"VLOOKUP(Pendientes!$AC10,Hoja1!A:B,2,TRUE)","v":"Entre 3 y 5 dias"}]
["JS028","2019-05-06","Barbara","Adelanto","No","No","No","No","Si","No","No","No","No","SIN INFORMACION - ADELANTO OBLIGACIONES - REALIZA O&M - MATERIAL LOGISTICA INVERSA","FIN",7000080223,"2019-05-10",null,null,"EXISTENTE","EXISTENTE",null,null,"PEM",null,{"$error":"#N/A"},null,null,{"$f":"Pendientes!$Q11-Pendientes!$B11","v":4},{"$f":"VLOOKUP(Pendientes!$AC11,Hoja1!A:B,2,TRUE)","v":"Entre 3 y 5 dias"}]
["JS009","2019-05-06","Barbara","Adelanto","No","No","No","No","Si","No","No","No","No","SIN INFORMACION - ADELANTO OBLIGACIONES - REALIZA O&M - MATERIAL LOGISTICA INVERSA","FIN",7000080223,"2019-05-10",null,null,"EXISTENTE","EXISTENTE",null,null,"PEM",null,{"$error":"#N/A"},null,null,{"$f":"Pendientes!$Q12-Pendientes!$B12","v":4},{"$f":"VLOOKUP(Pendientes!$AC12,Hoja1!A:B,2,TRUE)","v":"Entre 3 y 5 dias"}]
["CBM129","2019-03-11","Rodrigo",null,null,null,null,null,null,null,"Sin planilla",null,null,"RAN 2 - Ericsson Mudanza del sitio BM029","FIN",7000079199,"2019-03-12",null,null,null,null,null,null,"Ericsson",0,"Fin Semana 2 Marzo","BM129","1279211-1",{"$f":"Pendientes!$Q13-Pendientes!$B13","v":1},{"$f":"VLOOKUP(Pendientes!$AC13,Hoja1!A:B,2,TRUE)","v":"en 24hs"}]
["CBM141","2019-04-25","Barbara",null,null,null,null,null,null,null,null,null,null,null,"FIN",7000079918,"2019-04-26",null,null,null,"Nueva",null,null,"Ericsson",0,"Semana 3 Mayo","BM141","1317143-1",{"$f":"Pendientes!$Q14-Pendientes!$B14","v":1},{"$f":"VLOOKUP(Pendientes!$AC14,Hoja1!A:B,2,TRUE)","v":"en 24hs"}]
["CBT111","09/05/2019","Lucrecia","Prio 3","No","No","No","Si","No","No","No","No","No","13-05 FALTA DWG","PENDIENTE INGENIERIA ","",null,"","","","",null,null,"PEM",null,"Fin Semana 1 Mayo","BT111","1249631-1",{"$f":"Pendientes!$Q15-Pendientes!$B15","v":-43594},{"$f":"VLOOKUP(Pendientes!$AC15,Hoja1!A:B,2,TRUE)","v":{"$error":"#N/A"}}]
["CMS025","2019-05-09","Ricky","Prio 3","No","No","No","No","No","No","No","No","No","14/5:No hay información en BPM","PENDIENTE INGENIERIA ",null,null,null,null,null,null,null,null,"Sidaco",null,"Semana 4 Mayo","MS025",null,{"$f":"Pendientes!$Q16-Pendientes!$B16","v":-43594},{"$f":"VLOOKUP(Pendientes!$AC16,Hoja1!A:B,2,TRUE)","v":{"$error":"#N/A"}}]
["CQN084",null,"Pendiente",null,null,null,null,null,null,null,null,null,null,null,"A REASIGNAR CONTRATA",null,null,null,null,null,null,null,null,"Sin Asignacion",0,"Vaca Muerta","QN084","516212-1",{"$f":"Pendientes!$Q17-Pendientes!$B17","v":0},{"$f":"VLOOKUP(Pendientes!$AC17,Hoja1!A:B,2,TRUE)","v":"en 24hs"}]
["FAC008",null,"Rodrigo",null,null,null,null,null,null,null,null,null,null,"falta hacer 3500","FIN",7000079898,"2019-04-25",null,null,"ATD4516R8",null,null,null,"CIS SRL",0,"Fin Semana 2 Mayo","AC008","1081392-1",{"$f":"Pendientes!$Q18-Pendientes!$B18","v":43580},{"$f":"VLOOKUP(Pendientes!$AC18,Hoja1!A:B,2,TRUE)","v":"Mas de 10 días"}]
["FKS111",null,"Ricky",null,null,null,null,null,null,null,null,null,null,null,"TO DO",null,null,null,null,null,null,null,null,"Sidaco","Prio 1","Revisión Plan 3.5","KS111","1232430-1",{"$f":"Pendientes!$Q19-Pendientes!$B19","v":0},{"$f":"VLOOKUP(Pendientes!$AC19,Hoja1!A:B,2,TRUE)","v":"en 24hs"}]
["FKS126",null,"Ricky",null,null,null,null,null,null,null,null,null,null,null,"TO DO",null,null,null,null,null,null,null,null,"Sidaco","Prio 1","Revisión Plan 3.5","KS126","1232432-1",{"$f":"Pendientes!$Q20-Pendientes!$B20","v":0},{"$f":"VLOOKUP(Pendientes!$AC20,Hoja1!A:B,2,TRUE)","v":"en 24hs"}]
["FKS183",null,"Ricky",null,null,null,null,null,null,null,null,null,null,null,"TO DO",null,null,null,null,null,null,null,null,"Sidaco","Prio 1","Revisión Plan 3.5","KS183","1232429-1",{"$f":"Pendientes!$Q21-Pendientes!$B21","v":0},{"$f":"VLOOKUP(Pendientes!$AC21,Hoja1!A:B,2,TRUE)","v":"en 24hs"}]
["FOC001","2019-05-03","Barbara","","No","No","No","No","No","No","Si","No","No","10-05 PLANILLA DE FUERZA DESACTUALIZADA -SIN DWG falta hacer 3500","SIN STOCK","",null,"","","antenas TDD ingresadas / faltan las RRUS","",null,null,"CIS SRL","Prio 3","Semana 1 Junio","OC001","1081409-1",{"$f":"Pendientes!$Q22-Pendientes!$B22","v":-43588},{"$f":"VLOOKUP(Pendientes!$AC22,Hoja1!A:B,2,TRUE)","v":{"$error":"#N/A"}}]
["FQC006",null,"Rodrigo",null,"NO","NO","NO","NO","NO","NO","NO","NO","NO","Falta ingreso de las RRUs + Antenas TDD","PENDIENTE INGENIERIA ",null,null,null,null,"TDD",null,null,null,"Huawei","Prio 3","Semana 1 Junio","QC006","1081416-1",{"$f":"Pendientes!$Q23-Pendientes!$B23","v":0},{"$f":"VLOOKUP(Pendientes!$AC23,Hoja1!A:B,2,TRUE)","v":"en 24hs"}]
["FXC180","2019-05-03","Barbara","","No","No","No","No","No","No","No","No","No","10/05 SIN DWG NI PLANILLA DE FUERZA - falta hacer 3500","PENDIENTE INGENIERIA ","",null,"","","antenas TDD ingresadas / faltan las RRUS","",null,"CIS SRL","CIS SRL","Prio 3","Semana 1 Junio","XC180","1081405-1",{"$f":"Pendientes!$Q24-Pendientes!$B24","v":-43588},{"$f":"VLOOKUP(Pendientes!$AC24,Hoja1!A:B,2,TRUE)","v":{"$error":"#N/A"}}]
["GBM129","2019-03-11","Rodrigo",null,null,null,null,null,null,null,"Sin planilla",null,null,"RAN 2 - Ericsson Mudanza del sitio BM029","FIN",7000079199,"2019-03-12",null,null,null,null,null,null,"Ericsson",0,"Fin Semana 2 Marzo","BM129","1279210-1",{"$f":"Pendientes!$Q25-Pendientes!$B25","v":1},{"$f":"VLOOKUP(Pendientes!$AC25,Hoja1!A:B,2,TRUE)","v":"en 24hs"}]
["GGC310","2019-03-11",null,null,null,null,null,null,null,null,"OK energia",null,null,"ok stock","FIN",7000079310,"2019-03-18",null,null,"ATR4518R6 ",null,null,null,"CIS SRL",0,"Fin Semana 2 Marzo","GC310","1104316-1",{"$f":"Pendientes!$Q26-Pendientes!$B26","v":7},{"$f":"VLOOKUP(Pendientes!$AC26,Hoja1!A:B,2,TRUE)","v":"Entre 5 y 10 dias"}]
["GSR319",null,null,null,null,null,null,null,null,null,null,null,null,"ok stock","FIN",null,null,null,null,null,null,null,null,"Sidaco",0,"Fin Semana 2 Marzo","SR319","916500-1",{"$f":"Pendientes!$Q27-Pendientes!$B27","v":0},{"$f":"VLOOKUP(Pendientes!$AC27,Hoja1!A:B,2,TRUE)","v":"en 24hs"}]
["GXC349",null,"Barbara",null,null,null,null,null,null,null,"fuerza OK",null,null,"Faltan los planos","FIN","7000079667/7000079668 ","2019-04-11",null,null,"Mudanza del GXC049. Configuración (3x2).  ATR4518R6 (usar puerto libre de alta para 2G diplexado con 3G mudanza del XC049 - sitio NO RAN",null,null,null,"CIS SRL",0,"Fin Semana 4 Abril","XC349","1285181-1",{"$f":"Pendientes!$Q28-Pendientes!$B28","v":43566},{"$f":"VLOOKUP(Pendientes!$AC28,Hoja1!A:B,2,TRUE)","v":"Mas de 10 días"}]
["GZW012","2019-04-29","Barbara","Alta",null,null,null,null,null,null,null,null,null,null,"FIN-A",7000080017,"2019-05-02",null,"FALTA SOLPE POR ANTENAS POR FALTA DE STOCK","ASI4517R3v06","Nueva",null,null,"CIS SRL","Prio 1",null,"ZW012",{"$error":"#N/A"},{"$f":"Pendientes!$Q29-Pendientes!$B29","v":3},{"$f":"VLOOKUP(Pendientes!$AC29,Hoja1!A:B,2,TRUE)","v":"Entre 3 y 5 dias"}]
["JS040","2019-05-02","Pendiente",null,null,null,null,null,null,null,null,null,null,null,"A REASIGNAR CONTRATA",null,null,null,null,null,null,null,null,"Tesur","Prio 1",{"$error":"#N/A"},"JS040",{"$error":"#N/A"},{"$f":"Pendientes!$Q30-Pendientes!$B30","v":-43587},{"$f":"VLOOKUP(Pendientes!$AC30,Hoja1!A:B,2,TRUE)","v":{"$error":"#N/A"}}]
["LAN003","2019-04-29","Rodrigo","Alta","Si","No","No","No","No","No","Si","No","No","Antena sin stock ODI2-065R16MJJ02-GQ V1","FIN","7000079958/7000079959","2019-04-29",null,"Esperar la entrada del catálogo 2000018376. ODI2-065R16MJJ02-GQ V1  - solpe 7000079959","ODI2-065R16MJJ02-GQ V1","Nueva",null,"CIS SRL","CIS SRL",0,"Fin Semana 2 Mayo","AN003","536850-1",{"$f":"Pendientes!$Q31-Pendientes!$B31","v":0},{"$f":"VLOOKUP(Pendientes!$AC31,Hoja1!A:B,2,TRUE)","v":"en 24hs"}]
["LAN057","2019-05-07","Barbara",null,"Si","No","No","No","No","No","No","Si","Si","10/05 RRU Y BBU Faltante HW para RAN 1","SIN STOCK",null,null,null,null,null,null,null,null,"CIS SRL",null,"Semana 1 Junio","AN057","1302229-1",{"$f":"Pendientes!$Q32-Pendientes!$B32","v":-43592},{"$f":"VLOOKUP(Pendientes!$AC32,Hoja1!A:B,2,TRUE)","v":{"$error":"#N/A"}}]
["LBB482",null,null,null,null,null,null,null,null,null,null,null,null,null,"FIN",7000079247,"2019-03-29",null,null,null,null,null,null,"Guzmán Nacich",0,"Fin Semana 2 Marzo","BB482","1109693-1",{"$f":"Pendientes!$Q33-Pendientes!$B33","v":43553},{"$f":"VLOOKUP(Pendientes!$AC33,Hoja1!A:B,2,TRUE)","v":"Mas de 10 días"}]
["LBC754","2019-05-07","Ricky",null,null,null,null,null,null,null,null,null,null,null,"TO DO",null,null,null,null,null,null,null,null,"Sidaco",null,"Semana 4 Mayo","BC754","1250357-1",{"$f":"Pendientes!$Q34-Pendientes!$B34","v":-43592},{"$f":"VLOOKUP(Pendientes!$AC34,Hoja1!A:B,2,TRUE)","v":{"$error":"#N/A"}}]
["LBM129","2019-03-11","Rodrigo",null,null,null,null,null,null,null,"Sin planilla",null,null,"RAN 2 - Ericsson Mudanza del sitio BM029","FIN",7000079199,"2019-03-12",null,null,null,null,null,null,"Ericsson",0,"Fin Semana 2 Marzo","BM129","1279212-1",{"$f":"Pendientes!$Q35-Pendientes!$B35","v":1},{"$f":"VLOOKUP(Pendientes!$AC35,Hoja1!A:B,2,TRUE)","v":"en 24hs"}]
["LBM141","2019-04-25","Barbara",null,null,null,null,null,null,null,null,null,null,null,"FIN",7000079918,"2019-04-26",null,null,null,"Nueva",null,null,"Ericsson",0,"Semana 3 Mayo","BM141","1317142-1",{"$f":"Pendientes!$Q36-Pendientes!$B36","v":1},{"$f":"VLOOKUP(Pendientes!$AC36,Hoja1!A:B,2,TRUE)","v":"en 24hs"}]
["LBM795","25/4/2019","Lucrecia","Alta","NO","No","No","No","No","No","No","Si","No","No cuenta con planilla de fuerza y tampoco hwr nodo ","FIN-A","Cross Dock 7000080085","2019-05-06","","se pidio frenar el pedido 26/04/2019. Salio solpe de Cross Dock Falta solpe de Fuerza","ODI2-065R16MJJ-GQ","Nueva",null,null,"Guzmán Nacich","Prio 1","Semana 3 Mayo","BM795","944039-1",{"$f":"Pendientes!$Q37-Pendientes!$B37","v":11},{"$f":"VLOOKUP(Pendientes!$AC37,Hoja1!A:B,2,TRUE)","v":"Mas de 10 días"}]
["LBN901",null,null,null,null,null,null,null,null,null,"ok ingenieria / falta actualizar  ingenieria fuerza",null,null,"sin stock","FIN",7000079430,"2019-03-25",null,null,"TNA770A00RI",null,null,null,"CIS SRL",0,"Fin Semana 4 Abril","BN901","1261089-1",{"$f":"Pendientes!$Q38-Pendientes!$B38","v":43549},{"$f":"VLOOKUP(Pendientes!$AC38,Hoja1!A:B,2,TRUE)","v":"Mas de 10 días"}]
["LBO013","2019-04-25","Lucrecia","Alta","NO","SI","NO","NO","NO","NO","NO","SI","NO","DWG Desactualizado - SE RECIBE MAIL 3/5/19 CON PLANOS Y FUERZA","FIN",7000080134,"2019-05-08",null,"Ingenieria incompleta, se pedia instalar 1900","ODV065R16M18JJG","Nueva",null,null,"PEM","Prio 1","Semana 3 Mayo","BO013","1115549-1",{"$f":"Pendientes!$Q39-Pendientes!$B39","v":13},{"$f":"VLOOKUP(Pendientes!$AC39,Hoja1!A:B,2,TRUE)","v":"Mas de 10 días"}]
["LBO018",null,"Ricky",null,null,null,null,null,null,null,null,null,null,null,"TO DO",null,null,null,null,null,null,null,null,"Sidaco","Prio 1","Semana 4 Mayo","BO018","1331410-1",{"$f":"Pendientes!$Q40-Pendientes!$B40","v":0},{"$f":"VLOOKUP(Pendientes!$AC40,Hoja1!A:B,2,TRUE)","v":"en 24hs"}]
["LBS144",null,null,null,null,null,null,null,null,null,null,null,null,null,"FIN",7000079131,"2019-03-06",null,null,null,null,null,null,"Sidaco",0,"Fin Semana 4 Abril","BS144","1059042-1",{"$f":"Pendientes!$Q41-Pendientes!$B41","v":43530},{"$f":"VLOOKUP(Pendientes!$AC41,Hoja1!A:B,2,TRUE)","v":"Mas de 10 días"}]
["LC002",null,null,null,null,null,null,null,null,null,null,null,null,null,"FIN",7000079503,"2019-03-29",null,null,null,null,null,null,"Guzmán Nacich",{"$error":"#N/A"},{"$error":"#N/A"},{"$error":"#N/A"},{"$error":"#N/A"},{"$f":"Pendientes!$Q42-Pendientes!$B42","v":43553},{"$f":"VLOOKUP(Pendientes!$AC42,Hoja1!A:B,2,TRUE)","v":"Mas de 10 días"}]
["LCE017",null,"Ricky","Adelanto",{"$error":"#N/A"},null,null,null,null,null,null,null,null,null,"FIN",7000079586,"2019-04-05",null,null,null,null,null,null,"Multiradio",0,"Pendiente Ingeniería","CE017","1322758-1",{"$f":"Pendientes!$Q43-Pendientes!$B43","v":43560},{"$f":"VLOOKUP(Pendientes!$AC43,Hoja1!A:B,2,TRUE)","v":"Mas de 10 días"}]
["LCE018",null,"Ricky","Adelanto",{"$error":"#N/A"},null,null,null,null,null,null,null,null,null,"FIN",7000079586,"2019-04-05",null,null,null,null,null,null,"Multiradio",0,"Pendiente Ingeniería","CE018","1326231-1",{"$f":"Pendientes!$Q44-Pendientes!$B44","v":43560},{"$f":"VLOOKUP(Pendientes!$AC44,Hoja1!A:B,2,TRUE)","v":"Mas de 10 días"}]
["LCM505",null,"Lucrecia",null,null,null,null,null,null,null,"ok fuerza",null,null,"ok planos","FIN",7000079696,"2019-04-11",null,null,null,null,null,null,"PEM",0,"Fin Semana 4 Abril","CM505","1248082-1",{"$f":"Pendientes!$Q45-Pendientes!$B45","v":43566},{"$f":"VLOOKUP(Pendientes!$AC45,Hoja1!A:B,2,TRUE)","v":"Mas de 10 días"}]
["LCS352",null,"Lucrecia","Adelanto",null,null,null,null,null,null,null,null,null,"no contamos con ninguna definicion para emitir la SOLPE","FIN","69396 /7000079681","2019-04-10",null,null,"\"Antena a definir por RDA\"",null,null,null,"Telxius",0,"Semana 3 Mayo","CS352","1342227-1",{"$f":"Pendientes!$Q46-Pendientes!$B46","v":43565},{"$f":"VLOOKUP(Pendientes!$AC46,Hoja1!A:B,2,TRUE)","v":"Mas de 10 días"}]
["LCS546",null,null,null,null,null,null,null,null,null,"falta ingenieria / OK fuerza",null,null,null,"FIN","stock contratista","2019-04-08",null,null,null,null,null,null,"PEM",0,"Fin Semana 1 Abril","CS546","1322740-1",{"$f":"Pendientes!$Q47-Pendientes!$B47","v":43563},{"$f":"VLOOKUP(Pendientes!$AC47,Hoja1!A:B,2,TRUE)","v":"Mas de 10 días"}]
["LCS817",null,"Ricky","Media","SI","NO","NO","NO","NO","NO","No","NO","NO","SE USA PLANOS Y FUERZA DE TESUR","FIN-A",7000080178,"2019-05-09",null,"FALTA HACER SOLPE POR ANTENA","ASI-R3","Existente",null,null,"Sidaco","Prio 2","Semana 4 Mayo","CS817","1323609-1",{"$f":"Pendientes!$Q48-Pendientes!$B48","v":43594},{"$f":"VLOOKUP(Pendientes!$AC48,Hoja1!A:B,2,TRUE)","v":"Mas de 10 días"}]
["LCU024","2019-05-09","Lucrecia","Prio 2",null,null,null,null,null,null,null,null,null,null,"TO DO",null,null,null,null,null,null,null,null,"Guzmán Nacich",null,"Semana 4 Mayo","CU024","1252157-1",{"$f":"Pendientes!$Q49-Pendientes!$B49","v":-43594},{"$f":"VLOOKUP(Pendientes!$AC49,Hoja1!A:B,2,TRUE)","v":{"$error":"#N/A"}}]
["LCU087","2019-04-30","Ricky",null,"No","NO","NO","NO","NO","NO","NO","Ok","NO","Sin Stock Antena","FIN-A",7000080144,"2019-05-07",null,"Sin Stock Antena - DC3 + Sec + BB2",null,"Nueva",null,null,"Sidaco","Prio 1","Semana 3 Mayo","CU087","1320276-1",{"$f":"Pendientes!$Q50-Pendientes!$B50","v":7},{"$f":"VLOOKUP(Pendientes!$AC50,Hoja1!A:B,2,TRUE)","v":"Entre 5 y 10 dias"}]
["LCU514",null,"Lucrecia",null,null,null,null,null,null,null,"ok fuerza",null,null,"ok planos","FIN",7000079697,"2019-04-11",null,null,null,null,null,null,"PEM",0,"Fin Semana 4 Abril","CU514","1284190-1",{"$f":"Pendientes!$Q51-Pendientes!$B51","v":43566},{"$f":"VLOOKUP(Pendientes!$AC51,Hoja1!A:B,2,TRUE)","v":"Mas de 10 días"}]
["LCU521","02/05/2019","Lucrecia","","Incompleto","No","No","Incompleto","No","No","Incompleto","No","Si","Informacion incompleta","FIN",7000080198,"2019-05-13","","Información incompleta","OMNI_1W_OOA-360V04NZ            ","Nueva",null,null,"PEM",0,"Semana 4 Mayo","CU521","1284186-1",{"$f":"Pendientes!$Q52-Pendientes!$B52","v":11},{"$f":"VLOOKUP(Pendientes!$AC52,Hoja1!A:B,2,TRUE)","v":"Mas de 10 días"}]
["LCU574","02/05/2019","Lucrecia","","Si","No","No","Si","No","No","Si","No","No","Ingeniería DWG y Fuerza. ","FIN","7000080220/7000080221","2019-05-10","","Ingeniería DWG y Fuerza. Cross Dock por parte del material","OMNI 00A-360V04NZ","Existente",null,null,"PEM",0,"Semana 3 Mayo Forzado","CU574","1284187-1",{"$f":"Pendientes!$Q53-Pendientes!$B53","v":8},{"$f":"VLOOKUP(Pendientes!$AC53,Hoja1!A:B,2,TRUE)","v":"Entre 5 y 10 dias"}]
["LFC003","2019-04-30","Cristian",null,"NO","NO","NO","NO","NO","NO","NO","SI","NO","Sin planos ","FIN","7000080233 / 7000080222","2019-05-10",null,null,"ODI2-065R16M18JGQ","Nueva",null,null,"Multiradio","Prio 1","Semana 3 Mayo Forzado","FC003","483202-1",{"$f":"Pendientes!$Q54-Pendientes!$B54","v":10},{"$f":"VLOOKUP(Pendientes!$AC54,Hoja1!A:B,2,TRUE)","v":"Mas de 10 días"}]
["LFE047",null,"Rodrigo",null,null,null,null,null,null,null,null,null,null,null,"FIN","7000078847/7000079682","2019-04-10",null,null,null,null,null,null,"CIS SRL",0,"Fin Semana 2 Abril","FE047","890927-1",{"$f":"Pendientes!$Q55-Pendientes!$B55","v":43565},{"$f":"VLOOKUP(Pendientes!$AC55,Hoja1!A:B,2,TRUE)","v":"Mas de 10 días"}]
["LFE048",null,"Rodrigo",null,null,null,null,null,null,null,null,null,null,null,"FIN","7000078846/7000079682","2019-04-10",null,null,null,null,null,null,"CIS SRL",0,"Fin Semana 2 Abril","FE048","919297-1",{"$f":"Pendientes!$Q56-Pendientes!$B56","v":43565},{"$f":"VLOOKUP(Pendientes!$AC56,Hoja1!A:B,2,TRUE)","v":"Mas de 10 días"}]
["LFE049",null,"Rodrigo",null,null,null,null,null,null,null,null,null,null,null,"FIN","7000078848/7000079682","2019-04-10",null,null,null,null,null,null,"CIS SRL",0,"Fin Semana 2 Abril","FE049","895435-1",{"$f":"Pendientes!$Q57-Pendientes!$B57","v":43565},{"$f":"VLOOKUP(Pendientes!$AC57,Hoja1!A:B,2,TRUE)","v":"Mas de 10 días"}]
["LFE052",null,"Rodrigo",null,null,null,null,null,null,null,null,null,null,null,"FIN","7000078849/7000079682","2019-04-10",null,null,null,null,null,null,"CIS SRL",0,"Fin Semana 2 Abril","FE052","889182-1",{"$f":"Pendientes!$Q58-Pendientes!$B58","v":43565},{"$f":"VLOOKUP(Pendientes!$AC58,Hoja1!A:B,2,TRUE)","v":"Mas de 10 días"}]
["LGC310","2019-03-11",null,null,null,null,null,null,null,null,"OK energia",null,null,"ok stock","FIN",7000079310,"2019-03-18",null,null,"ATR4518R6 ",null,null,null,"CIS SRL",0,"Fin Semana 2 Marzo","GC310","1108369-1",{"$f":"Pendientes!$Q59-Pendientes!$B59","v":7},{"$f":"VLOOKUP(Pendientes!$AC59,Hoja1!A:B,2,TRUE)","v":"Entre 5 y 10 dias"}]
["LIC009",null,null,null,null,null,null,null,null,null,null,null,null,null,"FIN",7000079505,"2019-03-29",null,null,null,null,null,null,"Guzmán Nacich",0,{"$error":"#N/A"},"IC009",{"$error":"#N/A"},{"$f":"Pendientes!$Q60-Pendientes!$B60","v":43553},{"$f":"VLOOKUP(Pendientes!$AC60,Hoja1!A:B,2,TRUE)","v":"Mas de 10 días"}]
["LIC024",null,"Ricky","Adelanto",{"$error":"#N/A"},null,null,null,null,null,null,null,null,null,"FIN",7000079596,"2019-04-05",null,null,null,null,null,null,"Guzmán Nacich",0,"Fin Semana 2 Abril","IC024","1059054-1",{"$f":"Pendientes!$Q61-Pendientes!$B61","v":43560},{"$f":"VLOOKUP(Pendientes!$AC61,Hoja1!A:B,2,TRUE)","v":"Mas de 10 días"}]
["LIN001",null,null,"Adelanto",null,null,null,null,null,null,null,null,null,"Planos OK enviados 12-4-19","FIN",7000079506,"2019-03-29",null,null,null,null,null,null,"Guzmán Nacich",0,{"$error":"#N/A"},"IN001",{"$error":"#N/A"},{"$f":"Pendientes!$Q62-Pendientes!$B62","v":43553},{"$f":"VLOOKUP(Pendientes!$AC62,Hoja1!A:B,2,TRUE)","v":"Mas de 10 días"}]
["LJC201","2019-03-11",null,null,null,null,null,null,null,null,null,null,null,"ok stock","FIN","7000079191 ","2019-03-11",null,null,"Terminada",null,null,null,"PEM",0,"Fin Semana 2 Marzo","JC201","1263061-1",{"$f":"Pendientes!$Q63-Pendientes!$B63","v":0},{"$f":"VLOOKUP(Pendientes!$AC63,Hoja1!A:B,2,TRUE)","v":"en 24hs"}]
["LJS015",null,"Lucrecia","Adelanto",null,null,null,null,null,null,"falta fuerza",null,null,"sin ingenieria falta DWG","FIN",7000079600,"2019-04-05",null,null,null,null,null,null,"Sidaco",0,"Pendiente Ingeniería","JS015",{"$error":"#N/A"},{"$f":"Pendientes!$Q64-Pendientes!$B64","v":43560},{"$f":"VLOOKUP(Pendientes!$AC64,Hoja1!A:B,2,TRUE)","v":"Mas de 10 días"}]
["LJS017",null,"Lucrecia","Adelanto",null,null,null,null,null,null,"falta fuerza",null,null,"verificar ingenieria","FIN",7000079589,"2019-04-05",null,null,null,null,null,null,"Sidaco",0,"Pendiente Ingeniería","JS017",{"$error":"#N/A"},{"$f":"Pendientes!$Q65-Pendientes!$B65","v":43560},{"$f":"VLOOKUP(Pendientes!$AC65,Hoja1!A:B,2,TRUE)","v":"Mas de 10 días"}]
["LJS037",null,"Lucrecia","Adelanto",null,null,null,null,null,null,"falta fuerza",null,null,"sin ingenieria falta DWG","FIN",7000079601,"2019-04-05",null,null,null,null,null,null,"Sidaco",0,"Pendiente Ingeniería","JS037",{"$error":"#N/A"},{"$f":"Pendientes!$Q66-Pendientes!$B66","v":43560},{"$f":"VLOOKUP(Pendientes!$AC66,Hoja1!A:B,2,TRUE)","v":"Mas de 10 días"}]
["LKO522","2019-04-30","Ricky / Finalizado",null,{"$error":"#N/A"},null,null,null,null,null,null,null,null,null,"FINALIZADA",null,null,null,null,null,null,null,null,"Sidaco","Prio 1","Fin Semana 1 Mayo","KO522","1115565-1",{"$f":"Pendientes!$Q67-Pendientes!$B67","v":-43585},{"$f":"VLOOKUP(Pendientes!$AC67,Hoja1!A:B,2,TRUE)","v":{"$error":"#N/A"}}]
["LKS119","2019-02-19",null,null,null,null,null,null,null,null,null,null,null,"Sitio Finalizado","FIN","buscar ","2019-02-19",null,"Se toma la fecha de integracion 19/2/2019",null,null,null,null,"Sidaco",0,"Fin Semana 2 Marzo","KS119","1247967-1",{"$f":"Pendientes!$Q68-Pendientes!$B68","v":0},{"$f":"VLOOKUP(Pendientes!$AC68,Hoja1!A:B,2,TRUE)","v":"en 24hs"}]
["LKS323",null,"Ricky","Alta","SI","No","No","No","No","No","SI","No","No","RRU's de desmonte","FIN",7000080179,"2019-05-09",null,"RRU's de desmonte","ADU-R7","Nueva",null,null,"Sidaco","Prio 1","Semana 3 Mayo Forzado","KS323","1150644-1",{"$f":"Pendientes!$Q69-Pendientes!$B69","v":43594},{"$f":"VLOOKUP(Pendientes!$AC69,Hoja1!A:B,2,TRUE)","v":"Mas de 10 días"}]
["LKS348",null,"Ricky","Alta","No","No","No","No","No","No","No","No","No",null,"FIN",7000080200,"2019-05-09",null,"RRU's de desmonte","NO","Nueva",null,null,"Sidaco","Prio 1","Semana 3 Mayo Forzado","KS348","1149719-1",{"$f":"Pendientes!$Q70-Pendientes!$B70","v":43594},{"$f":"VLOOKUP(Pendientes!$AC70,Hoja1!A:B,2,TRUE)","v":"Mas de 10 días"}]
["LKS378",null,null,null,null,null,null,null,null,null,null,null,null,null,"FIN",7000079378,"2019-04-04",null,null,null,null,null,null,"Sidaco",0,"Fin Semana 2 Abril","KS378","421111-1",{"$f":"Pendientes!$Q71-Pendientes!$B71","v":43559},{"$f":"VLOOKUP(Pendientes!$AC71,Hoja1!A:B,2,TRUE)","v":"Mas de 10 días"}]
["LKS463",null,"Ricky",null,"SI","NO","NO","NO","NO","NO","NO","NO",null,null,"FIN",7000080207,"2019-05-10",null,{"$error":"#N/A"},null,{"$error":"#N/A"},null,null,"Sidaco","Prio 1","Semana 3 Mayo Forzado","KS463","1149721-1",{"$f":"Pendientes!$Q72-Pendientes!$B72","v":43595},{"$f":"VLOOKUP(Pendientes!$AC72,Hoja1!A:B,2,TRUE)","v":"Mas de 10 días"}]
["LKS496",null,"Ricky",null,"NO","NO","NO","NO","NO","NO","NO","NO",null,null,"FIN",7000080208,"2019-05-10",null,{"$error":"#N/A"},null,{"$error":"#N/A"},null,null,"Sidaco","Prio 1","Semana 3 Mayo Forzado","KS496","1149711-1",{"$f":"Pendientes!$Q73-Pendientes!$B73","v":43595},{"$f":"VLOOKUP(Pendientes!$AC73,Hoja1!A:B,2,TRUE)","v":"Mas de 10 días"}]
["LKS604","2019-04-30","Rodrigo",null,null,null,null,null,null,null,null,null,null,null,"SITIOS",null,null,null,null,null,null,null,null,"Ericsson","Prio 1","Semana 4 Mayo","KS604","854830-1",{"$f":"Pendientes!$Q74-Pendientes!$B74","v":-43585},{"$f":"VLOOKUP(Pendientes!$AC74,Hoja1!A:B,2,TRUE)","v":{"$error":"#N/A"}}]
["LKS702",null,null,null,null,null,null,null,null,null,null,null,null,null,"FIN",7000079377,"2019-04-04",null,null,null,null,null,null,"Sidaco",0,"Fin Semana 2 Abril","KS702","1301596-1",{"$f":"Pendientes!$Q75-Pendientes!$B75","v":43559},{"$f":"VLOOKUP(Pendientes!$AC75,Hoja1!A:B,2,TRUE)","v":"Mas de 10 días"}]
["LKS703",null,null,"Adelanto",null,null,null,null,null,null,null,null,null,null,"FIN",7000079390,"2019-04-04",null,null,null,null,null,null,"Sidaco",0,"Fin Semana 2 Mayo","KS703","1312797-1",{"$f":"Pendientes!$Q76-Pendientes!$B76","v":43559},{"$f":"VLOOKUP(Pendientes!$AC76,Hoja1!A:B,2,TRUE)","v":"Mas de 10 días"}]
["LKS704",null,null,"Adelanto",null,null,null,null,null,null,null,null,null,null,"FIN",7000079379,"2019-04-04",null,null,null,null,null,null,"Sidaco",0,"Fin Semana 2 Mayo","KS704","1312799-1",{"$f":"Pendientes!$Q77-Pendientes!$B77","v":43559},{"$f":"VLOOKUP(Pendientes!$AC77,Hoja1!A:B,2,TRUE)","v":"Mas de 10 días"}]
["LKS706",null,null,null,null,null,null,null,null,null,null,null,null,null,"FIN",7000079376,"2019-04-04",null,null,null,null,null,null,"Sidaco",0,"Fin Semana 2 Abril","KS706","1301597-1",{"$f":"Pendientes!$Q78-Pendientes!$B78","v":43559},{"$f":"VLOOKUP(Pendientes!$AC78,Hoja1!A:B,2,TRUE)","v":"Mas de 10 días"}]
["LKS707","2019-05-07","Barbara","Adelanto","Si","NO","NO","NO","NO","NO","NO","SI","NO","pedido adelante HR","FIN",7000080185,"2019-05-09",null,{"$error":"#N/A"},null,"Nueva",null,null,"Sidaco",null,"Semana 3 Mayo Forzado","KS707","1331704-1",{"$f":"Pendientes!$Q79-Pendientes!$B79","v":2},{"$f":"VLOOKUP(Pendientes!$AC79,Hoja1!A:B,2,TRUE)","v":"Entre 24 y 72Hs"}]
["LLP088","5/7/2019","Rodrigo","Media","SI","NO","NO","SI","NO","NO","SI","NO","NO","ERICSSON PROVEE 2100","FIN-A",7000080167,"2019-05-09","","","TNA770A00RI","",null,null,"Ericsson",null,"Semana 4 Mayo","LP088","1088815-1",{"$f":"Pendientes!$Q80-Pendientes!$B80","v":-57},{"$f":"VLOOKUP(Pendientes!$AC80,Hoja1!A:B,2,TRUE)","v":{"$error":"#N/A"}}]
["LLP148","2019-03-11","Rodrigo",null,null,null,null,null,null,null,"Validar planilla 2017",null,null,"ok stock","FIN",7000079403,"2019-03-22",null,null,"ODV065R16M18JG=4000084568",null,null,null,"Ericsson",0,"Fin Semana 2 Marzo","LP148","916521-1",{"$f":"Pendientes!$Q81-Pendientes!$B81","v":11},{"$f":"VLOOKUP(Pendientes!$AC81,Hoja1!A:B,2,TRUE)","v":"Mas de 10 días"}]
["LLP158","2019-04-30","Lucrecia","Adelanto","NO","NO","NO","NO","NO","NO","NO","SI","NO","solicitado por HR","FIN",7000080166,"2019-05-09",null,null,"ODV-065R15M18J-G","Nueva",null,null,"Guzmán Nacich",null,"Semana 3 Mayo Forzado","LP158","1320947-1",{"$f":"Pendientes!$Q82-Pendientes!$B82","v":9},{"$f":"VLOOKUP(Pendientes!$AC82,Hoja1!A:B,2,TRUE)","v":"Entre 5 y 10 dias"}]
["LLP159","2019-04-30","Lucrecia","Adelanto","NO","NO","NO","NO","NO","NO","NO","SI","NO","solicitado por HR","FIN",7000080166,"2019-05-09",null,null,"ODV-065R15M18J-G","Nueva",null,null,"Guzmán Nacich",null,"Semana 3 Mayo Forzado","LP159","1320948-1",{"$f":"Pendientes!$Q83-Pendientes!$B83","v":9},{"$f":"VLOOKUP(Pendientes!$AC83,Hoja1!A:B,2,TRUE)","v":"Entre 5 y 10 dias"}]
["LLP160","2019-04-30","Lucrecia","Adelanto","NO","NO","NO","NO","NO","NO","NO","SI","NO","solicitado por HR","FIN",7000080166,"2019-05-09",null,null,"ODV-065R15M18J-G","Nueva",null,null,"Guzmán Nacich",null,"Semana 3 Mayo Forzado","LP160","1320940-1",{"$f":"Pendientes!$Q84-Pendientes!$B84","v":9},{"$f":"VLOOKUP(Pendientes!$AC84,Hoja1!A:B,2,TRUE)","v":"Entre 5 y 10 dias"}]
["LLP161","2019-04-30","Ricky","Adelanto","Si","NO","NO","NO","NO","NO","SI","NO","NO","solicitado por HR","FIN",7000080151,"2019-05-07",null,"DC4 + DC3 Sec","DPDB 15M18JG","Nueva",null,null,"Sidaco","Prio 1","Semana 3 Mayo","LP161","1312798-1",{"$f":"Pendientes!$Q85-Pendientes!$B85","v":7},{"$f":"VLOOKUP(Pendientes!$AC85,Hoja1!A:B,2,TRUE)","v":"Entre 5 y 10 dias"}]
["LLP162","2019-04-30","Lucrecia","Adelanto","NO","NO","NO","NO","NO","NO","NO","SI","NO","solicitado por HR","FIN",7000080166,"2019-05-09",null,null,"ODV-065R15M18J-G","Nueva",null,null,"Guzmán Nacich",null,"Semana 3 Mayo Forzado","LP162","1320939-1",{"$f":"Pendientes!$Q86-Pendientes!$B86","v":9},{"$f":"VLOOKUP(Pendientes!$AC86,Hoja1!A:B,2,TRUE)","v":"Entre 5 y 10 dias"}]
["LLP163","2019-04-30","Lucrecia","Adelanto","NO","NO","NO","NO","NO","NO","NO","SI","NO","solicitado por HR","FIN",7000080166,"2019-05-09",null,null,"ODV-065R15M18J-G","Nueva",null,null,"Guzmán Nacich",null,"Semana 3 Mayo Forzado","LP163","1320927-1",{"$f":"Pendientes!$Q87-Pendientes!$B87","v":9},{"$f":"VLOOKUP(Pendientes!$AC87,Hoja1!A:B,2,TRUE)","v":"Entre 5 y 10 dias"}]
["LM0005",null,"Barbara",null,null,null,null,null,null,null,null,null,null,null,"FIN","7000079520/7000079521","2019-04-01",null,null,null,null,null,null,"PEM",0,"Fin Semana 4 Abril","M0005","1254606-1",{"$f":"Pendientes!$Q88-Pendientes!$B88","v":43556},{"$f":"VLOOKUP(Pendientes!$AC88,Hoja1!A:B,2,TRUE)","v":"Mas de 10 días"}]
["LMC004",null,"Rodrigo","Adelanto",null,null,null,null,null,null,null,null,null,null,"FIN",7000079482,"2019-03-29",null,null,null,null,null,null,"Sidaco",0,{"$error":"#N/A"},"MC004",{"$error":"#N/A"},{"$f":"Pendientes!$Q89-Pendientes!$B89","v":43553},{"$f":"VLOOKUP(Pendientes!$AC89,Hoja1!A:B,2,TRUE)","v":"Mas de 10 días"}]
["LMC017",null,"Rodrigo","Adelanto",null,null,null,null,null,null,null,null,null,null,"FIN",7000079483,"2019-03-29",null,null,null,null,null,null,"Sidaco",0,{"$error":"#N/A"},"MC017",{"$error":"#N/A"},{"$f":"Pendientes!$Q90-Pendientes!$B90","v":43553},{"$f":"VLOOKUP(Pendientes!$AC90,Hoja1!A:B,2,TRUE)","v":"Mas de 10 días"}]
["LMC028",null,"Rodrigo","Adelanto",null,null,null,null,null,null,null,null,null,null,"FIN",7000079485,"2019-03-29",null,null,null,null,null,null,"SIdaco",0,{"$error":"#N/A"},"MC028",{"$error":"#N/A"},{"$f":"Pendientes!$Q91-Pendientes!$B91","v":43553},{"$f":"VLOOKUP(Pendientes!$AC91,Hoja1!A:B,2,TRUE)","v":"Mas de 10 días"}]
["LMC038",null,"Rodrigo","Adelanto",null,null,null,null,null,null,null,null,null,null,"FIN",7000079484,"2019-03-29",null,null,null,null,null,null,"Sidaco",0,{"$error":"#N/A"},"MC038",{"$error":"#N/A"},{"$f":"Pendientes!$Q92-Pendientes!$B92","v":43553},{"$f":"VLOOKUP(Pendientes!$AC92,Hoja1!A:B,2,TRUE)","v":"Mas de 10 días"}]
["LMC207","02/05/2019","Lucrecia","Adelanto","No","Si","No","No","Si","No","Si","No","No","La información no estaba en BPM, apareció cargado y por mail luego de una semana. ","FIN",7000080161,"2019-05-08","","Es un proyecto que vino por fuera del circuito. Las ingenierias tienen discrepancias. ","OMNI outdoor","Existente",null,null,"PEM",0,"Semana 3 Mayo","MC207","1250499-1",{"$f":"Pendientes!$Q93-Pendientes!$B93","v":6},{"$f":"VLOOKUP(Pendientes!$AC93,Hoja1!A:B,2,TRUE)","v":"Entre 5 y 10 dias"}]
["LMC213","02/05/2019","Lucrecia","Adelanto","No","Si","No","No","Si","No","Si","No","No","La información no estaba en BPM, apareció cargado y por mail luego de una semana. ","FIN",7000080162,"2019-05-08",null,"Es un proyecto que vino por fuera del circuito. Las ingenierias tienen discrepancias. ","OMNI outdoor","Existente",null,null,"PEM",null,"Semana 3 Mayo","MC213",null,{"$f":"Pendientes!$Q94-Pendientes!$B94","v":6},{"$f":"VLOOKUP(Pendientes!$AC94,Hoja1!A:B,2,TRUE)","v":"Entre 5 y 10 dias"}]
["LMC215",null,"Barbara",null,null,null,null,null,null,null,null,null,null,null,"FIN",7000079885,"2019-04-24",null,null,null,null,null,null,"PEM",0,"Fin Semana 4 Abril","MC215","1148289-1",{"$f":"Pendientes!$Q95-Pendientes!$B95","v":43579},{"$f":"VLOOKUP(Pendientes!$AC95,Hoja1!A:B,2,TRUE)","v":"Mas de 10 días"}]
["LOS014","2019-04-30","Barbara","Alta","SI","NO","NO","NO","NO","NO","SI","NO","NO",null,"FIN-A",7000080051,"2019-05-03",null,"Las baterias salen de la solpe 7000079999","ASI4517R3v06","Nueva",null,null,"CIS SRL","Prio 1","Semana 3 Mayo","OS014","1302248-1",{"$f":"Pendientes!$Q96-Pendientes!$B96","v":3},{"$f":"VLOOKUP(Pendientes!$AC96,Hoja1!A:B,2,TRUE)","v":"Entre 3 y 5 dias"}]
["LQCM12","2019-04-12","Ricky","Adelanto","No","No","No","No","No","No","No","SI","No","4 RRU’s 3971 de B4 (4T4R","FIN",7000079869,"2019-04-24",null,"Fri Music",null,null,null,null,"PEM",0,{"$error":"#N/A"},"QCM12",{"$error":"#N/A"},{"$f":"Pendientes!$Q97-Pendientes!$B97","v":12},{"$f":"VLOOKUP(Pendientes!$AC97,Hoja1!A:B,2,TRUE)","v":"Mas de 10 días"}]
["LQN084",null,"Pendiente",null,null,null,null,null,null,null,null,null,null,null,"A REASIGNAR CONTRATA",null,null,null,null,null,null,null,null,"Sin Asignacion",0,"Vaca Muerta","QN084","516210-1",{"$f":"Pendientes!$Q98-Pendientes!$B98","v":0},{"$f":"VLOOKUP(Pendientes!$AC98,Hoja1!A:B,2,TRUE)","v":"en 24hs"}]
["LQW018",null,"RICKY",null,{"$error":"#N/A"},null,null,null,null,null,null,null,null,null,"FIN","7000079570 / 7000079573","2019-04-04",null,null,null,null,null,null,"PEM",0,"Fin Semana 2 Abril","QW018","1130671-1",{"$f":"Pendientes!$Q99-Pendientes!$B99","v":43559},{"$f":"VLOOKUP(Pendientes!$AC99,Hoja1!A:B,2,TRUE)","v":"Mas de 10 días"}]
["LRN015",null,"Ricky",null,{"$error":"#N/A"},null,null,null,null,null,null,null,null," Adelanto Mario","FIN",69439,"2019-04-12",null,null,null,null,null,null,"Huawei",0,"Pendiente Ingeniería","RN015","1291095-1",{"$f":"Pendientes!$Q100-Pendientes!$B100","v":43567},{"$f":"VLOOKUP(Pendientes!$AC100,Hoja1!A:B,2,TRUE)","v":"Mas de 10 días"}]
["LRN078","2019-03-11",null,null,null,null,null,null,null,null,"planilla ok 2019",null,null,"ok stock","FIN",7000079204,"2019-03-12",null,null,"RRZZ (AQU4518R24+ AAU3910)",null,null,null,"Sidaco",0,"Fin Semana 4 Marzo","RN078","888896-1",{"$f":"Pendientes!$Q101-Pendientes!$B101","v":1},{"$f":"VLOOKUP(Pendientes!$AC101,Hoja1!A:B,2,TRUE)","v":"en 24hs"}]
["LRN344","2019-03-11",null,null,null,null,null,null,null,null,"Validar planilla 2016",null,null,"ok stock","FIN",7000079206,"2019-03-12",null,null,"Hexabanda Chica",null,null,null,"Sidaco",0,"Fin Semana 2 Marzo","RN344","651468-1",{"$f":"Pendientes!$Q102-Pendientes!$B102","v":1},{"$f":"VLOOKUP(Pendientes!$AC102,Hoja1!A:B,2,TRUE)","v":"en 24hs"}]
["LSC044","2019-03-13",null,null,null,null,null,null,null,null,null,null,null,"ok stock","FIN",70000079244,"2019-03-13",null,null,null,null,null,null,"Sidaco",0,"Fin Semana 2 Marzo","SC044","1102100-1",{"$f":"Pendientes!$Q103-Pendientes!$B103","v":0},{"$f":"VLOOKUP(Pendientes!$AC103,Hoja1!A:B,2,TRUE)","v":"en 24hs"}]
["LSR319",null,null,null,null,null,null,null,null,null,null,null,null,"ok stock","FIN",7000079309,"2019-03-18",null,null,"ODV-065R16M18JJG / 4000084591",null,null,null,"Sidaco",0,"Fin Semana 2 Marzo","SR319","916499-1",{"$f":"Pendientes!$Q104-Pendientes!$B104","v":43542},{"$f":"VLOOKUP(Pendientes!$AC104,Hoja1!A:B,2,TRUE)","v":"Mas de 10 días"}]
["LSR609","2019-03-11","Rodrigo",null,"No","No","No","No","No","No","No","No","No","Falta definicion de RRU,  Energia desactualizada , sin planilla de materiales / verificar tipo de antena","PENDIENTE INGENIERIA + ENERGIA",null,null,null,null,"ATR4518R6 ",null,null,null,"Ericsson","Prio 2","Semana 4 Mayo","SR609","540476-1",{"$f":"Pendientes!$Q105-Pendientes!$B105","v":-43535},{"$f":"VLOOKUP(Pendientes!$AC105,Hoja1!A:B,2,TRUE)","v":{"$error":"#N/A"}}]
["LTE010","2019-04-29","Rodrigo","Alta","Si","No","No","No","No","No","Si","No","No","antena sin stock ASI4517R3V06 ","FIN","7000079990/7000079991/7000079826","2019-04-29",null,"Se cambio por ODI2-065R16MJJ02-GQ V1  solpe 7000079991","ASI4517R3V06","Nueva",null,null,"CIS SRL",0,"Fin Semana 2 Mayo","TE011","1302205-1",{"$f":"Pendientes!$Q106-Pendientes!$B106","v":0},{"$f":"VLOOKUP(Pendientes!$AC106,Hoja1!A:B,2,TRUE)","v":"en 24hs"}]
["LUE205",null,"Barbara",null,null,null,null,null,null,null,null,null,null,null,"FIN",7000079691,"2019-04-10",null,null,null,null,null,null,"PEM",0,"Fin Semana 4 Abril","UE205","1135880-1",{"$f":"Pendientes!$Q107-Pendientes!$B107","v":43565},{"$f":"VLOOKUP(Pendientes!$AC107,Hoja1!A:B,2,TRUE)","v":"Mas de 10 días"}]
["LUE207",null,"Barbara",null,null,null,null,null,null,null,null,null,null,null,"FIN",7000079691,"2019-04-10",null,null,null,null,null,null,"PEM",0,"Fin Semana 4 Abril","UE207","1263549-1",{"$f":"Pendientes!$Q108-Pendientes!$B108","v":43565},{"$f":"VLOOKUP(Pendientes!$AC108,Hoja1!A:B,2,TRUE)","v":"Mas de 10 días"}]
["LXC349",null,"Barbara",null,null,null,null,null,null,null,"fuerza OK",null,null,"Faltan los planos","FIN","7000079667/7000079668 ","2019-04-11",null,null,"Mudanza del GXC049. Configuración (3x2).  ATR4518R6 (usar puerto libre de alta para 2G diplexado con 3G mudanza del XC049 - sitio NO RAN",null,null,null,"CIS SRL",0,"Fin Semana 4 Abril","XC349","1285183-1",{"$f":"Pendientes!$Q109-Pendientes!$B109","v":43566},{"$f":"VLOOKUP(Pendientes!$AC109,Hoja1!A:B,2,TRUE)","v":"Mas de 10 días"}]
["LXC615",null,"Lucrecia",null,null,null,null,null,null,null,null,null,null,null,"FIN","7000079497 / 7000079498","2019-03-29",null,null," ATR4518R6",null,null,null,"CIS SRL",0,"Fin Semana 4 Abril","XC615","1287412-1",{"$f":"Pendientes!$Q110-Pendientes!$B110","v":43553},{"$f":"VLOOKUP(Pendientes!$AC110,Hoja1!A:B,2,TRUE)","v":"Mas de 10 días"}]
["LYE002","2019-04-26","Barbara","Alta","Si","No","No","Incompleto","No","No","Si","No","No","Antena ASI4517R3","FIN-A",7000079967,"2019-04-29",null,"Se cambia antena por  ODI2-065R16MJJ-GQ ( Hexa grande). Falta segunda solpe ","ASI4517R3","Nueva",null,"CIS SRL","CIS SRL",0,"Fin Semana 2 Mayo","YE002","1302348-1",{"$f":"Pendientes!$Q111-Pendientes!$B111","v":3},{"$f":"VLOOKUP(Pendientes!$AC111,Hoja1!A:B,2,TRUE)","v":"Entre 3 y 5 dias"}]
["LYE004","2019-05-02","Cristian",null,null,null,null,null,null,null,null,null,null,null,"TO DO",null,null,null,null,null,null,null,null,"Multiradio","Prio 1","Pendiente Ingeniería","YE004",{"$error":"#N/A"},{"$f":"Pendientes!$Q112-Pendientes!$B112","v":-43587},{"$f":"VLOOKUP(Pendientes!$AC112,Hoja1!A:B,2,TRUE)","v":{"$error":"#N/A"}}]
["LYN001","2019-05-02","Cristian",null,null,null,null,null,null,null,null,null,null,null,"TO DO",null,null,null,null,null,null,null,null,"Multiradio","Prio 1","Semana 4 Mayo","YN001",{"$error":"#N/A"},{"$f":"Pendientes!$Q113-Pendientes!$B113","v":-43587},{"$f":"VLOOKUP(Pendientes!$AC113,Hoja1!A:B,2,TRUE)","v":{"$error":"#N/A"}}]
["LZW012","2019-04-29","Barbara","Alta",null,null,null,null,null,null,null,null,null,null,"FIN-A",7000080017,"2019-05-02",null,"FALTA SOLPE POR ANTENAS POR FALTA DE STOCK","ASI4517R3v06","Nueva",null,null,"CIS SRL","Prio 1","Ver Planificación Renta TECO","ZW012","1302227-1",{"$f":"Pendientes!$Q114-Pendientes!$B114","v":3},{"$f":"VLOOKUP(Pendientes!$AC114,Hoja1!A:B,2,TRUE)","v":"Entre 3 y 5 dias"}]
["MAC301",null,"RICKY","Adelanto",{"$error":"#N/A"},null,null,null,null,null,null,null,null,null,"FIN",7000079637,"2019-04-09",null,null,null,null,null,null,"CIS SRL",0,"Fin Semana 2 Marzo","AC301","905470-1",{"$f":"Pendientes!$Q115-Pendientes!$B115","v":43564},{"$f":"VLOOKUP(Pendientes!$AC115,Hoja1!A:B,2,TRUE)","v":"Mas de 10 días"}]
["MAN003","2019-04-29","Rodrigo","Alta","Si","No","No","No","No","No","Si","No","No","Antena sin stock ODI2-065R16MJJ02-GQ V1","FIN","7000079958/7000079959","2019-04-29",null,"Esperar la entrada del catálogo 2000018376. ODI2-065R16MJJ02-GQ V1  - solpe 7000079959","ODI2-065R16MJJ02-GQ V1","Nueva",null,"CIS SRL","CIS SRL",0,"Fin Semana 2 Mayo","AN003","905472-1",{"$f":"Pendientes!$Q116-Pendientes!$B116","v":0},{"$f":"VLOOKUP(Pendientes!$AC116,Hoja1!A:B,2,TRUE)","v":"en 24hs"}]
["MAN057","2019-05-07","Barbara",null,"Si","No","No","No","No","No","No","Si","Si","10/05 RRU Y BBU Faltante HW para RAN 1","SIN STOCK",null,null,null,null,null,null,null,null,"CIS SRL",null,"Semana 1 Junio","AN057","905482-1",{"$f":"Pendientes!$Q117-Pendientes!$B117","v":-43592},{"$f":"VLOOKUP(Pendientes!$AC117,Hoja1!A:B,2,TRUE)","v":{"$error":"#N/A"}}]
["MAW008","2019-03-11","Lucrecia",null,null,null,null,null,null,null,"RDA debe confirmar antenas",null,null,"ok stock","FIN",700079311,"2019-03-18",null,null,"AQU4518R24",null,null,null,"CIS SRL",0,"Fin Semana 2 Marzo","AW008","1239123-1",{"$f":"Pendientes!$Q118-Pendientes!$B118","v":7},{"$f":"VLOOKUP(Pendientes!$AC118,Hoja1!A:B,2,TRUE)","v":"Entre 5 y 10 dias"}]
["MBA034",null,"Barbara",null,null,null,null,null,null,null,"Energia OK",null,null,"planos ok 12-4-19","FIN",7000077608,"2019-04-12",null,null,null,null,null,null,"Ericsson",0,"Fin Semana 2 Abril","BA034","1113739-1",{"$f":"Pendientes!$Q119-Pendientes!$B119","v":43567},{"$f":"VLOOKUP(Pendientes!$AC119,Hoja1!A:B,2,TRUE)","v":"Mas de 10 días"}]
["MBB475",null,null,null,null,null,null,null,null,null,null,null,null,null,"FIN","7000079459/7000079508","2019-03-29",null,null,null,null,null,null,"Guzmán Nacich",0,"Fin Semana 4 Abril","BB475","1109698-1",{"$f":"Pendientes!$Q120-Pendientes!$B120","v":43553},{"$f":"VLOOKUP(Pendientes!$AC120,Hoja1!A:B,2,TRUE)","v":"Mas de 10 días"}]
["MBB482",null,null,null,null,null,null,null,null,null,null,null,null,null,"FIN",7000079247,"2019-03-29",null,null,null,null,null,null,"Guzmán Nacich",0,"Fin Semana 2 Marzo","BB482","1109694-1",{"$f":"Pendientes!$Q121-Pendientes!$B121","v":43553},{"$f":"VLOOKUP(Pendientes!$AC121,Hoja1!A:B,2,TRUE)","v":"Mas de 10 días"}]
["MBC754","2019-05-07","Ricky",null,null,null,null,null,null,null,null,null,null,null,"TO DO",null,null,null,null,null,null,null,null,"Sidaco",null,"Semana 4 Mayo","BC754","1250356-1",{"$f":"Pendientes!$Q122-Pendientes!$B122","v":-43592},{"$f":"VLOOKUP(Pendientes!$AC122,Hoja1!A:B,2,TRUE)","v":{"$error":"#N/A"}}]
["MBM129","11/3/2019","Rodrigo","","","","","","","","No","","","RAN 2 - Ericsson Mudanza del sitio BM029","FIN","7000079199","2019-03-12","","","","",null,null,"Ericsson",0,"Fin Semana 2 Marzo","BM129","1279214-1",{"$f":"Pendientes!$Q123-Pendientes!$B123","v":1},{"$f":"VLOOKUP(Pendientes!$AC123,Hoja1!A:B,2,TRUE)","v":"en 24hs"}]
["MBM795","2019-04-25","Lucrecia","Alta","NO","No","No","No","No","No","No","Si","No","No cuenta con planilla de fuerza y tampoco hwr nodo","FIN-A","Cross Dock 7000080085","2019-05-06",null,"se pidio frenar el pedido 26/04/2019. Salio solpe de Cross Dock Falta solpe de Fuerza","ODI2-065R16MJJ-GQ","Nueva",null,null,"Guzmán Nacich","Prio 1","Semana 3 Mayo","BM795","944184-1",{"$f":"Pendientes!$Q124-Pendientes!$B124","v":11},{"$f":"VLOOKUP(Pendientes!$AC124,Hoja1!A:B,2,TRUE)","v":"Mas de 10 días"}]
["MBN131",null,"Ricky",null,null,null,null,null,null,null,null,null,null,"Sin Stock de antenas","SIN STOCK",null,null,null,null,"ODI2-065R16MJJ-GQ ( Hexa grande)",null,null,null,"Sidaco","Prio 2","Semana 4 Mayo","BN131","1254669-1",{"$f":"Pendientes!$Q125-Pendientes!$B125","v":0},{"$f":"VLOOKUP(Pendientes!$AC125,Hoja1!A:B,2,TRUE)","v":"en 24hs"}]
["MBN163",null,"Lucrecia",null,null,null,null,null,null,null,null,null,null,"a verificar estructura por cambio de antena AIR32 x HEXA","FIN",7000079657,"2019-04-09",null,"Cambia AIR32 x Hexabanda","HEXABANDA",null,null,null,"Sidaco",0,"Fin Semana 4 Abril","BN163","1254672-1",{"$f":"Pendientes!$Q126-Pendientes!$B126","v":43564},{"$f":"VLOOKUP(Pendientes!$AC126,Hoja1!A:B,2,TRUE)","v":"Mas de 10 días"}]
["MBN169",null,null,null,null,null,null,null,null,null,"ok fuerza",null,null,null,"FIN",7000079422,"2019-03-25",null,null,"ODI-065R15M18JJ-G= 2000018373",null,null,null,"Sidaco",0,"Fin Semana 1 Abril","BN169","1254673-1",{"$f":"Pendientes!$Q127-Pendientes!$B127","v":43549},{"$f":"VLOOKUP(Pendientes!$AC127,Hoja1!A:B,2,TRUE)","v":"Mas de 10 días"}]
["MBN273",null,"Lucrecia",null,null,null,null,null,null,null,null,null,null,null,"FIN",7000079541,"2019-04-01",null,null,"ODV-065R16M18J-G",null,null,null,"Sidaco",0,"Fin Semana 4 Abril","BN273","1254683-1",{"$f":"Pendientes!$Q128-Pendientes!$B128","v":43556},{"$f":"VLOOKUP(Pendientes!$AC128,Hoja1!A:B,2,TRUE)","v":"Mas de 10 días"}]
["MBN327",null,"Rodrigo",null,null,null,null,null,null,null,null,null,null,null,"FIN",7000079626,"2019-04-08",null,null,null,null,null,null,"Sidaco",0,"Fin Semana 4 Abril","BN327","1254684-1",{"$f":"Pendientes!$Q129-Pendientes!$B129","v":43563},{"$f":"VLOOKUP(Pendientes!$AC129,Hoja1!A:B,2,TRUE)","v":"Mas de 10 días"}]
["MBO013","2019-04-25","Lucrecia","Alta","NO","SI","NO","NO","NO","NO","NO","SI","NO","DWG Desactualizado - SE RECIBE MAIL 3/5/19 CON PLANOS Y FUERZA","FIN",7000080134,"2019-05-08",null,"Ingenieria incompleta, se pedia instalar 1900","ODV065R16M18JJG","Nueva",null,null,"PEM","Prio 1","Semana 3 Mayo","BO013","1100978-1",{"$f":"Pendientes!$Q130-Pendientes!$B130","v":13},{"$f":"VLOOKUP(Pendientes!$AC130,Hoja1!A:B,2,TRUE)","v":"Mas de 10 días"}]
["MBO018",null,"Ricky",null,null,null,null,null,null,null,null,null,null,null,"TO DO",null,null,null,null,null,null,null,null,"Sidaco","Prio 1","Semana 4 Mayo","BO018","1331411-1",{"$f":"Pendientes!$Q131-Pendientes!$B131","v":0},{"$f":"VLOOKUP(Pendientes!$AC131,Hoja1!A:B,2,TRUE)","v":"en 24hs"}]
["MBO133","2019-05-02","Barbara","Alta","SI","No","No","No","No","No","Si","No","No",null,"FIN-A",7000080027,"2019-05-03",null,"Queda pendiente solpe para la antena.","ASI4517R3v06","Nueva",null,"CIS SRL","CIS SRL","Prio 1","Semana 3 Mayo","BO133","1254836-1",{"$f":"Pendientes!$Q132-Pendientes!$B132","v":1},{"$f":"VLOOKUP(Pendientes!$AC132,Hoja1!A:B,2,TRUE)","v":"en 24hs"}]
["MBO153",null,"Lucrecia",null,null,null,null,null,null,null,"Energia OK",null,null,null,"FIN",7000079826,"2019-04-22",null,null,"ASI4517R3V06",null,null,null,"CIS SRL",0,"Fin Semana 1 Mayo","BO153","1254696-1",{"$f":"Pendientes!$Q133-Pendientes!$B133","v":43577},{"$f":"VLOOKUP(Pendientes!$AC133,Hoja1!A:B,2,TRUE)","v":"Mas de 10 días"}]
["MBO181",null,"Lucrecia",null,null,null,null,null,null,null,null,null,null,null,"FIN",7000079838,"2019-04-23",null,null,null,null,null,null,"CIS SRL",0,"Semana 3 Mayo","BO181","1254698-1",{"$f":"Pendientes!$Q134-Pendientes!$B134","v":43578},{"$f":"VLOOKUP(Pendientes!$AC134,Hoja1!A:B,2,TRUE)","v":"Mas de 10 días"}]
["MBO185","2019-04-29","Barbara","Alta",null,null,null,null,null,null,null,null,null,null,"FIN-A",7000079985,"2019-05-02",null,"FALTA SOLPE POR ANTENAS POR FALTA DE STOCK",null,null,null,"CIS SRL","CIS SRL","Prio 2","Semana 3 Mayo","BO185","1254808-1",{"$f":"Pendientes!$Q135-Pendientes!$B135","v":3},{"$f":"VLOOKUP(Pendientes!$AC135,Hoja1!A:B,2,TRUE)","v":"Entre 3 y 5 dias"}]
["MBO192",null,"Barbara",null,null,null,null,null,null,null,null,null,null,"Se remplazó la ODV-065R14M17JJ-G COMBA TRIBANDA por CE_ANTP_TB_2H1L_SBNHH1D65A.","FIN",7000079826,"2019-04-24",null,null,null,null,null,null,"CIS SRL",0,"Fin Semana 2 Mayo","BO192","1254810-1",{"$f":"Pendientes!$Q136-Pendientes!$B136","v":43579},{"$f":"VLOOKUP(Pendientes!$AC136,Hoja1!A:B,2,TRUE)","v":"Mas de 10 días"}]
["MBO206",null,"Barbara",null,null,null,null,null,null,null,null,null,null,null,"FIN",7000079900,"2019-04-25",null,null,null,null,null,null,"CIS SRL",0,"Fin Semana 2 Mayo","BO206","1254699-1",{"$f":"Pendientes!$Q137-Pendientes!$B137","v":43580},{"$f":"VLOOKUP(Pendientes!$AC137,Hoja1!A:B,2,TRUE)","v":"Mas de 10 días"}]
["MBO341",null,"Barbara",null,null,null,null,null,null,null,null,null,null,null,"FIN",7000079624,"2019-04-08",null,null,null,null,null,null,"Sidaco",0,"Fin Semana 4 Abril","BO341","1254823-1",{"$f":"Pendientes!$Q138-Pendientes!$B138","v":43563},{"$f":"VLOOKUP(Pendientes!$AC138,Hoja1!A:B,2,TRUE)","v":"Mas de 10 días"}]
["MBS036",null,"Lucrecia",null,null,null,null,null,null,null,"OK",null,null,"No Liberado es operadora","FIN",7000079835,"2019-04-22",null,null,"Requiere antena AIR32, sin stock./ cambia por ASI4517R3v06",null,null,null,"Sidaco",0,"Pendiente Ingeniería","BS036","1254826-1",{"$f":"Pendientes!$Q139-Pendientes!$B139","v":43577},{"$f":"VLOOKUP(Pendientes!$AC139,Hoja1!A:B,2,TRUE)","v":"Mas de 10 días"}]
["MBS114",null,"Rodrigo",null,null,null,null,null,null,null,null,null,null,null,"FIN",7000079677,"2019-04-10",null,null,null,null,null,null,"Sidaco",0,"Fin Semana 4 Abril","BS114","1254720-1",{"$f":"Pendientes!$Q140-Pendientes!$B140","v":43565},{"$f":"VLOOKUP(Pendientes!$AC140,Hoja1!A:B,2,TRUE)","v":"Mas de 10 días"}]
["MBS129",null,"Ricky",null,null,null,null,null,null,null,"fuerza ok",null,null,"Planos OK / TO DO / Hexa que ingresan 140 unidades el 15 de Abril","SIN STOCK",null,null,null,null,"ODI2-065R16MJJ-GQ ( Hexa grande)",null,null,null,"Sidaco",0,"Fin Semana 4 Abril","BS129","1254723-1",{"$f":"Pendientes!$Q141-Pendientes!$B141","v":0},{"$f":"VLOOKUP(Pendientes!$AC141,Hoja1!A:B,2,TRUE)","v":"en 24hs"}]
["MBS136",null,"Ricky",null,null,null,null,null,null,null,"OK",null,null,"mc condicionante se cierra semana 22 de abril","SIN STOCK",null,null,null,null,"ODI2-065R16MJJ-GQ ( Hexa grande)",null,null,null,"Sidaco",0,"Pendiente Ingeniería","BS136","1254725-1",{"$f":"Pendientes!$Q142-Pendientes!$B142","v":0},{"$f":"VLOOKUP(Pendientes!$AC142,Hoja1!A:B,2,TRUE)","v":"en 24hs"}]
["MBS155",null,"Ricky",null,null,null,null,null,null,null,"ok fuerza",null,null,"Sin Stock","SIN STOCK",null,null,null,null,"ODI2-065R16MJJ-GQ ( Hexa grande)",null,null,null,"Sidaco","Prio 2","Semana 4 Mayo","BS155","1254729-1",{"$f":"Pendientes!$Q143-Pendientes!$B143","v":0},{"$f":"VLOOKUP(Pendientes!$AC143,Hoja1!A:B,2,TRUE)","v":"en 24hs"}]
["MBS160",null,"Ricky",null,null,null,null,null,null,null,"se conecta a planta existente",{"$error":"#N/A"},null,"TO DO / Hexa que ingresan 140 unidades el 15 de Abril","SIN STOCK",null,null,null,null,"ODI2-065R16MJJ-GQ ( Hexa grande)",null,null,null,"Sidaco",0,"Fin Semana 2 Abril","BS160","1254731-1",{"$f":"Pendientes!$Q144-Pendientes!$B144","v":0},{"$f":"VLOOKUP(Pendientes!$AC144,Hoja1!A:B,2,TRUE)","v":"en 24hs"}]
["MBS169",null,"Ricky",null,null,null,null,null,null,null,null,null,null,"sin stock","SIN STOCK",null,null,null,null,"TNA770A00RI",null,null,null,"Sidaco","Prio 2","Semana 4 Mayo","BS169","1254650-1",{"$f":"Pendientes!$Q145-Pendientes!$B145","v":0},{"$f":"VLOOKUP(Pendientes!$AC145,Hoja1!A:B,2,TRUE)","v":"en 24hs"}]
["MBS206","2019-04-30","Ricky",null,"SI","NO","NO","Incompleto","NO","NO","SI","NO","NO",null,"FIN",7000080143,"2019-05-07",null,0,"Ant existentes + 3 DipB","Nueva",null,null,"Sidaco","Prio 1","Semana 3 Mayo","BS206","1254737-1",{"$f":"Pendientes!$Q146-Pendientes!$B146","v":7},{"$f":"VLOOKUP(Pendientes!$AC146,Hoja1!A:B,2,TRUE)","v":"Entre 5 y 10 dias"}]
["MBS229",null,"Ricky",null,null,null,null,null,null,null,"OK",null,null,"ANTENA TNA770A00RI sin stock","SIN STOCK",null,null,null,null,"TNA770A00RI",null,null,null,"Sidaco","Prio 2","Semana 4 Mayo","BS229","1254739-1",{"$f":"Pendientes!$Q147-Pendientes!$B147","v":0},{"$f":"VLOOKUP(Pendientes!$AC147,Hoja1!A:B,2,TRUE)","v":"en 24hs"}]
["MC010","2019-04-25","Lucrecia",null,null,null,null,null,null,null,null,null,null,null,"FIN",7000079922,"2019-04-25",null,null,null,null,null,null,"CIS SRL",{"$error":"#N/A"},{"$error":"#N/A"},{"$error":"#N/A"},{"$error":"#N/A"},{"$f":"Pendientes!$Q148-Pendientes!$B148","v":0},{"$f":"VLOOKUP(Pendientes!$AC148,Hoja1!A:B,2,TRUE)","v":"en 24hs"}]
["MCE017",null,"Ricky","Adelanto",{"$error":"#N/A"},null,null,null,null,null,null,null,null,null,"FIN",7000079523,"2019-04-01",null,"nueva estación de Subte E",null,null,null,null,"Multiradio",0,{"$error":"#N/A"},"CE017",{"$error":"#N/A"},{"$f":"Pendientes!$Q149-Pendientes!$B149","v":43556},{"$f":"VLOOKUP(Pendientes!$AC149,Hoja1!A:B,2,TRUE)","v":"Mas de 10 días"}]
["MCE018",null,"Ricky","Adelanto",{"$error":"#N/A"},null,null,null,null,null,null,null,null,null,"FIN",7000079586,"2019-04-05",null,"ING. PORTICOS - CATALINAS y RETIRO",null,null,null,null,"Multiradio",0,{"$error":"#N/A"},"CE018",{"$error":"#N/A"},{"$f":"Pendientes!$Q150-Pendientes!$B150","v":43560},{"$f":"VLOOKUP(Pendientes!$AC150,Hoja1!A:B,2,TRUE)","v":"Mas de 10 días"}]
["MCN190","2019-05-07","Lucrecia",null,null,null,null,null,null,null,null,null,null,null,"TO DO",null,null,null,null,null,null,null,null,"Guzman Nacich",null,"Semana 4 Mayo","CN190","1251047-1",{"$f":"Pendientes!$Q151-Pendientes!$B151","v":-43592},{"$f":"VLOOKUP(Pendientes!$AC151,Hoja1!A:B,2,TRUE)","v":{"$error":"#N/A"}}]
["MCN231","2019-05-10","Cristian","Prio 2","Si","No","No","No","No","No","Si","No","No",null,"FIN-A",7000080229,"2019-05-13",null,null," ASI4517r3v06","Nueva",null,null,"Multiradio",null,"Semana 4 Mayo","CN231","1254763-1",{"$f":"Pendientes!$Q152-Pendientes!$B152","v":3},{"$f":"VLOOKUP(Pendientes!$AC152,Hoja1!A:B,2,TRUE)","v":"Entre 3 y 5 dias"}]
["MCN349",null,"Cristian",null,null,null,null,null,null,null,null,null,null,"sin stock","SIN STOCK",null,null,null,null,"ODV-065R14M17JJ-G",null,null,null,"Multiradio","Prio 2","Semana 4 Mayo","CN349","1254640-1",{"$f":"Pendientes!$Q153-Pendientes!$B153","v":0},{"$f":"VLOOKUP(Pendientes!$AC153,Hoja1!A:B,2,TRUE)","v":"en 24hs"}]
["MCN423","2019-04-29","Barbara","Alta",null,null,null,null,null,null,null,null,null,null,"FIN-A",7000079996,"2019-04-30",null,"FALTA SOLPE POR ANTENAS POR FALTA DE STOCK",null,null,null,null,"Multiradio","Prio 2","Semana 3 Mayo","CN423","1255500-1",{"$f":"Pendientes!$Q154-Pendientes!$B154","v":1},{"$f":"VLOOKUP(Pendientes!$AC154,Hoja1!A:B,2,TRUE)","v":"en 24hs"}]
["MCN815","2019-05-09","Lucrecia","Prio 3","Si","No","Si","Si","No","No","No","No","No","FINALIZADO TODO COMPLETO","FIN-A",7000080213,"2019-05-13",null,null,"ASI4517R3V06","Nueva",null,null,"PEM",null,"Semana 4 Mayo","CN815","1302916-1",{"$f":"Pendientes!$Q155-Pendientes!$B155","v":4},{"$f":"VLOOKUP(Pendientes!$AC155,Hoja1!A:B,2,TRUE)","v":"Entre 3 y 5 dias"}]
["MCS111","02-05-2019","Barbara","Alta","Incompleto","No","No","No","No","No","Si","No","No","CHEQUENDO DWG","FIN",7000080192,"2019-05-09","","","ODI2-065R16MJJ-GQ ( Hexa grande)","Nueva",null,"CIS SRL","CIS SRL","Prio 2","Semana 3 Mayo Forzado","CS111","1255523-1",{"$f":"Pendientes!$Q156-Pendientes!$B156","v":7},{"$f":"VLOOKUP(Pendientes!$AC156,Hoja1!A:B,2,TRUE)","v":"Entre 5 y 10 dias"}]
["MCS124","2019-04-29","Barbara","Alta",null,null,null,null,null,null,null,null,null,null,"FIN-A",7000079999,"2019-04-30",null,"Se hace el pedido sin antena",null,null,null,"CIS SRL","CIS SRL","Prio 2","Fin Semana 2 Mayo","CS124","1251051-1",{"$f":"Pendientes!$Q157-Pendientes!$B157","v":1},{"$f":"VLOOKUP(Pendientes!$AC157,Hoja1!A:B,2,TRUE)","v":"en 24hs"}]
["MCS205",null,"Ricky",null,null,null,null,null,null,null,"Energia OK",null,null,"planos recibidos 12-4-19 / sin stock antenas Hexa Grandes","SIN STOCK",null,null,null,null,"ODI2-065R16MJJ-GQ ( Hexa grande)",null,null,null,"Sidaco","Prio 2","Semana 4 Mayo","CS205","1342182-1",{"$f":"Pendientes!$Q158-Pendientes!$B158","v":0},{"$f":"VLOOKUP(Pendientes!$AC158,Hoja1!A:B,2,TRUE)","v":"en 24hs"}]
["MCS256",null,"Ricky","Media","SI","NO","NO","NO","NO","NO","SI","NO","NO","Cargado en la asignación a Tesur","FIN-A",7000080175,"2019-05-09",null,"LOS PLANOS Y FUERZA SE TOMA DE LAS ASIGNACIONES DE TESUR, EN SIDACO NO HAY NADA CARGADO","ASI-R3","Nueva",null,null,"Sidaco","Prio 2","Semana 4 Mayo","CS256","1255336-1",{"$f":"Pendientes!$Q159-Pendientes!$B159","v":43594},{"$f":"VLOOKUP(Pendientes!$AC159,Hoja1!A:B,2,TRUE)","v":"Mas de 10 días"}]
["MCS293",null,"Ricky","Media","SI","NO","NO","NO","NO","NO","SI","NO","NO","Cargado en la asignación a Tesur","FIN-A",7000080176,"2019-05-09",null,"SE USA PLANOS Y FUERZA DE TESUR, EN EL PROYECTO DE SIDACO NO HAY DATOS","ASI-R3","Nueva",null,null,"Sidaco","Prio 2","Semana 4 Mayo","CS293","1255303-1",{"$f":"Pendientes!$Q160-Pendientes!$B160","v":43594},{"$f":"VLOOKUP(Pendientes!$AC160,Hoja1!A:B,2,TRUE)","v":"Mas de 10 días"}]
["MCS296",null,"Ricky","Media","SI","NO","NO","NO","NO","NO","SI","NO","NO","Cargado en la asignación a Tesur","FIN-A",7000080177,"2019-05-09",null,"SE USA PLANOS Y FUERZA DE TESUR, EN EL PROYECTO DE SIDACO NO HAY DATOS --- FALTA SOLPE POR ANTENA","ASI-R3","Nueva",null,null,"Sidaco","Prio 2","Semana 4 Mayo","CS296","1255271-1",{"$f":"Pendientes!$Q161-Pendientes!$B161","v":43594},{"$f":"VLOOKUP(Pendientes!$AC161,Hoja1!A:B,2,TRUE)","v":"Mas de 10 días"}]
["MCS311",null,"Ricky",null,null,null,null,null,null,null,"falta fuerza",null,null,"sin stock","SIN STOCK",null,null,null,null,"ODI2-065R16MJJ-GQ ( Hexa grande)",null,null,null,"Sidaco","Prio 2","Semana 4 Mayo","CS311","1255272-1",{"$f":"Pendientes!$Q162-Pendientes!$B162","v":0},{"$f":"VLOOKUP(Pendientes!$AC162,Hoja1!A:B,2,TRUE)","v":"en 24hs"}]
["MCS352",null,"Lucrecia","Adelanto",null,null,null,null,null,null,null,null,null,"no contamos con ninguna definicion para emitir la SOLPE","FIN","69396 /7000079681","2019-04-10",null,null,"\"Antena a definir por RDA\"",null,null,null,"Telxius",0,"Semana 3 Mayo","CS352","1342228-1",{"$f":"Pendientes!$Q163-Pendientes!$B163","v":43565},{"$f":"VLOOKUP(Pendientes!$AC163,Hoja1!A:B,2,TRUE)","v":"Mas de 10 días"}]
["MCU024","2019-05-09","Lucrecia","Prio 2",null,null,null,null,null,null,null,null,null,null,"TO DO",null,null,null,null,null,null,null,null,"Guzmán Nacich",null,"Semana 4 Mayo","CU024","1252156-1",{"$f":"Pendientes!$Q164-Pendientes!$B164","v":-43594},{"$f":"VLOOKUP(Pendientes!$AC164,Hoja1!A:B,2,TRUE)","v":{"$error":"#N/A"}}]
["MCU087","2019-04-30","Ricky",null,"No","NO","NO","NO","NO","NO","NO","Ok","NO","Sin Stock Antena","FIN-A",7000080144,"2019-05-07",null,"Sin Stock Antena - DC3 + Sec + BB2",null,"Nueva",null,null,"Sidaco","Prio 1","Semana 3 Mayo","CU087","1320244-1",{"$f":"Pendientes!$Q165-Pendientes!$B165","v":7},{"$f":"VLOOKUP(Pendientes!$AC165,Hoja1!A:B,2,TRUE)","v":"Entre 5 y 10 dias"}]
["MHC020","2019-04-29","Rodrigo","Alta","Si","No","No","No","No","No","Si","No","No","con antena existente ATR4518R3","FIN","7000079961/7000079826","2019-04-29",null,null,"ATR4518R3","Nueva",null,null,"CIS SRL",0,"Fin Semana 2 Mayo","HC020","1291143-1",{"$f":"Pendientes!$Q166-Pendientes!$B166","v":0},{"$f":"VLOOKUP(Pendientes!$AC166,Hoja1!A:B,2,TRUE)","v":"en 24hs"}]
["MIC021",null,"Ricky","Adelanto",{"$error":"#N/A"},null,null,null,null,null,null,null,null,null,"FIN","USA HW DEL IC004","2019-04-05",null,null,null,null,null,null,"Guzmán Nacich",0,"Fin Semana 2 Abril","IC021","1130647-1",{"$f":"Pendientes!$Q167-Pendientes!$B167","v":43560},{"$f":"VLOOKUP(Pendientes!$AC167,Hoja1!A:B,2,TRUE)","v":"Mas de 10 días"}]
["MIC024",null,"Ricky","Adelanto",{"$error":"#N/A"},null,null,null,null,null,null,null,null,null,"FIN",7000079596,"2019-04-05",null,null,null,null,null,null,"Guzmán Nacich",0,"Fin Semana 2 Abril","IC024","1130605-1",{"$f":"Pendientes!$Q168-Pendientes!$B168","v":43560},{"$f":"VLOOKUP(Pendientes!$AC168,Hoja1!A:B,2,TRUE)","v":"Mas de 10 días"}]
["MIE001",null,"Ricky","Adelanto",{"$error":"#N/A"},null,null,null,null,null,null,null,null,null,"FIN",7000079597,"2019-04-05",null,null,null,null,null,null,"Guzmán Nacich",0,"Revisión Ing Fin","IE001","840700-1",{"$f":"Pendientes!$Q169-Pendientes!$B169","v":43560},{"$f":"VLOOKUP(Pendientes!$AC169,Hoja1!A:B,2,TRUE)","v":"Mas de 10 días"}]
["MIN004",null,null,null,null,null,null,null,null,null,null,null,null,null,"FIN",7000079507,"2019-03-29",null,null,null,null,null,null,"Guzmán Nacich",0,"Fin Semana 2 Mayo","IN004","905658-1",{"$f":"Pendientes!$Q170-Pendientes!$B170","v":43553},{"$f":"VLOOKUP(Pendientes!$AC170,Hoja1!A:B,2,TRUE)","v":"Mas de 10 días"}]
["MJC004","2019-03-07",null,null,null,null,null,null,null,null,null,null,null,"ok stock","FIN","7000079143 ","2019-03-08",null,null,"Terminada",null,null,null,"Sidaco",0,"Fin Semana 2 Marzo","JC004","1059182-1",{"$f":"Pendientes!$Q171-Pendientes!$B171","v":1},{"$f":"VLOOKUP(Pendientes!$AC171,Hoja1!A:B,2,TRUE)","v":"en 24hs"}]
["MJC006","2019-03-07",null,null,null,null,null,null,null,null,null,null,null,"ok stock","FIN","7000079143/7000079268/7000079308","2019-03-08",null,null,"Terminada",null,null,null,"Sidaco",0,"Fin Semana 2 Marzo","JC006","905749-1",{"$f":"Pendientes!$Q172-Pendientes!$B172","v":1},{"$f":"VLOOKUP(Pendientes!$AC172,Hoja1!A:B,2,TRUE)","v":"en 24hs"}]
["MJC010","2019-05-02","Cristian","Alta","SI","NO","NO","Incompleto","NO","NO","SI","NO","NO","El plano no se condice con el hw a instalar, dice RRU´s a reutilizar cuando en ep PDG indica HW nuevo - la energia no estaba bien dimencionada en el plano, se corrigio para hacer el pedido con Ing de Fuerza","FIN",7000080039,"2019-05-03",null,null,"ODI2-065R16M18J-GQ + AAUU3910","Nueva",null,null,"Multiradio","Prio 1","Fin Semana 2 Mayo","JC010","905757-1",{"$f":"Pendientes!$Q173-Pendientes!$B173","v":1},{"$f":"VLOOKUP(Pendientes!$AC173,Hoja1!A:B,2,TRUE)","v":"en 24hs"}]
["MJC018","2019-05-02","Cristian",null,"SI","NO","NO","NO","NO","NO","NO","NO","NO","SIN FUERZA","FIN",7000080094,"2019-05-07",null,"SE RESUELVE FUERZA ON LINE CON PLANIFICACION","ODI2-065R16M18J-GQ + AAUU3910",null,null,null,"Multiradio","Prio 1","Semana 3 Mayo","JC018","905750-1",{"$f":"Pendientes!$Q174-Pendientes!$B174","v":5},{"$f":"VLOOKUP(Pendientes!$AC174,Hoja1!A:B,2,TRUE)","v":"Entre 5 y 10 dias"}]
["MJC022","2019-05-02","Cristian",null,"SI","NO","NO","NO","NO","NO","SI","NO","NO","FUERZA EXISTENTE","FIN",7000080130,"2019-05-07",null,"FUERZA EXISTENTE","ODI2-065R16M18J-GQ + AAUU3910","Existente",null,null,"Multiradio","Prio 1","Semana 3 Mayo","JC022","905751-1",{"$f":"Pendientes!$Q175-Pendientes!$B175","v":5},{"$f":"VLOOKUP(Pendientes!$AC175,Hoja1!A:B,2,TRUE)","v":"Entre 5 y 10 dias"}]
["MJC025","2019-05-02","Cristian","Alta","SI","NO","NO","Incompleto","NO","NO","SI","NO","NO","PLANILLA MATERIALES INCOMPLETA","FIN",7000080133,"2019-05-07",null,"ENERGIA EXISTENTE SE REUTILIZA DC2ZTE SE AGREGA DC3 SECUNDARIO ","ODI2-065R16M18JG-Q+AAUU3910","Nueva",null,null,"Multiradio","Prio 1","Semana 3 Mayo","JC025","905740-1",{"$f":"Pendientes!$Q176-Pendientes!$B176","v":5},{"$f":"VLOOKUP(Pendientes!$AC176,Hoja1!A:B,2,TRUE)","v":"Entre 5 y 10 dias"}]
["MJC026","2/5/2019","Cristian","Alta","Si","No","No","No","No","No","Si","No","No","solo faltaba el detalle de los materiales","FIN",7000080164,"2019-05-08","","Sale completo","ODI2-065R16M18J-GQ + AAUU3910","Nueva",null,null,"Multiradio","Prio 1","Semana 3 Mayo","JC026","905752-1",{"$f":"Pendientes!$Q177-Pendientes!$B177","v":6},{"$f":"VLOOKUP(Pendientes!$AC177,Hoja1!A:B,2,TRUE)","v":"Entre 5 y 10 dias"}]
["MJC030","2019-05-02","Cristian","Alta","SI","NO","NO","SI","NO","NO","SI","NO","NO",null,"FIN",7000080036,"2019-05-03",null,null,"ODI2-065R16M18J-GQ + AAUU3910","Nueva",null,null,"Multiradio","Prio 1","Fin Semana 2 Mayo","JC030","1059020-1",{"$f":"Pendientes!$Q178-Pendientes!$B178","v":1},{"$f":"VLOOKUP(Pendientes!$AC178,Hoja1!A:B,2,TRUE)","v":"en 24hs"}]
["MJC034","2019-05-02","Cristian","Alta","SI","NO","NO","NO","NO","NO","SI","NO","NO",null,"FIN",7000080037,"2019-05-03",null,null,"ODI2-065R16M18J-GQ + AAUU3910","Nueva",null,null,"Multiradio","Prio 1","Semana 3 Mayo","JC034","905760-1",{"$f":"Pendientes!$Q179-Pendientes!$B179","v":1},{"$f":"VLOOKUP(Pendientes!$AC179,Hoja1!A:B,2,TRUE)","v":"en 24hs"}]
["MJC035",null,"Rodrigo",null,null,null,null,null,null,null,null,null,null,"ok stock","FIN","7000079269/7000079302","2019-03-28",null,null,null,null,null,null,"Sidaco",0,"Fin Semana 4 Abril","JC035","905753-1",{"$f":"Pendientes!$Q180-Pendientes!$B180","v":43552},{"$f":"VLOOKUP(Pendientes!$AC180,Hoja1!A:B,2,TRUE)","v":"Mas de 10 días"}]
["MJC056",null,null,"Adelanto",null,null,null,null,null,null,null,null,null,null,"FIN",7000079317,"2019-04-01",null,null,null,null,null,null,"Sidaco",0,"Fin Semana 2 Abril","JC056","905763-1",{"$f":"Pendientes!$Q181-Pendientes!$B181","v":43556},{"$f":"VLOOKUP(Pendientes!$AC181,Hoja1!A:B,2,TRUE)","v":"Mas de 10 días"}]
["MJC303",null,"Rodrigo",null,null,null,null,null,null,null,null,null,null,"ok stock","FIN",7000079318,"2019-03-28",null,null,null,null,null,null,"Sidaco",0,"Fin Semana 1 Abril","JC303","1059183-1",{"$f":"Pendientes!$Q182-Pendientes!$B182","v":43552},{"$f":"VLOOKUP(Pendientes!$AC182,Hoja1!A:B,2,TRUE)","v":"Mas de 10 días"}]
["MJC320","2019-05-02","Cristian","Alta","SI","NO","NO","SI","NO","NO","SI","NO","NO",null,"FIN",7000080038,"2019-05-03",null,null,"ODI2-065R16M18J-GQ + AAUU3910","Nueva",null,null,"Multiradio","Prio 1","Fin Semana 2 Mayo","JC320","1059162-1",{"$f":"Pendientes!$Q183-Pendientes!$B183","v":1},{"$f":"VLOOKUP(Pendientes!$AC183,Hoja1!A:B,2,TRUE)","v":"en 24hs"}]
["MJC326",null,null,"Adelanto",null,null,null,null,null,null,null,null,null,null,"FIN",7000079319,"2019-04-01",null,null,null,null,null,null,"Sidaco",0,"Fin Semana 2 Abril","JC326","905761-1",{"$f":"Pendientes!$Q184-Pendientes!$B184","v":43556},{"$f":"VLOOKUP(Pendientes!$AC184,Hoja1!A:B,2,TRUE)","v":"Mas de 10 días"}]
["MJC329",null,null,"Adelanto",null,null,null,null,null,null,null,null,null,null,"FIN",7000079330,"2019-04-01",null,null,null,null,null,null,"Sidaco",0,"Fin Semana 2 Abril","JC329","905787-1",{"$f":"Pendientes!$Q185-Pendientes!$B185","v":43556},{"$f":"VLOOKUP(Pendientes!$AC185,Hoja1!A:B,2,TRUE)","v":"Mas de 10 días"}]
["MJC339",null,null,"Adelanto",null,null,null,null,null,null,null,null,null,null,"FIN","7000079266/7000079307","2019-04-01",null,null,null,null,null,null,"Sidaco",0,"Fin Semana 1 Abril","JC339","905764-1",{"$f":"Pendientes!$Q186-Pendientes!$B186","v":43556},{"$f":"VLOOKUP(Pendientes!$AC186,Hoja1!A:B,2,TRUE)","v":"Mas de 10 días"}]
["MJE008",null,"Rodrigo","Adelanto",null,null,null,null,null,null,null,null,null,null,"FIN",7000079584,"2019-04-04",null,null,null,null,null,null,"Multiradio",0,"Fin Semana 2 Mayo","JE008","1059163-1",{"$f":"Pendientes!$Q187-Pendientes!$B187","v":43559},{"$f":"VLOOKUP(Pendientes!$AC187,Hoja1!A:B,2,TRUE)","v":"Mas de 10 días"}]
["MJS025",null,null,null,null,null,null,null,null,null,null,null,null,null,"FIN",7000079144,"2019-03-11",null,null,null,null,null,null,"Sidaco",0,"Fin Semana 1 Abril","JS025","905776-1",{"$f":"Pendientes!$Q188-Pendientes!$B188","v":43535},{"$f":"VLOOKUP(Pendientes!$AC188,Hoja1!A:B,2,TRUE)","v":"Mas de 10 días"}]
["MJS026","2/5/2019","RICKY","Alta","Si","No","No","No","No","No","No","Si","No","Antena existente ADU4518R7 ","FIN",7000080082,"2019-05-06","","","ADU4518R7","Nueva",null,null,"Sidaco","Prio 1","Semana 3 Mayo","JS026",{"$error":"#N/A"},{"$f":"Pendientes!$Q189-Pendientes!$B189","v":4},{"$f":"VLOOKUP(Pendientes!$AC189,Hoja1!A:B,2,TRUE)","v":"Entre 3 y 5 dias"}]
["MJS052",null,"Barbara",null,null,null,null,null,null,null,"Energia OK",null,null,"Las RRUS son PARALLEL , llegan en Mayo - Esperar compra Parallel","SIN STOCK",null,null,null,null,"ADU4518R7",null,null,"CIS SRL","CIS SRL","Sin hw","Semana 1 Junio","JS052","1263021-1",{"$f":"Pendientes!$Q190-Pendientes!$B190","v":0},{"$f":"VLOOKUP(Pendientes!$AC190,Hoja1!A:B,2,TRUE)","v":"en 24hs"}]
["MJS099",null,"Lucrecia","Adelanto",null,null,null,null,null,null,"Ingenieria a revision ( Fuerza + Materiales)",null,null,"se envio a Claudio Creteur para definicion /Según lo indicado por RDA se suma una RRU de 700 , se manda a ingenieria","FIN",7000079627,"2019-04-08",null,null,"ADU4518R7",null,null,null,"Sidaco",0,"Pendiente Ingeniería","JS099",{"$error":"#N/A"},{"$f":"Pendientes!$Q191-Pendientes!$B191","v":43563},{"$f":"VLOOKUP(Pendientes!$AC191,Hoja1!A:B,2,TRUE)","v":"Mas de 10 días"}]
["MKN284",null,null,null,null,null,null,null,null,null,"la saco Ricky",null,null,null,"FIN",7000079362,"2019-03-20",null,null,null,null,null,null,"Guzmán Nacich",0,"Fin Semana 2 Marzo","KN284","1131845-1",{"$f":"Pendientes!$Q192-Pendientes!$B192","v":43544},{"$f":"VLOOKUP(Pendientes!$AC192,Hoja1!A:B,2,TRUE)","v":"Mas de 10 días"}]
["MKS047","2019-04-30","Ricky",null,"SI","NO","NO","Incompleto","NO","NO","SI","NO","NO",null,"FIN",7000080145,"2019-05-07",null,0,"Ant existentes + 3 DipB","NUEVA",null,null,"Sidaco","Prio 1","Semana 3 Mayo","KS047","1255042-1",{"$f":"Pendientes!$Q193-Pendientes!$B193","v":7},{"$f":"VLOOKUP(Pendientes!$AC193,Hoja1!A:B,2,TRUE)","v":"Entre 5 y 10 dias"}]
["MKS061",null,"Ricky",null,null,null,null,null,null,null,"SI",null,null,"sin stock","SIN STOCK",null,null,null,null,"ODI2-065R16MJJ-GQ ( Hexa grande)",null,null,null,"Sidaco","Prio 2","Semana 4 Mayo","KS061","1255251-1",{"$f":"Pendientes!$Q194-Pendientes!$B194","v":0},{"$f":"VLOOKUP(Pendientes!$AC194,Hoja1!A:B,2,TRUE)","v":"en 24hs"}]
["MKS165",null,"Barbara",null,null,null,null,null,null,null,"Energia OK",null,null,"Ingresaron los planos desde MI 12/04/19","FIN",7000079711,"2019-04-12",null,null,null,null,null,null,"Sidaco",0,"Fin Semana 4 Abril","KS165","1255417-1",{"$f":"Pendientes!$Q195-Pendientes!$B195","v":43567},{"$f":"VLOOKUP(Pendientes!$AC195,Hoja1!A:B,2,TRUE)","v":"Mas de 10 días"}]
["MKS171",null,"Rodrigo",null,null,null,null,null,null,null,"ok fuerza",null,null,"se envia mail consulta RDA / OK PLANOS 12/4/19","FIN",7000079712,"2019-04-12",null,null,"\"Antena a definir por RDA\"",null,null,null,"Sidaco",0,"Fin Semana 4 Abril","KS171","1255418-1",{"$f":"Pendientes!$Q196-Pendientes!$B196","v":43567},{"$f":"VLOOKUP(Pendientes!$AC196,Hoja1!A:B,2,TRUE)","v":"Mas de 10 días"}]
["MKS238",null,"Ricky",null,"NO","NO","NO","NO","NO","NO","NO","NO",null,"se cierra hoy","FIN",7000080230,"2019-05-10",null,{"$error":"#N/A"},"ODI2-065R16MJJ-GQ ( Hexa grande)",{"$error":"#N/A"},null,null,"Sidaco","Prio 2","Fin Semana 1 Mayo","KS238","1255392-1",{"$f":"Pendientes!$Q197-Pendientes!$B197","v":43595},{"$f":"VLOOKUP(Pendientes!$AC197,Hoja1!A:B,2,TRUE)","v":"Mas de 10 días"}]
["MKS244",null,"Rodrigo",null,null,null,null,null,null,null,"falta energia",null,null,"Envio de planos de MI 12-4-19","FIN",7000079713,"2019-04-12",null,null,null,null,null,null,"Sidaco",0,"Fin Semana 4 Abril","KS244","1135345-1",{"$f":"Pendientes!$Q198-Pendientes!$B198","v":43567},{"$f":"VLOOKUP(Pendientes!$AC198,Hoja1!A:B,2,TRUE)","v":"Mas de 10 días"}]
["MKS247","2019-04-30","Ricky",null,"SI","NO","NO","Incompleto","NO","NO","SI","NO","NO",null,"FIN",7000080147,"2019-05-07",null,0,"Ant existentes + 3 DipB","Nueva",null,null,"Sidaco","Prio 1","Semana 3 Mayo","KS247","1255343-1",{"$f":"Pendientes!$Q199-Pendientes!$B199","v":7},{"$f":"VLOOKUP(Pendientes!$AC199,Hoja1!A:B,2,TRUE)","v":"Entre 5 y 10 dias"}]
["MKS248","2019-04-30","Ricky",null,"SI","NO","NO","Incompleto","NO","NO","SI","NO","NO",null,"FIN",7000080148,"2019-05-07",null,0,"Ant Existentes + 3 DipA1 + 3 DipB","Existente",null,null,"Sidaco","Prio 1","Semana 3 Mayo","KS248","1254903-1",{"$f":"Pendientes!$Q200-Pendientes!$B200","v":7},{"$f":"VLOOKUP(Pendientes!$AC200,Hoja1!A:B,2,TRUE)","v":"Entre 5 y 10 dias"}]
["MKS298",null,"Rodrigo",null,null,null,null,null,null,null,null,null,null,null,"FIN",7000079631,"2019-04-08",null,null,null,null,null,null,"Sidaco",0,"Fin Semana 4 Abril","KS298","1255534-1",{"$f":"Pendientes!$Q201-Pendientes!$B201","v":43563},{"$f":"VLOOKUP(Pendientes!$AC201,Hoja1!A:B,2,TRUE)","v":"Mas de 10 días"}]
["MKS428","2019-04-30","Ricky",null,"SI","NO","NO","Incompleto","NO","NO","SI","NO","NO",null,"FIN",7000080150,"2019-05-07",null,0,"ASI-R14","Existente",null,null,"Sidaco","Prio 1","Semana 3 Mayo","KS428","1254949-1",{"$f":"Pendientes!$Q202-Pendientes!$B202","v":7},{"$f":"VLOOKUP(Pendientes!$AC202,Hoja1!A:B,2,TRUE)","v":"Entre 5 y 10 dias"}]
["MKS457","20-04-2019","Lucrecia","Media","Incompleto","No","No","Incompleto","No","No","Incompleto","No","No","10/5: sin stock. La ingenieria debe ser modificada, ya que tiene una antena de la cual no hay stock","PENDIENTE RDA","",null,"","10/5: sin stock. La ingenieria debe ser modificada, ya que tiene una antena de la cual no hay stock","AIR32","Nueva",null,null,"Guzmán Nacich","Prio 3","Semana 1 Junio","KS457","904338-1",{"$f":"Pendientes!$Q203-Pendientes!$B203","v":-43575},{"$f":"VLOOKUP(Pendientes!$AC203,Hoja1!A:B,2,TRUE)","v":{"$error":"#N/A"}}]
["MKS562","2019-05-02","Pendiente",null,null,null,null,null,null,null,null,null,null,null,"A REASIGNAR CONTRATA",null,null,null,null,null,null,null,null,null,"Prio 1","No Liberado","KS562",{"$error":"#N/A"},{"$f":"Pendientes!$Q204-Pendientes!$B204","v":-43587},{"$f":"VLOOKUP(Pendientes!$AC204,Hoja1!A:B,2,TRUE)","v":{"$error":"#N/A"}}]
["MKS607","2019-05-09","Ricky","Prio 3",null,null,null,null,null,null,null,null,null,null,"TO DO",null,null,null,null,null,null,null,null,"Sidaco",null,"Fin Semana 1 Mayo","KS607","1108225-1",{"$f":"Pendientes!$Q205-Pendientes!$B205","v":-43594},{"$f":"VLOOKUP(Pendientes!$AC205,Hoja1!A:B,2,TRUE)","v":{"$error":"#N/A"}}]
["MKS616",null,"Lucrecia",null,null,null,null,null,null,null,"OK",null,null,"conflicto con el locador nos cambio nuevamente la solucion de mimetizado","FIN",7000079702,"2019-04-12",null,null,"Falta definicion de antena.",null,null,null,"Sidaco",0,"Fin Semana 4 Abril","KS616","1136043-1",{"$f":"Pendientes!$Q206-Pendientes!$B206","v":43567},{"$f":"VLOOKUP(Pendientes!$AC206,Hoja1!A:B,2,TRUE)","v":"Mas de 10 días"}]
["MLC037","2019-05-02","Lucrecia",null,"SI","NO","NO","NO","NO","NO","SI","NO","NO","DATOS CORRECTOS FINALIZADO CON ANTENAS","FIN",7000080115,"2019-05-07",null,"DATOS CORRECTOS FINALIZADO CON ANTENAS","ODI2-065R16MJJ-GQ ( Hexa Grande)","Nueva",null,null,"Guzmán Nacich",0,"Semana 3 Mayo","LC037",null,{"$f":"Pendientes!$Q207-Pendientes!$B207","v":5},{"$f":"VLOOKUP(Pendientes!$AC207,Hoja1!A:B,2,TRUE)","v":"Entre 5 y 10 dias"}]
["MLC043","2019-04-26","Lucrecia","Alta","Si","No","No","Si","No","No","Si","No","No","Falta Solpe X ODI2-065R16MJJ-GQ","FIN-A",7000080043,"2019-05-03",null,null,"ODI2-065R16MJJ-GQ","Existente",null,null,"Guzmán Nacich","Prio 2","Semana 3 Mayo","LC043","1255229-1",{"$f":"Pendientes!$Q208-Pendientes!$B208","v":7},{"$f":"VLOOKUP(Pendientes!$AC208,Hoja1!A:B,2,TRUE)","v":"Entre 5 y 10 dias"}]
["MLP025",null,"Rodrigo",null,"SI","No","No","No","No","No","SI","NO","NO","planos ok / falta antenas tribanda trisector","SIN STOCK",null,null,null,null,"TNA770A00RI",null,null,null,"Ericsson","Prio 2","Semana 4 Mayo","LP025","642026-1",{"$f":"Pendientes!$Q209-Pendientes!$B209","v":0},{"$f":"VLOOKUP(Pendientes!$AC209,Hoja1!A:B,2,TRUE)","v":"en 24hs"}]
["MLP101","02/05/2019","Lucrecia","","Si","No","No","Si","No","No","Si","No","No","La ingenieria Fuerza y planos se analizó y cargada en BPM","FIN",7000080206,"2019-05-10","","Los datos fueron tomados de los archivos cargados en BPM","ODI-065R15M18JJ_G","Existente",null,null,"Guzmán Nacich",0,"Semana 3 Mayo Forzado","LP101","1255421-1",{"$f":"Pendientes!$Q210-Pendientes!$B210","v":8},{"$f":"VLOOKUP(Pendientes!$AC210,Hoja1!A:B,2,TRUE)","v":"Entre 5 y 10 dias"}]
["MLP110","2019-03-11",null,null,null,null,null,null,null,null,"Planilla OK 2019 / Falta definir antena",null,null,"ok stock","FIN",7000079236,"2019-03-14",null,null,"ASI4518R14v06",null,null,null,"CIS SRL",0,"Fin Semana 2 Marzo","LP110","1255283-1",{"$f":"Pendientes!$Q211-Pendientes!$B211","v":3},{"$f":"VLOOKUP(Pendientes!$AC211,Hoja1!A:B,2,TRUE)","v":"Entre 3 y 5 dias"}]
["MMC001 ",null,"Rodrigo",null,null,null,null,null,null,null,"Energia OK",null,null,"Planos OK 11-04-19","FIN",7000079334,"2019-04-12",null,null,null,null,null,null,"Sidaco",0,{"$error":"#N/A"},"MC001",{"$error":"#N/A"},{"$f":"Pendientes!$Q212-Pendientes!$B212","v":43567},{"$f":"VLOOKUP(Pendientes!$AC212,Hoja1!A:B,2,TRUE)","v":"Mas de 10 días"}]
["MMC004",null,null,null,null,null,null,null,null,null,null,null,null,null,"FIN",7000079482,"2019-03-29",null,null,null,null,null,null,"Sidaco",0,"Fin Semana 2 Mayo","MC004","905779-1",{"$f":"Pendientes!$Q213-Pendientes!$B213","v":43553},{"$f":"VLOOKUP(Pendientes!$AC213,Hoja1!A:B,2,TRUE)","v":"Mas de 10 días"}]
["MMC010",null,null,null,null,null,null,null,null,null,"Energia OK",null,null,"consultar a RDA por el cambio de antena , no hay el modelo pedido AQU4518R24, se pide verificar si se cambia por ODI2-065R16M18J-Q -----CATALOGO 2000019816","FIN",7000079922,"2019-04-25",null,null,"Quad Band + Activa",null,null,null,"CIS SRL",0,"Fin Semana 1 Mayo","MC010","1059059-1",{"$f":"Pendientes!$Q214-Pendientes!$B214","v":43580},{"$f":"VLOOKUP(Pendientes!$AC214,Hoja1!A:B,2,TRUE)","v":"Mas de 10 días"}]
["MMC016",null,"Rodrigo",null,null,null,null,null,null,null,null,null,null,"ok stock","FIN","7000079281/7000079300","2019-03-28",null,null,null,null,null,null,"Sidaco",0,"Fin Semana 2 Marzo","MC016","905780-1",{"$f":"Pendientes!$Q215-Pendientes!$B215","v":43552},{"$f":"VLOOKUP(Pendientes!$AC215,Hoja1!A:B,2,TRUE)","v":"Mas de 10 días"}]
["MMC017",null,null,null,null,null,null,null,null,null,null,null,null,null,"FIN",7000079483,"2019-03-29",null,null,null,null,null,null,"Sidaco",0,"Fuera de Plan","MC017","1059060-1",{"$f":"Pendientes!$Q216-Pendientes!$B216","v":43553},{"$f":"VLOOKUP(Pendientes!$AC216,Hoja1!A:B,2,TRUE)","v":"Mas de 10 días"}]
["MMC019",null,"Lucrecia",null,null,null,null,null,null,null,null,null,null,null,"FIN",7000079731,"2019-04-12",null,null,null,null,null,null,"Sidaco",0,"Fin Semana 4 Abril","MC019","1130675-1",{"$f":"Pendientes!$Q217-Pendientes!$B217","v":43567},{"$f":"VLOOKUP(Pendientes!$AC217,Hoja1!A:B,2,TRUE)","v":"Mas de 10 días"}]
["MMC025",null,"Rodrigo",null,null,null,null,null,null,null,null,null,null,"ok stock","FIN",7000079456,"2019-03-28",null,null,null,null,null,null,"Sidaco",0,"Fin Semana 1 Abril","MC025","905766-1",{"$f":"Pendientes!$Q218-Pendientes!$B218","v":43552},{"$f":"VLOOKUP(Pendientes!$AC218,Hoja1!A:B,2,TRUE)","v":"Mas de 10 días"}]
["MMC027",null,"Rodrigo",null,null,null,null,null,null,null,null,null,null,"ok stock","FIN",7000079457,"2019-03-28",null,null,null,null,null,null,"Sidaco",0,"Fin Semana 4 Abril","MC027","1059184-1",{"$f":"Pendientes!$Q219-Pendientes!$B219","v":43552},{"$f":"VLOOKUP(Pendientes!$AC219,Hoja1!A:B,2,TRUE)","v":"Mas de 10 días"}]
["MMC038",null,null,null,null,null,null,null,null,null,null,null,null,null,"FIN",7000079484,"2019-03-29",null,null,null,null,null,null,"Sidaco",0,"Fin Semana 4 Abril","MC038","905772-1",{"$f":"Pendientes!$Q220-Pendientes!$B220","v":43553},{"$f":"VLOOKUP(Pendientes!$AC220,Hoja1!A:B,2,TRUE)","v":"Mas de 10 días"}]
["MMC039",null,null,"Adelanto",null,null,null,null,null,null,null,null,null,null,"FIN",7000079341,"2019-04-04",null,null,null,null,null,null,"Sidaco",0,"Fin Semana 1 Abril","MC039","905781-1",{"$f":"Pendientes!$Q221-Pendientes!$B221","v":43559},{"$f":"VLOOKUP(Pendientes!$AC221,Hoja1!A:B,2,TRUE)","v":"Mas de 10 días"}]
["MMC064",null,null,"Adelanto",null,null,null,null,null,null,null,null,null,null,"FIN",7000079337,"2019-04-01",null,null,null,null,null,null,"Sidaco",0,"Fin Semana 1 Abril","MC064","1059062-1",{"$f":"Pendientes!$Q222-Pendientes!$B222","v":43556},{"$f":"VLOOKUP(Pendientes!$AC222,Hoja1!A:B,2,TRUE)","v":"Mas de 10 días"}]
["MMC065",null,null,"Adelanto",null,null,null,null,null,null,null,null,null,null,"FIN",7000079338,"2019-04-01",null,null,null,null,null,null,"Sidaco",0,"Fin Semana 1 Abril","MC065","905784-1",{"$f":"Pendientes!$Q223-Pendientes!$B223","v":43556},{"$f":"VLOOKUP(Pendientes!$AC223,Hoja1!A:B,2,TRUE)","v":"Mas de 10 días"}]
["MMC078","2019-04-30","Ricky","Alta","SI","NO","NO","NO","NO","NO","SI","NO","NO",null,"FIN",7000080057,"2019-05-03",null,null,"ODI2065R16M18JGQ - AAU3910","Nueva",null,null,"Sidaco","Prio 1","Fin Semana 2 Mayo","MC078","905785-1",{"$f":"Pendientes!$Q224-Pendientes!$B224","v":3},{"$f":"VLOOKUP(Pendientes!$AC224,Hoja1!A:B,2,TRUE)","v":"Entre 3 y 5 dias"}]
["MMC084","2019-04-25","Barbara","Adelanto",null,null,null,null,null,null,null,null,null,null,"FIN","7000079923 / 7000079900","2019-04-25",null,null,null,null,null,null,"CIS SRL",0,"Fin Semana 2 Mayo","MC084","905798-1",{"$f":"Pendientes!$Q225-Pendientes!$B225","v":0},{"$f":"VLOOKUP(Pendientes!$AC225,Hoja1!A:B,2,TRUE)","v":"en 24hs"}]
["MMC095","2/5/2019","Barbara","Alta","Si","No","No","No","No","No","Si","No","No","OK","FIN",7000080078,"2019-05-06","","FALTA STOCK DE DIPLEXORES, SE REDIMENCIONO CON OTRA SOLUCION","ODI2-065R16M18JG-Q","NUEVA",null,null,"CIS SRL",0,"Semana 3 Mayo","MC095","905789-1",{"$f":"Pendientes!$Q226-Pendientes!$B226","v":4},{"$f":"VLOOKUP(Pendientes!$AC226,Hoja1!A:B,2,TRUE)","v":"Entre 3 y 5 dias"}]
["MMC305","2019-05-02","Barbara","Alta","Si","NO","NO","NO","NO","NO","SI","NO","NO","sin complicaiones en la informacion","FIN",7000080158,"2019-05-08",null,"sin complicaiones en la informacion","ODI2-065R16M18J-GQ+AAUU3910",null,null,null,"CIS SRL",0,"Semana 3 Mayo","MC305","905799-1",{"$f":"Pendientes!$Q227-Pendientes!$B227","v":6},{"$f":"VLOOKUP(Pendientes!$AC227,Hoja1!A:B,2,TRUE)","v":"Entre 5 y 10 dias"}]
["MMC318","2019-04-30","Ricky","Alta","SI","NO","NO","NO","NO","NO","SI","NO","NO",null,"FIN",7000080058,"2019-05-03",null,null,"ODI2065R16M18JGQ - AAU3910","Nueva",null,null,"Sidaco","Prio 1","Fin Semana 2 Mayo","MC318","1059186-1",{"$f":"Pendientes!$Q228-Pendientes!$B228","v":3},{"$f":"VLOOKUP(Pendientes!$AC228,Hoja1!A:B,2,TRUE)","v":"Entre 3 y 5 dias"}]
["MMC330",null,"Barbara",null,null,null,null,null,null,null,null,null,null,"ing no cerrada fecha de fin 17 de abril - falta la ingenieria / falta Excel materiales","FIN",7000079826,"2019-04-23",null,null,"Sin planos / Validar modelo de antena x ODI2-065R16M18J-GQ/ Validar con Ingenieria ",null,null,null,"CIS SRL",0,"Fin Semana 4 Abril","MC330","1059188-1",{"$f":"Pendientes!$Q229-Pendientes!$B229","v":43578},{"$f":"VLOOKUP(Pendientes!$AC229,Hoja1!A:B,2,TRUE)","v":"Mas de 10 días"}]
["MMC355","2019-04-26","Ricky","Alta","NO","NO","NO","NO","NO","NO","NO","NO","NO","PENDIENTE INGENIERIA + ENERGIA - Espera a la ing del SMC355","FIN",7000080059,"2019-05-03",null,null,"ODI2065R16M18JGQ - AAU3910","Existente",null,null,"Sidaco",0,"Fin Semana 2 Mayo","MC355","905800-1",{"$f":"Pendientes!$Q230-Pendientes!$B230","v":7},{"$f":"VLOOKUP(Pendientes!$AC230,Hoja1!A:B,2,TRUE)","v":"Entre 5 y 10 dias"}]
["MMN016","30/4/2019","Ricky","Alta","Incompleto","No","No","No","No","No","Si","No","No","Antena existente","FIN",7000080084,"2019-05-06","","","ATR4518R6 ","Nueva",null,null,"Sidaco","Prio 1","Semana 3 Mayo","MN016","656815-1",{"$f":"Pendientes!$Q231-Pendientes!$B231","v":6},{"$f":"VLOOKUP(Pendientes!$AC231,Hoja1!A:B,2,TRUE)","v":"Entre 5 y 10 dias"}]
["MMN078","2019-04-29","Ricky","Alta","Si","No","No","No","No","No","Si","No","No",null,"FIN",7000079968,"2019-04-29",null,"Se cambia antena por ODI2065R16M18JGQ , en lugar de QUAD+Aactiva","ODI2-065R16M18J-GQ +  AAU3910","Nueva",null,"CIS SRL","CIS SRL",0,"Fin Semana 2 Mayo","MN078","905791-1",{"$f":"Pendientes!$Q232-Pendientes!$B232","v":0},{"$f":"VLOOKUP(Pendientes!$AC232,Hoja1!A:B,2,TRUE)","v":"en 24hs"}]
["MMS003",null,null,null,null,null,null,null,null,null,null,null,null,"ok stock","FIN",7000077204,"2019-03-18",null,null,"AQU4518R24",null,null,null,"Sidaco",0,"Fin Semana 2 Marzo","MS003","905809-1",{"$f":"Pendientes!$Q233-Pendientes!$B233","v":43542},{"$f":"VLOOKUP(Pendientes!$AC233,Hoja1!A:B,2,TRUE)","v":"Mas de 10 días"}]
["MMS004","2019-04-30","Ricky","Alta","Si","No","No","No","No","No","No","SI","No","PENDIENTE INGENIERIA","FIN",7000080061,"2019-05-03",null,null,"ODI2065R16M18JGQ - AAU3910","Existente",null,null,"Sidaco","Prio 1","Fin Semana 2 Mayo","MS004","840697-1",{"$f":"Pendientes!$Q234-Pendientes!$B234","v":3},{"$f":"VLOOKUP(Pendientes!$AC234,Hoja1!A:B,2,TRUE)","v":"Entre 3 y 5 dias"}]
["MMS012","2019-05-09","Barbara","Prio 3","Si","No","No","No","No","No","Si","Si","Si","14/05 FINALIZADA PENDIENTE DE CONFIRMACION CAMBIO DE RRU POR RDA. QUIEBRE DE STOCK UBBPE6","FIN",7000080253,"2019-05-14",null,null,"ODI2-065R16M18J-GQ+AAUU3910",null,null,null,"CIS SRL",null,"Semana 4 Mayo","MS012","905812-1",{"$f":"Pendientes!$Q235-Pendientes!$B235","v":5},{"$f":"VLOOKUP(Pendientes!$AC235,Hoja1!A:B,2,TRUE)","v":"Entre 5 y 10 dias"}]
["MMS025","2019-05-09","Ricky","Prio 3","No","No","No","No","No","No","No","No","No","14/5:No hay información en BPM","PENDIENTE INGENIERIA ",null,null,null,null,null,null,null,null,"Sidaco",null,"Semana 4 Mayo","MS025",null,{"$f":"Pendientes!$Q236-Pendientes!$B236","v":-43594},{"$f":"VLOOKUP(Pendientes!$AC236,Hoja1!A:B,2,TRUE)","v":{"$error":"#N/A"}}]
["MMS033","30/4/2019","Ricky","Alta","No","No","No","No","No","No","No","No","No","Se armo el pedido segun PDG de RDA","FIN",7000080083,"2019-05-06","","Se armo el pedido segun PDG de RDA","ODI2065R16M18JGQ ","Nueva",null,null,"Sidaco","Prio 1","Semana 3 Mayo","MS033","1059170-1",{"$f":"Pendientes!$Q237-Pendientes!$B237","v":6},{"$f":"VLOOKUP(Pendientes!$AC237,Hoja1!A:B,2,TRUE)","v":"Entre 5 y 10 dias"}]
["MMS036","2019-04-29","Rodrigo","Alta","Si","No","No","No","No","No","Si","No","No",null,"FIN",7000079966,"2019-04-29",null,"Se generó la SOLPE para cumplir con el sitio MS036. Para el sitio utilizar 2 (dos) de los 7 (siete) bancos de baterías enviados",null,"Nueva",null,null,"CIS SRL",0,"Fin Semana 2 Mayo","MS036","1059171-1",{"$f":"Pendientes!$Q238-Pendientes!$B238","v":0},{"$f":"VLOOKUP(Pendientes!$AC238,Hoja1!A:B,2,TRUE)","v":"en 24hs"}]
["MMS322","2019-04-30","Barbara","Alta","SI","NO","NO","NO","NO","NO","SI","NO","NO",null,"FIN",7000080032,"2019-05-03",null,"Las baterias deben tomarse de la solpe solpe 7000079999","ODI2-065R16M18J-GQ + AAUU3910",null,null,null,"CIS SRL","Prio 1","Fin Semana 2 Mayo","MS322","1059172-1",{"$f":"Pendientes!$Q239-Pendientes!$B239","v":3},{"$f":"VLOOKUP(Pendientes!$AC239,Hoja1!A:B,2,TRUE)","v":"Entre 3 y 5 dias"}]
["MOC009",null,"Lucrecia",null,null,null,null,null,null,null,null,null,null,null,"FIN",7000079854,"2019-03-29",null,null,null,null,null,"CIS SRL","CIS SRL",0,"Semana 3 Mayo","OC009","1302203-1",{"$f":"Pendientes!$Q240-Pendientes!$B240","v":43553},{"$f":"VLOOKUP(Pendientes!$AC240,Hoja1!A:B,2,TRUE)","v":"Mas de 10 días"}]
["MPC004","30/4/2019","Barbara","Alta","Si","No","No","No","No","No","Incompleto","No","No","Se debio ajustar la Fuerza. se consulta con Ing de Fuerza. Antena existente","FIN",7000080077,"2019-05-06","","","SBNHH1065A","Nueva",null,null,"CIS SRL","Prio 1","Semana 3 Mayo","PC004","1291142-1",{"$f":"Pendientes!$Q241-Pendientes!$B241","v":6},{"$f":"VLOOKUP(Pendientes!$AC241,Hoja1!A:B,2,TRUE)","v":"Entre 5 y 10 dias"}]
["MQC011","2019-03-11","Ricky",null,{"$error":"#N/A"},null,null,null,null,null,"Validar planilla 2017",null,null,"Adelanto Mario","FIN",69427,"2019-04-12",null,null,"TNA770A00RI",null,null,null,"Huawei",0,"Fin Semana 4 Abril","QC011","879117-1",{"$f":"Pendientes!$Q242-Pendientes!$B242","v":32},{"$f":"VLOOKUP(Pendientes!$AC242,Hoja1!A:B,2,TRUE)","v":"Mas de 10 días"}]
["MQC053",null,"Ricky",null,{"$error":"#N/A"},null,null,null,null,null,"Energia OK",null,null,"Adelanto Mario ( planos ingresaron 12/4/19)","FIN",69428,"2019-04-12",null,null,null,null,null,null,"Huawei",0,"Fin Semana 4 Abril","QC053","905794-1",{"$f":"Pendientes!$Q243-Pendientes!$B243","v":43567},{"$f":"VLOOKUP(Pendientes!$AC243,Hoja1!A:B,2,TRUE)","v":"Mas de 10 días"}]
["MQC058",null,"Ricky",null,{"$error":"#N/A"},null,null,null,null,null,null,null,null,"Adelanto Mario ","FIN",69433,"2019-04-12",null,null,"TNA770A00RI",null,null,null,"Huawei",0,"Fin Semana 1 Mayo","QC058","905679-1",{"$f":"Pendientes!$Q244-Pendientes!$B244","v":43567},{"$f":"VLOOKUP(Pendientes!$AC244,Hoja1!A:B,2,TRUE)","v":"Mas de 10 días"}]
["MQC346",null,"Rodrigo",null,null,null,null,null,null,null,null,null,null,null,"FIN","69136/7000079699","2019-04-11",null,null,null,null,null,null,"Huawei",0,"Fin Semana 2 Abril","QC346","905795-1",{"$f":"Pendientes!$Q245-Pendientes!$B245","v":43566},{"$f":"VLOOKUP(Pendientes!$AC245,Hoja1!A:B,2,TRUE)","v":"Mas de 10 días"}]
["MQCM12","2019-04-12","Ricky","Adelanto","No","No","No","No","No","No","No","SI","No","-          4 RRU’s 3262 de B28 (4T4R)","FIN",7000079869,"2019-04-24",null,"Materiales para Fri Music Neuquén - QCM12",null,null,null,null,"PEM",0,{"$error":"#N/A"},"QCM12",{"$error":"#N/A"},{"$f":"Pendientes!$Q246-Pendientes!$B246","v":12},{"$f":"VLOOKUP(Pendientes!$AC246,Hoja1!A:B,2,TRUE)","v":"Mas de 10 días"}]
["MQN084",null,"Pendiente",null,null,null,null,null,null,null,null,null,null,null,"A REASIGNAR CONTRATA",null,null,null,null,null,null,null,null,"Sin Asignacion",0,"Vaca Muerta","QN084","516209-1",{"$f":"Pendientes!$Q247-Pendientes!$B247","v":0},{"$f":"VLOOKUP(Pendientes!$AC247,Hoja1!A:B,2,TRUE)","v":"en 24hs"}]
["MQS313","2019-05-10","Ricky","Prio 2","NO","NO","NO","NO","NO","NO","SI","NO","NO","14/5: No coincide Ingeniería con PDG de RDA","PENDIENTE RDA",null,null,null,null,"AQU + DipB","Existente",null,null,"Sidaco",null,"Semana 4 Mayo","QS313","927842-1",{"$f":"Pendientes!$Q248-Pendientes!$B248","v":-43595},{"$f":"VLOOKUP(Pendientes!$AC248,Hoja1!A:B,2,TRUE)","v":{"$error":"#N/A"}}]
["MQW018",null,"RICKY",null,{"$error":"#N/A"},null,null,null,null,null,null,null,null,null,"FIN","7000079570 / 7000079573","2019-04-04",null,null,null,null,null,null,"PEM",0,"Fin Semana 2 Abril","QW018","916584-1",{"$f":"Pendientes!$Q249-Pendientes!$B249","v":43559},{"$f":"VLOOKUP(Pendientes!$AC249,Hoja1!A:B,2,TRUE)","v":"Mas de 10 días"}]
["MQW033",null,"Rodrigo",null,"Incompleto","No","No","NO","No","No","Incompleto","No","No","INGENIERIA","PENDIENTE INGENIERIA + ENERGIA",null,null,null,null,"ANTENA A DEFINIR",null,null,null,"Huawei",0,"Pendiente Ingeniería","QW033","905684-1",{"$f":"Pendientes!$Q250-Pendientes!$B250","v":0},{"$f":"VLOOKUP(Pendientes!$AC250,Hoja1!A:B,2,TRUE)","v":"en 24hs"}]
["MRC066",null,"Ricky",null,{"$error":"#N/A"},null,null,null,null,null,null,null,null,"Adelanto Mario","FIN",69451,"2019-04-12",null,null,null,null,null,null,"Huawei",0,{"$error":"#N/A"},"RC066",{"$error":"#N/A"},{"$f":"Pendientes!$Q251-Pendientes!$B251","v":43567},{"$f":"VLOOKUP(Pendientes!$AC251,Hoja1!A:B,2,TRUE)","v":"Mas de 10 días"}]
["MRE007",null,"Ricky",null,{"$error":"#N/A"},null,null,null,null,null,null,null,null,"Adelanto Mario","FIN",69452,"2019-04-12",null,null,"TNA770A00RI",null,null,null,"Huawei",0,"Fin Semana 4 Abril","RE007","1130613-1",{"$f":"Pendientes!$Q252-Pendientes!$B252","v":43567},{"$f":"VLOOKUP(Pendientes!$AC252,Hoja1!A:B,2,TRUE)","v":"Mas de 10 días"}]
["MRE024","2019-04-30","Barbara","Alta","Si","NO","NO","NO","NO","NO","SI","NO","NO",null,"FIN",7000080019,"2019-05-03",null,null,"ADU4518R7","Existente",null,"CIS SRL","CIS SRL","Prio 1","Fin Semana 2 Mayo","RE024","1252188-1",{"$f":"Pendientes!$Q253-Pendientes!$B253","v":3},{"$f":"VLOOKUP(Pendientes!$AC253,Hoja1!A:B,2,TRUE)","v":"Entre 3 y 5 dias"}]
["MRE308","2019-03-13","Ricky",null,{"$error":"#N/A"},null,null,null,null,null,null,null,null,"Adelanto Mario /Falta definición de antenas según PDG","FIN",69453,"2019-04-12",null,null,"En relevaniento, no estan las ingenierias",null,null,null,"Huawei",0,"Fin Semana 4 Abril","RE308","1130625-1",{"$f":"Pendientes!$Q254-Pendientes!$B254","v":30},{"$f":"VLOOKUP(Pendientes!$AC254,Hoja1!A:B,2,TRUE)","v":"Mas de 10 días"}]
["MRN001","2019-03-13","Rodrigo",null,null,null,null,null,null,null,null,null,null,"Falta definición de antenas según PDG","PENDIENTE INGENIERIA ",null,null,null,null,"En relevaniento, no estan las ingenierias",null,null,null,"Huawei",0,"Pendiente Ingeniería","RN001","905685-1",{"$f":"Pendientes!$Q255-Pendientes!$B255","v":-43537},{"$f":"VLOOKUP(Pendientes!$AC255,Hoja1!A:B,2,TRUE)","v":{"$error":"#N/A"}}]
["MRN009","2019-05-02","Rodrigo","Alta","No","Si","NO","No","No","NO","No","Si","NO",null,"FIN",7000080053,"2019-05-03",null,null,"ADU4518R7","Nueva",null,null,"Huawei","Prio 1","Fin Semana 2 Mayo","RN009",{"$error":"#N/A"},{"$f":"Pendientes!$Q256-Pendientes!$B256","v":1},{"$f":"VLOOKUP(Pendientes!$AC256,Hoja1!A:B,2,TRUE)","v":"en 24hs"}]
["MRN014",null,"Ricky",null,{"$error":"#N/A"},null,null,null,null,null,"falta definicion de ingenieria",null,null," Adelanto Mario","FIN",69436,"2019-04-12",null,null,"AAU3910 + Falta definir banda baja",null,null,null,"Huawei",0,"Fin Semana 4 Abril","RN014","905671-1",{"$f":"Pendientes!$Q257-Pendientes!$B257","v":43567},{"$f":"VLOOKUP(Pendientes!$AC257,Hoja1!A:B,2,TRUE)","v":"Mas de 10 días"}]
["MRN018","2019-04-29","Ricky","Alta",null,null,null,null,null,null,null,null,null,null,"FIN",7000080013,"2019-04-30",null,"Sale con ODI2065R16M18JGQ ","AQU4518R24",null,null,null,"Huawei",0,"Semana 3 Mayo","RN018","1302275-1",{"$f":"Pendientes!$Q258-Pendientes!$B258","v":1},{"$f":"VLOOKUP(Pendientes!$AC258,Hoja1!A:B,2,TRUE)","v":"en 24hs"}]
["MRN021","2019-05-02","Rodrigo","Adelanto","No","Si","No","No","No","No","No","No","No","PENDIENTE INGENIERIA - la fuerza es la subida para la contratista anterior . en BPM no hay ningun dato","FIN",7000080086,"2019-05-06","","El viernes 3/5 se recibio el DWG por mail","ADU4518R7 ","Nueva",null,null,"Huawei","Prio 1","Semana 4 Mayo","RN021","1302251-1",{"$f":"Pendientes!$Q259-Pendientes!$B259","v":4},{"$f":"VLOOKUP(Pendientes!$AC259,Hoja1!A:B,2,TRUE)","v":"Entre 3 y 5 dias"}]
["OKS228","2019-05-13","Rodrigo",null,"SI","NO","NO","Incompleto","NO","NO","NO","NO","NO","ING OK. FALTO PLANILA DE FUERZA EN BPM","FIN-A",7000080251,"2019-05-14",null,"Falta envio antena","TNA770A00RI","Existente",null,null,"Ericsson",null,"Semana 4 Mayo","KS228","901217-1",{"$f":"Pendientes!$Q260-Pendientes!$B260","v":1},{"$f":"VLOOKUP(Pendientes!$AC260,Hoja1!A:B,2,TRUE)","v":"en 24hs"}]
["MRN027","2019-03-13",null,null,null,null,null,null,null,null,null,null,null,"ok stock","FIN",7000079057,"2019-03-19",null,null,"AQU4518R24",null,null,null,"Tesur",0,"Fin Semana 2 Marzo","RN027","905672-1",{"$f":"Pendientes!$Q261-Pendientes!$B261","v":6},{"$f":"VLOOKUP(Pendientes!$AC261,Hoja1!A:B,2,TRUE)","v":"Entre 5 y 10 dias"}]
["OKS464","2019-05-13","Rodrigo",null,null,null,null,null,null,null,null,null,null,null,"TO DO",null,null,null,null,null,null,null,null,"Ericsson",null,"Semana 4 Mayo","KS464","901256-1",{"$f":"Pendientes!$Q262-Pendientes!$B262","v":-43598},{"$f":"VLOOKUP(Pendientes!$AC262,Hoja1!A:B,2,TRUE)","v":{"$error":"#N/A"}}]
["MRN063","2019-04-25","Lucrecia",null,null,null,null,null,null,null,null,null,null,null,"FIN",69602,"2019-04-26",null,null,null,null,null,null,"Huawei",0,"Fin Semana 1 Mayo","RN063","1302252-1",{"$f":"Pendientes!$Q263-Pendientes!$B263","v":1},{"$f":"VLOOKUP(Pendientes!$AC263,Hoja1!A:B,2,TRUE)","v":"en 24hs"}]
["MRN063","2019-04-29","Ricky","Alta",null,null,null,null,null,null,null,null,null,null,"FIN",7000080014,"2019-04-30",null,"6 ADU4518R7 + 6 DipB",null,null,null,null,"Huawei",0,"Fin Semana 1 Mayo","RN063","1302252-1",{"$f":"Pendientes!$Q264-Pendientes!$B264","v":1},{"$f":"VLOOKUP(Pendientes!$AC264,Hoja1!A:B,2,TRUE)","v":"en 24hs"}]
["MRN078","2019-03-11",null,null,null,null,null,null,null,null,"planilla ok 2019",null,null,"ok stock","FIN",7000079204,"2019-03-12",null,null,"RRZZ (AQU4518R24+ AAU3910)",null,null,null,"Sidaco",0,"Fin Semana 4 Marzo","RN078","888898-1",{"$f":"Pendientes!$Q265-Pendientes!$B265","v":1},{"$f":"VLOOKUP(Pendientes!$AC265,Hoja1!A:B,2,TRUE)","v":"en 24hs"}]
["MRN150","2019-04-29","Ricky","Alta",null,null,null,null,null,null,null,null,null,null,"FIN",7000080012,"2019-04-30",null,"Sale con ODI2065R16M18JGQ ","AQU4518R24",null,null,null,"Huawei",{"$error":"#N/A"},"Pendiente Ingeniería",{"$error":"#N/A"},{"$error":"#N/A"},{"$f":"Pendientes!$Q266-Pendientes!$B266","v":1},{"$f":"VLOOKUP(Pendientes!$AC266,Hoja1!A:B,2,TRUE)","v":"en 24hs"}]
["MRN344","2019-03-11",null,null,null,null,null,null,null,null,"Validar planilla 2016",null,null,"ok stock","FIN",7000079206,"2019-03-12",null,null,"Hexabanda Chica",null,null,null,"Sidaco",0,"Fin Semana 2 Marzo","RN344","922220-1",{"$f":"Pendientes!$Q267-Pendientes!$B267","v":1},{"$f":"VLOOKUP(Pendientes!$AC267,Hoja1!A:B,2,TRUE)","v":"en 24hs"}]
["MSR319",null,null,null,null,null,null,null,null,null,null,null,null,"ok stock","FIN",7000079309,"2019-03-18",null,null,"ODV-065R16M18JJG / 4000084591",null,null,null,"Sidaco",0,"Fin Semana 2 Marzo","SR319","1231046-1",{"$f":"Pendientes!$Q268-Pendientes!$B268","v":43542},{"$f":"VLOOKUP(Pendientes!$AC268,Hoja1!A:B,2,TRUE)","v":"Mas de 10 días"}]
["MSS148","2019-04-12","Barbara",null,null,null,null,null,null,null,"Energia OK",null,null,"Sitio en ejecucion con materiales informo Ruben Retamar","FIN",7000079200,"2019-04-23",null,null,"ATR4518R6",null,null,null,"CIS SRL",0,"Fin Semana 1 Mayo","SS148","842434-1",{"$f":"Pendientes!$Q269-Pendientes!$B269","v":11},{"$f":"VLOOKUP(Pendientes!$AC269,Hoja1!A:B,2,TRUE)","v":"Mas de 10 días"}]
["MTC032",null,null,null,null,null,null,null,null,null,"Energia OK",null,null,"Ingresaron los planos desde MI 12/04/19 - discrepancia entre DWG y PDG RDA","FIN",7000079795,"2019-04-17",null,null,"HExabanda grande o Hexabanda Chica?",null,null,null,"CIS SRL",0,"Fin Semana 1 Mayo","TC032","905546-1",{"$f":"Pendientes!$Q270-Pendientes!$B270","v":43572},{"$f":"VLOOKUP(Pendientes!$AC270,Hoja1!A:B,2,TRUE)","v":"Mas de 10 días"}]
["MTS040","2019-04-30","Barbara","Alta","SI","NO","NO","NO","NO","NO","SI","NO","NO",null,"FIN","7000080044 / 7000079900","2019-05-03",null,"Las baterias salen de la solpe 7000079900","ODI2065R16M18JG-Q","Nueva",null,null,"CIS SRL","Prio 1","Fin Semana 2 Mayo","TS040","1302292-1",{"$f":"Pendientes!$Q271-Pendientes!$B271","v":3},{"$f":"VLOOKUP(Pendientes!$AC271,Hoja1!A:B,2,TRUE)","v":"Entre 3 y 5 dias"}]
["MUW005","2019-03-11",null,null,null,null,null,null,null,null,null,null,null,"ok stock","FIN",7000079178,"2019-03-12",null,null,"ok hw, falta definicion energia",null,null,null,"Guzmán Nacich",0,"Fin Semana 2 Marzo","UW005","905695-1",{"$f":"Pendientes!$Q272-Pendientes!$B272","v":1},{"$f":"VLOOKUP(Pendientes!$AC272,Hoja1!A:B,2,TRUE)","v":"en 24hs"}]
["MUW009","2019-03-11","Rodrigo",null,null,null,null,null,null,null,null,null,null,"ok stock","FIN",7000079490,"2019-03-28",null,null,"TNA770A00RI",null,null,null,"Guzmán Nacich",0,"Fin Semana 1 Abril","UW009","1059095-1",{"$f":"Pendientes!$Q273-Pendientes!$B273","v":17},{"$f":"VLOOKUP(Pendientes!$AC273,Hoja1!A:B,2,TRUE)","v":"Mas de 10 días"}]
["MUW018","2019-03-11",null,null,null,null,null,null,null,null,null,null,null,"ok stock","FIN",7000079179,"2019-03-12",null,null,"ok hw, falta definicion energia",null,null,null,"Guzmán Nacich",0,"Fin Semana 2 Marzo","UW018","1059051-1",{"$f":"Pendientes!$Q274-Pendientes!$B274","v":1},{"$f":"VLOOKUP(Pendientes!$AC274,Hoja1!A:B,2,TRUE)","v":"en 24hs"}]
["MUW019","2019-04-29","Ricky","Alta","NO","NO","NO","NO","NO","NO","NO","NO","NO",null,"FIN",7000080015,"2019-04-30",null,"6 ADU4518R7 + 6 DipB",null,null,null,null,"Huawei",0,"Semana 3 Mayo","UW019","1252189-1",{"$f":"Pendientes!$Q275-Pendientes!$B275","v":1},{"$f":"VLOOKUP(Pendientes!$AC275,Hoja1!A:B,2,TRUE)","v":"en 24hs"}]
["MXC350",null,"Barbara",null,null,null,null,null,null,null,null,null,null,"sin stock","FIN","7000079755/7000079633","2019-04-15",null,null,"ASI4517R3v06 (Interior)",null,null,null,"CIS SRL",0,"Fin Semana 2 Mayo","XC350","1165297-1",{"$f":"Pendientes!$Q276-Pendientes!$B276","v":43570},{"$f":"VLOOKUP(Pendientes!$AC276,Hoja1!A:B,2,TRUE)","v":"Mas de 10 días"}]
["MXN023","2019-04-29","Ricky","Alta","Si","No","No","No","No","No","Si","No","No","Sin RRZZ-65B-R4","FIN",7000079969,"2019-04-29",null,"Se reemplaza antena por ODI2065R16M18JGQ","RRZZ-65B-R4","Nueva",null,null,"CIS SRL",0,"Fin Semana 2 Mayo","XN023","1059219-1",{"$f":"Pendientes!$Q277-Pendientes!$B277","v":0},{"$f":"VLOOKUP(Pendientes!$AC277,Hoja1!A:B,2,TRUE)","v":"en 24hs"}]
["MXN108","2019-04-25","Lucrecia",null,null,null,null,null,null,null,null,null,null,null,"FIN",7000079939,"2019-04-26",null,null,null,null,null,null,"CIS SRL",0,"Fin Semana 2 Mayo","XN108","1130587-1",{"$f":"Pendientes!$Q278-Pendientes!$B278","v":1},{"$f":"VLOOKUP(Pendientes!$AC278,Hoja1!A:B,2,TRUE)","v":"en 24hs"}]
["MXS027",null,"Lucrecia",null,null,null,null,null,null,null,null,null,null,null,"FIN","7000079874/7000079875","2019-04-24",null,null,null,null,null,null,"Sidaco",0,"Fin Semana 1 Mayo","XS027","1302279-1",{"$f":"Pendientes!$Q279-Pendientes!$B279","v":43579},{"$f":"VLOOKUP(Pendientes!$AC279,Hoja1!A:B,2,TRUE)","v":"Mas de 10 días"}]
["MXS048",null,"Lucrecia",null,null,null,null,null,null,null,null,null,null,null,"FIN","7000079884/7000079883","2019-04-24",null,null,null,null,null,null,"Sidaco",0,"Fin Semana 1 Mayo","XS048","1302226-1",{"$f":"Pendientes!$Q280-Pendientes!$B280","v":43579},{"$f":"VLOOKUP(Pendientes!$AC280,Hoja1!A:B,2,TRUE)","v":"Mas de 10 días"}]
["MXS089",null,"Barbara",null,"SI","NO","NO","NO","NO","NO","SI","NO","NO",null,"FIN-A",7000080100,"2019-05-07",null,"FALTA SOLPE POR ANTENAS POR FALTA DE STOCK","FALTA ANTENA",null,null,null,"CIS SRL","Prio 1","Semana 3 Mayo","XS089",{"$error":"#N/A"},{"$f":"Pendientes!$Q281-Pendientes!$B281","v":43592},{"$f":"VLOOKUP(Pendientes!$AC281,Hoja1!A:B,2,TRUE)","v":"Mas de 10 días"}]
["MXW107",null,null,null,null,null,null,null,null,null,null,null,null,null,"FIN",7000079634,"2019-04-08",null,null,"Ant RRZZ-65B-R4",null,null,null,"CIS SRL",0,"Fin Semana 4 Abril","XW107","1263087-1",{"$f":"Pendientes!$Q282-Pendientes!$B282","v":43563},{"$f":"VLOOKUP(Pendientes!$AC282,Hoja1!A:B,2,TRUE)","v":"Mas de 10 días"}]
["MXW133",null,"Barbara","Adelanto",null,null,null,null,null,null,null,null,null,null,"FIN","7000079901/7000079902","2019-04-25","","","","",null,null,"CIS SRL",0,"Fin Semana 2 Mayo","XW133","1130668-1",{"$f":"Pendientes!$Q283-Pendientes!$B283","v":43580},{"$f":"VLOOKUP(Pendientes!$AC283,Hoja1!A:B,2,TRUE)","v":"Mas de 10 días"}]
["MXW162","2019-04-25","Ricky","Alta","Si","No","No","No","No","No","SI","No","No","2000020483 Ant Hexabanda Grande HUAWEI ASI4517R3v06 (Sin stock hasta la semana que viene)","FIN",7000080000,"2019-04-29",null,"Se hace el pedido sin antena","ASI4517R3","Existente",null,null,"Sidaco",0,"Fin Semana 2 Mayo","XW162","1291006-1",{"$f":"Pendientes!$Q284-Pendientes!$B284","v":4},{"$f":"VLOOKUP(Pendientes!$AC284,Hoja1!A:B,2,TRUE)","v":"Entre 3 y 5 dias"}]
["MXW332","2019-04-30","Barbara","Alta","SI","NO","NO","NO","NO","NO","SI","NO","NO",null,"FIN",7000080035,"2019-05-03",null,null,"ODI2-065R16M18JG-Q","Existente",null,null,"CIS SRL","Prio 1","Fin Semana 2 Mayo","XW332","1290922-1",{"$f":"Pendientes!$Q285-Pendientes!$B285","v":3},{"$f":"VLOOKUP(Pendientes!$AC285,Hoja1!A:B,2,TRUE)","v":"Entre 3 y 5 dias"}]
["MZC015",null,"Lucrecia",null,null,null,null,null,null,null,null,null,null,null,"FIN",7000079856,"2019-04-23",null,null,null,null,null,"CIS SRL","CIS SRL",0,"Semana 3 Mayo","ZC015","1302349-1",{"$f":"Pendientes!$Q286-Pendientes!$B286","v":43578},{"$f":"VLOOKUP(Pendientes!$AC286,Hoja1!A:B,2,TRUE)","v":"Mas de 10 días"}]
["MZC024",null,"Rodrigo",null,null,null,null,null,null,null,"fuerza OK",null,null,"Planos OK  - 2G 1900 NO FIGURA EN PDG","FIN","7000079763/ 7000079657","2019-04-15",null,null,null,null,null,null,"Sidaco",0,"Fin Semana 2 Mayo","ZC024","1241703-1",{"$f":"Pendientes!$Q287-Pendientes!$B287","v":43570},{"$f":"VLOOKUP(Pendientes!$AC287,Hoja1!A:B,2,TRUE)","v":"Mas de 10 días"}]
["MZW012","2019-04-29","Barbara","Alta",null,null,null,null,null,null,null,null,null,null,"FIN-A",7000080017,"2019-05-02",null,"FALTA SOLPE POR ANTENAS POR FALTA DE STOCK","ASI4517R3v06","Nueva",null,null,"CIS SRL","Prio 1","Ver Planificación Renta TECO","ZW012","1302351-1",{"$f":"Pendientes!$Q288-Pendientes!$B288","v":3},{"$f":"VLOOKUP(Pendientes!$AC288,Hoja1!A:B,2,TRUE)","v":"Entre 3 y 5 dias"}]
["MZW025","2019-05-09","Cristian","PRIO 1",null,null,null,null,null,null,null,null,null,null,"TO DO",null,null,null,null,null,null,null,null,"Multiradio",null,"Semana 4 Mayo","ZW025","1302281-1",{"$f":"Pendientes!$Q289-Pendientes!$B289","v":-43594},{"$f":"VLOOKUP(Pendientes!$AC289,Hoja1!A:B,2,TRUE)","v":{"$error":"#N/A"}}]
["NBM141","2019-04-25","Barbara",null,null,null,null,null,null,null,null,null,null,null,"FIN",7000079918,"2019-04-26",null,null,null,"Nueva",null,null,"Ericsson",0,"Semana 3 Mayo","BM141","1317140-1",{"$f":"Pendientes!$Q290-Pendientes!$B290","v":1},{"$f":"VLOOKUP(Pendientes!$AC290,Hoja1!A:B,2,TRUE)","v":"en 24hs"}]
["NBN036",null,"Rodrigo",null,null,null,null,null,null,null,null,null,null,"HW 1900 SIN STOCK","PENDIENTE RDA",null,null,null,null,null,null,null,null,"Ericsson","Sin hw","Falta HW 1900","BN036","860032-1",{"$f":"Pendientes!$Q291-Pendientes!$B291","v":0},{"$f":"VLOOKUP(Pendientes!$AC291,Hoja1!A:B,2,TRUE)","v":"en 24hs"}]
["NBN901",null,null,null,null,null,null,null,null,null,null,null,null,"Sin stock","FIN",7000079430,"2019-03-25",null,null,"TNA770A00RI",null,null,"CIS SRL","CIS SRL","Sin hw","Falta HW 1900","BN901","1261092-1",{"$f":"Pendientes!$Q292-Pendientes!$B292","v":43549},{"$f":"VLOOKUP(Pendientes!$AC292,Hoja1!A:B,2,TRUE)","v":"Mas de 10 días"}]
["NBO001",null,"Ricky",null,null,null,null,null,null,null,null,null,null,"HW 1900 SIN STOCK","PENDIENTE RDA",null,null,null,null,null,{"$error":"#N/A"},null,null,"Sidaco","Sin hw","Falta HW 1900","BO001","695446-1",{"$f":"Pendientes!$Q293-Pendientes!$B293","v":0},{"$f":"VLOOKUP(Pendientes!$AC293,Hoja1!A:B,2,TRUE)","v":"en 24hs"}]
["NBO099",null,"Ricky",null,null,null,null,null,null,null,null,null,null,"HW 1900 SIN STOCK","PENDIENTE RDA",null,null,null,null,null,{"$error":"#N/A"},null,null,"Sidaco","Sin hw","Falta HW 1900","BO099","905420-1",{"$f":"Pendientes!$Q294-Pendientes!$B294","v":0},{"$f":"VLOOKUP(Pendientes!$AC294,Hoja1!A:B,2,TRUE)","v":"en 24hs"}]
["NBO106",null,"Rodrigo",null,null,null,null,null,null,null,null,null,null,"HW 1900 SIN STOCK","PENDIENTE RDA",null,null,null,null,null,null,null,null,"Ericsson","Sin hw","Falta HW 1900","BO106","695491-1",{"$f":"Pendientes!$Q295-Pendientes!$B295","v":0},{"$f":"VLOOKUP(Pendientes!$AC295,Hoja1!A:B,2,TRUE)","v":"en 24hs"}]
["NBS160",null,"Ricky",null,"SI","NO","NO","NO","NO","NO","SI","NO","NO","se conecta a planta existente/ Hexa que ingresan 140 unidades el 15 de Abril","SIN STOCK",null,null,null,null,"ODI2-065R16MJJ-GQ ( Hexa grande)",{"$error":"#N/A"},null,null,"Sidaco","Sin hw","Falta HW 1900","BS160","1255038-1",{"$f":"Pendientes!$Q296-Pendientes!$B296","v":0},{"$f":"VLOOKUP(Pendientes!$AC296,Hoja1!A:B,2,TRUE)","v":"en 24hs"}]
["NCN060",null,"Pendiente",null,null,null,null,null,null,null,null,null,null,"sin dwg/ sin hw 1900","A REASIGNAR CONTRATA",null,null,null,null,null,null,null,null,"ICS","Sin hw","Falta HW 1900","CN060","860054-1",{"$f":"Pendientes!$Q297-Pendientes!$B297","v":0},{"$f":"VLOOKUP(Pendientes!$AC297,Hoja1!A:B,2,TRUE)","v":"en 24hs"}]
["NCN129",null,"Rodrigo",null,null,null,null,null,null,null,null,null,null,"HW 1900 SIN STOCK","PENDIENTE RDA",null,null,null,null,null,null,null,null,"Ericsson","Sin hw","Semana 1 Junio","CN129","860078-1",{"$f":"Pendientes!$Q298-Pendientes!$B298","v":0},{"$f":"VLOOKUP(Pendientes!$AC298,Hoja1!A:B,2,TRUE)","v":"en 24hs"}]
["NCN493",null,"Rodrigo",null,null,null,null,null,null,null,null,null,null,"HW 1900 SIN STOCK","PENDIENTE RDA",null,null,null,null,null,null,null,null,"Ericsson","Sin hw","Falta HW 1900","CN493","905013-1",{"$f":"Pendientes!$Q299-Pendientes!$B299","v":0},{"$f":"VLOOKUP(Pendientes!$AC299,Hoja1!A:B,2,TRUE)","v":"en 24hs"}]
["NCS330",null,null,"Adelanto",null,null,null,null,null,null,null,null,null,null,"FIN",7000078990,"2019-04-01",null,null,null,null,null,null,"Tesur",0,"Falta HW 1900","CS330","-",{"$f":"Pendientes!$Q300-Pendientes!$B300","v":43556},{"$f":"VLOOKUP(Pendientes!$AC300,Hoja1!A:B,2,TRUE)","v":"Mas de 10 días"}]
["NCS352",null,"Lucrecia","Adelanto",null,null,null,null,null,null,null,null,null,"no contamos con ninguna definicion para emitir la SOLPE","FIN","69396 /7000079681","2019-04-10",null,"Pedido HW CS352 Telxius","\"Antena a definir por RDA\"",null,null,null,"Telxius",0,{"$error":"#N/A"},"CS352",{"$error":"#N/A"},{"$f":"Pendientes!$Q301-Pendientes!$B301","v":43565},{"$f":"VLOOKUP(Pendientes!$AC301,Hoja1!A:B,2,TRUE)","v":"Mas de 10 días"}]
["NCU072","2019-05-09","Ricky","Prio 3",null,null,null,null,null,null,null,null,null,null,"TO DO",null,null,null,null,null,null,null,null,"Sidaco",null,"Fin Semana 1 Mayo","CU072","1254921-1",{"$f":"Pendientes!$Q302-Pendientes!$B302","v":-43594},{"$f":"VLOOKUP(Pendientes!$AC302,Hoja1!A:B,2,TRUE)","v":{"$error":"#N/A"}}]
["NKN082",null,"Rodrigo",null,null,null,null,null,null,null,null,null,null,"HW 1900 SIN STOCK","PENDIENTE RDA",null,null,null,null,null,null,null,null,"Ericsson","Sin hw","Falta HW 1900","KN082","905241-1",{"$f":"Pendientes!$Q303-Pendientes!$B303","v":0},{"$f":"VLOOKUP(Pendientes!$AC303,Hoja1!A:B,2,TRUE)","v":"en 24hs"}]
["NKO046",null,"Ricky",null,null,null,null,null,null,null,null,null,null,"HW 1900 SIN STOCK","PENDIENTE RDA",{"$error":"#N/A"},null,null,{"$error":"#N/A"},null,{"$error":"#N/A"},null,null,"Sidaco","Sin hw","Falta HW 1900","KO046","860105-1",{"$f":"Pendientes!$Q304-Pendientes!$B304","v":0},{"$f":"VLOOKUP(Pendientes!$AC304,Hoja1!A:B,2,TRUE)","v":"en 24hs"}]
["NKS005",null,"Rodrigo",null,null,null,null,null,null,null,null,null,null,"HW 1900 SIN STOCK","PENDIENTE RDA",null,null,null,null,null,null,null,null,"Ericsson","Sin hw","Falta HW 1900","KS005","695789-1",{"$f":"Pendientes!$Q305-Pendientes!$B305","v":0},{"$f":"VLOOKUP(Pendientes!$AC305,Hoja1!A:B,2,TRUE)","v":"en 24hs"}]
["NKS050",null,"Ricky",null,null,null,null,null,null,null,null,{"$error":"#N/A"},null,"a verificar estructura por cambio de antena AIR32 x HEXA","SIN STOCK",{"$error":"#N/A"},null,null,{"$error":"#N/A"},"Cambia AIR32 x Hexabanda ASI4517R3v06",{"$error":"#N/A"},null,null,"Sidaco","Prio 3","Semana 1 Junio","KS050","1255211-1",{"$f":"Pendientes!$Q306-Pendientes!$B306","v":0},{"$f":"VLOOKUP(Pendientes!$AC306,Hoja1!A:B,2,TRUE)","v":"en 24hs"}]
["NKS057",null,"Rodrigo",null,null,null,null,null,null,null,null,null,null,"HW 1900 SIN STOCK","PENDIENTE RDA",null,null,null,null,null,null,null,null,"Ericsson","Sin hw","Falta HW 1900","KS057","905281-1",{"$f":"Pendientes!$Q307-Pendientes!$B307","v":0},{"$f":"VLOOKUP(Pendientes!$AC307,Hoja1!A:B,2,TRUE)","v":"en 24hs"}]
["NKS310","2019-03-13",null,null,null,null,null,null,null,null," energia OK / Tribanda",null,null,"sin stock","FIN",7000079398,"2019-03-21",null,null,"ODV-065R14M17JJG= 2000012532/2000012416/4000085241",null,null,null,"Sidaco",0,"Revisión Ing Fin","KS310","1255349-1",{"$f":"Pendientes!$Q308-Pendientes!$B308","v":8},{"$f":"VLOOKUP(Pendientes!$AC308,Hoja1!A:B,2,TRUE)","v":"Entre 5 y 10 dias"}]
["NKS461",null,"Rodrigo",null,null,null,null,null,null,null,null,null,null,"HW 1900 SIN STOCK","PENDIENTE RDA",null,null,null,null,null,null,null,null,"Ericsson","Sin hw","Falta HW 1900","KS461","695869-1",{"$f":"Pendientes!$Q309-Pendientes!$B309","v":0},{"$f":"VLOOKUP(Pendientes!$AC309,Hoja1!A:B,2,TRUE)","v":"en 24hs"}]
["OBN131",null,"Ricky / Finalizado",null,{"$error":"#N/A"},null,null,null,null,null,null,{"$error":"#N/A"},null,"Sin Stock","SIN STOCK",{"$error":"#N/A"},null,null,{"$error":"#N/A"},"ODI2-065R16MJJ-GQ ( Hexa grande)",{"$error":"#N/A"},null,null,"Sidaco","Prio 2","Semana 4 Mayo","BN131","1255383-1",{"$f":"Pendientes!$Q310-Pendientes!$B310","v":0},{"$f":"VLOOKUP(Pendientes!$AC310,Hoja1!A:B,2,TRUE)","v":"en 24hs"}]
["OBN135",null,"Ricky",null,{"$error":"#N/A"},null,null,null,null,null,"SI",{"$error":"#N/A"},null,"Llego ingenieria de MI 12-4-19","SIN STOCK",{"$error":"#N/A"},null,null,{"$error":"#N/A"},"ODI2-065R16MJJ-GQ ( Hexa grande)",{"$error":"#N/A"},null,null,"Sidaco","Prio 2","Semana 4 Mayo","BN135","1255384-1",{"$f":"Pendientes!$Q311-Pendientes!$B311","v":0},{"$f":"VLOOKUP(Pendientes!$AC311,Hoja1!A:B,2,TRUE)","v":"en 24hs"}]
["OBN163",null,"Lucrecia",null,null,null,null,null,null,null,null,null,null,"sin stock","FIN",7000079657,"2019-04-09",null,null,"AIR32",null,null,null,"Sidaco",0,"Fin Semana 4 Abril","BN163","1255385-1",{"$f":"Pendientes!$Q312-Pendientes!$B312","v":43564},{"$f":"VLOOKUP(Pendientes!$AC312,Hoja1!A:B,2,TRUE)","v":"Mas de 10 días"}]
["OBN180",null,"Ricky",null,{"$error":"#N/A"},null,null,null,null,null,"SI",{"$error":"#N/A"},null,null,"SIN STOCK",{"$error":"#N/A"},null,null,{"$error":"#N/A"},"ODI2-065R16MJJ-GQ ( Hexa grande)",{"$error":"#N/A"},null,null,"Sidaco",0,"Fin Semana 2 Abril","BN180","1255217-1",{"$f":"Pendientes!$Q313-Pendientes!$B313","v":0},{"$f":"VLOOKUP(Pendientes!$AC313,Hoja1!A:B,2,TRUE)","v":"en 24hs"}]
["OBN273",null,"Lucrecia",null,null,null,null,null,null,null,null,null,null,null,"FIN",7000079541,"2019-04-01",null,null,"ODV-065R16M18J-G",null,null,null,"Sidaco",0,"Fin Semana 4 Abril","BN273","1255219-1",{"$f":"Pendientes!$Q314-Pendientes!$B314","v":43556},{"$f":"VLOOKUP(Pendientes!$AC314,Hoja1!A:B,2,TRUE)","v":"Mas de 10 días"}]
["OBN327",null,"Rodrigo",null,null,null,null,null,null,null,null,null,null,null,"FIN",7000079626,"2019-04-08",null,null,null,null,null,null,"Sidaco",0,"Fin Semana 4 Abril","BN327","1255094-1",{"$f":"Pendientes!$Q315-Pendientes!$B315","v":43563},{"$f":"VLOOKUP(Pendientes!$AC315,Hoja1!A:B,2,TRUE)","v":"Mas de 10 días"}]
["OBO013","2019-04-25","Lucrecia","Alta","NO","SI","NO","NO","NO","NO","NO","SI","NO","DWG Desactualizado - SE RECIBE MAIL 3/5/19 CON PLANOS Y FUERZA","FIN",7000080134,"2019-05-08",null,"Ingenieria incompleta, se pedia instalar 1900","ODV065R16M18JJG","Nueva",null,null,"PEM","Prio 1","Semana 3 Mayo","BO013","1100979-1",{"$f":"Pendientes!$Q316-Pendientes!$B316","v":13},{"$f":"VLOOKUP(Pendientes!$AC316,Hoja1!A:B,2,TRUE)","v":"Mas de 10 días"}]
["OBO055","2019-04-30","Barbara","Alta","Si","No","No","No","No","No","No","No","No",null,"FIN-A",7000080040,"2019-05-03",null,"Reutilizar cabinas existentes, se debe agregar un modulo al gabinete ZTE el cual lo provee el equipo de energía en el piso 6 del Edificio República ","ASI4517R3V06","Nueva",null,"CIS SRL","CIS SRL","Prio 1","Semana 3 Mayo","BO055","1255479-1",{"$f":"Pendientes!$Q317-Pendientes!$B317","v":3},{"$f":"VLOOKUP(Pendientes!$AC317,Hoja1!A:B,2,TRUE)","v":"Entre 3 y 5 dias"}]
["OBO096","2019-03-11","Lucrecia",null,null,null,null,null,null,null,"Energia OK",null,null,"ok stock","FIN","7000079758/7000079648","2019-04-16",null,"sale con AIR32 de TESUR","AIR32",null,null,null,"Sidaco",0,"Fin Semana 1 Mayo","BO096","900941-1",{"$f":"Pendientes!$Q318-Pendientes!$B318","v":36},{"$f":"VLOOKUP(Pendientes!$AC318,Hoja1!A:B,2,TRUE)","v":"Mas de 10 días"}]
["OBO133","2019-05-02","Barbara","Alta","SI","No","No","No","No","No","No","No","No",null,"FIN-A",7000080027,"2019-05-03",null,"Queda pendiente solpe para la antena.","ASI4517R3v06","Nueva",null,"CIS SRL","CIS SRL","Prio 1","Semana 3 Mayo","BO133","1255230-1",{"$f":"Pendientes!$Q319-Pendientes!$B319","v":1},{"$f":"VLOOKUP(Pendientes!$AC319,Hoja1!A:B,2,TRUE)","v":"en 24hs"}]
["OBO135",null,"Lucrecia",null,null,null,null,null,null,null,"Energia OK",null,null,null,"FIN",7000079783,"2019-04-17",null,null,"ASI4517R3V06",null,null,null,"CIS SRL",0,"Semana 3 Mayo","BO135","1255291-1",{"$f":"Pendientes!$Q320-Pendientes!$B320","v":43572},{"$f":"VLOOKUP(Pendientes!$AC320,Hoja1!A:B,2,TRUE)","v":"Mas de 10 días"}]
["OBO153",null,"Lucrecia",null,null,null,null,null,null,null,"Energia OK",null,null,null,"FIN",7000079826,"2019-04-22",null,null,"ASI4517R3V06",null,null,null,"CIS SRL",0,"Fin Semana 1 Mayo","BO153","1255098-1",{"$f":"Pendientes!$Q321-Pendientes!$B321","v":43577},{"$f":"VLOOKUP(Pendientes!$AC321,Hoja1!A:B,2,TRUE)","v":"Mas de 10 días"}]
["OBO185","2019-04-29","Barbara","Alta",null,null,null,null,null,null,null,null,null,null,"FIN-A",7000079985,"2019-05-02",null,"FALTA SOLPE POR ANTENAS POR FALTA DE STOCK",null,null,null,"CIS SRL","CIS SRL","Prio 2","Semana 3 Mayo","BO185","1255482-1",{"$f":"Pendientes!$Q322-Pendientes!$B322","v":3},{"$f":"VLOOKUP(Pendientes!$AC322,Hoja1!A:B,2,TRUE)","v":"Entre 3 y 5 dias"}]
["OBO430",null,"Ricky",null,{"$error":"#N/A"},null,null,null,null,null,"SI",{"$error":"#N/A"},null,"mc condicionante se cierra semana 22 de abril","SIN STOCK",{"$error":"#N/A"},null,null,{"$error":"#N/A"},"ODI2-065R16MJJ-GQ ( Hexa grande)","Existente",null,null,"Sidaco",0,"Fin Semana 2 Abril","BO430","1254925-1",{"$f":"Pendientes!$Q323-Pendientes!$B323","v":0},{"$f":"VLOOKUP(Pendientes!$AC323,Hoja1!A:B,2,TRUE)","v":"en 24hs"}]
["OBS036",null,"Lucrecia",null,null,null,null,null,null,null,"OK",null,null,"No Liberado es operadora","FIN",7000079835,"2019-04-22",null,null,"Requiere antena AIR32, sin stock./ cambia por ASI4517R3v06",null,null,null,"Sidaco",0,"Pendiente Ingeniería","BS036","1255231-1",{"$f":"Pendientes!$Q324-Pendientes!$B324","v":43577},{"$f":"VLOOKUP(Pendientes!$AC324,Hoja1!A:B,2,TRUE)","v":"Mas de 10 días"}]
["OBS043",null,"Rodrigo",null,null,null,null,null,null,null,null,null,null,"Figura \"suspendido\" por SEGOBRA / se envio parte del hw","SITIOS",null,null,null,null,null,null,null,null,"Ericsson","Prio 3","Semana 1 Junio","BS043","901018-1",{"$f":"Pendientes!$Q325-Pendientes!$B325","v":0},{"$f":"VLOOKUP(Pendientes!$AC325,Hoja1!A:B,2,TRUE)","v":"en 24hs"}]
["OBS085",null,"Ricky",null,{"$error":"#N/A"},null,null,null,null,null,null,{"$error":"#N/A"},null,"discrepancias entre planilla y plano / AIR32","PENDIENTE RDA",{"$error":"#N/A"},null,null,{"$error":"#N/A"},"AIR32=? ODI2",{"$error":"#N/A"},null,null,"Sidaco",0,"Fin Semana 2 Abril","BS085","1255236-1",{"$f":"Pendientes!$Q326-Pendientes!$B326","v":0},{"$f":"VLOOKUP(Pendientes!$AC326,Hoja1!A:B,2,TRUE)","v":"en 24hs"}]
["OBS096",null,"Ricky",null,null,null,null,null,null,null,"OK",null,null,"faltan planos","SIN STOCK",null,null,null,null,"TNA770A00RI",null,null,null,"Sidaco","Prio 2","Semana 4 Mayo","BS096","1255147-1",{"$f":"Pendientes!$Q327-Pendientes!$B327","v":0},{"$f":"VLOOKUP(Pendientes!$AC327,Hoja1!A:B,2,TRUE)","v":"en 24hs"}]
["OBS104",null,"Ricky",null,null,null,null,null,null,null,"OK",null,null,"sin stock","SIN STOCK",null,null,null,null,"TNA770A00RI",null,null,null,"Sidaco","Prio 3","Semana 1 Junio","BS104","1255086-1",{"$f":"Pendientes!$Q328-Pendientes!$B328","v":0},{"$f":"VLOOKUP(Pendientes!$AC328,Hoja1!A:B,2,TRUE)","v":"en 24hs"}]
["OBS123","2019-04-30","Ricky",null,"SI","NO","NO","Incompleto","NO","NO","SI","NO","NO",null,"FIN",7000080142,"2019-05-07",null,"DC3 + Sec + 2BB2","Ant existentes + 3 DipA2","Nueva",null,null,"Sidaco","Prio 1","Semana 3 Mayo","BS123","1255326-1",{"$f":"Pendientes!$Q329-Pendientes!$B329","v":7},{"$f":"VLOOKUP(Pendientes!$AC329,Hoja1!A:B,2,TRUE)","v":"Entre 5 y 10 dias"}]
["OBS129",null,"Ricky",null,{"$error":"#N/A"},null,null,null,null,null,"fuerza ok",{"$error":"#N/A"},null,"Planos OK / TO DO / Hexa que ingresan 140 unidades el 15 de Abril","SIN STOCK",{"$error":"#N/A"},null,null,{"$error":"#N/A"},"ODI2-065R16MJJ-GQ ( Hexa grande)",{"$error":"#N/A"},null,null,"Sidaco",0,"Fin Semana 4 Abril","BS129","1255238-1",{"$f":"Pendientes!$Q330-Pendientes!$B330","v":0},{"$f":"VLOOKUP(Pendientes!$AC330,Hoja1!A:B,2,TRUE)","v":"en 24hs"}]
["OBS136",null,"Ricky",null,{"$error":"#N/A"},null,null,null,null,null,null,{"$error":"#N/A"},null,"mc condicionante se cierra semana 22 de abril","SIN STOCK",{"$error":"#N/A"},null,null,{"$error":"#N/A"},"ODI2-065R16MJJ-GQ ( Hexa grande)",{"$error":"#N/A"},null,null,"Sidaco",0,"Pendiente Ingeniería","BS136","1255148-1",{"$f":"Pendientes!$Q331-Pendientes!$B331","v":0},{"$f":"VLOOKUP(Pendientes!$AC331,Hoja1!A:B,2,TRUE)","v":"en 24hs"}]
["OBS155",null,"Ricky",null,{"$error":"#N/A"},null,null,null,null,null,"ok fuerza",{"$error":"#N/A"},null,"Sin Stock","SIN STOCK",{"$error":"#N/A"},null,null,{"$error":"#N/A"},"ODI2-065R16MJJ-GQ ( Hexa grande)",{"$error":"#N/A"},null,null,"Sidaco","Prio 2","Semana 4 Mayo","BS155","1254993-1",{"$f":"Pendientes!$Q332-Pendientes!$B332","v":0},{"$f":"VLOOKUP(Pendientes!$AC332,Hoja1!A:B,2,TRUE)","v":"en 24hs"}]
["OBS160",null,"Ricky",null,{"$error":"#N/A"},null,null,null,null,null,"se conecta a planta existente",{"$error":"#N/A"},null,"TO DO / Hexa que ingresan 140 unidades el 15 de Abril","SIN STOCK",{"$error":"#N/A"},null,null,{"$error":"#N/A"},"ODI2-065R16MJJ-GQ ( Hexa grande)",{"$error":"#N/A"},null,null,"Sidaco",0,"Fin Semana 2 Abril","BS160","1255087-1",{"$f":"Pendientes!$Q333-Pendientes!$B333","v":0},{"$f":"VLOOKUP(Pendientes!$AC333,Hoja1!A:B,2,TRUE)","v":"en 24hs"}]
["OBS169",null,"Ricky",null,null,null,null,null,null,null,null,null,null,"sin stock","SIN STOCK",null,null,null,null,"TNA770A00RI",null,null,null,"Sidaco","Prio 2","Semana 4 Mayo","BS169","1255329-1",{"$f":"Pendientes!$Q334-Pendientes!$B334","v":0},{"$f":"VLOOKUP(Pendientes!$AC334,Hoja1!A:B,2,TRUE)","v":"en 24hs"}]
["OBS195",null,"Rodrigo",null,null,null,null,null,null,null,null,null,null,null,"PENDIENTE RDA",null,null,null,null,"AIR32",null,null,null,"Ericsson","Prio 3","Semana 1 Junio","BS195","901010-1",{"$f":"Pendientes!$Q335-Pendientes!$B335","v":0},{"$f":"VLOOKUP(Pendientes!$AC335,Hoja1!A:B,2,TRUE)","v":"en 24hs"}]
["OBS229",null,"Ricky",null,null,null,null,null,null,null,"OK",null,null,"ANTENA TNA770A00RI sin stock","SIN STOCK",null,null,null,null,"TNA770A00RI",null,null,null,"Sidaco","Prio 2","Semana 4 Mayo","BS229","1255330-1",{"$f":"Pendientes!$Q336-Pendientes!$B336","v":0},{"$f":"VLOOKUP(Pendientes!$AC336,Hoja1!A:B,2,TRUE)","v":"en 24hs"}]
["OBS247","11/03/2019","Lucrecia","Media","Incompleto","No","No","No","No","No","ODI2-065R16MJJ-GQ ( Hexa Grande)","No","No","sin stock. Falta informacion de fuerza y planos","SIN STOCK","",null,"","Falta informacion de fuerza y planos","ODI2-065R16MJJ-GQ ( Hexa grande)","nueva",null,null,"Guzmán Nacich","Prio 2","Semana 4 Mayo","BS247","1131335-1",{"$f":"Pendientes!$Q337-Pendientes!$B337","v":-43535},{"$f":"VLOOKUP(Pendientes!$AC337,Hoja1!A:B,2,TRUE)","v":{"$error":"#N/A"}}]
["OBS275",null,"Barbara",null,null,null,null,null,null,null,null,null,null,"a verificar estructura por cambio de antena AIR32 x HEXA / NO VERIFICA LA ESTRUCTURA HAY QUE PONER MIMETIZADO","FIN",7000079843,"2019-04-22",null,null,"Cambia AIR32 x Hexabanda CHICA: ASI4518R14v06 - 2000014747",null,null,null,"Sidaco",0,"Fin Semana 1 Mayo","BS275","1255332-1",{"$f":"Pendientes!$Q338-Pendientes!$B338","v":43577},{"$f":"VLOOKUP(Pendientes!$AC338,Hoja1!A:B,2,TRUE)","v":"Mas de 10 días"}]
["OCM010",null,"Barbara",null,null,null,null,null,null,null,null,null,null,null,"FIN",7000079625,"2019-04-08",null,null,null,null,null,null,"Ericsson",0,"Fin Semana 4 Abril","CM010","900885-1",{"$f":"Pendientes!$Q339-Pendientes!$B339","v":43563},{"$f":"VLOOKUP(Pendientes!$AC339,Hoja1!A:B,2,TRUE)","v":"Mas de 10 días"}]
["OCN162","2019-05-10","Cristian","Prio 2",null,null,null,null,null,null,null,null,null,null,"TO DO",null,null,null,null,null,null,null,null,"Multiradio",null,"Semana 4 Mayo","CN162","1255410-1",{"$f":"Pendientes!$Q340-Pendientes!$B340","v":-43595},{"$f":"VLOOKUP(Pendientes!$AC340,Hoja1!A:B,2,TRUE)","v":{"$error":"#N/A"}}]
["OCN202","29/04/2019","Barbara","Alta","Si","No","No","Incompleto","No","No","Si","No","No","SALE SOLPE SIN ANTENA POR FALTA DE STOCK","FIN",7000079997,"2019-04-30","","FALTA PEDIR ANTENA","","",null,null,"Multiradio","Prio 2","Fin Semana 2 Mayo","CN202","1255060-1",{"$f":"Pendientes!$Q341-Pendientes!$B341","v":1},{"$f":"VLOOKUP(Pendientes!$AC341,Hoja1!A:B,2,TRUE)","v":"en 24hs"}]
["OCN231","2019-05-10","Cristian","Prio 2","Si","No","No","No","No","No","Si","No","No",null,"FIN-A",7000080229,"2019-05-13",null,null," ASI4517r3v06","Nueva",null,null,"Multiradio",null,"Semana 4 Mayo","CN231","1255412-1",{"$f":"Pendientes!$Q342-Pendientes!$B342","v":3},{"$f":"VLOOKUP(Pendientes!$AC342,Hoja1!A:B,2,TRUE)","v":"Entre 3 y 5 dias"}]
["OCN262","30/04/2019","Cristian","Alta","Si","No","No","No","No","No","Si","No","No","sin stock","FIN",7000080173,"2019-05-09","","Sale con antena ODI2, que ingreso el dia lunes 6/05/19","ODI2-065R16MJJ-GQ ( Hexa grande)","Existente",null,null,"Multiradio","Prio 2","Semana 3 Mayo Forzado","CN262","1254928-1",{"$f":"Pendientes!$Q343-Pendientes!$B343","v":9},{"$f":"VLOOKUP(Pendientes!$AC343,Hoja1!A:B,2,TRUE)","v":"Entre 5 y 10 dias"}]
["OCN265","2019-05-10","Cristian","Prio 2",null,null,null,null,null,null,null,null,null,null,"TO DO",null,null,null,null,null,null,null,null,"Multiradio",null,"Semana 4 Mayo","CN265","1255189-1",{"$f":"Pendientes!$Q344-Pendientes!$B344","v":-43595},{"$f":"VLOOKUP(Pendientes!$AC344,Hoja1!A:B,2,TRUE)","v":{"$error":"#N/A"}}]
["OCN266","06/05/2019","Barbara","","SI","No","No","Si","No","No","Si","No","No","10/05 DWG cargado en asignación Tesur Estructura verificada - a verificar estructura por cambio de antena AIR32 x HEXA","PENDIENTE INGENIERIA ","",null,"","FUERZA Y MATERIALES - DESACTUALIZADOS","AIR32","",null,"CIS SRL","CIS SRL","Prio 3","Semana 1 Junio","CN266","900703-1",{"$f":"Pendientes!$Q345-Pendientes!$B345","v":-43591},{"$f":"VLOOKUP(Pendientes!$AC345,Hoja1!A:B,2,TRUE)","v":{"$error":"#N/A"}}]
["OCN349",null,"Cristian",null,null,null,null,null,null,null,null,null,null,"sin stock","SIN STOCK",null,null,null,null,"ODV-065R14M17JJ-G",null,null,null,"Multiradio","Prio 2","Semana 4 Mayo","CN349","1255259-1",{"$f":"Pendientes!$Q346-Pendientes!$B346","v":0},{"$f":"VLOOKUP(Pendientes!$AC346,Hoja1!A:B,2,TRUE)","v":"en 24hs"}]
["OCN394","2019-03-11",null,null,null,null,null,null,null,null,"validar planilla",null,null,"YA ESTA EN OBRA y QUEDA CON AIR32","FIN","stock contratista","2019-04-08",null,null,"Cambia AIR32 x Hexabanda",null,null,null,"CIS SRL",0,"Fin Semana 2 Marzo","CN394","900724-1",{"$f":"Pendientes!$Q347-Pendientes!$B347","v":28},{"$f":"VLOOKUP(Pendientes!$AC347,Hoja1!A:B,2,TRUE)","v":"Mas de 10 días"}]
["OCN423","2019-04-29","Barbara","Alta",null,null,null,null,null,null,null,null,null,null,"FIN-A",7000079996,"2019-04-30",null,"FALTA SOLPE POR ANTENAS POR FALTA DE STOCK",null,null,null,null,"Multiradio","Prio 2","Semana 3 Mayo","CN423","1255445-1",{"$f":"Pendientes!$Q348-Pendientes!$B348","v":1},{"$f":"VLOOKUP(Pendientes!$AC348,Hoja1!A:B,2,TRUE)","v":"en 24hs"}]
["OCN815","2019-05-09","Lucrecia","Prio 3","Si","No","Si","Si","No","No","No","No","No","FINALIZADO TODO COMPLETO","FIN-A",7000080213,"2019-05-13","","","ASI4517R3V06","Nueva",null,null,"PEM",null,"Semana 4 Mayo","CN815","1302917-1",{"$f":"Pendientes!$Q349-Pendientes!$B349","v":4},{"$f":"VLOOKUP(Pendientes!$AC349,Hoja1!A:B,2,TRUE)","v":"Entre 3 y 5 dias"}]
["OCS077",null,"Barbara",null,null,null,null,null,null,null,null,null,null,null,"FIN",7000079667,"2019-04-12",null,null,null,null,null,null,"CIS SRL",0,"Semana 3 Mayo","CS077","900658-1",{"$f":"Pendientes!$Q350-Pendientes!$B350","v":43567},{"$f":"VLOOKUP(Pendientes!$AC350,Hoja1!A:B,2,TRUE)","v":"Mas de 10 días"}]
["OCS100","30-04-2019","Lucrecia","Media","No","Si","No","No","No","No","No","No","No","conflicto Escuela sin ingreso para relevar. La ingeniería enviada por mail, no se puede avanzar, tiene un conexionado con una antena AIR32 con una ADU4517R18","SIN STOCK","",null,"","Revisar ingenieriia, ya que tiene una antena de la cual no tenemos stock.","faltan planos","existente",null,null,"Guzmán Nacich","Conflicto","Conflicto","CS100","900664-1",{"$f":"Pendientes!$Q351-Pendientes!$B351","v":-43585},{"$f":"VLOOKUP(Pendientes!$AC351,Hoja1!A:B,2,TRUE)","v":{"$error":"#N/A"}}]
["OCS111","02-05-2019","Barbara","Alta","Incompleto","No","No","No","No","No","Si","No","No","CHEQUENDO DWG","FIN",7000080192,"2019-05-09",null,null,"ODI2-065R16MJJ-GQ ( Hexa grande)","Nueva",null,"CIS SRL","CIS SRL","Prio 2","Semana 3 Mayo Forzado","CS111","1255100-1",{"$f":"Pendientes!$Q352-Pendientes!$B352","v":7},{"$f":"VLOOKUP(Pendientes!$AC352,Hoja1!A:B,2,TRUE)","v":"Entre 5 y 10 dias"}]
["OCS115","2019-04-29","Barbara","Alta",null,null,null,null,null,null,null,null,null,null,"FIN-A",7000079998,"2019-04-30",null,"SE GENERA SOLPE SIN ANTENA POR FALTA DE STOCK",null,null,null,"CIS SRL","CIS SRL","Prio 2","Semana 3 Mayo","CS115","1255448-1",{"$f":"Pendientes!$Q353-Pendientes!$B353","v":1},{"$f":"VLOOKUP(Pendientes!$AC353,Hoja1!A:B,2,TRUE)","v":"en 24hs"}]
["OCS120","2019-04-29","Barbara","Alta",null,null,null,null,null,null,null,null,null,null,"FIN-A",7000080010,"2019-04-30",null,"FALTA SOLPE POR ANTENAS POR FALTA DE STOCK",null,null,null,"CIS SRL","CIS SRL","Prio 2","Fin Semana 2 Mayo","CS120","1255449-1",{"$f":"Pendientes!$Q354-Pendientes!$B354","v":1},{"$f":"VLOOKUP(Pendientes!$AC354,Hoja1!A:B,2,TRUE)","v":"en 24hs"}]
["OCS124","2019-04-29","Barbara","Alta",null,null,null,null,null,null,null,null,null,null,"FIN-A",7000079999,"2019-04-30",null,"Se hace el pedido sin antena",null,null,null,"CIS SRL","CIS SRL","Prio 2","Fin Semana 2 Mayo","CS124","1255170-1",{"$f":"Pendientes!$Q355-Pendientes!$B355","v":1},{"$f":"VLOOKUP(Pendientes!$AC355,Hoja1!A:B,2,TRUE)","v":"en 24hs"}]
["OCS140","2019-04-29","Barbara","Alta",null,null,null,null,null,null,null,null,null,null,"FIN",7000080011,"2019-04-30",null,"SE Hace el pedido sin antena",null,null,null,"CIS SRL","CIS SRL","Prio 2","Fin Semana 2 Mayo","CS140","1255101-1",{"$f":"Pendientes!$Q356-Pendientes!$B356","v":1},{"$f":"VLOOKUP(Pendientes!$AC356,Hoja1!A:B,2,TRUE)","v":"en 24hs"}]
["OCS148","2019-04-29","Barbara","Alta",null,null,null,null,null,null,null,null,null,null,"FIN-A",7000080022,"2019-05-02",null,"FALTA PEDIR ANTENA",null,null,null,"CIS SRL","CIS SRL","Prio 2","Fin Semana 2 Mayo","CS148","1255268-1",{"$f":"Pendientes!$Q357-Pendientes!$B357","v":3},{"$f":"VLOOKUP(Pendientes!$AC357,Hoja1!A:B,2,TRUE)","v":"Entre 3 y 5 dias"}]
["OCS205",null,"Ricky",null,{"$error":"#N/A"},null,null,null,null,null,"Energia OK",{"$error":"#N/A"},null,"planos recibidos 12-4-19","SIN STOCK",{"$error":"#N/A"},null,null,{"$error":"#N/A"},"ODI2-065R16MJJ-GQ ( Hexa grande)",{"$error":"#N/A"},null,null,"Sidaco","Prio 2","Semana 4 Mayo","CS205","1342177-1",{"$f":"Pendientes!$Q358-Pendientes!$B358","v":0},{"$f":"VLOOKUP(Pendientes!$AC358,Hoja1!A:B,2,TRUE)","v":"en 24hs"}]
["OCS256",null,"Ricky","Media","SI","NO","NO","NO","NO","NO","SI","NO","NO","Cargado en la asignación a Tesur","FIN-A",7000080175,"2019-05-09",null,"LOS PLANOS Y FUERZA SE TOMA DE LAS ASIGNACIONES DE TESUR, EN SIDACO NO HAY NADA CARGADO","ASI-R3","Nueva",null,null,"Sidaco","Prio 2","Semana 4 Mayo","CS256","1254879-1",{"$f":"Pendientes!$Q359-Pendientes!$B359","v":43594},{"$f":"VLOOKUP(Pendientes!$AC359,Hoja1!A:B,2,TRUE)","v":"Mas de 10 días"}]
["OCS293",null,"Ricky","Media","SI","NO","NO","NO","NO","NO","SI","NO","NO","Cargado en la asignación a Tesur","FIN-A",7000080176,"2019-05-09",null,"SE USA PLANOS Y FUERZA DE TESUR, EN EL PROYECTO DE SIDACO NO HAY DATOS","ASI-R3","Nueva",null,null,"Sidaco","Prio 2","Semana 4 Mayo","CS293","1255456-1",{"$f":"Pendientes!$Q360-Pendientes!$B360","v":43594},{"$f":"VLOOKUP(Pendientes!$AC360,Hoja1!A:B,2,TRUE)","v":"Mas de 10 días"}]
["OCS296",null,"Ricky","Media","SI","NO","NO","NO","NO","NO","SI","NO","NO","Cargado en la asignación a Tesur","FIN-A",7000080177,"2019-05-09",null,"SE USA PLANOS Y FUERZA DE TESUR, EN EL PROYECTO DE SIDACO NO HAY DATOS --- FALTA SOLPE POR ANTENA","ASI-R3","Nueva",null,null,"Sidaco","Prio 2","Semana 4 Mayo","CS296","1255513-1",{"$f":"Pendientes!$Q361-Pendientes!$B361","v":43594},{"$f":"VLOOKUP(Pendientes!$AC361,Hoja1!A:B,2,TRUE)","v":"Mas de 10 días"}]
["OCS311",null,"Ricky",null,{"$error":"#N/A"},null,null,null,null,null,"falta fuerza",{"$error":"#N/A"},null,"sin stock","SIN STOCK",{"$error":"#N/A"},null,null,{"$error":"#N/A"},"ODI2-065R16MJJ-GQ ( Hexa grande)",{"$error":"#N/A"},null,null,"Sidaco","Prio 2","Semana 4 Mayo","CS311","1255242-1",{"$f":"Pendientes!$Q362-Pendientes!$B362","v":0},{"$f":"VLOOKUP(Pendientes!$AC362,Hoja1!A:B,2,TRUE)","v":"en 24hs"}]
["OCS352",null,"Lucrecia","Adelanto",null,null,null,null,null,null,null,null,null,"no contamos con ninguna definicion para emitir la SOLPE","FIN","69396 /7000079681","2019-04-10",null,null,"\"Antena a definir por RDA\"",null,null,null,"Telxius",0,"Semana 3 Mayo","CS352","1342230-1",{"$f":"Pendientes!$Q363-Pendientes!$B363","v":43565},{"$f":"VLOOKUP(Pendientes!$AC363,Hoja1!A:B,2,TRUE)","v":"Mas de 10 días"}]
["OCS508",null,"Barbara",null,null,null,null,null,null,null,"fuerza ok",null,null,"se consulta por cambio de antena ","FIN",7000079683,"2019-04-11",null,null,null,null,null,null,"Guzmán Nacich",0,"Fin Semana 1 Mayo","CS508","1255108-1",{"$f":"Pendientes!$Q364-Pendientes!$B364","v":43566},{"$f":"VLOOKUP(Pendientes!$AC364,Hoja1!A:B,2,TRUE)","v":"Mas de 10 días"}]
["OCU021",null,"Ricky",null,{"$error":"#N/A"},null,null,null,null,null,null,{"$error":"#N/A"},null,null,"TO DO",{"$error":"#N/A"},null,null,{"$error":"#N/A"},null,{"$error":"#N/A"},null,null,"Sidaco","Prio 1","Semana 4 Mayo","CU021","915899-1",{"$f":"Pendientes!$Q365-Pendientes!$B365","v":0},{"$f":"VLOOKUP(Pendientes!$AC365,Hoja1!A:B,2,TRUE)","v":"en 24hs"}]
["OCU024","2019-05-09","Lucrecia","Prio 2",null,null,null,null,null,null,null,null,null,null,"TO DO",null,null,null,null,null,null,null,null,"Guzmán Nacich",null,"Semana 4 Mayo","CU024","1333800-1",{"$f":"Pendientes!$Q366-Pendientes!$B366","v":-43594},{"$f":"VLOOKUP(Pendientes!$AC366,Hoja1!A:B,2,TRUE)","v":{"$error":"#N/A"}}]
["OCU046",null,"Barbara",null,null,null,null,null,null,null,null,null,null,"Arsobispado","SITIOS",null,null,null,null,null,null,null,"CIS SRL","CIS SRL","Conflicto","Conflicto","CU046","900567-1",{"$f":"Pendientes!$Q367-Pendientes!$B367","v":0},{"$f":"VLOOKUP(Pendientes!$AC367,Hoja1!A:B,2,TRUE)","v":"en 24hs"}]
["OCU087","2019-04-30","Ricky",null,"No","NO","NO","NO","NO","NO","NO","Ok","NO","Sin Stock Antena","FIN-A",7000080144,"2019-05-07",null,"Sin Stock Antena - DC3 + Sec + BB2",null,"Nueva",null,null,"Sidaco","Prio 1","Semana 3 Mayo","CU087","1320247-1",{"$f":"Pendientes!$Q368-Pendientes!$B368","v":7},{"$f":"VLOOKUP(Pendientes!$AC368,Hoja1!A:B,2,TRUE)","v":"Entre 5 y 10 dias"}]
["OIC001",null,"Ricky","Adelanto",{"$error":"#N/A"},null,null,null,null,null,null,null,null,null,"FIN",7000079599,"2019-04-05",null,null,null,null,null,null,"Guzmán Nacich",0,"Fin Semana 3 Abril","IC001","905863-1",{"$f":"Pendientes!$Q369-Pendientes!$B369","v":43560},{"$f":"VLOOKUP(Pendientes!$AC369,Hoja1!A:B,2,TRUE)","v":"Mas de 10 días"}]
["OIC002",null,null,null,null,null,null,null,null,null,null,null,null,null,"FIN",7000079503,"2019-03-29",null,null,null,null,null,null,"Guzmán Nacich",0,"Fin Semana 3 Abril","IC002","905864-1",{"$f":"Pendientes!$Q370-Pendientes!$B370","v":43553},{"$f":"VLOOKUP(Pendientes!$AC370,Hoja1!A:B,2,TRUE)","v":"Mas de 10 días"}]
["OIC008",null,"Ricky","Adelanto",{"$error":"#N/A"},null,null,null,null,null,null,null,null,null,"FIN",7000079598,"2019-04-05",null,null,null,null,null,null,"Guzmán Nacich",0,"Fin Semana 2 Abril","IC008","905848-1",{"$f":"Pendientes!$Q371-Pendientes!$B371","v":43560},{"$f":"VLOOKUP(Pendientes!$AC371,Hoja1!A:B,2,TRUE)","v":"Mas de 10 días"}]
["OIC009",null,null,null,null,null,null,null,null,null,null,null,null,null,"FIN",7000079505,"2019-03-29",null,null,null,null,null,null,"Guzmán Nacich",0,"Fin Semana 2 Abril","IC009","905865-1",{"$f":"Pendientes!$Q372-Pendientes!$B372","v":43553},{"$f":"VLOOKUP(Pendientes!$AC372,Hoja1!A:B,2,TRUE)","v":"Mas de 10 días"}]
["OIC014",null,"Ricky","Adelanto",{"$error":"#N/A"},null,null,null,null,null,null,null,null,null,"FIN",7000079595,"2019-04-05",null,null,null,null,null,null,"Guzmán Nacich",0,"Fin Semana 2 Abril","IC014","905867-1",{"$f":"Pendientes!$Q373-Pendientes!$B373","v":43560},{"$f":"VLOOKUP(Pendientes!$AC373,Hoja1!A:B,2,TRUE)","v":"Mas de 10 días"}]
["OIE001",null,"Ricky","Adelanto",{"$error":"#N/A"},null,null,null,null,null,null,null,null,null,"FIN",7000079597,"2019-04-05",null,null,null,null,null,null,"Guzmán Nacich",0,"Revisión Ing Fin","IE001","905868-1",{"$f":"Pendientes!$Q374-Pendientes!$B374","v":43560},{"$f":"VLOOKUP(Pendientes!$AC374,Hoja1!A:B,2,TRUE)","v":"Mas de 10 días"}]
["OIE006",null,"Ricky","Adelanto",{"$error":"#N/A"},null,null,null,null,null,null,null,null,null,"FIN",7000079587,"2019-04-05",null,null,null,null,null,null,"Guzmán Nacich",0,"Fin Semana 2 Abril","IE006","905869-1",{"$f":"Pendientes!$Q375-Pendientes!$B375","v":43560},{"$f":"VLOOKUP(Pendientes!$AC375,Hoja1!A:B,2,TRUE)","v":"Mas de 10 días"}]
["OIN001",null,null,"Adelanto",null,null,null,null,null,null,null,null,null,"Planos OK enviados 12-4-19","FIN",7000079506,"2019-03-29",null,null,null,null,null,null,"Guzmán Nacich",0,"Fin Semana 2 Abril","IN001","905855-1",{"$f":"Pendientes!$Q376-Pendientes!$B376","v":43553},{"$f":"VLOOKUP(Pendientes!$AC376,Hoja1!A:B,2,TRUE)","v":"Mas de 10 días"}]
["OIN010","02-05-2019","Lucrecia","","Incompleto","No","No","Incompleto","No","No","Energia OK","No","No","Llego ingenieria de MI 12/4/19","SIN STOCK",null,null,"","Solicita placas UBBPe6 y no hay stock ni tiene reemplazo","TNA770A00RI","Nueva",null,null,"Guzmán Nacich","Prio 2","Semana 4 Mayo","IN010","905849-1",{"$f":"Pendientes!$Q377-Pendientes!$B377","v":-43587},{"$f":"VLOOKUP(Pendientes!$AC377,Hoja1!A:B,2,TRUE)","v":{"$error":"#N/A"}}]
["OJC005",null,null,null,null,null,null,null,null,null,null,null,null,null,"FIN",7000079397,"2019-03-21",null,null,null,null,null,null,"Sidaco",0,"Fin Semana 1 Abril","JC005","905866-1",{"$f":"Pendientes!$Q378-Pendientes!$B378","v":43545},{"$f":"VLOOKUP(Pendientes!$AC378,Hoja1!A:B,2,TRUE)","v":"Mas de 10 días"}]
["OJC006","2019-03-07",null,null,null,null,null,null,null,null,null,null,null,"ok stock","FIN","7000079143/7000079268/7000079308","2019-03-08",null,null,"Terminada",null,null,null,"Sidaco",0,"Fin Semana 2 Marzo","JC006","905879-1",{"$f":"Pendientes!$Q379-Pendientes!$B379","v":1},{"$f":"VLOOKUP(Pendientes!$AC379,Hoja1!A:B,2,TRUE)","v":"en 24hs"}]
["OJC010","2019-05-02","Cristian","Alta","SI","NO","NO","Incompleto","NO","NO","SI","NO","NO","El plano no se condice con el hw a instalar, dice RRU´s a reutilizar cuando en ep PDG indica HW nuevo - la energia no estaba bien dimencionada en el plano, se corrigio para hacer el pedido con Ing de Fuerza","FIN",7000080039,"2019-05-03",null,null,"ODI2-065R16M18J-GQ + AAUU3910","Nueva",null,null,"Multiradio","Prio 1","Fin Semana 2 Mayo","JC010","905884-1",{"$f":"Pendientes!$Q380-Pendientes!$B380","v":1},{"$f":"VLOOKUP(Pendientes!$AC380,Hoja1!A:B,2,TRUE)","v":"en 24hs"}]
["OJC018","2019-05-02","Cristian",null,"SI","NO","NO","NO","NO","NO","NO","NO","NO","SIN FUERZA","FIN",7000080094,"2019-05-07",null,"SE RESUELVE FUERZA ON LINE CON PLANIFICACION","ODI2-065R16M18J-GQ + AAUU3910",null,null,null,"Multiradio","Prio 1","Semana 3 Mayo","JC018","905885-1",{"$f":"Pendientes!$Q381-Pendientes!$B381","v":5},{"$f":"VLOOKUP(Pendientes!$AC381,Hoja1!A:B,2,TRUE)","v":"Entre 5 y 10 dias"}]
["OJC025","2019-05-02","Cristian","Alta","SI","NO","NO","Incompleto","NO","NO","SI","NO","NO","PLANILLA MATERIALES INCOMPLETA","FIN",7000080133,"2019-05-07",null,"ENERGIA EXISTENTE SE REUTILIZA DC2ZTE SE AGREGA DC3 SECUNDARIO ","ODI2-065R16M18JG-Q+AAUU3910","Nueva",null,null,"Multiradio","Prio 1","Semana 3 Mayo","JC025","905886-1",{"$f":"Pendientes!$Q382-Pendientes!$B382","v":5},{"$f":"VLOOKUP(Pendientes!$AC382,Hoja1!A:B,2,TRUE)","v":"Entre 5 y 10 dias"}]
["OJC035",null,"Rodrigo",null,null,null,null,null,null,null,null,null,null,"ok stock","FIN","7000079269/7000079302","2019-03-28",null,null,null,null,null,null,"Sidaco",0,"Fin Semana 4 Abril","JC035","905887-1",{"$f":"Pendientes!$Q383-Pendientes!$B383","v":43552},{"$f":"VLOOKUP(Pendientes!$AC383,Hoja1!A:B,2,TRUE)","v":"Mas de 10 días"}]
["OJC047",null,null,null,null,null,null,null,null,null,null,null,null,null,"FIN","7000079280 / 7000079304","2019-03-22",null,null,null,null,null,null,"Sidaco",0,"Fin Semana 2 Marzo","JC047","905872-1",{"$f":"Pendientes!$Q384-Pendientes!$B384","v":43546},{"$f":"VLOOKUP(Pendientes!$AC384,Hoja1!A:B,2,TRUE)","v":"Mas de 10 días"}]
["OJC048",null,"Rodrigo",null,null,null,null,null,null,null,null,null,null,"ok stock","FIN","7000079264/7000079305","2019-03-28",null,null,null,null,null,null,"Sidaco",0,"Fin Semana 1 Abril","JC048","905873-1",{"$f":"Pendientes!$Q385-Pendientes!$B385","v":43552},{"$f":"VLOOKUP(Pendientes!$AC385,Hoja1!A:B,2,TRUE)","v":"Mas de 10 días"}]
["OJC053",null,null,null,null,null,null,null,null,null,null,null,null,null,"FIN",7000079345,"2019-03-22",null,null,null,null,null,null,"Sidaco",0,"Fin Semana 2 Marzo","JC053","905880-1",{"$f":"Pendientes!$Q386-Pendientes!$B386","v":43546},{"$f":"VLOOKUP(Pendientes!$AC386,Hoja1!A:B,2,TRUE)","v":"Mas de 10 días"}]
["OJC322",null,"Rodrigo",null,null,null,null,null,null,null,null,null,null,"ok stock","FIN",7000079346,"2019-03-28",null,null,null,null,null,null,"Sidaco",0,"Fin Semana 1 Abril","JC322","905875-1",{"$f":"Pendientes!$Q387-Pendientes!$B387","v":43552},{"$f":"VLOOKUP(Pendientes!$AC387,Hoja1!A:B,2,TRUE)","v":"Mas de 10 días"}]
["OJC337",null,"Rodrigo",null,null,null,null,null,null,null,null,null,null,"ok stock","FIN","7000079265/7000079306","2019-03-28",null,null,null,null,null,null,"Sidaco",0,"Fin Semana 1 Abril","JC337","905883-1",{"$f":"Pendientes!$Q388-Pendientes!$B388","v":43552},{"$f":"VLOOKUP(Pendientes!$AC388,Hoja1!A:B,2,TRUE)","v":"Mas de 10 días"}]
["OJC339",null,null,"Adelanto",null,null,null,null,null,null,null,null,null,null,"FIN","7000079266/7000079307","2019-04-01",null,null,null,null,null,null,"Sidaco",0,"Fin Semana 1 Abril","JC339","905878-1",{"$f":"Pendientes!$Q389-Pendientes!$B389","v":43556},{"$f":"VLOOKUP(Pendientes!$AC389,Hoja1!A:B,2,TRUE)","v":"Mas de 10 días"}]
["OKN073","05-05-2019","Barbara","","SI","No","No","No","No","No","No","No","No","10/05 DWG cargado en asignación Tesur Estructura verificada - a verificar estructura por cambio de antena AIR32 x HEXA","PENDIENTE INGENIERIA ","",null,"","SIN DWG NI FUERZA","Cambia AIR32 x Hexabanda ASI4517R3v06","",null,null,"CIS SRL",0,"Falta AIR 32","KN073","900596-1",{"$f":"Pendientes!$Q390-Pendientes!$B390","v":-43590},{"$f":"VLOOKUP(Pendientes!$AC390,Hoja1!A:B,2,TRUE)","v":{"$error":"#N/A"}}]
["OKN091",null,"Barbara",null,"Si","No","No","No","No","No","SI","NO","NO","TO DO / Hexa que ingresan 140 unidades el 15 de Abril","FIN",7000080098,"2019-05-07",null,null,"ODI2-065R16MJJ-GQ ( Hexa grande)",null,null,"CIS SRL","CIS SRL","Prio 2","Semana 3 Mayo","KN091","1255000-1",{"$f":"Pendientes!$Q391-Pendientes!$B391","v":43592},{"$f":"VLOOKUP(Pendientes!$AC391,Hoja1!A:B,2,TRUE)","v":"Mas de 10 días"}]
["OKO024",null,"Lucrecia",null,null,null,null,null,null,null,null,null,null,"sin stock AIR32","PENDIENTE RDA",null,null,null,null,"AIR32",null,null,null,"Guzmán Nacich","Prio 3","Semana 1 Junio","KO024","900753-1",{"$f":"Pendientes!$Q392-Pendientes!$B392","v":0},{"$f":"VLOOKUP(Pendientes!$AC392,Hoja1!A:B,2,TRUE)","v":"en 24hs"}]
["OKO059",null,"Barbara",null,null,null,null,null,null,null,null,null,null,null,"FIN",7000079700,"2019-04-12",null,null,"antenas Hexa chicas",null,null,null,"Guzmán Nacich",0,"Fin Semana 1 Mayo","KO059","900624-1",{"$f":"Pendientes!$Q393-Pendientes!$B393","v":43567},{"$f":"VLOOKUP(Pendientes!$AC393,Hoja1!A:B,2,TRUE)","v":"Mas de 10 días"}]
["OKO062",null,"Barbara",null,"SI","No","No","No","No","No","SI","No","No","sin stock","FIN",7000080108,"2019-05-07",null,null,"ODI2-065R16MJJ-GQ ( Hexa grande)",null,null,null,"CIS SRL","Prio 2","Semana 3 Mayo","KO062","1255518-1",{"$f":"Pendientes!$Q394-Pendientes!$B394","v":43592},{"$f":"VLOOKUP(Pendientes!$AC394,Hoja1!A:B,2,TRUE)","v":"Mas de 10 días"}]
["OKS007","2019-03-11","Barbara",null,null,null,null,null,null,null,"planilla ok 2019",null,null,"a verificar estructura por cambio de antena AIR32 x HEXA","FIN",7000079655,"2019-04-09",null,null,"Cambia AIR32 x Hexabanda",null,null,null,"Ericsson",0,"Fin Semana 4 Abril","KS007","915887-1",{"$f":"Pendientes!$Q395-Pendientes!$B395","v":29},{"$f":"VLOOKUP(Pendientes!$AC395,Hoja1!A:B,2,TRUE)","v":"Mas de 10 días"}]
["OKS034","2019-03-13",null,null,null,null,null,null,null,null,null,null,null,"a verificar estructura por cambio de antena AIR32 x HEXA /según Vera la contratista tiene la AIR32","FIN","stock contratista","2019-04-08",null,null,"Cambia AIR32 x Hexabanda",null,null,null,"Ericsson",0,"Fin Semana 2 Marzo","KS034","900590-1",{"$f":"Pendientes!$Q396-Pendientes!$B396","v":26},{"$f":"VLOOKUP(Pendientes!$AC396,Hoja1!A:B,2,TRUE)","v":"Mas de 10 días"}]
["OKS050",null,"Ricky",null,"NO","NO","NO","NO","NO","NO","NO","NO",null,"a verificar estructura por cambio de antena AIR32 x HEXA","FIN",7000080209,"2019-05-10",null,{"$error":"#N/A"},"Cambia AIR32 x Hexabanda ASI4517R3v06",{"$error":"#N/A"},null,null,"Sidaco","Prio 3","Semana 3 Mayo Forzado","KS050","1255519-1",{"$f":"Pendientes!$Q397-Pendientes!$B397","v":43595},{"$f":"VLOOKUP(Pendientes!$AC397,Hoja1!A:B,2,TRUE)","v":"Mas de 10 días"}]
["OKS132",null,"Ricky",null,{"$error":"#N/A"},null,null,null,null,null,"fuerza ok",{"$error":"#N/A"},null,"TO DO / Hexa que ingresan 140 unidades el 15 de Abril","SIN STOCK",{"$error":"#N/A"},null,null,{"$error":"#N/A"},"ODI2-065R16MJJ-GQ ( Hexa grande)",{"$error":"#N/A"},null,null,"Sidaco","Prio 2","Semana 4 Mayo","KS132","1254892-1",{"$f":"Pendientes!$Q398-Pendientes!$B398","v":0},{"$f":"VLOOKUP(Pendientes!$AC398,Hoja1!A:B,2,TRUE)","v":"en 24hs"}]
["OKS134",null,"Rodrigo",null,null,null,null,null,null,null,"Energia OK",null,null,null,"FIN","Obra finalizada/ reserva 4340625","2019-02-01",null,null,"TNA770A00RI",null,null,null,"Ericsson","Prio 2","Fin Semana 1 Mayo","KS134","900549-1",{"$f":"Pendientes!$Q399-Pendientes!$B399","v":43497},{"$f":"VLOOKUP(Pendientes!$AC399,Hoja1!A:B,2,TRUE)","v":"Mas de 10 días"}]
["OKS146","2019-04-30","Ricky",null,"SI","NO","NO","Incompleto","NO","NO","SI","NO","NO",null,"FIN-A",7000080146,"2019-05-07",null,"Sin Stock Antena","ASI-R3","Existente",null,null,"Sidaco","Prio 1","Semana 3 Mayo","KS146","1255161-1",{"$f":"Pendientes!$Q400-Pendientes!$B400","v":7},{"$f":"VLOOKUP(Pendientes!$AC400,Hoja1!A:B,2,TRUE)","v":"Entre 5 y 10 dias"}]
["OKS165",null,"Barbara",null,null,null,null,null,null,null,"Energia OK",null,null,"Ingresaron los planos desde MI 12/04/19","FIN",7000079711,"2019-04-12",null,null,null,null,null,null,"Sidaco",0,"Fin Semana 4 Abril","KS165","1255162-1",{"$f":"Pendientes!$Q401-Pendientes!$B401","v":43567},{"$f":"VLOOKUP(Pendientes!$AC401,Hoja1!A:B,2,TRUE)","v":"Mas de 10 días"}]
["OKS171",null,"Rodrigo",null,null,null,null,null,null,null,"ok fuerza",null,null,"se envia mail consulta RDA / OK PLANOS 12/4/19","FIN",7000079712,"2019-04-12",null,null,"\"Antena a definir por RDA\"",null,null,null,"Sidaco",0,"Fin Semana 4 Abril","KS171","1255003-1",{"$f":"Pendientes!$Q402-Pendientes!$B402","v":43567},{"$f":"VLOOKUP(Pendientes!$AC402,Hoja1!A:B,2,TRUE)","v":"Mas de 10 días"}]
["OKS173",null,"Barbara",null,null,null,null,null,null,null,"Energia OK",null,null,"ok stock","FIN",7000079588,"2019-04-05",null,null,"ASI4518R14v06 (HEXA CHICA)",null,null,null,"Sidaco",0,"Fin Semana 2 Abril","KS173","1254983-1",{"$f":"Pendientes!$Q403-Pendientes!$B403","v":43560},{"$f":"VLOOKUP(Pendientes!$AC403,Hoja1!A:B,2,TRUE)","v":"Mas de 10 días"}]
["OKS238",null,"Ricky",null,"NO","NO","NO","NO","NO","NO","NO","NO",null,"se cierra hoy","FIN",7000080230,"2019-05-10",null,{"$error":"#N/A"},"ODI2-065R16MJJ-GQ ( Hexa grande)",{"$error":"#N/A"},null,null,"Sidaco","Prio 2","Fin Semana 1 Mayo","KS238","1255317-1",{"$f":"Pendientes!$Q404-Pendientes!$B404","v":43595},{"$f":"VLOOKUP(Pendientes!$AC404,Hoja1!A:B,2,TRUE)","v":"Mas de 10 días"}]
["OKS269",null,"Barbara",null,null,null,null,null,null,null,"Energia OK",null,null,null,"FIN",7000079821,"2019-04-22",null,null,"ASI4517R3v06",null,null,null,"Sidaco",0,"Fin Semana 4 Abril","KS269","1255164-1",{"$f":"Pendientes!$Q405-Pendientes!$B405","v":43577},{"$f":"VLOOKUP(Pendientes!$AC405,Hoja1!A:B,2,TRUE)","v":"Mas de 10 días"}]
["OKS270","2019-04-30","Ricky",null,"SI","NO","NO","Incompleto","NO","NO","SI","NO","NO",null,"FIN",7000080149,"2019-05-07",null,0,"ASI-R14","Existente",null,null,"Sidaco","Prio 1","Semana 3 Mayo","KS270","1255165-1",{"$f":"Pendientes!$Q406-Pendientes!$B406","v":7},{"$f":"VLOOKUP(Pendientes!$AC406,Hoja1!A:B,2,TRUE)","v":"Entre 5 y 10 dias"}]
["OKS276","2019-03-11","Barbara",null,null,null,null,null,null,null,"AIR32 + odv065R14M17JG",null,null,"a verificar estructura por cambio de antena AIR32 x HEXA","FIN",7000079656,"2019-04-09",null,null,"Cambia AIR32 x Hexabanda",null,null,null,"Ericsson",0,"Fin Semana 4 Abril","KS276","901198-1",{"$f":"Pendientes!$Q407-Pendientes!$B407","v":29},{"$f":"VLOOKUP(Pendientes!$AC407,Hoja1!A:B,2,TRUE)","v":"Mas de 10 días"}]
["OKS280","2019-05-02","Ricky",null,"SI","NO","NO","Incompleto","NO","NO","SI","NO","NO",null,"DOING",null,null,null,"Sin antenas","TriTri",null,null,null,"Sidaco","Prio 1","Revisión Ing Fin","KS280","1230251-1",{"$f":"Pendientes!$Q408-Pendientes!$B408","v":-43587},{"$f":"VLOOKUP(Pendientes!$AC408,Hoja1!A:B,2,TRUE)","v":{"$error":"#N/A"}}]
["OKS287",null,"Ricky",null,{"$error":"#N/A"},null,null,null,null,null,null,{"$error":"#N/A"},null,"sin stock","SIN STOCK",{"$error":"#N/A"},null,null,{"$error":"#N/A"},"ODI2-065R16MJJ-GQ ( Hexa grande)",{"$error":"#N/A"},null,null,"Sidaco","Prio 2","Semana 4 Mayo","KS287","1255005-1",{"$f":"Pendientes!$Q409-Pendientes!$B409","v":0},{"$f":"VLOOKUP(Pendientes!$AC409,Hoja1!A:B,2,TRUE)","v":"en 24hs"}]
["OKS307",null,"Rodrigo",null,null,null,null,null,null,null,"falta energia",null,null,"faltan planos","FIN",7000079593,"2019-04-05",null,null,"ASI4518R14v06 (HEXA CHICA)",null,null,null,"Sidaco",0,"Fin Semana 2 Abril","KS307","1255318-1",{"$f":"Pendientes!$Q410-Pendientes!$B410","v":43560},{"$f":"VLOOKUP(Pendientes!$AC410,Hoja1!A:B,2,TRUE)","v":"Mas de 10 días"}]
["OKS310","2019-03-13",null,null,null,null,null,null,null,null,"falta energia / Tribanda",null,null,"sin stock","FIN",7000079398,"2019-03-21",null,null,"ODV-065R14M17JJG= 2000012532/2000012416/4000085241",null,null,null,"Sidaco",0,"Revisión Ing Fin","KS310","1255443-1",{"$f":"Pendientes!$Q411-Pendientes!$B411","v":8},{"$f":"VLOOKUP(Pendientes!$AC411,Hoja1!A:B,2,TRUE)","v":"Entre 5 y 10 dias"}]
["OKS315",null,"Rodrigo",null,null,null,null,null,null,null,"Energia OK",null,null,null,"FIN",7000079787,"2019-04-17",null,null,"ASI4517R3V06",null,null,null,"CIS SRL",0,"Semana 3 Mayo","KS315","1255006-1",{"$f":"Pendientes!$Q412-Pendientes!$B412","v":43572},{"$f":"VLOOKUP(Pendientes!$AC412,Hoja1!A:B,2,TRUE)","v":"Mas de 10 días"}]
["OKS317",null,"Barbara",null,null,null,null,null,null,null,"ok fuerza",null,null,"ok stock","FIN",7000079623,"2019-04-08",null,null,"ASI4518R14v06 (HEXA CHICA)",null,null,null,"Sidaco",0,"Fin Semana 4 Abril","KS317","1255319-1",{"$f":"Pendientes!$Q413-Pendientes!$B413","v":43563},{"$f":"VLOOKUP(Pendientes!$AC413,Hoja1!A:B,2,TRUE)","v":"Mas de 10 días"}]
["OKS428","2019-04-30","Ricky",null,"SI","NO","NO","Incompleto","NO","NO","SI","NO","NO",null,"FIN",7000080150,"2019-05-07",null,0,"ASI-R14","Existente",null,null,"Sidaco","Prio 1","Semana 3 Mayo","KS428","1255359-1",{"$f":"Pendientes!$Q414-Pendientes!$B414","v":7},{"$f":"VLOOKUP(Pendientes!$AC414,Hoja1!A:B,2,TRUE)","v":"Entre 5 y 10 dias"}]
["OKS440",null,"Ricky",null,{"$error":"#N/A"},null,null,null,null,null,null,{"$error":"#N/A"},null,"sin stock ","PENDIENTE RDA",{"$error":"#N/A"},null,null,{"$error":"#N/A"},"AIR32",{"$error":"#N/A"},null,null,"Sidaco","Prio 2","Semana 4 Mayo","KS440","1255190-1",{"$f":"Pendientes!$Q415-Pendientes!$B415","v":0},{"$f":"VLOOKUP(Pendientes!$AC415,Hoja1!A:B,2,TRUE)","v":"en 24hs"}]
["OKS457","30-04-2019","Lucrecia","Media","Incompleto","No","Incompleto","No","No","No","Incompleto","No","No","sin stock. La ingenieria debe ser modificada, ya que tiene una antena de la cual no hay stock","PENDIENTE RDA","",null,"","La ingenieria debe ser modificada, ya que tiene una antena de la cual no hay stock","AIR32","nueva",null,null,"Guzmán Nacich","Prio 3","Semana 1 Junio","KS457","901190-1",{"$f":"Pendientes!$Q416-Pendientes!$B416","v":-43585},{"$f":"VLOOKUP(Pendientes!$AC416,Hoja1!A:B,2,TRUE)","v":{"$error":"#N/A"}}]
["OKS562","2019-05-02","Pendiente",null,null,null,null,null,null,null,null,null,null,null,"A REASIGNAR CONTRATA",null,null,null,null,null,null,null,null,null,"Prio 1","No Liberado","KS562",{"$error":"#N/A"},{"$f":"Pendientes!$Q417-Pendientes!$B417","v":-43587},{"$f":"VLOOKUP(Pendientes!$AC417,Hoja1!A:B,2,TRUE)","v":{"$error":"#N/A"}}]
["OLC026","30/04/2019","Lucrecia","","Incompleto","No","No","Incompleto","No","No","Si","No","No","Solicita en el plano de conexionado RRU1900 y no tenemos stock para AMBA","TO DO",null,null,"","Solicita en el plano de conexionado RRU1900 y no tenemos stock para AMBA",null,"Nueva",null,null,"Guzmán Nacich","Prio 1","Semana 4 Mayo","LC026","1255361-1",{"$f":"Pendientes!$Q418-Pendientes!$B418","v":-43585},{"$f":"VLOOKUP(Pendientes!$AC418,Hoja1!A:B,2,TRUE)","v":{"$error":"#N/A"}}]
["OLC027","30/04/2019","Lucrecia","","Incompleto","No","No","Incompleto","No","No","Si","No","No","Solicita en el plano de conexionado RRU1900 y no hay stock para AMBA","TO DO",null,null,"","Solicita en el plano de conexionado RRU1900 y no hay stock para AMBA",null,"Nueva",null,null,"Guzmán Nacich","Prio 1","Semana 4 Mayo","LC027","1254894-1",{"$f":"Pendientes!$Q419-Pendientes!$B419","v":-43585},{"$f":"VLOOKUP(Pendientes!$AC419,Hoja1!A:B,2,TRUE)","v":{"$error":"#N/A"}}]
["OLC037","2019-05-02","Lucrecia",null,"SI","NO","NO","NO","NO","NO","SI","NO","NO","DATOS CORRECTOS FINALIZADO CON ANTENAS","FIN",7000080115,"2019-05-07",null,"DATOS CORRECTOS FINALIZADO CON ANTENAS","ODI2-065R16MJJ-GQ ( Hexa Grande)","Nueva",null,null,"Guzmán Nacich",0,"Semana 3 Mayo","LC037","1255198-1",{"$f":"Pendientes!$Q420-Pendientes!$B420","v":5},{"$f":"VLOOKUP(Pendientes!$AC420,Hoja1!A:B,2,TRUE)","v":"Entre 5 y 10 dias"}]
["OLC043","2019-04-26","Lucrecia","Alta","Si","No","No","Si","No","No","Si","No","No","Falta Solpe X ODI2-065R16MJJ-GQ","FIN-A",7000080043,"2019-05-03","","","ODI2-065R16MJJ-GQ","Existente",null,null,"Guzmán Nacich","Prio 2","Semana 3 Mayo","LC043","1255075-1",{"$f":"Pendientes!$Q421-Pendientes!$B421","v":7},{"$f":"VLOOKUP(Pendientes!$AC421,Hoja1!A:B,2,TRUE)","v":"Entre 5 y 10 dias"}]
["OLP015",null,null,null,null,null,null,null,null,null,"Energia OK",null,null,null,"FIN",7000079798,"2019-04-17",null,null,"ASI4518R14v06",null,null,null,"CIS SRL",0,"Fin Semana 1 Mayo","LP015","1255173-1",{"$f":"Pendientes!$Q422-Pendientes!$B422","v":43572},{"$f":"VLOOKUP(Pendientes!$AC422,Hoja1!A:B,2,TRUE)","v":"Mas de 10 días"}]
["OLP033","2019-05-06","Lucrecia",null,null,null,null,null,null,null,null,null,null,null,"TO DO",null,null,null,null,null,null,null,null,"Guzmán Nacich",null,"Semana 4 Mayo",null,null,{"$f":"Pendientes!$Q423-Pendientes!$B423","v":-43591},{"$f":"VLOOKUP(Pendientes!$AC423,Hoja1!A:B,2,TRUE)","v":{"$error":"#N/A"}}]
["OLP034","2019-03-11","Lucrecia",null,null,null,null,null,null,null,"Planilla OK 2019",null,null,"ok stock","FIN",7000079796,"2019-04-17",null,null,"ASI4517R3v06",null,null,null,"CIS SRL",0,"Semana 3 Mayo","LP034","1255174-1",{"$f":"Pendientes!$Q424-Pendientes!$B424","v":37},{"$f":"VLOOKUP(Pendientes!$AC424,Hoja1!A:B,2,TRUE)","v":"Mas de 10 días"}]
["OLP038","25/04/2019","Lucrecia","Media","Si","No","No","Si","No","No","Si","No","No","Datos correctos","FIN-A",7000080174,"2019-05-09","","Datos correctos","ASI4517R3V06","Nueva",null,null,"Guzmán Nacich","Prio 1","Semana 4 Mayo","LP038","1255191-1",{"$f":"Pendientes!$Q425-Pendientes!$B425","v":14},{"$f":"VLOOKUP(Pendientes!$AC425,Hoja1!A:B,2,TRUE)","v":"Mas de 10 días"}]
["OLP101","02/05/2019","Lucrecia","","Si","No","No","Si","No","No","Si","No","No","Se verificaron los archivos y se cargaron las actualizaciones en BPM.","FIN",7000080206,"2019-05-10","","Se tomaron los datos de BPM","ODI-065R15M18JJ-G","",null,null,"Guzmán Nacich",0,"Semana 3 Mayo Forzado","LP101","1255078-1",{"$f":"Pendientes!$Q426-Pendientes!$B426","v":8},{"$f":"VLOOKUP(Pendientes!$AC426,Hoja1!A:B,2,TRUE)","v":"Entre 5 y 10 dias"}]
["OLP109","2019-03-11","Rodrigo",null,null,null,null,null,null,null,"Sin planilla de fuerza",null,null,"ok stock","FIN",7000079564,"2019-04-05",null,null,"ASI4517R3v06",null,null,null,"CIS SRL",0,"Fin Semana 3 Abril","LP109","1255193-1",{"$f":"Pendientes!$Q427-Pendientes!$B427","v":25},{"$f":"VLOOKUP(Pendientes!$AC427,Hoja1!A:B,2,TRUE)","v":"Mas de 10 días"}]
["OLP110","2019-03-11",null,null,null,null,null,null,null,null,"Planilla OK 2019 / Falta definir antena",null,null,"ok stock","FIN",7000079236,"2019-03-14",null,null,"ASI4518R14v06",null,null,null,"CIS SRL",0,"Fin Semana 2 Marzo","LP110","1254899-1",{"$f":"Pendientes!$Q428-Pendientes!$B428","v":3},{"$f":"VLOOKUP(Pendientes!$AC428,Hoja1!A:B,2,TRUE)","v":"Entre 3 y 5 dias"}]
["OLP135",null,"Barbara",null,null,null,null,null,null,null,"Energia OK",null,null,null,"FIN",7000079833,"2019-04-22",null,null,"ASI4518R14v06",null,null,null,"CIS SRL",0,"Fin Semana 1 Mayo","LP135","1254901-1",{"$f":"Pendientes!$Q429-Pendientes!$B429","v":43577},{"$f":"VLOOKUP(Pendientes!$AC429,Hoja1!A:B,2,TRUE)","v":"Mas de 10 días"}]
["OMC016",null,"Rodrigo",null,null,null,null,null,null,null,null,null,null,"ok stock","FIN","7000079281/7000079300","2019-03-28",null,null,null,null,null,null,"Sidaco",0,"Fin Semana 2 Marzo","MC016","905896-1",{"$f":"Pendientes!$Q430-Pendientes!$B430","v":43552},{"$f":"VLOOKUP(Pendientes!$AC430,Hoja1!A:B,2,TRUE)","v":"Mas de 10 días"}]
["OMC025",null,"Rodrigo",null,null,null,null,null,null,null,null,null,null,"ok stock","FIN",7000079456,"2019-03-28",null,null,null,null,null,null,"Sidaco",0,"Fin Semana 1 Abril","MC025","1130641-1",{"$f":"Pendientes!$Q431-Pendientes!$B431","v":43552},{"$f":"VLOOKUP(Pendientes!$AC431,Hoja1!A:B,2,TRUE)","v":"Mas de 10 días"}]
["OMC027",null,"Rodrigo",null,null,null,null,null,null,null,null,null,null,"ok stock","FIN",7000079457,"2019-03-28",null,null,null,null,null,null,"Sidaco",0,"Fin Semana 4 Abril","MC027","1130674-1",{"$f":"Pendientes!$Q432-Pendientes!$B432","v":43552},{"$f":"VLOOKUP(Pendientes!$AC432,Hoja1!A:B,2,TRUE)","v":"Mas de 10 días"}]
["OMC028",null,null,null,null,null,null,null,null,null,null,null,null,null,"FIN",7000079485,"2019-03-29",null,null,null,null,null,null,"Sidaco",0,"Fin Semana 2 Mayo","MC028","905901-1",{"$f":"Pendientes!$Q433-Pendientes!$B433","v":43553},{"$f":"VLOOKUP(Pendientes!$AC433,Hoja1!A:B,2,TRUE)","v":"Mas de 10 días"}]
["OMC038",null,null,null,null,null,null,null,null,null,null,null,null,null,"FIN",7000079484,"2019-03-29",null,null,null,null,null,null,"Sidaco",0,"Fin Semana 4 Abril","MC038","905898-1",{"$f":"Pendientes!$Q434-Pendientes!$B434","v":43553},{"$f":"VLOOKUP(Pendientes!$AC434,Hoja1!A:B,2,TRUE)","v":"Mas de 10 días"}]
["OMC039",null,null,"Adelanto",null,null,null,null,null,null,null,null,null,null,"FIN",7000079341,"2019-04-04",null,null,null,null,null,null,"Sidaco",0,"Fin Semana 1 Abril","MC039","1130600-1",{"$f":"Pendientes!$Q435-Pendientes!$B435","v":43559},{"$f":"VLOOKUP(Pendientes!$AC435,Hoja1!A:B,2,TRUE)","v":"Mas de 10 días"}]
["OMC078","2019-04-30","Ricky","Alta","SI","NO","NO","NO","NO","NO","SI","NO","NO",null,"FIN",7000080057,"2019-05-03",null,null,"ODI2065R16M18JGQ - AAU3910","Nueva",null,null,"Sidaco","Prio 1","Fin Semana 2 Mayo","MC078","905909-1",{"$f":"Pendientes!$Q436-Pendientes!$B436","v":3},{"$f":"VLOOKUP(Pendientes!$AC436,Hoja1!A:B,2,TRUE)","v":"Entre 3 y 5 dias"}]
["OMC083","2019-05-02","Barbara","alta","Si","No","No","No","No","No","Si","No","No","FINALIZADO","FIN",7000080163,"2019-05-08","","","ODI2-065R16M18J-GQ+AAUU3910","Nueva",null,null,"CIS SRL",0,"Semana 3 Mayo","MC083","905924-1",{"$f":"Pendientes!$Q437-Pendientes!$B437","v":6},{"$f":"VLOOKUP(Pendientes!$AC437,Hoja1!A:B,2,TRUE)","v":"Entre 5 y 10 dias"}]
["OMC095","2019-05-02","Barbara","Alta","Si","No","No","No","No","No","Si","No","No","OK","FIN",7000080078,"2019-05-06","","FALTA STOCK DE DIPLEXORES, SE REDIMENCIONO CON OTRA SOLUCION","ODI2-065R16M18JG-Q","NUEVA",null,null,"CIS SRL",0,"Semana 3 Mayo","MC095","905912-1",{"$f":"Pendientes!$Q438-Pendientes!$B438","v":4},{"$f":"VLOOKUP(Pendientes!$AC438,Hoja1!A:B,2,TRUE)","v":"Entre 3 y 5 dias"}]
["OMC196","2019-05-07","Ricky",null,"NO","NO","NO","NO","NO","NO","SI","NO","NO","Sin planos ","FIN",7000080257,"2019-05-14",null,"AQU + 6 DipB + 3 Activ","AQU + 6 DipB + 3 Activ","nueva",null,null,"Sidaco",null,"Semana 4 Mayo","MC196","905920-1",{"$f":"Pendientes!$Q439-Pendientes!$B439","v":7},{"$f":"VLOOKUP(Pendientes!$AC439,Hoja1!A:B,2,TRUE)","v":"Entre 5 y 10 dias"}]
["OMC305","2019-05-02","Barbara","Alta","Si","NO","NO","NO","NO","NO","SI","NO","NO","sin complicaiones en la informacion","FIN",7000080158,"2019-05-08",null,"sin complicaiones en la informacion","ODI2-065R16M18J-GQ+AAUU3910",null,null,null,"CIS SRL",0,"Semana 3 Mayo","MC305","905922-1",{"$f":"Pendientes!$Q440-Pendientes!$B440","v":6},{"$f":"VLOOKUP(Pendientes!$AC440,Hoja1!A:B,2,TRUE)","v":"Entre 5 y 10 dias"}]
["OMC373","2019-04-30","Ricky","Alta","SI","NO","NO","NO","NO","NO","SI","NO","NO",null,"FIN",7000080060,"2019-05-03",null,null,"ODI2065R16M18JGQ - AAU3910","Nueva",null,null,"Sidaco","Prio 1","Semana 3 Mayo","MC373","905927-1",{"$f":"Pendientes!$Q441-Pendientes!$B441","v":3},{"$f":"VLOOKUP(Pendientes!$AC441,Hoja1!A:B,2,TRUE)","v":"Entre 3 y 5 dias"}]
["OMS003",null,null,null,null,null,null,null,null,null,null,null,null,"ok stock","FIN",7000077204,"2019-03-18",null,null,"AQU4518R24",null,null,null,"Sidaco",0,"Fin Semana 2 Marzo","MS003","905916-1",{"$f":"Pendientes!$Q442-Pendientes!$B442","v":43542},{"$f":"VLOOKUP(Pendientes!$AC442,Hoja1!A:B,2,TRUE)","v":"Mas de 10 días"}]
["OMS004","2019-04-30","Ricky","Alta","SI","No","No","No","No","No","No","SI","NO","PENDIENTE INGENIERIA","FIN",7000080061,"2019-05-03",null,null,"ODI2065R16M18JGQ - AAU3910","Existente",null,null,"Sidaco","Prio 1","Fin Semana 2 Mayo","MS004","905917-1",{"$f":"Pendientes!$Q443-Pendientes!$B443","v":3},{"$f":"VLOOKUP(Pendientes!$AC443,Hoja1!A:B,2,TRUE)","v":"Entre 3 y 5 dias"}]
["OMS012","2019-05-09","Barbara","Prio 3","Si","No","No","No","No","No","Si","Si","Si","14/05 FINALIZADA PENDIENTE DE CONFIRMACION CAMBIO DE RRU POR RDA. QUIEBRE DE STOCK UBBPE6","FIN",7000080253,"2019-05-14",null,null,"ODI2-065R16M18J-GQ+AAUU3910",null,null,null,"CIS SRL",null,"Semana 1 Junio","MS012","905919-1",{"$f":"Pendientes!$Q444-Pendientes!$B444","v":5},{"$f":"VLOOKUP(Pendientes!$AC444,Hoja1!A:B,2,TRUE)","v":"Entre 5 y 10 dias"}]
["OMS025","2019-05-09","Ricky","Prio 3","No","No","No","No","No","No","No","No","No","14/5:No hay información en BPM","PENDIENTE INGENIERIA ",null,null,null,null,null,null,null,null,"Sidaco",null,"Semana 4 Mayo","MS025",null,{"$f":"Pendientes!$Q445-Pendientes!$B445","v":-43594},{"$f":"VLOOKUP(Pendientes!$AC445,Hoja1!A:B,2,TRUE)","v":{"$error":"#N/A"}}]
["OQC045","2019-03-11","Rodrigo",null,null,null,null,null,null,null,null,null,null,"ok stock","FIN",69135,"2019-03-12",null,null,"ok hw, falta definicion energia",null,null,null,"Huawei",0,"Fin Semana 2 Marzo","QC045","905943-1",{"$f":"Pendientes!$Q446-Pendientes!$B446","v":1},{"$f":"VLOOKUP(Pendientes!$AC446,Hoja1!A:B,2,TRUE)","v":"en 24hs"}]
["OQC053",null,"Ricky",null,{"$error":"#N/A"},null,null,null,null,null,"Energia OK",null,null,"Adelanto Mario ( planos ingresaron 12/4/19)","FIN",69428,"2019-04-12",null,null,null,null,null,null,"Huawei",0,"Fin Semana 4 Abril","QC053","905933-1",{"$f":"Pendientes!$Q447-Pendientes!$B447","v":43567},{"$f":"VLOOKUP(Pendientes!$AC447,Hoja1!A:B,2,TRUE)","v":"Mas de 10 días"}]
["OQC058",null,"Ricky",null,{"$error":"#N/A"},null,null,null,null,null,null,null,null,"Adelanto Mario ","FIN",69433,"2019-04-12",null,null,"TNA770A00RI",null,null,null,"Huawei",0,"Fin Semana 1 Mayo","QC058","905934-1",{"$f":"Pendientes!$Q448-Pendientes!$B448","v":43567},{"$f":"VLOOKUP(Pendientes!$AC448,Hoja1!A:B,2,TRUE)","v":"Mas de 10 días"}]
["OQC074",null,"Rodrigo","Adelanto",null,null,null,null,null,null,null,null,null,null,"FIN",69137,"2019-04-08",null,null,null,null,null,null,"Huawei",0,"Fin Semana 4 Abril","QC074","905935-1",{"$f":"Pendientes!$Q449-Pendientes!$B449","v":43563},{"$f":"VLOOKUP(Pendientes!$AC449,Hoja1!A:B,2,TRUE)","v":"Mas de 10 días"}]
["OQC348","2019-03-11","Rodrigo",null,null,null,null,null,null,null,null,null,null,"requiere reingenieria de calculo","PENDIENTE INGENIERIA ",null,null,null,null,"ASI4517R3v06 (Interior)",null,null,null,"Huawei",0,"Pendiente Ingeniería","QC348","905951-1",{"$f":"Pendientes!$Q450-Pendientes!$B450","v":-43535},{"$f":"VLOOKUP(Pendientes!$AC450,Hoja1!A:B,2,TRUE)","v":{"$error":"#N/A"}}]
["OQC349","2019-03-11","Rodrigo",null,null,null,null,null,null,null,null,null,null,"requiere reingenieria de calculo","PENDIENTE INGENIERIA ",null,null,null,null,"ASI4517R3v06 (Interior)",null,null,null,"Huawei","Prio 2","Semana 4 Mayo","QC349","905946-1",{"$f":"Pendientes!$Q451-Pendientes!$B451","v":-43535},{"$f":"VLOOKUP(Pendientes!$AC451,Hoja1!A:B,2,TRUE)","v":{"$error":"#N/A"}}]
["OQCM12","2019-04-12","Ricky","Adelanto","No","No","No","No","No","No","No","SI","No","-          4 RRU’s 3281 de B7 (4T4R)","FIN",7000079869,"2019-04-24",null,"Materiales para Fri Music Neuquén - QCM12",null,null,null,null,"PEM",0,{"$error":"#N/A"},"QCM12",{"$error":"#N/A"},{"$f":"Pendientes!$Q452-Pendientes!$B452","v":12},{"$f":"VLOOKUP(Pendientes!$AC452,Hoja1!A:B,2,TRUE)","v":"Mas de 10 días"}]
["ORC010",null,"Ricky",null,{"$error":"#N/A"},null,null,null,null,null,null,null,null,"Adelanto Mario","FIN",69450,"2019-04-12",null,null,"TNA770A00RI",null,null,null,"Huawei",0,"Fin Semana 4 Abril","RC010","905954-1",{"$f":"Pendientes!$Q453-Pendientes!$B453","v":43567},{"$f":"VLOOKUP(Pendientes!$AC453,Hoja1!A:B,2,TRUE)","v":"Mas de 10 días"}]
["ORC066",null,"Ricky",null,{"$error":"#N/A"},null,null,null,null,null,null,null,null," Adelanto Mario","FIN",69451,"2019-04-12",null,null,null,null,null,null,"Huawei",0,"Fin Semana 1 Mayo","RC066","905940-1",{"$f":"Pendientes!$Q454-Pendientes!$B454","v":43567},{"$f":"VLOOKUP(Pendientes!$AC454,Hoja1!A:B,2,TRUE)","v":"Mas de 10 días"}]
["ORC317",null,"Rodrigo",null,null,null,null,null,null,null,"OK energia a verificar",null,null,"Falta ingenieria ","FIN",69226,"2019-03-21",null,null,"AQU4518R24 = ODI2-065R16M18JG-Q",null,null,null,"Huawei",0,"Fin Semana 3 Abril","RC317","905955-1",{"$f":"Pendientes!$Q455-Pendientes!$B455","v":43545},{"$f":"VLOOKUP(Pendientes!$AC455,Hoja1!A:B,2,TRUE)","v":"Mas de 10 días"}]
["ORN001","2019-03-13","Rodrigo",null,null,null,null,null,null,null,null,null,null,"Falta definición de antenas según PDG","PENDIENTE INGENIERIA ",null,null,null,null,"En relevaniento, no estan las ingenierias",null,null,null,"Huawei",0,"Pendiente Ingeniería","RN001","905941-1",{"$f":"Pendientes!$Q456-Pendientes!$B456","v":-43537},{"$f":"VLOOKUP(Pendientes!$AC456,Hoja1!A:B,2,TRUE)","v":{"$error":"#N/A"}}]
["ORN004","2019-03-13",null,null,null,null,null,null,null,null,null,null,null,"Falta definición de antenas según PDG","FIN",7000079078,"2019-03-21",null,null,"En relevaniento, no estan las ingenierias",null,null,null,"Tesur",0,"Reasignación Tesur","RN004","905948-1",{"$f":"Pendientes!$Q457-Pendientes!$B457","v":8},{"$f":"VLOOKUP(Pendientes!$AC457,Hoja1!A:B,2,TRUE)","v":"Entre 5 y 10 dias"}]
["ORN016","5/2/2019","Rodrigo","Alta","No","Si","No","No","No","No","No","Si","No","DWG en mail de C.Lanfranco.","FIN",7000080154,"2019-05-08","","","QuadBand Odi2 + AAU3910","",null,null,"Huawei",0,"Semana 3 Mayo","RN016","905972-1",{"$f":"Pendientes!$Q458-Pendientes!$B458","v":92},{"$f":"VLOOKUP(Pendientes!$AC458,Hoja1!A:B,2,TRUE)","v":"Mas de 10 días"}]
["OTC032",null,null,null,null,null,null,null,null,null,"Energia OK",null,null,"Ingresaron los planos desde MI 12/04/19 - discrepancia entre DWG y PDG RDA","FIN",7000079795,"2019-04-17",null,null,"HExabanda grande o Hexabanda Chica?",null,null,null,"CIS SRL",0,"Fin Semana 1 Mayo","TC032","905639-1",{"$f":"Pendientes!$Q459-Pendientes!$B459","v":43572},{"$f":"VLOOKUP(Pendientes!$AC459,Hoja1!A:B,2,TRUE)","v":"Mas de 10 días"}]
["OUW005","2019-03-11",null,null,null,null,null,null,null,null,null,null,null,"ok stock","FIN",7000079178,"2019-03-12",null,null,"ok hw, falta definicion energia",null,null,null,"Guzmán Nacich",0,"Fin Semana 2 Marzo","UW005","905987-1",{"$f":"Pendientes!$Q460-Pendientes!$B460","v":1},{"$f":"VLOOKUP(Pendientes!$AC460,Hoja1!A:B,2,TRUE)","v":"en 24hs"}]
["OUW006","2019-05-07","Lucrecia",null,"SI","NO","NO","NO","NO","NO","SI","NO","NO","Entro ok","FIN",7000080202,"2019-05-10",null,null,"ODI2 QUADBAND","Existente",null,null,"Guzmán Nacich",null,"Semana 3 Mayo Forzado","UW006","905988-1",{"$f":"Pendientes!$Q461-Pendientes!$B461","v":3},{"$f":"VLOOKUP(Pendientes!$AC461,Hoja1!A:B,2,TRUE)","v":"Entre 3 y 5 dias"}]
["RN015",null,"Ricky",null,{"$error":"#N/A"},null,null,null,null,null,null,null,null,"Adelanto Mario","FIN",69439,"2019-04-12",null,null,null,null,null,null,"Huawei",{"$error":"#N/A"},{"$error":"#N/A"},{"$error":"#N/A"},{"$error":"#N/A"},{"$f":"Pendientes!$Q462-Pendientes!$B462","v":43567},{"$f":"VLOOKUP(Pendientes!$AC462,Hoja1!A:B,2,TRUE)","v":"Mas de 10 días"}]
["SAC301",null,"RICKY","Adelanto",{"$error":"#N/A"},null,null,null,null,null,null,null,null,null,"FIN",7000079637,"2019-04-09",null,null,null,null,null,null,"CIS SRL",0,"Fin Semana 2 Marzo","AC301","1129111-1",{"$f":"Pendientes!$Q463-Pendientes!$B463","v":43564},{"$f":"VLOOKUP(Pendientes!$AC463,Hoja1!A:B,2,TRUE)","v":"Mas de 10 días"}]
["SAN003","2019-04-29","Rodrigo","Alta","Si","No","No","No","No","No","Si","No","No","Antena sin stock ODI2-065R16MJJ02-GQ V1","FIN","7000079958/7000079959","2019-04-29",null,"Esperar la entrada del catálogo 2000018376. ODI2-065R16MJJ02-GQ V1  - solpe 7000079959","ODI2-065R16MJJ02-GQ V1","Nueva",null,"CIS SRL","CIS SRL",0,"Fin Semana 2 Mayo","AN003","1290848-1",{"$f":"Pendientes!$Q464-Pendientes!$B464","v":0},{"$f":"VLOOKUP(Pendientes!$AC464,Hoja1!A:B,2,TRUE)","v":"en 24hs"}]
["SAN057","07/05/2019","Barbara","","Si","No","No","No","No","No","Si","Si","Si","14/05 FINALIZADA PENDIENTE DE CONFIRMACION CAMBIO DE RRU POR RDA. QUIEBRE DE STOCK UBBPE6","FIN","",null,"","","","",null,null,"CIS SRL",null,"Semana 1 Junio","AN057","1290924-1",{"$f":"Pendientes!$Q465-Pendientes!$B465","v":-43592},{"$f":"VLOOKUP(Pendientes!$AC465,Hoja1!A:B,2,TRUE)","v":{"$error":"#N/A"}}]
["SBB475",null,null,null,null,null,null,null,null,null,null,null,null,null,"FIN","7000079459/7000079508","2019-03-29",null,null,null,null,null,null,"Guzmán Nacich",0,{"$error":"#N/A"},"BB475",{"$error":"#N/A"},{"$f":"Pendientes!$Q466-Pendientes!$B466","v":43553},{"$f":"VLOOKUP(Pendientes!$AC466,Hoja1!A:B,2,TRUE)","v":"Mas de 10 días"}]
["SIC001",null,"Ricky","Adelanto",{"$error":"#N/A"},null,null,null,null,null,null,null,null,null,"FIN",7000079599,"2019-04-05",null,null,null,null,null,null,"Guzmán Nacich",0,"Fin Semana 3 Abril","IC001","1129222-1",{"$f":"Pendientes!$Q467-Pendientes!$B467","v":43560},{"$f":"VLOOKUP(Pendientes!$AC467,Hoja1!A:B,2,TRUE)","v":"Mas de 10 días"}]
["SIC004",null,null,null,null,null,null,null,null,null,null,null,null,"Sin Fecha (requiere refuerzo)","FIN",7000077399,"2019-03-11",null,null,null,null,null,null,"Guzmán Nacich",0,"Pendiente Ingeniería","IC004","1142706-1",{"$f":"Pendientes!$Q468-Pendientes!$B468","v":43535},{"$f":"VLOOKUP(Pendientes!$AC468,Hoja1!A:B,2,TRUE)","v":"Mas de 10 días"}]
["SIC008",null,"Ricky","Adelanto",{"$error":"#N/A"},null,null,null,null,null,null,null,null,null,"FIN",7000079598,"2019-04-05",null,null,null,null,null,null,"Guzmán Nacich",0,"Fin Semana 2 Abril","IC008","1129223-1",{"$f":"Pendientes!$Q469-Pendientes!$B469","v":43560},{"$f":"VLOOKUP(Pendientes!$AC469,Hoja1!A:B,2,TRUE)","v":"Mas de 10 días"}]
["SIC014",null,"Ricky","Adelanto",{"$error":"#N/A"},null,null,null,null,null,null,null,null,null,"FIN",7000079595,"2019-04-05",null,null,null,null,null,null,"Guzmán Nacich",0,"Fin Semana 2 Abril","IC014","1129224-1",{"$f":"Pendientes!$Q470-Pendientes!$B470","v":43560},{"$f":"VLOOKUP(Pendientes!$AC470,Hoja1!A:B,2,TRUE)","v":"Mas de 10 días"}]
["SIC021",null,"Ricky","Adelanto",{"$error":"#N/A"},null,null,null,null,null,null,null,null,null,"FIN","USA HW DEL IC004","2019-04-05",null,null,null,null,null,null,"Guzmán Nacich",0,"Fin Semana 2 Abril","IC021","1129225-1",{"$f":"Pendientes!$Q471-Pendientes!$B471","v":43560},{"$f":"VLOOKUP(Pendientes!$AC471,Hoja1!A:B,2,TRUE)","v":"Mas de 10 días"}]
["SIC024",null,"Ricky","Adelanto",{"$error":"#N/A"},null,null,null,null,null,null,null,null,null,"FIN",7000079596,"2019-04-05",null,null,null,null,null,null,"Guzmán Nacich",0,"Fin Semana 2 Abril","IC024","1129095-1",{"$f":"Pendientes!$Q472-Pendientes!$B472","v":43560},{"$f":"VLOOKUP(Pendientes!$AC472,Hoja1!A:B,2,TRUE)","v":"Mas de 10 días"}]
["SIE001",null,"Ricky","Adelanto",{"$error":"#N/A"},null,null,null,null,null,null,null,null,null,"FIN",7000079597,"2019-04-05",null,null,null,null,null,null,"Guzmán Nacich",0,"Pendiente Ingeniería","IE001","1129226-1",{"$f":"Pendientes!$Q473-Pendientes!$B473","v":43560},{"$f":"VLOOKUP(Pendientes!$AC473,Hoja1!A:B,2,TRUE)","v":"Mas de 10 días"}]
["SIE006",null,"Ricky","Adelanto",{"$error":"#N/A"},null,null,null,null,null,null,null,null,null,"FIN",7000079587,"2019-04-05",null,null,null,null,null,null,"Guzmán Nacich",0,"Fin Semana 2 Abril","IE006","1129115-1",{"$f":"Pendientes!$Q474-Pendientes!$B474","v":43560},{"$f":"VLOOKUP(Pendientes!$AC474,Hoja1!A:B,2,TRUE)","v":"Mas de 10 días"}]
["SIN010","02-05-2019","Lucrecia","","Incompleto","No","No","Incompleto","No","No","Energia OK","No","No","Llego ingenieria de MI 12/4/19","SIN STOCK",null,null,"","Solicita placas UBBPe6 + BBU y no hay stock en ningun almacen","TNA770A00RI","Nueva",null,null,"Guzmán Nacich","Prio 2","Semana 4 Mayo","IN010","1129117-1",{"$f":"Pendientes!$Q475-Pendientes!$B475","v":-43587},{"$f":"VLOOKUP(Pendientes!$AC475,Hoja1!A:B,2,TRUE)","v":{"$error":"#N/A"}}]
["SIS005",null,null,null,null,null,null,null,null,null,null,null,null,"Sin Fecha (requiere refuerzo)","FIN",7000077452,"2019-03-11",null,null,null,null,null,null,"Guzmán Nacich",0,"Pendiente Ingeniería","IS005","1128976-1",{"$f":"Pendientes!$Q476-Pendientes!$B476","v":43535},{"$f":"VLOOKUP(Pendientes!$AC476,Hoja1!A:B,2,TRUE)","v":"Mas de 10 días"}]
["SJC004","2019-03-07",null,null,null,null,null,null,null,null,null,null,null,"ok stock","FIN","7000079143 ","2019-03-08",null,null,"Terminada",null,null,null,"Sidaco",0,"Fin Semana 2 Marzo","JC004","1129227-1",{"$f":"Pendientes!$Q477-Pendientes!$B477","v":1},{"$f":"VLOOKUP(Pendientes!$AC477,Hoja1!A:B,2,TRUE)","v":"en 24hs"}]
["SJC005",null,null,null,null,null,null,null,null,null,null,null,null,null,"FIN",7000079486,"2019-03-21",null,null,null,null,null,null,"Sidaco",0,"Fin Semana 1 Abril","JC005","1128981-1",{"$f":"Pendientes!$Q478-Pendientes!$B478","v":43545},{"$f":"VLOOKUP(Pendientes!$AC478,Hoja1!A:B,2,TRUE)","v":"Mas de 10 días"}]
["SJC006","2019-03-07",null,null,null,null,null,null,null,null,null,null,null,"ok stock","FIN","7000079143/7000079268/7000079308","2019-03-08",null,null,"Terminada",null,null,null,"Sidaco",0,"Fin Semana 2 Marzo","JC006","1129119-1",{"$f":"Pendientes!$Q479-Pendientes!$B479","v":1},{"$f":"VLOOKUP(Pendientes!$AC479,Hoja1!A:B,2,TRUE)","v":"en 24hs"}]
["SJC010","2019-05-02","Cristian","Alta","SI","NO","NO","Incompleto","NO","NO","SI","NO","NO","El plano no se condice con el hw a instalar, dice RRU´s a reutilizar cuando en ep PDG indica HW nuevo - la energia no estaba bien dimencionada en el plano, se corrigio para hacer el pedido con Ing de Fuerza","FIN",7000080039,"2019-05-03",null,null,"ODI2-065R16M18J-GQ + AAUU3910","Nueva",null,null,"Multiradio","Prio 1","Fin Semana 2 Mayo","JC010","1129047-1",{"$f":"Pendientes!$Q480-Pendientes!$B480","v":1},{"$f":"VLOOKUP(Pendientes!$AC480,Hoja1!A:B,2,TRUE)","v":"en 24hs"}]
["SJC018","2019-05-02","Cristian",null,"SI","NO","NO","NO","NO","NO","NO","NO","NO","SIN FUERZA","FIN",7000080094,"2019-05-07",null,"SE RESUELVE FUERZA ON LINE CON PLANIFICACION","ODI2-065R16M18J-GQ + AAUU3910",null,null,null,"Multiradio","Prio 1","Semana 3 Mayo","JC018","1129120-1",{"$f":"Pendientes!$Q481-Pendientes!$B481","v":5},{"$f":"VLOOKUP(Pendientes!$AC481,Hoja1!A:B,2,TRUE)","v":"Entre 5 y 10 dias"}]
["SJC022","2019-05-02","Cristian",null,"SI","NO","NO","NO","NO","NO","SI","NO","NO","FUERZA EXISTENTE","FIN",7000080130,"2019-05-07",null,null,"ODI2-065R16M18J-GQ + AAUU3910","Existente",null,null,"Multiradio","Prio 1","Semana 3 Mayo","JC022","1129121-1",{"$f":"Pendientes!$Q482-Pendientes!$B482","v":5},{"$f":"VLOOKUP(Pendientes!$AC482,Hoja1!A:B,2,TRUE)","v":"Entre 5 y 10 dias"}]
["SJC025","2019-05-02","Cristian","Alta","SI","NO","NO","Incompleto","NO","NO","SI","NO","NO","PLANILLA MATERIALES INCOMPLETA","FIN",7000080133,"2019-05-07",null,"ENERGIA EXISTENTE SE REUTILIZA DC2ZTE SE AGREGA DC3 SECUNDARIO ","ODI2-065R16M18JG-Q+AAUU3910","Nueva",null,null,"Multiradio","Prio 1","Semana 3 Mayo","JC025","1129228-1",{"$f":"Pendientes!$Q483-Pendientes!$B483","v":5},{"$f":"VLOOKUP(Pendientes!$AC483,Hoja1!A:B,2,TRUE)","v":"Entre 5 y 10 dias"}]
["SJC026","2019-05-02","Cristian","Alta","Si","No","No","No","No","No","Si","No","No","solo faltaba el detalle de los materiales","FIN",7000080164,"2019-05-08","","Sale completo","ODI2-065R16M18J-GQ + AAUU3910","Nueva",null,null,"Multiradio","Prio 1","Semana 3 Mayo","JC026","1129126-1",{"$f":"Pendientes!$Q484-Pendientes!$B484","v":6},{"$f":"VLOOKUP(Pendientes!$AC484,Hoja1!A:B,2,TRUE)","v":"Entre 5 y 10 dias"}]
["SJC030","2019-05-02","Cristian","Alta","SI","NO","NO","SI","NO","NO","SI","NO","NO",null,"FIN",7000080036,"2019-05-03",null,null,"ODI2-065R16M18J-GQ + AAUU3910","Nueva",null,null,"Multiradio","Prio 1","Fin Semana 2 Mayo","JC030","1129096-1",{"$f":"Pendientes!$Q485-Pendientes!$B485","v":1},{"$f":"VLOOKUP(Pendientes!$AC485,Hoja1!A:B,2,TRUE)","v":"en 24hs"}]
["SJC034","2019-05-02","Cristian","Alta","SI","NO","NO","NO","NO","NO","SI","NO","NO",null,"FIN",7000080037,"2019-05-03",null,null,"ODI2-065R16M18J-GQ + AAUU3910","Nueva",null,null,"Multiradio","Prio 1","Semana 3 Mayo","JC034","1129129-1",{"$f":"Pendientes!$Q486-Pendientes!$B486","v":1},{"$f":"VLOOKUP(Pendientes!$AC486,Hoja1!A:B,2,TRUE)","v":"en 24hs"}]
["SJC035",null,null,null,null,null,null,null,null,null,null,null,null,null,"FIN",7000079269,"2019-03-15",null,null,null,null,null,null,"Sidaco",0,"Fin Semana 4 Abril","JC035","1129279-1",{"$f":"Pendientes!$Q487-Pendientes!$B487","v":43539},{"$f":"VLOOKUP(Pendientes!$AC487,Hoja1!A:B,2,TRUE)","v":"Mas de 10 días"}]
["SJC047",null,null,null,null,null,null,null,null,null,null,null,null,null,"FIN",7000079280,"2019-03-15",null,null,null,null,null,null,"Sidaco",0,"Fin Semana 2 Marzo","JC047","1129182-1",{"$f":"Pendientes!$Q488-Pendientes!$B488","v":43539},{"$f":"VLOOKUP(Pendientes!$AC488,Hoja1!A:B,2,TRUE)","v":"Mas de 10 días"}]
["SJC048",null,null,null,null,null,null,null,null,null,null,null,null,null,"FIN",7000079264,"2019-03-15",null,null,null,null,null,null,"Sidaco",0,"Fin Semana 1 Abril","JC048","1129048-1",{"$f":"Pendientes!$Q489-Pendientes!$B489","v":43539},{"$f":"VLOOKUP(Pendientes!$AC489,Hoja1!A:B,2,TRUE)","v":"Mas de 10 días"}]
["SJC053",null,null,null,null,null,null,null,null,null,null,null,null,null,"FIN",7000079345,"2019-03-22",null,null,null,null,null,null,"Sidaco",0,"Fin Semana 2 Marzo","JC053","1129097-1",{"$f":"Pendientes!$Q490-Pendientes!$B490","v":43546},{"$f":"VLOOKUP(Pendientes!$AC490,Hoja1!A:B,2,TRUE)","v":"Mas de 10 días"}]
["SJC056",null,null,"Adelanto",null,null,null,null,null,null,null,null,null,null,"FIN",7000079317,"2019-04-01",null,null,null,null,null,null,"Sidaco",0,"Fin Semana 2 Abril","JC056","1129229-1",{"$f":"Pendientes!$Q491-Pendientes!$B491","v":43556},{"$f":"VLOOKUP(Pendientes!$AC491,Hoja1!A:B,2,TRUE)","v":"Mas de 10 días"}]
["SJC303",null,"Rodrigo",null,null,null,null,null,null,null,null,null,null,"ok stock","FIN",7000079318,"2019-03-28",null,null,null,null,null,null,"Sidaco",0,"Fin Semana 1 Abril","JC303","1129263-1",{"$f":"Pendientes!$Q492-Pendientes!$B492","v":43552},{"$f":"VLOOKUP(Pendientes!$AC492,Hoja1!A:B,2,TRUE)","v":"Mas de 10 días"}]
["SJC320","2019-05-02","Cristian","Alta","SI","NO","NO","SI","NO","NO","SI","NO","NO",null,"FIN",7000080038,"2019-05-03",null,null,"ODI2-065R16M18J-GQ + AAUU3910","Nueva",null,null,"Multiradio","Prio 1","Fin Semana 2 Mayo","JC320","1128995-1",{"$f":"Pendientes!$Q493-Pendientes!$B493","v":1},{"$f":"VLOOKUP(Pendientes!$AC493,Hoja1!A:B,2,TRUE)","v":"en 24hs"}]
["SJC322",null,"Rodrigo",null,null,null,null,null,null,null,null,null,null,"ok stock","FIN",7000079346,"2019-03-28",null,null,null,null,null,null,"Sidaco",0,"Fin Semana 1 Abril","JC322","1129231-1",{"$f":"Pendientes!$Q494-Pendientes!$B494","v":43552},{"$f":"VLOOKUP(Pendientes!$AC494,Hoja1!A:B,2,TRUE)","v":"Mas de 10 días"}]
["SJC326",null,null,"Adelanto",null,null,null,null,null,null,null,null,null,null,"FIN",7000079319,"2019-04-01",null,null,null,null,null,null,"Sidaco",0,"Fin Semana 2 Abril","JC326","1129134-1",{"$f":"Pendientes!$Q495-Pendientes!$B495","v":43556},{"$f":"VLOOKUP(Pendientes!$AC495,Hoja1!A:B,2,TRUE)","v":"Mas de 10 días"}]
["SJC329",null,null,"Adelanto",null,null,null,null,null,null,null,null,null,null,"FIN",7000079330,"2019-04-01",null,null,null,null,null,null,"Sidaco",0,"Fin Semana 2 Abril","JC329","1129240-1",{"$f":"Pendientes!$Q496-Pendientes!$B496","v":43556},{"$f":"VLOOKUP(Pendientes!$AC496,Hoja1!A:B,2,TRUE)","v":"Mas de 10 días"}]
["SJC332",null,"Rodrigo",null,null,null,null,null,null,null,null,null,null,"ok stock","FIN",7000079347,"2019-03-28",null,null,null,null,null,null,"Sidaco",0,"Fin Semana 1 Abril","JC332","1129098-1",{"$f":"Pendientes!$Q497-Pendientes!$B497","v":43552},{"$f":"VLOOKUP(Pendientes!$AC497,Hoja1!A:B,2,TRUE)","v":"Mas de 10 días"}]
["SJC337",null,null,null,null,null,null,null,null,null,null,null,null,null,"FIN",7000079265,"2019-03-15",null,null,null,null,null,null,"Sidaco",0,"Fin Semana 1 Abril","JC337","1129280-1",{"$f":"Pendientes!$Q498-Pendientes!$B498","v":43539},{"$f":"VLOOKUP(Pendientes!$AC498,Hoja1!A:B,2,TRUE)","v":"Mas de 10 días"}]
["SJC339",null,null,null,null,null,null,null,null,null,null,null,null,null,"FIN",7000079266,"2019-03-15",null,null,null,null,null,null,"Sidaco",0,"Fin Semana 1 Abril","JC339","1129099-1",{"$f":"Pendientes!$Q499-Pendientes!$B499","v":43539},{"$f":"VLOOKUP(Pendientes!$AC499,Hoja1!A:B,2,TRUE)","v":"Mas de 10 días"}]
["SJS025",null,null,null,null,null,null,null,null,null,null,null,null,null,"FIN",7000079144,"2019-03-11",null,null,null,null,null,null,"Sidaco",0,"Fin Semana 1 Abril","JS025","1128996-1",{"$f":"Pendientes!$Q500-Pendientes!$B500","v":43535},{"$f":"VLOOKUP(Pendientes!$AC500,Hoja1!A:B,2,TRUE)","v":"Mas de 10 días"}]
["SJS026","2/5/2019","RICKY","Alta","Si","No","No","No","No","No","No","Si","No","Antena existente ADU4518R7 ","FIN",7000080082,"2019-05-06","","","ADU4518R7","Nueva",null,null,"Sidaco","Prio 1","Semana 3 Mayo","JS026",{"$error":"#N/A"},{"$f":"Pendientes!$Q501-Pendientes!$B501","v":4},{"$f":"VLOOKUP(Pendientes!$AC501,Hoja1!A:B,2,TRUE)","v":"Entre 3 y 5 dias"}]
["SMC001 ",null,"Rodrigo","Adelanto",null,null,null,null,null,null,null,null,null,null,"FIN",7000079334,"2019-04-12",null,null,null,null,null,null,"Sidaco",0,{"$error":"#N/A"},"MC001",{"$error":"#N/A"},{"$f":"Pendientes!$Q502-Pendientes!$B502","v":43567},{"$f":"VLOOKUP(Pendientes!$AC502,Hoja1!A:B,2,TRUE)","v":"Mas de 10 días"}]
["SMC010",null,null,null,null,null,null,null,null,null,"Energia OK",null,null,"consultar a RDA por el cambio de antena , no hay el modelo pedido AQU4518R24, se pide verificar si se cambia por ODI2-065R16M18J-Q -----CATALOGO 2000019816","FIN",7000079922,"2019-04-25",null,null,"ODI2-065R16M18J-GQ +  AAU3910",null,null,null,"CIS SRL",0,"Fin Semana 1 Mayo","MC010","1128998-1",{"$f":"Pendientes!$Q503-Pendientes!$B503","v":43580},{"$f":"VLOOKUP(Pendientes!$AC503,Hoja1!A:B,2,TRUE)","v":"Mas de 10 días"}]
["SMC016",null,null,null,null,null,null,null,null,null,null,null,null,null,"FIN",7000079281,"2019-03-15",null,null,null,null,null,null,"Sidaco",0,"Fin Semana 2 Marzo","MC016","1129000-1",{"$f":"Pendientes!$Q504-Pendientes!$B504","v":43539},{"$f":"VLOOKUP(Pendientes!$AC504,Hoja1!A:B,2,TRUE)","v":"Mas de 10 días"}]
["SMC019",null,"Lucrecia",null,null,null,null,null,null,null,null,null,null,null,"FIN",7000079731,"2019-04-12",null,null,null,null,null,null,"Sidaco",0,"Fin Semana 4 Abril","MC019","1129283-1",{"$f":"Pendientes!$Q505-Pendientes!$B505","v":43567},{"$f":"VLOOKUP(Pendientes!$AC505,Hoja1!A:B,2,TRUE)","v":"Mas de 10 días"}]
["SMC025",null,"Rodrigo",null,null,null,null,null,null,null,null,null,null,"ok stock","FIN",7000079456,"2019-03-28",null,null,null,null,null,null,"Sidaco",0,"Fin Semana 1 Abril","MC025","1129242-1",{"$f":"Pendientes!$Q506-Pendientes!$B506","v":43552},{"$f":"VLOOKUP(Pendientes!$AC506,Hoja1!A:B,2,TRUE)","v":"Mas de 10 días"}]
["SMC027",null,"Rodrigo",null,null,null,null,null,null,null,null,null,null,"ok stock","FIN",7000079457,"2019-03-28",null,null,null,null,null,null,"Sidaco",0,"Fin Semana 4 Abril","MC027","1129243-1",{"$f":"Pendientes!$Q507-Pendientes!$B507","v":43552},{"$f":"VLOOKUP(Pendientes!$AC507,Hoja1!A:B,2,TRUE)","v":"Mas de 10 días"}]
["SMC039",null,null,"Adelanto",null,null,null,null,null,null,null,null,null,null,"FIN",7000079341,"2019-04-04",null,null,null,null,null,null,"Sidaco",0,"Fin Semana 1 Abril","MC039","1128983-1",{"$f":"Pendientes!$Q508-Pendientes!$B508","v":43559},{"$f":"VLOOKUP(Pendientes!$AC508,Hoja1!A:B,2,TRUE)","v":"Mas de 10 días"}]
["SMC054",null,null,null,null,null,null,null,null,null,"Energia OK",null,null,"ingreso de planos 12-4-19","FIN",7000079267,"2019-03-15",null,null,null,null,null,null,"Sidaco",0,"Fin Semana 1 Abril","MC054","1129141-1",{"$f":"Pendientes!$Q509-Pendientes!$B509","v":43539},{"$f":"VLOOKUP(Pendientes!$AC509,Hoja1!A:B,2,TRUE)","v":"Mas de 10 días"}]
["SMC064",null,null,"Adelanto",null,null,null,null,null,null,null,null,null,null,"FIN",7000079337,"2019-04-01",null,null,null,null,null,null,"Sidaco",0,"Fin Semana 1 Abril","MC064","1129001-1",{"$f":"Pendientes!$Q510-Pendientes!$B510","v":43556},{"$f":"VLOOKUP(Pendientes!$AC510,Hoja1!A:B,2,TRUE)","v":"Mas de 10 días"}]
["SMC065",null,null,"Adelanto",null,null,null,null,null,null,null,null,null,null,"FIN",7000079338,"2019-04-01",null,null,null,null,null,null,"Sidaco",0,"Fin Semana 1 Abril","MC065","1129002-1",{"$f":"Pendientes!$Q511-Pendientes!$B511","v":43556},{"$f":"VLOOKUP(Pendientes!$AC511,Hoja1!A:B,2,TRUE)","v":"Mas de 10 días"}]
["SMC078","2019-04-30","Ricky","Alta","SI","NO","NO","NO","NO","NO","SI","NO","NO",null,"FIN",7000080057,"2019-05-03",null,null,"ODI2065R16M18JGQ - AAU3910","Nueva",null,null,"Sidaco","Prio 1","Fin Semana 2 Mayo","MC078","1129149-1",{"$f":"Pendientes!$Q512-Pendientes!$B512","v":3},{"$f":"VLOOKUP(Pendientes!$AC512,Hoja1!A:B,2,TRUE)","v":"Entre 3 y 5 dias"}]
["SMC083","02/05/2019","Barbara","alta","Si","No","No","No","No","No","Si","No","No","FINALIZADO","FIN",7000080163,"2019-05-08","","","ODI2-065R16M18J-GQ+AAUU3910","Nueva",null,null,"CIS SRL",0,"Semana 3 Mayo","MC083","1129247-1",{"$f":"Pendientes!$Q513-Pendientes!$B513","v":6},{"$f":"VLOOKUP(Pendientes!$AC513,Hoja1!A:B,2,TRUE)","v":"Entre 5 y 10 dias"}]
["SMC095","2019-05-02","Barbara","Alta","Si","No","No","No","No","No","Si","No","No","OK","FIN",7000080078,"2019-05-06","","FALTA STOCK DE DIPLEXORES, SE REDIMENCIONO CON OTRA SOLUCION","ODI2-065R16M18JG-Q","NUEVA",null,null,"CIS SRL",0,"Semana 3 Mayo","MC095","1129151-1",{"$f":"Pendientes!$Q514-Pendientes!$B514","v":4},{"$f":"VLOOKUP(Pendientes!$AC514,Hoja1!A:B,2,TRUE)","v":"Entre 3 y 5 dias"}]
["SMC196","2019-05-07","Ricky",null,"NO","NO","NO","NO","NO","NO","SI","NO","NO","Sin planos ","FIN",7000080257,"2019-05-14",null,"AQU + 6 DipB + 3 Activ","AQU + 6 DipB + 3 Activ","Nueva",null,null,"Sidaco",null,"Semana 4 Mayo","MC196","1129103-1",{"$f":"Pendientes!$Q515-Pendientes!$B515","v":7},{"$f":"VLOOKUP(Pendientes!$AC515,Hoja1!A:B,2,TRUE)","v":"Entre 5 y 10 dias"}]
["SMC305","2019-05-02","Barbara","Alta","Si","NO","NO","NO","NO","NO","SI","NO","NO","sin complicaiones en la informacion","FIN",7000080158,"2019-05-08",null,"sin complicaiones en la informacion","ODI2-065R16M18J-GQ+AAUU3910",null,null,null,"CIS SRL",0,"Semana 3 Mayo","MC305","1129250-1",{"$f":"Pendientes!$Q516-Pendientes!$B516","v":6},{"$f":"VLOOKUP(Pendientes!$AC516,Hoja1!A:B,2,TRUE)","v":"Entre 5 y 10 dias"}]
["SMC318","2019-05-02","Ricky","Alta","SI","NO","NO","NO","NO","NO","SI","NO","NO",null,"FIN",7000080058,"2019-05-03",null,null,"ODI2065R16M18JGQ - AAU3910","Nueva",null,null,"Sidaco","Prio 1","Fin Semana 2 Mayo","MC318","1129153-1",{"$f":"Pendientes!$Q517-Pendientes!$B517","v":1},{"$f":"VLOOKUP(Pendientes!$AC517,Hoja1!A:B,2,TRUE)","v":"en 24hs"}]
["SMC330",null,"Barbara",null,null,null,null,null,null,null,null,null,null,"ing no cerrada fecha de fin 17 de abril - falta la ingenieria / falta Excel materiales","FIN",7000079826,"2019-04-23",null,null,"Sin planos / Validar modelo de antena x ODI2-065R16M18J-GQ/ Validar con Ingenieria ",null,null,null,"CIS SRL",0,"Fin Semana 4 Abril","MC330","1129143-1",{"$f":"Pendientes!$Q518-Pendientes!$B518","v":43578},{"$f":"VLOOKUP(Pendientes!$AC518,Hoja1!A:B,2,TRUE)","v":"Mas de 10 días"}]
["SMC355","2019-04-26","Ricky","Alta","NO","NO","NO","NO","NO","NO","NO","NO","NO","PENDIENTE INGENIERIA + ENERGIA - Espera a la ing del SMC355","FIN",7000080059,"2019-05-03",null,null,"ODI2065R16M18JGQ - AAU3910","Existente",null,null,"Sidaco",0,"Fin Semana 2 Mayo","MC355","1129209-1",{"$f":"Pendientes!$Q519-Pendientes!$B519","v":7},{"$f":"VLOOKUP(Pendientes!$AC519,Hoja1!A:B,2,TRUE)","v":"Entre 5 y 10 dias"}]
["SMC373","2019-05-02","Ricky","Alta","SI","NO","NO","NO","NO","NO","SI","NO","NO",null,"FIN",7000080060,"2019-05-03",null,null,"ODI2065R16M18JGQ - AAU3910","Nueva",null,null,"Sidaco","Prio 1","Semana 3 Mayo","MC373","1129144-1",{"$f":"Pendientes!$Q520-Pendientes!$B520","v":1},{"$f":"VLOOKUP(Pendientes!$AC520,Hoja1!A:B,2,TRUE)","v":"en 24hs"}]
["SMN016","2/5/2019","Ricky","Alta","Incompleto","No","No","No","No","No","Si","No","No","Antena existente","FIN",7000080084,"2019-05-06","","","ATR4518R6 ","Nueva",null,null,"Sidaco","Prio 1","Semana 3 Mayo","MN016","1291039-1",{"$f":"Pendientes!$Q521-Pendientes!$B521","v":4},{"$f":"VLOOKUP(Pendientes!$AC521,Hoja1!A:B,2,TRUE)","v":"Entre 3 y 5 dias"}]
["SMN078","2019-04-29","Ricky","Alta","Si","No","No","No","No","No","Si","No","No",null,"FIN",7000079968,"2019-04-29",null,"Se cambia antena por ODI2065R16M18JGQ , en lugar de QUAD+Aactiva","ODI2-065R16M18J-GQ +  AAU3910","Nueva",null,"CIS SRL","CIS SRL",0,"Fin Semana 2 Mayo","MN078","1129148-1",{"$f":"Pendientes!$Q522-Pendientes!$B522","v":0},{"$f":"VLOOKUP(Pendientes!$AC522,Hoja1!A:B,2,TRUE)","v":"en 24hs"}]
["SMS003",null,null,null,null,null,null,null,null,null,null,null,null,"ok stock","FIN",7000077204,"2019-03-18",null,null,"AQU4518R24",null,null,null,"Sidaco",0,"Fin Semana 2 Marzo","MS003","1128987-1",{"$f":"Pendientes!$Q523-Pendientes!$B523","v":43542},{"$f":"VLOOKUP(Pendientes!$AC523,Hoja1!A:B,2,TRUE)","v":"Mas de 10 días"}]
["SMS004","2019-04-30","Ricky","Alta","SI","No","No","No","No","No","No","SI","NO","PENDIENTE INGENIERIA","FIN",7000080061,"2019-05-03",null,null,"ODI2065R16M18JGQ - AAU3910","Existente",null,null,"Sidaco","Prio 1","Fin Semana 2 Mayo","MS004","1128988-1",{"$f":"Pendientes!$Q524-Pendientes!$B524","v":3},{"$f":"VLOOKUP(Pendientes!$AC524,Hoja1!A:B,2,TRUE)","v":"Entre 3 y 5 dias"}]
["SMS012","09/05/2019","Barbara","Prio 3","Si","No","No","No","No","No","Si","Si","Si","PENDIENTE DE CONFIRMACION CAMBIO DE RRU POR RDA. QUIEBRE DE STOCK UBBPE6","FIN",7000080253,"2019-05-14","","","ODI2-065R16M18J-GQ+AAUU3910","",null,null,"CIS SRL",null,"Semana 4 Mayo","MS012","1129155-1",{"$f":"Pendientes!$Q525-Pendientes!$B525","v":5},{"$f":"VLOOKUP(Pendientes!$AC525,Hoja1!A:B,2,TRUE)","v":"Entre 5 y 10 dias"}]
["SMS025","2019-05-09","Ricky","Prio 3","No","No","No","No","No","No","No","No","No","14/5:No hay información en BPM","PENDIENTE INGENIERIA ",null,null,null,null,null,null,null,null,"Sidaco",null,"Semana 4 Mayo","MS025",null,{"$f":"Pendientes!$Q526-Pendientes!$B526","v":-43594},{"$f":"VLOOKUP(Pendientes!$AC526,Hoja1!A:B,2,TRUE)","v":{"$error":"#N/A"}}]
["SMS033","2019-05-02","Ricky","Alta","No","No","No","No","No","No","No","No","No","Se armo el pedido segun PDG de RDA","FIN",7000080083,"2019-05-06","","Se armo el pedido segun PDG de RDA","ODI2065R16M18JGQ","Nueva",null,null,"Sidaco","Prio 1","Semana 3 Mayo","MS033","1129254-1",{"$f":"Pendientes!$Q527-Pendientes!$B527","v":4},{"$f":"VLOOKUP(Pendientes!$AC527,Hoja1!A:B,2,TRUE)","v":"Entre 3 y 5 dias"}]
["SMS036","2019-04-29","Rodrigo","Alta","Si","No","No","No","No","No","Si","No","No",null,"FIN",7000079966,"2019-04-29",null,"Se generó la SOLPE para cumplir con el sitio MS036. Para el sitio utilizar 2 (dos) de los 7 (siete) bancos de baterías enviados","ODI2-065R16M18J-GQ +  AAU3910","Nueva",null,null,"CIS SRL",0,"Fin Semana 2 Mayo","MS036","1129157-1",{"$f":"Pendientes!$Q528-Pendientes!$B528","v":0},{"$f":"VLOOKUP(Pendientes!$AC528,Hoja1!A:B,2,TRUE)","v":"en 24hs"}]
["SMS322","2019-05-02","Barbara","Alta","SI","NO","NO","NO","NO","NO","SI","NO","NO",null,"FIN",7000080032,"2019-05-03",null,"Las baterias deben tomarse de la solpe solpe 7000079999","ODI2-065R16M18J-GQ + AAUU3910",null,null,null,"CIS SRL","Prio 1","Fin Semana 2 Mayo","MS322","1129166-1",{"$f":"Pendientes!$Q529-Pendientes!$B529","v":1},{"$f":"VLOOKUP(Pendientes!$AC529,Hoja1!A:B,2,TRUE)","v":"en 24hs"}]
["SOC009",null,"Lucrecia",null,null,null,null,null,null,null,null,null,null,null,"FIN",7000079854,"2019-03-29",null,null,null,null,null,null,"CIS SRL",0,"Semana 3 Mayo","OC009","1290950-1",{"$f":"Pendientes!$Q530-Pendientes!$B530","v":43553},{"$f":"VLOOKUP(Pendientes!$AC530,Hoja1!A:B,2,TRUE)","v":"Mas de 10 días"}]
["SOS014","2019-05-02","Barbara","Alta","SI","NO","NO","NO","NO","NO","sI","NO","NO",null,"FIN-A",7000080051,"2019-05-03",null,"Las baterias salen de la solpe 7000079999","ASI4517R3v06","Nueva",null,null,"CIS SRL","Prio 1","Semana 3 Mayo","OS014","1290901-1",{"$f":"Pendientes!$Q531-Pendientes!$B531","v":1},{"$f":"VLOOKUP(Pendientes!$AC531,Hoja1!A:B,2,TRUE)","v":"en 24hs"}]
["SQC006",null,"Ricky",null,{"$error":"#N/A"},null,null,null,null,null,null,null,null,"Falta ingreso de las RRUs + Antenas TDD","FIN",69449,"2019-04-12",null,null,null,null,null,null,"Huawei",0,"Fin Semana 4 Abril","QC006","1128961-1",{"$f":"Pendientes!$Q532-Pendientes!$B532","v":43567},{"$f":"VLOOKUP(Pendientes!$AC532,Hoja1!A:B,2,TRUE)","v":"Mas de 10 días"}]
["SQC011",null,"Ricky",null,{"$error":"#N/A"},null,null,null,null,null,"Validar planilla 2017",null,null,"Adelanto Mario","FIN",69427,"2019-04-12",null,null,"TNA770A00RI",null,null,null,"Huawei",0,"Fin Semana 4 Abril","QC011","1144301-1",{"$f":"Pendientes!$Q533-Pendientes!$B533","v":43567},{"$f":"VLOOKUP(Pendientes!$AC533,Hoja1!A:B,2,TRUE)","v":"Mas de 10 días"}]
["SQC045","2019-03-11","Rodrigo",null,null,null,null,null,null,null,null,null,null,"ok stock","FIN",69135,"2019-03-12",null,null,"ok hw, falta definicion energia",null,null,null,"Huawei",0,"Fin Semana 2 Marzo","QC045","1128968-1",{"$f":"Pendientes!$Q534-Pendientes!$B534","v":1},{"$f":"VLOOKUP(Pendientes!$AC534,Hoja1!A:B,2,TRUE)","v":"en 24hs"}]
["SQC053",null,"Ricky",null,{"$error":"#N/A"},null,null,null,null,null,"Energia OK",null,null,"Adelanto Mario ( planos ingresaron 12/4/19)","FIN",69428,"2019-04-12",null,null,null,null,null,null,"Huawei",0,"Fin Semana 4 Abril","QC053","1129159-1",{"$f":"Pendientes!$Q535-Pendientes!$B535","v":43567},{"$f":"VLOOKUP(Pendientes!$AC535,Hoja1!A:B,2,TRUE)","v":"Mas de 10 días"}]
["SQC058",null,"Ricky",null,{"$error":"#N/A"},null,null,null,null,null,null,null,null,"Adelanto Mario ","FIN",69433,"2019-04-12",null,null,"TNA770A00RI",null,null,null,"Huawei",0,"Fin Semana 1 Mayo","QC058","1129173-1",{"$f":"Pendientes!$Q536-Pendientes!$B536","v":43567},{"$f":"VLOOKUP(Pendientes!$AC536,Hoja1!A:B,2,TRUE)","v":"Mas de 10 días"}]
["SQC074","2019-03-11","Rodrigo","Adelanto",null,null,null,null,null,null,"Sin planilla",null,null,"ok stock","FIN",69137,"2019-03-12",null,null,"ok hw, falta definicion energia",null,null,null,"Huawei",0,"Fin Semana 4 Abril","QC074","1129213-1",{"$f":"Pendientes!$Q537-Pendientes!$B537","v":1},{"$f":"VLOOKUP(Pendientes!$AC537,Hoja1!A:B,2,TRUE)","v":"en 24hs"}]
["SQC346","2019-03-11","Rodrigo",null,null,null,null,null,null,null,"Sin planilla",null,null,"ok stock","FIN","69136/7000079699","2019-03-12",null,null,"ok hw, falta definicion energia",null,null,null,"Huawei",0,"Fin Semana 2 Abril","QC346","1129160-1",{"$f":"Pendientes!$Q538-Pendientes!$B538","v":1},{"$f":"VLOOKUP(Pendientes!$AC538,Hoja1!A:B,2,TRUE)","v":"en 24hs"}]
["SQC348","2019-03-11","Rodrigo",null,null,null,null,null,null,null,null,null,null,"requiere reingenieria de calculo","PENDIENTE INGENIERIA ",null,null,null,null,"ASI4517R3v06 (Interior)",null,null,null,"Huawei",0,"Pendiente Ingeniería","QC348","1129256-1",{"$f":"Pendientes!$Q539-Pendientes!$B539","v":-43535},{"$f":"VLOOKUP(Pendientes!$AC539,Hoja1!A:B,2,TRUE)","v":{"$error":"#N/A"}}]
["SQC349","2019-03-11","Rodrigo",null,null,null,null,null,null,null,null,null,null,"requiere reingenieria de calculo","PENDIENTE INGENIERIA ",null,null,null,null,"ASI4517R3v06 (Interior)",null,null,null,"Huawei","Prio 2","Semana 4 Mayo","QC349","1129013-1",{"$f":"Pendientes!$Q540-Pendientes!$B540","v":-43535},{"$f":"VLOOKUP(Pendientes!$AC540,Hoja1!A:B,2,TRUE)","v":{"$error":"#N/A"}}]
["SQE011","5/6/2019","Rodrigo","","No","Si","No","No","No","No","No","No","No","Sin cargas en BPM, MI confirmo energia existente","FIN",7000080132,"2019-05-07",2,"","ODI2-065R16M18J-GQ","Existente",null,null,"Huawei",null,"Semana 3 Mayo",null,null,{"$f":"Pendientes!$Q541-Pendientes!$B541","v":-29},{"$f":"VLOOKUP(Pendientes!$AC541,Hoja1!A:B,2,TRUE)","v":{"$error":"#N/A"}}]
["SQS313","2019-05-10","Ricky","Prio 2","NO","NO","NO","NO","NO","NO","SI","NO","NO","14/5: No coincide Ingeniería con PDG de RDA","PENDIENTE RDA",null,null,null,null,"AQU + DipB","Existente",null,null,"Sidaco",null,"Semana 4 Mayo","QS313","1129165-1",{"$f":"Pendientes!$Q542-Pendientes!$B542","v":-43595},{"$f":"VLOOKUP(Pendientes!$AC542,Hoja1!A:B,2,TRUE)","v":{"$error":"#N/A"}}]
["SQW018",null,"RICKY",null,{"$error":"#N/A"},null,null,null,null,null,null,null,null,null,"FIN","7000079570 / 7000079573","2019-04-04",null,null,null,null,null,null,"PEM",0,"Fin Semana 2 Abril","QW018","1129189-1",{"$f":"Pendientes!$Q543-Pendientes!$B543","v":43559},{"$f":"VLOOKUP(Pendientes!$AC543,Hoja1!A:B,2,TRUE)","v":"Mas de 10 días"}]
["SQW033",null,"Rodrigo",null,"Incompleto","NO","NO","NO","NO","NO","Incompleto","NO","NO","INGENIERIA Ingenieria a revision ( Fuerza + Materiales)","PENDIENTE INGENIERIA + ENERGIA",null,null,null,null,"ANTENA A DEFINIR",null,null,null,"Huawei",0,"Pendiente Ingeniería","QW033","1129265-1",{"$f":"Pendientes!$Q544-Pendientes!$B544","v":0},{"$f":"VLOOKUP(Pendientes!$AC544,Hoja1!A:B,2,TRUE)","v":"en 24hs"}]
["SRC010",null,"Ricky",null,{"$error":"#N/A"},null,null,null,null,null,null,null,null,"Adelanto Mario","FIN",69450,"2019-04-12",null,null,"TNA770A00RI",null,null,null,"Huawei",0,"Fin Semana 4 Abril","RC010","1129019-1",{"$f":"Pendientes!$Q545-Pendientes!$B545","v":43567},{"$f":"VLOOKUP(Pendientes!$AC545,Hoja1!A:B,2,TRUE)","v":"Mas de 10 días"}]
["SRC066",null,"Ricky",null,{"$error":"#N/A"},null,null,null,null,null,null,null,null," Adelanto Mario","FIN",69451,"2019-04-12",null,null,null,null,null,null,"Huawei",0,"Fin Semana 1 Mayo","RC066","1129248-1",{"$f":"Pendientes!$Q546-Pendientes!$B546","v":43567},{"$f":"VLOOKUP(Pendientes!$AC546,Hoja1!A:B,2,TRUE)","v":"Mas de 10 días"}]
["SRC317",null,"Rodrigo",null,null,null,null,null,null,null,"OK energia a verificar",null,null,"Falta ingenieria ","FIN",69226,"2019-03-21",null,null,"AQU4518R24 = ODI2-065R16M18JG-Q",null,null,null,"Huawei",0,"Fin Semana 3 Abril","RC317","1129300-1",{"$f":"Pendientes!$Q547-Pendientes!$B547","v":43545},{"$f":"VLOOKUP(Pendientes!$AC547,Hoja1!A:B,2,TRUE)","v":"Mas de 10 días"}]
["SRE007",null,"Ricky",null,{"$error":"#N/A"},null,null,null,null,null,null,null,null,"Adelanto Mario","FIN",69452,"2019-04-12",null,null,"TNA770A00RI",null,null,null,"Huawei",0,"Fin Semana 4 Abril","RE007","1129301-1",{"$f":"Pendientes!$Q548-Pendientes!$B548","v":43567},{"$f":"VLOOKUP(Pendientes!$AC548,Hoja1!A:B,2,TRUE)","v":"Mas de 10 días"}]
["SRE024","2019-04-30","Barbara","Alta","Si","NO","NO","NO","NO","NO","SI","NO","NO",null,"FIN",7000080019,"2019-05-03",null,null,"ADU4518R7","Existente",null,"CIS SRL","CIS SRL","Prio 1","Fin Semana 2 Mayo","RE024","1291033-1",{"$f":"Pendientes!$Q549-Pendientes!$B549","v":3},{"$f":"VLOOKUP(Pendientes!$AC549,Hoja1!A:B,2,TRUE)","v":"Entre 3 y 5 dias"}]
["SRE308","2019-03-13","Ricky",null,{"$error":"#N/A"},null,null,null,null,null,null,null,null,"Adelanto Mario /Falta definición de antenas según PDG","FIN",69453,"2019-04-12",null,null,"En relevaniento, no estan las ingenierias",null,null,null,"Huawei",0,"Fin Semana 4 Abril","RE308","1129021-1",{"$f":"Pendientes!$Q550-Pendientes!$B550","v":30},{"$f":"VLOOKUP(Pendientes!$AC550,Hoja1!A:B,2,TRUE)","v":"Mas de 10 días"}]
["SRN001","2019-03-13","Rodrigo",null,"Incompleto","NO","NO","NO","NO","NO","SI","NO","NO","Falta definición de antenas según PDG","PENDIENTE INGENIERIA ",null,null,null,null,"En relevaniento, no estan las ingenierias",null,null,null,"Huawei",0,"Pendiente Ingeniería","RN001","1129276-1",{"$f":"Pendientes!$Q551-Pendientes!$B551","v":-43537},{"$f":"VLOOKUP(Pendientes!$AC551,Hoja1!A:B,2,TRUE)","v":{"$error":"#N/A"}}]
["SRN004","2019-03-13",null,null,null,null,null,null,null,null,null,null,null,"Falta definición de antenas según PDG","FIN",7000079078,"2019-03-21",null,null,"En relevaniento, no estan las ingenierias",null,null,null,"Tesur",0,"Reasignación Tesur","RN004","1129022-1",{"$f":"Pendientes!$Q552-Pendientes!$B552","v":8},{"$f":"VLOOKUP(Pendientes!$AC552,Hoja1!A:B,2,TRUE)","v":"Entre 5 y 10 dias"}]
["SRN009","2019-05-02","Rodrigo","Alta","No","Si","NO","No","No","NO","No","Si","NO",null,"FIN",7000080053,"2019-05-03",null,null,"ADU4518R7","Nueva",null,null,"Huawei","Prio 1","Fin Semana 2 Mayo","RN009",{"$error":"#N/A"},{"$f":"Pendientes!$Q553-Pendientes!$B553","v":1},{"$f":"VLOOKUP(Pendientes!$AC553,Hoja1!A:B,2,TRUE)","v":"en 24hs"}]
["SRN014",null,"Ricky",null,{"$error":"#N/A"},null,null,null,null,null,"falta definicion de ingenieria",null,null,"Adelanto Mario","FIN",69436,"2019-04-12",null,null,"AAU3910 + Falta definir banda baja",null,null,null,"Huawei",0,"Fin Semana 4 Abril","RN014","1129023-1",{"$f":"Pendientes!$Q554-Pendientes!$B554","v":43567},{"$f":"VLOOKUP(Pendientes!$AC554,Hoja1!A:B,2,TRUE)","v":"Mas de 10 días"}]
["SRN015",null,"Ricky",null,{"$error":"#N/A"},null,null,null,null,null,null,null,null," Adelanto Mario","FIN",69439,"2019-04-12",null,null,null,null,null,null,"Huawei",0,"Pendiente Ingeniería","RN015","1290903-1",{"$f":"Pendientes!$Q555-Pendientes!$B555","v":43567},{"$f":"VLOOKUP(Pendientes!$AC555,Hoja1!A:B,2,TRUE)","v":"Mas de 10 días"}]
["SRN016","5/2/2019","Rodrigo","Alta","No","Si","No","No","No","No","No","Si","No","DWG en mail de C.Lanfranco.","FIN",7000080154,"2019-05-08","","","Quadband Odi2+AAU3910","",null,null,"Huawei",0,"Semana 3 Mayo","RN016","1129277-1",{"$f":"Pendientes!$Q556-Pendientes!$B556","v":92},{"$f":"VLOOKUP(Pendientes!$AC556,Hoja1!A:B,2,TRUE)","v":"Mas de 10 días"}]
["SRN018","2019-04-29","Ricky","Alta",{"$error":"#N/A"},null,null,null,null,null,null,null,null,null,"FIN",7000080013,"2019-04-30",null,"Sale con ODI2065R16M18JGQ ","AQU4518R24",null,null,null,"Huawei",0,"Semana 3 Mayo","RN018","1290954-1",{"$f":"Pendientes!$Q557-Pendientes!$B557","v":1},{"$f":"VLOOKUP(Pendientes!$AC557,Hoja1!A:B,2,TRUE)","v":"en 24hs"}]
["SRN021","2/5/2019","Rodrigo","Adelanto","No","Si","No","No","No","No","No","No","No","PENDIENTE INGENIERIA - la fuerza es la subida para la contratista anterior . en BPM no hay ningun dato","FIN",7000080086,"2019-05-06","","El viernes 3/5 se recibio el DWG por mail","ADU4518R7 ","Nueva",null,null,"Huawei","Prio 1","Semana 4 Mayo","RN021","1291034-1",{"$f":"Pendientes!$Q558-Pendientes!$B558","v":4},{"$f":"VLOOKUP(Pendientes!$AC558,Hoja1!A:B,2,TRUE)","v":"Entre 3 y 5 dias"}]
["MRN022","2019-03-13","Rodrigo",null,"NO","SI","NO","NO","NO","NO","NO","NO","NO","Falta definición de antenas según PDG","TO DO",null,null,null,null,"En relevaniento, no estan las ingenierias",null,null,null,"Huawei",0,"Semana 4 Mayo","RN022","1059136-1",{"$f":"Pendientes!$Q559-Pendientes!$B559","v":-43537},{"$f":"VLOOKUP(Pendientes!$AC559,Hoja1!A:B,2,TRUE)","v":{"$error":"#N/A"}}]
["SRN027","2019-03-13",null,null,null,null,null,null,null,null,null,null,null,"ok stock","FIN",7000079057,"2019-03-19",null,null,"AQU4518R24",null,null,null,"Tesur",0,"Fin Semana 2 Marzo","RN027","1128971-1",{"$f":"Pendientes!$Q560-Pendientes!$B560","v":6},{"$f":"VLOOKUP(Pendientes!$AC560,Hoja1!A:B,2,TRUE)","v":"Entre 5 y 10 dias"}]
["SRN022","2019-03-13","Rodrigo",null,"NO","SI","NO","NO","NO","NO","NO","NO","NO","Falta definición de antenas según PDG","TO DO",null,null,null,null,"En relevaniento, no estan las ingenierias",null,null,null,"Huawei",0,"Semana 4 Mayo","RN022","1129267-1",{"$f":"Pendientes!$Q561-Pendientes!$B561","v":-43537},{"$f":"VLOOKUP(Pendientes!$AC561,Hoja1!A:B,2,TRUE)","v":{"$error":"#N/A"}}]
["SRN063","2019-04-25","Lucrecia",null,null,null,null,null,null,null,null,null,null,null,"FIN",69602,"2019-04-26",null,null,null,null,null,null,"Huawei",0,"Fin Semana 1 Mayo","RN063","1290997-1",{"$f":"Pendientes!$Q562-Pendientes!$B562","v":1},{"$f":"VLOOKUP(Pendientes!$AC562,Hoja1!A:B,2,TRUE)","v":"en 24hs"}]
["SRN063","2019-04-29","Ricky","Alta",{"$error":"#N/A"},null,null,null,null,null,null,null,null,null,"FIN",7000080014,"2019-04-30",null,"6 ADU4518R7 + 6 DipB",null,null,null,null,"Huawei",0,"Fin Semana 1 Mayo","RN063","1290997-1",{"$f":"Pendientes!$Q563-Pendientes!$B563","v":1},{"$f":"VLOOKUP(Pendientes!$AC563,Hoja1!A:B,2,TRUE)","v":"en 24hs"}]
["SRN150","2019-04-29","Ricky","Alta",{"$error":"#N/A"},null,null,null,null,null,null,null,null,null,"FIN",7000080012,"2019-04-30",null,"Sale con ODI2065R16M18JGQ ","AQU4518R24",null,null,null,"Huawei","Prio 1","Semana 3 Mayo","RN150","1291004-1",{"$f":"Pendientes!$Q564-Pendientes!$B564","v":1},{"$f":"VLOOKUP(Pendientes!$AC564,Hoja1!A:B,2,TRUE)","v":"en 24hs"}]
["STC032",null,null,null,null,null,null,null,null,null,"Energia OK",null,null,"Ingresaron los planos desde MI 12/04/19 - discrepancia entre DWG y PDG RDA","FIN",7000079795,"2019-04-17",null,null,"HExabanda grande o Hexabanda Chica?",null,null,null,"CIS SRL",0,"Fin Semana 1 Mayo","TC032","1129050-1",{"$f":"Pendientes!$Q565-Pendientes!$B565","v":43572},{"$f":"VLOOKUP(Pendientes!$AC565,Hoja1!A:B,2,TRUE)","v":"Mas de 10 días"}]
["STE010","2019-04-29","Rodrigo","Alta","Si","No","No","No","No","No","Si","No","No","antena sin stock ASI4517R3V06 ","FIN","7000079990/7000079991/7000079826","2019-04-29",null,"Se cambio por ODI2-065R16MJJ02-GQ V1  solpe 7000079991","ASI4517R3V06","Nueva",null,null,"CIS SRL",0,"Fin Semana 2 Mayo","TE010","1290965-1",{"$f":"Pendientes!$Q566-Pendientes!$B566","v":0},{"$f":"VLOOKUP(Pendientes!$AC566,Hoja1!A:B,2,TRUE)","v":"en 24hs"}]
["STS040","2019-05-02","Barbara","Alta","SI","NO","NO","NO","NO","NO","SI","NO","NO",null,"FIN","7000080044 / 7000079900","2019-05-03",null,"Las baterias salen de la solpe 7000079900","ODI2065R16M18JG-Q","Nueva",null,null,"CIS SRL","Prio 1","Fin Semana 2 Mayo","TS040","1290970-1",{"$f":"Pendientes!$Q567-Pendientes!$B567","v":1},{"$f":"VLOOKUP(Pendientes!$AC567,Hoja1!A:B,2,TRUE)","v":"en 24hs"}]
["SUW005","2019-03-11",null,null,null,null,null,null,null,null,null,null,null,"ok stock","FIN",7000079178,"2019-03-12",null,null,"ok hw, falta definicion energia",null,null,null,"Guzmán Nacich",0,"Fin Semana 2 Marzo","UW005","1129071-1",{"$f":"Pendientes!$Q568-Pendientes!$B568","v":1},{"$f":"VLOOKUP(Pendientes!$AC568,Hoja1!A:B,2,TRUE)","v":"en 24hs"}]
["SUW006","2019-05-07","Lucrecia",null,"SI","NO","NO","NO","NO","NO","SI","NO","NO","Entro ok","FIN",7000080202,"2019-05-10",null,null,"ODI2 QUADBAND","Existente",null,null,"Guzmán Nacich",null,"Semana 3 Mayo Forzado","UW006","1128980-1",{"$f":"Pendientes!$Q569-Pendientes!$B569","v":3},{"$f":"VLOOKUP(Pendientes!$AC569,Hoja1!A:B,2,TRUE)","v":"Entre 3 y 5 dias"}]
["SUW009","2019-03-11","Rodrigo",null,null,null,null,null,null,null,null,null,null,"ok stock","FIN",7000079490,"2019-03-28",null,null,"TNA770A00RI",null,null,null,"Guzmán Nacich",0,"Fin Semana 1 Abril","UW009","1129031-1",{"$f":"Pendientes!$Q570-Pendientes!$B570","v":17},{"$f":"VLOOKUP(Pendientes!$AC570,Hoja1!A:B,2,TRUE)","v":"Mas de 10 días"}]
["SUW018","2019-03-11",null,null,null,null,null,null,null,null,null,null,null,"ok stock","FIN",7000079179,"2019-03-12",null,null,"ok hw, falta definicion energia",null,null,null,"Guzmán Nacich",0,"Fin Semana 2 Marzo","UW018","1129034-1",{"$f":"Pendientes!$Q571-Pendientes!$B571","v":1},{"$f":"VLOOKUP(Pendientes!$AC571,Hoja1!A:B,2,TRUE)","v":"en 24hs"}]
["SUW019","2019-04-29","Ricky","Alta","NO","NO","NO","NO","NO","NO","NO","NO","NO",null,"FIN",7000080015,"2019-04-30",null,"6 ADU4518R7 + 6 DipB",null,null,null,null,"Huawei",0,"Semana 3 Mayo Forzado","UW019","1291036-1",{"$f":"Pendientes!$Q572-Pendientes!$B572","v":1},{"$f":"VLOOKUP(Pendientes!$AC572,Hoja1!A:B,2,TRUE)","v":"en 24hs"}]
["SXC350",null,"Barbara",null,null,null,null,null,null,null,null,null,null,"sin stock","FIN","7000079755/7000079633","2019-04-15",null,null,"ASI4517R3v06 (Interior)",null,null,null,"CIS SRL",0,"Fin Semana 2 Mayo","XC350","1231267-1",{"$f":"Pendientes!$Q573-Pendientes!$B573","v":43570},{"$f":"VLOOKUP(Pendientes!$AC573,Hoja1!A:B,2,TRUE)","v":"Mas de 10 días"}]
["SXN023","2019-04-29","Ricky","Alta","Si","No","No","No","No","No","Si","No","No","Sin RRZZ-65B-R4","FIN",7000079969,"2019-04-29",null,"Se reemplaza antena por ODI2065R16M18JGQ","RRZZ-65B-R4","Nueva",null,null,"CIS SRL",0,"Fin Semana 2 Mayo","XN023","1290953-1",{"$f":"Pendientes!$Q574-Pendientes!$B574","v":0},{"$f":"VLOOKUP(Pendientes!$AC574,Hoja1!A:B,2,TRUE)","v":"en 24hs"}]
["SXS027",null,"Lucrecia",null,null,null,null,null,null,null,null,null,null,null,"FIN","7000079874/7000079875","2019-04-24",null,null,null,null,null,null,"Sidaco",0,"Fin Semana 1 Mayo","XS027","1290971-1",{"$f":"Pendientes!$Q575-Pendientes!$B575","v":43579},{"$f":"VLOOKUP(Pendientes!$AC575,Hoja1!A:B,2,TRUE)","v":"Mas de 10 días"}]
["SXS048",null,"Lucrecia",null,null,null,null,null,null,null,null,null,null,null,"FIN","7000079884/7000079883","2019-04-24",null,null,null,null,null,null,"Sidaco",0,"Fin Semana 1 Mayo","XS048","1291038-1",{"$f":"Pendientes!$Q576-Pendientes!$B576","v":43579},{"$f":"VLOOKUP(Pendientes!$AC576,Hoja1!A:B,2,TRUE)","v":"Mas de 10 días"}]
["SXS089",null,"Barbara",null,"SI","NO","NO","NO","NO","NO","SI","NO","NO",null,"FIN-A",7000080100,"2019-05-07",null,"FALTA SOLPE POR ANTENAS POR FALTA DE STOCK","FALTA ANTENA",null,null,null,"CIS SRL","Prio 1","Semana 3 Mayo","XS089",{"$error":"#N/A"},{"$f":"Pendientes!$Q577-Pendientes!$B577","v":43592},{"$f":"VLOOKUP(Pendientes!$AC577,Hoja1!A:B,2,TRUE)","v":"Mas de 10 días"}]
["SXW162","2019-04-25","Ricky","Alta","Si","No","No","No","No","No","SI","No","No","2000020483 Ant Hexabanda Grande HUAWEI ASI4517R3v06 (Sin stock hasta la semana que viene)","FIN",7000080000,"2019-04-29",null,"Se hace el pedido sin antena","ASI4517R3","Existente",null,null,"Sidaco",0,"Fin Semana 2 Mayo","XW162","1290976-1",{"$f":"Pendientes!$Q578-Pendientes!$B578","v":4},{"$f":"VLOOKUP(Pendientes!$AC578,Hoja1!A:B,2,TRUE)","v":"Entre 3 y 5 dias"}]
["SXW332","2019-05-02","Barbara","Alta","SI","NO","NO","NO","NO","NO","SI","NO","NO",null,"FIN",7000080035,"2019-05-03",null,null,"ODI2-065R16M18JG-Q","Existente",null,null,"CIS SRL","Prio 1","Fin Semana 2 Mayo","XW332","1291014-1",{"$f":"Pendientes!$Q579-Pendientes!$B579","v":1},{"$f":"VLOOKUP(Pendientes!$AC579,Hoja1!A:B,2,TRUE)","v":"en 24hs"}]
["SYE002","2019-04-26","Barbara","Alta","Si","No","No","Incompleto","No","No","Si","No","No","Antena ASI4517R3","FIN-A",7000079967,"2019-04-29",null,"Se cambia antena por  ODI2-065R16MJJ-GQ ( Hexa grande). Falta segunda solpe ","ASI4517R3","Nueva",null,"CIS SRL","CIS SRL",0,"Fin Semana 2 Mayo","YE002","1291015-1",{"$f":"Pendientes!$Q580-Pendientes!$B580","v":3},{"$f":"VLOOKUP(Pendientes!$AC580,Hoja1!A:B,2,TRUE)","v":"Entre 3 y 5 dias"}]
["SYE004","2019-05-02","Cristian",null,null,null,null,null,null,null,null,null,null,null,"TO DO",null,null,null,null,null,null,null,null,"Multiradio","Prio 1","Pendiente Ingeniería","YE004",{"$error":"#N/A"},{"$f":"Pendientes!$Q581-Pendientes!$B581","v":-43587},{"$f":"VLOOKUP(Pendientes!$AC581,Hoja1!A:B,2,TRUE)","v":{"$error":"#N/A"}}]
["SYN001","2019-05-02","Cristian",null,null,null,null,null,null,null,null,null,null,null,"TO DO",null,null,null,null,null,null,null,null,"Multiradio","Prio 1","Semana 4 Mayo","YN001",{"$error":"#N/A"},{"$f":"Pendientes!$Q582-Pendientes!$B582","v":-43587},{"$f":"VLOOKUP(Pendientes!$AC582,Hoja1!A:B,2,TRUE)","v":{"$error":"#N/A"}}]
["SZC015",null,"Lucrecia",null,null,null,null,null,null,null,null,null,null,null,"FIN",7000079856,"2019-04-23",null,null,null,null,null,"CIS SRL","CIS SRL",0,"Semana 3 Mayo","ZC015","1290973-1",{"$f":"Pendientes!$Q583-Pendientes!$B583","v":43578},{"$f":"VLOOKUP(Pendientes!$AC583,Hoja1!A:B,2,TRUE)","v":"Mas de 10 días"}]
["SZC024",null,"Rodrigo",null,null,null,null,null,null,null,"fuerza OK",null,null,"Planos OK  - 2G 1900 NO FIGURA EN PDG","FIN","7000079763/ 7000079657","2019-04-15",null,null,null,null,null,null,"Sidaco",0,{"$error":"#N/A"},"ZC024",{"$error":"#N/A"},{"$f":"Pendientes!$Q584-Pendientes!$B584","v":43570},{"$f":"VLOOKUP(Pendientes!$AC584,Hoja1!A:B,2,TRUE)","v":"Mas de 10 días"}]
["SZW012","2019-04-29","Barbara","Alta",null,null,null,null,null,null,null,null,null,null,"FIN-A",7000080017,"2019-05-02",null,"FALTA SOLPE POR ANTENAS POR FALTA DE STOCK","ASI4517R3v06","Nueva",null,null,"CIS SRL","Prio 1","Ver Planificación Renta TECO","ZW012","1290995-1",{"$f":"Pendientes!$Q585-Pendientes!$B585","v":3},{"$f":"VLOOKUP(Pendientes!$AC585,Hoja1!A:B,2,TRUE)","v":"Entre 3 y 5 dias"}]
["SZW025","2019-05-09","Cristian","PRIO 1",null,null,null,null,null,null,null,null,null,null,"TO DO",null,null,null,null,null,null,null,null,"Multiradio",null,"Semana 4 Mayo","ZW025","1290880-1",{"$f":"Pendientes!$Q586-Pendientes!$B586","v":-43594},{"$f":"VLOOKUP(Pendientes!$AC586,Hoja1!A:B,2,TRUE)","v":{"$error":"#N/A"}}]
["VAN057","2019-05-07","Barbara",null,"Si","No","No","No","No","No","No","Si","Si","10/05 RRU Y BBU Faltante HW para RAN 1","SIN STOCK",null,null,null,null,null,null,null,null,"CIS SRL",null,"Semana 1 Junio","AN057","927828-1",{"$f":"Pendientes!$Q587-Pendientes!$B587","v":-43592},{"$f":"VLOOKUP(Pendientes!$AC587,Hoja1!A:B,2,TRUE)","v":{"$error":"#N/A"}}]
["VAW008","2019-03-11","Lucrecia",null,null,null,null,null,null,null,"RDA debe confirmar antenas",null,null,"ok stock","FIN",700079311,"2019-03-18",null,null,"AQU4518R24",null,null,null,"CIS SRL",0,"Fin Semana 2 Marzo","AW008","1239122-1",{"$f":"Pendientes!$Q588-Pendientes!$B588","v":7},{"$f":"VLOOKUP(Pendientes!$AC588,Hoja1!A:B,2,TRUE)","v":"Entre 5 y 10 dias"}]
["VBB482",null,null,null,null,null,null,null,null,null,null,null,null,null,"FIN",7000079247,"2019-03-29",null,null,null,null,null,null,"Guzmán Nacich",0,"Fin Semana 2 Marzo","BB482","1109692-1",{"$f":"Pendientes!$Q589-Pendientes!$B589","v":43553},{"$f":"VLOOKUP(Pendientes!$AC589,Hoja1!A:B,2,TRUE)","v":"Mas de 10 días"}]
["VBM129","2019-03-11","Rodrigo",null,null,null,null,null,null,null,"Sin planilla",null,null,"RAN 2 - Ericsson Mudanza del sitio BM029","FIN",7000079199,"2019-03-12",null,null,null,null,null,null,"Ericsson",0,"Fin Semana 2 Marzo","BM129","1279215-1",{"$f":"Pendientes!$Q590-Pendientes!$B590","v":1},{"$f":"VLOOKUP(Pendientes!$AC590,Hoja1!A:B,2,TRUE)","v":"en 24hs"}]
["VBM795","2019-04-25","Lucrecia","Alta","NO","NO","NO","No","No","No","No","Si","No","No cuenta con planilla de fuerza y tampoco hwr nodo","FIN-A","Cross Dock 7000080085","2019-05-06",null,"se pidio frenar el pedido 26/04/2019. Salio solpe de Cross Dock Falta solpe de Fuerza","ODI2-065R16MJJ-GQ","Nueva",null,null,"Guzmán Nacich","Prio 1","Semana 3 Mayo","BM795","944183-1",{"$f":"Pendientes!$Q591-Pendientes!$B591","v":11},{"$f":"VLOOKUP(Pendientes!$AC591,Hoja1!A:B,2,TRUE)","v":"Mas de 10 días"}]
["VC002",null,null,null,null,null,null,null,null,null,null,null,null,null,"FIN",7000079503,"2019-03-29",null,null,null,null,null,null,"Guzmán Nacich",{"$error":"#N/A"},{"$error":"#N/A"},{"$error":"#N/A"},{"$error":"#N/A"},{"$f":"Pendientes!$Q592-Pendientes!$B592","v":43553},{"$f":"VLOOKUP(Pendientes!$AC592,Hoja1!A:B,2,TRUE)","v":"Mas de 10 días"}]
["VCN155",null,"Rodrigo",null,"NO","NO","NO","NO","NO","NO","SI","NO","NO","FALTAN PLANOS","PENDIENTE INGENIERIA",null,null,null,null,null,null,null,null,"Ericsson","Sin hw","Semana 1 Junio","CN155","Salio por EP de Celda-.",{"$f":"Pendientes!$Q593-Pendientes!$B593","v":0},{"$f":"VLOOKUP(Pendientes!$AC593,Hoja1!A:B,2,TRUE)","v":"en 24hs"}]
["VFC003","2019-04-30","Cristian",null,"NO","NO","NO","NO","NO","NO","NO","SI","NO","Sin planos ","FIN","7000080233 / 7000080222","2019-05-10",null,null,"ODI2-065R16M18JGQ","Nueva",null,null,"Multiradio","Prio 1","Semana 3 Mayo Forzado","FC003","503062-1",{"$f":"Pendientes!$Q594-Pendientes!$B594","v":10},{"$f":"VLOOKUP(Pendientes!$AC594,Hoja1!A:B,2,TRUE)","v":"Mas de 10 días"}]
["VFE047",null,"Rodrigo",null,null,null,null,null,null,null,null,null,null,null,"FIN","7000078847/7000079682","2019-04-10",null,null,null,null,null,null,"CIS SRL",0,"Fin Semana 2 Abril","FE047","890928-1",{"$f":"Pendientes!$Q595-Pendientes!$B595","v":43565},{"$f":"VLOOKUP(Pendientes!$AC595,Hoja1!A:B,2,TRUE)","v":"Mas de 10 días"}]
["VFE048",null,"Rodrigo",null,null,null,null,null,null,null,null,null,null,null,"FIN","7000078846/7000079682","2019-04-10",null,null,null,null,null,null,"CIS SRL",0,"Fin Semana 2 Abril","FE048","919296-1",{"$f":"Pendientes!$Q596-Pendientes!$B596","v":43565},{"$f":"VLOOKUP(Pendientes!$AC596,Hoja1!A:B,2,TRUE)","v":"Mas de 10 días"}]
["VFE049",null,"Rodrigo",null,null,null,null,null,null,null,null,null,null,null,"FIN","7000078848/7000079682","2019-04-10",null,null,null,null,null,null,"CIS SRL",0,"Fin Semana 2 Abril","FE049","895301-1",{"$f":"Pendientes!$Q597-Pendientes!$B597","v":43565},{"$f":"VLOOKUP(Pendientes!$AC597,Hoja1!A:B,2,TRUE)","v":"Mas de 10 días"}]
["VFE052",null,"Rodrigo",null,null,null,null,null,null,null,null,null,null,null,"FIN","7000078849/7000079682","2019-04-10",null,null,null,null,null,null,"CIS SRL",0,"Fin Semana 2 Abril","FE052","889180-1",{"$f":"Pendientes!$Q598-Pendientes!$B598","v":43565},{"$f":"VLOOKUP(Pendientes!$AC598,Hoja1!A:B,2,TRUE)","v":"Mas de 10 días"}]
["VGC310","2019-03-11",null,null,null,null,null,null,null,null,"OK energia",null,null,"ok stock","FIN",7000079310,"2019-03-18",null,null,"ATR4518R6 ",null,null,null,"CIS SRL",0,"Fin Semana 2 Marzo","GC310","1113390-1",{"$f":"Pendientes!$Q599-Pendientes!$B599","v":7},{"$f":"VLOOKUP(Pendientes!$AC599,Hoja1!A:B,2,TRUE)","v":"Entre 5 y 10 dias"}]
["VIC009",null,null,null,null,null,null,null,null,null,null,null,null,null,"FIN",7000079505,"2019-03-29",null,null,null,null,null,null,"Guzmán Nacich",0,{"$error":"#N/A"},"IC009",{"$error":"#N/A"},{"$f":"Pendientes!$Q600-Pendientes!$B600","v":43553},{"$f":"VLOOKUP(Pendientes!$AC600,Hoja1!A:B,2,TRUE)","v":"Mas de 10 días"}]
["VIN001",null,null,"Adelanto",null,null,null,null,null,null,null,null,null,"Planos OK enviados 12-4-19","FIN",7000079506,"2019-03-29",null,null,null,null,null,null,"Guzmán Nacich",0,{"$error":"#N/A"},"IN001",{"$error":"#N/A"},{"$f":"Pendientes!$Q601-Pendientes!$B601","v":43553},{"$f":"VLOOKUP(Pendientes!$AC601,Hoja1!A:B,2,TRUE)","v":"Mas de 10 días"}]
["VJC201","2019-03-11",null,null,null,null,null,null,null,null,null,null,null,"ok stock","FIN","7000079191 ","2019-03-11",null,null,"Terminada",null,null,null,"PEM",0,"Fin Semana 2 Marzo","JC201","1263062-1",{"$f":"Pendientes!$Q602-Pendientes!$B602","v":0},{"$f":"VLOOKUP(Pendientes!$AC602,Hoja1!A:B,2,TRUE)","v":"en 24hs"}]
["VMC004",null,"Rodrigo","Adelanto",null,null,null,null,null,null,null,null,null,null,"FIN",7000079482,"2019-03-29",null,null,null,null,null,null,"Sidaco",0,{"$error":"#N/A"},"MC004",{"$error":"#N/A"},{"$f":"Pendientes!$Q603-Pendientes!$B603","v":43553},{"$f":"VLOOKUP(Pendientes!$AC603,Hoja1!A:B,2,TRUE)","v":"Mas de 10 días"}]
["VMC017",null,"Rodrigo","Adelanto",null,null,null,null,null,null,null,null,null,null,"FIN",7000079483,"2019-03-29",null,null,null,null,null,null,"Sidaco",0,{"$error":"#N/A"},"MC017",{"$error":"#N/A"},{"$f":"Pendientes!$Q604-Pendientes!$B604","v":43553},{"$f":"VLOOKUP(Pendientes!$AC604,Hoja1!A:B,2,TRUE)","v":"Mas de 10 días"}]
["VMC028",null,"Rodrigo","Adelanto",null,null,null,null,null,null,null,null,null,null,"FIN",7000079485,"2019-03-29",null,null,null,null,null,null,"Sidaco",0,{"$error":"#N/A"},"MC028",{"$error":"#N/A"},{"$f":"Pendientes!$Q605-Pendientes!$B605","v":43553},{"$f":"VLOOKUP(Pendientes!$AC605,Hoja1!A:B,2,TRUE)","v":"Mas de 10 días"}]
["VMC038",null,"Rodrigo","Adelanto",null,null,null,null,null,null,null,null,null,null,"FIN",7000079484,"2019-03-29",null,null,null,null,null,null,"Sidaco",0,{"$error":"#N/A"},"MC038",{"$error":"#N/A"},{"$f":"Pendientes!$Q606-Pendientes!$B606","v":43553},{"$f":"VLOOKUP(Pendientes!$AC606,Hoja1!A:B,2,TRUE)","v":"Mas de 10 días"}]
["VMC215",null,"Barbara",null,null,null,null,null,null,null,null,null,null,null,"FIN",7000079885,"2019-04-24",null,null,null,null,null,null,"PEM",0,"Fin Semana 4 Abril","MC215","1148290-1",{"$f":"Pendientes!$Q607-Pendientes!$B607","v":43579},{"$f":"VLOOKUP(Pendientes!$AC607,Hoja1!A:B,2,TRUE)","v":"Mas de 10 días"}]
["VMS033","30/4/2019","Ricky","Alta","No","No","No","No","No","No","No","No","No","Se armo el pedido segun PDG de RDA","FIN",7000080083,"2019-05-06","","Se armo el pedido segun PDG de RDA","ODI2065R16M18JGQ","Nueva",null,null,"Sidaco","Prio 1","Semana 3 Mayo","MS033","513201-1",{"$f":"Pendientes!$Q608-Pendientes!$B608","v":6},{"$f":"VLOOKUP(Pendientes!$AC608,Hoja1!A:B,2,TRUE)","v":"Entre 5 y 10 dias"}]
["VMS322","2019-04-30","Barbara","Alta","SI","NO","NO","NO","NO","NO","SI","NO","NO",null,"FIN",7000080032,"2019-05-03",null,"Las baterias deben tomarse de la solpe solpe 7000079999","ODI2-065R16M18J-GQ + AAUU3910",null,null,null,"CIS SRL","Prio 1","Fin Semana 2 Mayo","MS322","559232-1",{"$f":"Pendientes!$Q609-Pendientes!$B609","v":3},{"$f":"VLOOKUP(Pendientes!$AC609,Hoja1!A:B,2,TRUE)","v":"Entre 3 y 5 dias"}]
["VOS014","2019-04-30","Barbara","Alta","SI","NO","NO","NO","NO","NO","sI","NO","NO",null,"FIN-A",7000080051,"2019-05-03",null,"Las baterias salen de la solpe 7000079999","ASI4517R3v06","Nueva",null,null,"CIS SRL","Prio 1","Semana 3 Mayo","OS014","1301812-1",{"$f":"Pendientes!$Q610-Pendientes!$B610","v":3},{"$f":"VLOOKUP(Pendientes!$AC610,Hoja1!A:B,2,TRUE)","v":"Entre 3 y 5 dias"}]
["VQCM12","2019-04-12","Ricky","Adelanto","No","No","No","No","No","No","No","SI","No","-          4 RRU’s 3971 de B2 (4T4R)","FIN",7000079869,"2019-04-24",null,"Materiales para Fri Music Neuquén - QCM12",null,null,null,null,"PEM",0,{"$error":"#N/A"},"QCM12",{"$error":"#N/A"},{"$f":"Pendientes!$Q611-Pendientes!$B611","v":12},{"$f":"VLOOKUP(Pendientes!$AC611,Hoja1!A:B,2,TRUE)","v":"Mas de 10 días"}]
["VQE011","5/6/2019","Rodrigo","","No","Si","No","No","No","No","No","No","No","Sin cargas en BPM, MI confirmo energia existente","FIN",7000080132,"2019-05-07",2,"","ODI2-065R16M18J-GQ","Existente",null,null,"Huawei",null,"Semana 3 Mayo",null,null,{"$f":"Pendientes!$Q612-Pendientes!$B612","v":-29},{"$f":"VLOOKUP(Pendientes!$AC612,Hoja1!A:B,2,TRUE)","v":{"$error":"#N/A"}}]
["VQN084",null,"Pendiente",null,null,null,null,null,null,null,null,null,null,null,"A REASIGNAR CONTRATA",null,null,null,null,null,null,null,null,"Sin Asignacion",0,"Vaca Muerta","QN084","1130623-1",{"$f":"Pendientes!$Q613-Pendientes!$B613","v":0},{"$f":"VLOOKUP(Pendientes!$AC613,Hoja1!A:B,2,TRUE)","v":"en 24hs"}]
["VQW018",null,"RICKY",null,{"$error":"#N/A"},null,null,null,null,null,null,null,null,null,"FIN","7000079570 / 7000079573","2019-04-04",null,null,null,null,null,null,"PEM",0,"Fin Semana 2 Abril","QW018","1130603-1",{"$f":"Pendientes!$Q614-Pendientes!$B614","v":43559},{"$f":"VLOOKUP(Pendientes!$AC614,Hoja1!A:B,2,TRUE)","v":"Mas de 10 días"}]
["VRN078","2019-03-11",null,null,null,null,null,null,null,null,"planilla ok 2019",null,null,"ok stock","FIN",7000079204,"2019-03-12",null,null,"RRZZ (AQU4518R24+ AAU3910)",null,null,null,"Sidaco",0,"Fin Semana 4 Marzo","RN078","888900-1",{"$f":"Pendientes!$Q615-Pendientes!$B615","v":1},{"$f":"VLOOKUP(Pendientes!$AC615,Hoja1!A:B,2,TRUE)","v":"en 24hs"}]
["VRN344","2019-03-11",null,null,null,null,null,null,null,null,"Validar planilla 2016",null,null,"ok stock","FIN",7000079206,"2019-03-12",null,null,"Hexabanda Chica",null,null,null,"Sidaco",0,"Fin Semana 2 Marzo","RN344","651466-1",{"$f":"Pendientes!$Q616-Pendientes!$B616","v":1},{"$f":"VLOOKUP(Pendientes!$AC616,Hoja1!A:B,2,TRUE)","v":"en 24hs"}]
["VSC044","2019-03-13",null,null,null,null,null,null,null,null,null,null,null,"ok stock","FIN",70000079244,"2019-03-13",null,null,null,null,null,null,"Sidaco",0,"Fin Semana 2 Marzo","SC044","1102099-1",{"$f":"Pendientes!$Q617-Pendientes!$B617","v":0},{"$f":"VLOOKUP(Pendientes!$AC617,Hoja1!A:B,2,TRUE)","v":"en 24hs"}]
["VSR319",null,null,null,null,null,null,null,null,null,null,null,null,"ok stock","FIN",7000079309,"2019-03-18",null,null,"ODV-065R16M18JJG / 4000084591",null,null,null,"Sidaco",0,"Fin Semana 2 Marzo","SR319","916501-1",{"$f":"Pendientes!$Q618-Pendientes!$B618","v":43542},{"$f":"VLOOKUP(Pendientes!$AC618,Hoja1!A:B,2,TRUE)","v":"Mas de 10 días"}]
["VSR609","2019-03-11","Rodrigo",null,"NO","NO","NO","NO","NO","NO","NO","NO","NO","Falta definicion de RRU,  Energia desactualizada , sin planilla de materiales / verificar tipo de antena","PENDIENTE INGENIERIA + ENERGIA",null,null,null,null,"ATR4518R6 ",null,null,null,"Ericsson","Prio 2","Semana 4 Mayo","SR609","540478-1",{"$f":"Pendientes!$Q619-Pendientes!$B619","v":-43535},{"$f":"VLOOKUP(Pendientes!$AC619,Hoja1!A:B,2,TRUE)","v":{"$error":"#N/A"}}]
["VSS148","2019-04-12","Barbara",null,null,null,null,null,null,null,"Energia OK",null,null,"Sitio en ejecucion con materiales informo Ruben Retamar","FIN",7000079200,"2019-04-23",null,null,"ATR4518R6",null,null,null,"CIS SRL",0,"Fin Semana 4 Abril","SS148","842433-1",{"$f":"Pendientes!$Q620-Pendientes!$B620","v":11},{"$f":"VLOOKUP(Pendientes!$AC620,Hoja1!A:B,2,TRUE)","v":"Mas de 10 días"}]
["VTS040","2019-04-30","Barbara","Alta","SI","NO","NO","NO","NO","NO","SI","NO","NO",null,"FIN","7000080044 / 7000079900","2019-05-03",null,"Las baterias salen de la solpe 7000079900","ODI2065R16M18JG-Q","Nueva",null,null,"CIS SRL","Prio 1","Fin Semana 2 Mayo","TS040","1301848-1",{"$f":"Pendientes!$Q621-Pendientes!$B621","v":3},{"$f":"VLOOKUP(Pendientes!$AC621,Hoja1!A:B,2,TRUE)","v":"Entre 3 y 5 dias"}]
["VUE205",null,"Barbara",null,null,null,null,null,null,null,null,null,null,null,"FIN",7000079691,"2019-04-10",null,null,null,null,null,null,"PEM",0,"Fin Semana 4 Abril","UE205","1148703-1",{"$f":"Pendientes!$Q622-Pendientes!$B622","v":43565},{"$f":"VLOOKUP(Pendientes!$AC622,Hoja1!A:B,2,TRUE)","v":"Mas de 10 días"}]
["VUE207",null,"Barbara",null,null,null,null,null,null,null,null,null,null,null,"FIN",7000079691,"2019-04-10",null,null,null,null,null,null,"PEM",0,"Fin Semana 4 Abril","UE207","1263550-1",{"$f":"Pendientes!$Q623-Pendientes!$B623","v":43565},{"$f":"VLOOKUP(Pendientes!$AC623,Hoja1!A:B,2,TRUE)","v":"Mas de 10 días"}]
["VUW018","2019-03-11",null,null,null,null,null,null,null,null,null,null,null,"ok stock","FIN",7000079179,"2019-03-12",null,null,"ok hw, falta definicion energia",null,null,null,"Guzmán Nacich",0,"Fin Semana 2 Marzo","UW018","390753-1",{"$f":"Pendientes!$Q624-Pendientes!$B624","v":1},{"$f":"VLOOKUP(Pendientes!$AC624,Hoja1!A:B,2,TRUE)","v":"en 24hs"}]
["VXC349",null,"Barbara",null,null,null,null,null,null,null,"fuerza OK",null,null,"Faltan los planos Mudanza del GXC049. Configuración (3x2).  (usar puerto libre de alta para 2G diplexado con 3G mudanza del XC049 - sitio NO RAN","FIN","7000079667/7000079668 ","2019-04-11",null,null,"ATR4518R6 ",null,null,null,"CIS SRL",0,"Fin Semana 4 Abril","XC349","1285182-1",{"$f":"Pendientes!$Q625-Pendientes!$B625","v":43566},{"$f":"VLOOKUP(Pendientes!$AC625,Hoja1!A:B,2,TRUE)","v":"Mas de 10 días"}]
["VXC615",null,"Lucrecia",null,null,null,null,null,null,null,null,null,null,null,"FIN","7000079497 / 7000079498","2019-03-29",null,null," ATR4518R6",null,null,null,"CIS SRL",0,"Fin Semana 4 Abril","XC615","1285180-1",{"$f":"Pendientes!$Q626-Pendientes!$B626","v":43553},{"$f":"VLOOKUP(Pendientes!$AC626,Hoja1!A:B,2,TRUE)","v":"Mas de 10 días"}]
["VXN108","2019-04-25","Lucrecia",null,null,null,null,null,null,null,null,null,null,null,"FIN",7000079939,"2019-04-26",null,null,null,null,null,null,"CIS SRL",0,"Fin Semana 2 Mayo","XN108","1058943-1",{"$f":"Pendientes!$Q627-Pendientes!$B627","v":1},{"$f":"VLOOKUP(Pendientes!$AC627,Hoja1!A:B,2,TRUE)","v":"en 24hs"}]
["VXS027",null,"Lucrecia",null,null,null,null,null,null,null,null,null,null,null,"FIN","7000079874/7000079875","2019-04-24",null,null,null,null,null,null,"Sidaco",0,"Fin Semana 1 Mayo","XS027","1301802-1",{"$f":"Pendientes!$Q628-Pendientes!$B628","v":43579},{"$f":"VLOOKUP(Pendientes!$AC628,Hoja1!A:B,2,TRUE)","v":"Mas de 10 días"}]
["VXS048",null,"Lucrecia",null,null,null,null,null,null,null,null,null,null,null,"FIN","7000079884/7000079883","2019-04-24",null,null,null,null,null,null,"Sidaco",0,"Fin Semana 1 Mayo","XS048","1301823-1",{"$f":"Pendientes!$Q629-Pendientes!$B629","v":43579},{"$f":"VLOOKUP(Pendientes!$AC629,Hoja1!A:B,2,TRUE)","v":"Mas de 10 días"}]
["VXS089",null,"Barbara",null,"SI","NO","NO","NO","NO","NO","SI","NO","NO",null,"FIN-A",7000080100,"2019-05-07",null,"FALTA SOLPE POR ANTENAS POR FALTA DE STOCK","FALTA ANTENA",null,null,null,"CIS SRL",null,null,null,null,{"$f":"Pendientes!$Q630-Pendientes!$B630","v":43592},{"$f":"VLOOKUP(Pendientes!$AC630,Hoja1!A:B,2,TRUE)","v":"Mas de 10 días"}]
["VXW107",null,null,null,null,null,null,null,null,null,null,null,null,null,"FIN",7000079634,"2019-04-08",null,null," Ant RRZZ-65B-R4",null,null,null,"CIS SRL",0,"Fin Semana 4 Abril","XW107","1263086-1",{"$f":"Pendientes!$Q631-Pendientes!$B631","v":43563},{"$f":"VLOOKUP(Pendientes!$AC631,Hoja1!A:B,2,TRUE)","v":"Mas de 10 días"}]
["VXW162","2019-04-25","Ricky","Alta","Si","No","No","No","No","No","SI","No","No","2000020483 Ant Hexabanda Grande HUAWEI ASI4517R3v06 (Sin stock hasta la semana que viene)","FIN",7000080000,"2019-04-29",null,"Se hace el pedido sin antena","ASI4517R3","Existente",null,null,"CIS SRL",0,{"$error":"#N/A"},"XW162",{"$error":"#N/A"},{"$f":"Pendientes!$Q632-Pendientes!$B632","v":4},{"$f":"VLOOKUP(Pendientes!$AC632,Hoja1!A:B,2,TRUE)","v":"Entre 3 y 5 dias"}]
["VYE002","2019-04-26","Barbara","Alta","Si","No","No","Incompleto","No","No","Si","No","No","Antena ASI4517R3","FIN-A",7000079967,"2019-04-29",null,"Se cambia antena por  ODI2-065R16MJJ-GQ ( Hexa grande). Falta segunda solpe ","ASI4517R3","Nueva",null,"CIS SRL","CIS SRL",0,"Fin Semana 2 Mayo","YE002","1301835-1",{"$f":"Pendientes!$Q633-Pendientes!$B633","v":3},{"$f":"VLOOKUP(Pendientes!$AC633,Hoja1!A:B,2,TRUE)","v":"Entre 3 y 5 dias"}]
["VYE004","2019-05-02","Cristian",null,null,null,null,null,null,null,null,null,null,null,"TO DO",null,null,null,null,null,null,null,null,"Multiradio","Prio 1","Pendiente Ingeniería","YE004",{"$error":"#N/A"},{"$f":"Pendientes!$Q634-Pendientes!$B634","v":-43587},{"$f":"VLOOKUP(Pendientes!$AC634,Hoja1!A:B,2,TRUE)","v":{"$error":"#N/A"}}]
["VYN001","2019-05-02","Cristian",null,null,null,null,null,null,null,null,null,null,null,"TO DO",null,null,null,null,null,null,null,null,"Multiradio","Prio 1","Semana 4 Mayo","YN001",{"$error":"#N/A"},{"$f":"Pendientes!$Q635-Pendientes!$B635","v":-43587},{"$f":"VLOOKUP(Pendientes!$AC635,Hoja1!A:B,2,TRUE)","v":{"$error":"#N/A"}}]
["VZC024",null,"Rodrigo",null,null,null,null,null,null,null,"fuerza OK",null,null,"Planos OK  - 2G 1900 NO FIGURA EN PDG","FIN","7000079763/ 7000079657","2019-04-15",null,null,null,null,null,null,"Sidaco",0,"Fin Semana 2 Mayo","ZC024","1240189-1",{"$f":"Pendientes!$Q636-Pendientes!$B636","v":43570},{"$f":"VLOOKUP(Pendientes!$AC636,Hoja1!A:B,2,TRUE)","v":"Mas de 10 días"}]
["VZW012","2019-04-29","Barbara","Alta",null,null,null,null,null,null,null,null,null,null,"FIN-A",7000080017,"2019-05-02",null,"FALTA SOLPE POR ANTENAS POR FALTA DE STOCK","ASI4517R3v06","Nueva",null,null,"CIS SRL","Prio 1","Ver Planificación Renta TECO","ZW012","1301569-1",{"$f":"Pendientes!$Q637-Pendientes!$B637","v":3},{"$f":"VLOOKUP(Pendientes!$AC637,Hoja1!A:B,2,TRUE)","v":"Entre 3 y 5 dias"}]
["VZW025","2019-05-09","Cristian","PRIO 1",null,null,null,null,null,null,null,null,null,null,"TO DO",null,null,null,null,null,null,null,null,"Multiradio",null,"Semana 4 Mayo","ZW025","1301850-1",{"$f":"Pendientes!$Q638-Pendientes!$B638","v":-43594},{"$f":"VLOOKUP(Pendientes!$AC638,Hoja1!A:B,2,TRUE)","v":{"$error":"#N/A"}}]
["WBA034",null,"Barbara",null,null,null,null,null,null,null,"Energia OK",null,null,"planos ok 12-4-19","FIN",7000077608,"2019-04-12",null,null,null,null,null,null,"Ericsson",0,"Fin Semana 2 Abril","BA034","443134-1",{"$f":"Pendientes!$Q639-Pendientes!$B639","v":43567},{"$f":"VLOOKUP(Pendientes!$AC639,Hoja1!A:B,2,TRUE)","v":"Mas de 10 días"}]
["WBB482",null,null,null,null,null,null,null,null,null,null,null,null,null,"FIN",7000079247,"2019-03-29",null,null,null,null,null,null,"Guzmán Nacich",0,"Fin Semana 2 Marzo","BB482","1109691-1",{"$f":"Pendientes!$Q640-Pendientes!$B640","v":43553},{"$f":"VLOOKUP(Pendientes!$AC640,Hoja1!A:B,2,TRUE)","v":"Mas de 10 días"}]
["WBC408","2019-03-11",null,null,null,null,null,null,null,null,"Validar planilla 2018",null,null,"ok stock","FIN",7000079223,"2019-03-13",null,null,"ADU4518R7",null,null,null,"Guzmán Nacich",0,"Fin Semana 4 Abril","BC408","1135653-1",{"$f":"Pendientes!$Q641-Pendientes!$B641","v":2},{"$f":"VLOOKUP(Pendientes!$AC641,Hoja1!A:B,2,TRUE)","v":"Entre 24 y 72Hs"}]
["WBC754","2019-05-07","Ricky",null,null,null,null,null,null,null,null,null,null,null,"TO DO",null,null,null,null,null,null,null,null,"Sidaco",null,"Semana 4 Mayo","BC754","1250358-1",{"$f":"Pendientes!$Q642-Pendientes!$B642","v":-43592},{"$f":"VLOOKUP(Pendientes!$AC642,Hoja1!A:B,2,TRUE)","v":{"$error":"#N/A"}}]
["WBM129","2019-03-11","Rodrigo",null,null,null,null,null,null,null,"Sin planilla",null,null,"RAN 2 - Ericsson Mudanza del sitio BM029","FIN",7000079199,"2019-03-12",null,null,null,null,null,null,"Ericsson",0,"Fin Semana 2 Marzo","BM129","1279213-1",{"$f":"Pendientes!$Q643-Pendientes!$B643","v":1},{"$f":"VLOOKUP(Pendientes!$AC643,Hoja1!A:B,2,TRUE)","v":"en 24hs"}]
["WBM141","2019-04-25","Barbara",null,null,null,null,null,null,null,null,null,null,null,"FIN",7000079918,"2019-04-26",null,null,null,"Nueva",null,null,"Ericsson",0,"Semana 3 Mayo","BM141","1317141-1",{"$f":"Pendientes!$Q644-Pendientes!$B644","v":1},{"$f":"VLOOKUP(Pendientes!$AC644,Hoja1!A:B,2,TRUE)","v":"en 24hs"}]
["WBM795","2019-04-25","Lucrecia","Alta","NO","NO","NO","No","No","No","No","Si","No","No cuenta con planilla de fuerza y tampoco hwr nodo ","FIN-A","Cross Dock 7000080085","2019-05-06",null,"se pidio frenar el pedido 26/04/2019. Salio solpe de Cross Dock Falta solpe de Fuerza","ODI2-065R16MJJ-GQ","Nueva",null,null,"Guzmán Nacich","Prio 1","Semana 3 Mayo","BM795","944040-1",{"$f":"Pendientes!$Q645-Pendientes!$B645","v":11},{"$f":"VLOOKUP(Pendientes!$AC645,Hoja1!A:B,2,TRUE)","v":"Mas de 10 días"}]
["WBN901",null,null,null,null,null,null,null,null,null,null,null,null,"sin stock","FIN",7000079430,"2019-03-25",null,null,"TNA770A00RI",null,null,null,"CIS SRL",0,"Fin Semana 4 Abril","BN901","1261090-1",{"$f":"Pendientes!$Q646-Pendientes!$B646","v":43549},{"$f":"VLOOKUP(Pendientes!$AC646,Hoja1!A:B,2,TRUE)","v":"Mas de 10 días"}]
["WBO013","2019-04-25","Lucrecia","Alta","NO","SI","NO","NO","NO","NO","NO","SI","NO","DWG Desactualizado - SE RECIBE MAIL 3/5/19 CON PLANOS Y FUERZA","FIN",7000080134,"2019-05-08",null,"Ingenieria incompleta, se pedia instalar 1900","ODV065R16M18JJG","Nueva",null,null,"PEM","Prio 1","Semana 3 Mayo","BO013","1115548-1",{"$f":"Pendientes!$Q647-Pendientes!$B647","v":13},{"$f":"VLOOKUP(Pendientes!$AC647,Hoja1!A:B,2,TRUE)","v":"Mas de 10 días"}]
["WBO018",null,"Ricky",null,null,null,null,null,null,null,null,null,null,null,"TO DO",null,null,null,null,null,null,null,null,"Sidaco","Prio 1","Semana 4 Mayo","BO018","1331409-1",{"$f":"Pendientes!$Q648-Pendientes!$B648","v":0},{"$f":"VLOOKUP(Pendientes!$AC648,Hoja1!A:B,2,TRUE)","v":"en 24hs"}]
["WBO123",null,"Rodrigo",null,null,null,null,null,null,null,"Falta Energia",null,null,null,"SITIOS",null,null,null,null,"SIN DATOS",null,null,null,"Ericsson","Conflicto","Conflicto","BO123","614144-1",{"$f":"Pendientes!$Q649-Pendientes!$B649","v":0},{"$f":"VLOOKUP(Pendientes!$AC649,Hoja1!A:B,2,TRUE)","v":"en 24hs"}]
["WBS144",null,null,null,null,null,null,null,null,null,null,null,null,null,"FIN",7000079131,"2019-03-22",null,null,null,null,null,null,"Sidaco",0,"Fin Semana 4 Abril","BS144","1058976-1",{"$f":"Pendientes!$Q650-Pendientes!$B650","v":43546},{"$f":"VLOOKUP(Pendientes!$AC650,Hoja1!A:B,2,TRUE)","v":"Mas de 10 días"}]
["WBS247","11/03/2019","Lucrecia","Media","Incompleto","No","No","No","No","No","ODI2-065R16MJJ-GQ ( Hexa Grande)","No","No","sin stock. Falta fuerza y planos","SIN STOCK","",null,"","Falta fuerza y planos","ODI2-065R16MJJ-GQ ( Hexa grande)","nueva",null,null,"Guzmán Nacich","Prio 2","Semana 4 Mayo","BS247","1131328-1",{"$f":"Pendientes!$Q651-Pendientes!$B651","v":-43535},{"$f":"VLOOKUP(Pendientes!$AC651,Hoja1!A:B,2,TRUE)","v":{"$error":"#N/A"}}]
["WCE017",null,"Ricky","Adelanto",{"$error":"#N/A"},null,null,null,null,null,null,null,null,null,"FIN",7000079523,"2019-04-01",null,"nueva estación de Subte E",null,null,null,null,"Multiradio",0,{"$error":"#N/A"},"CE017",{"$error":"#N/A"},{"$f":"Pendientes!$Q652-Pendientes!$B652","v":43556},{"$f":"VLOOKUP(Pendientes!$AC652,Hoja1!A:B,2,TRUE)","v":"Mas de 10 días"}]
["WCE018",null,"Ricky","Adelanto",{"$error":"#N/A"},null,null,null,null,null,null,null,null,null,"FIN",7000079586,"2019-04-05",null,"ING. PORTICOS - CATALINAS y RETIRO",null,null,null,null,"Multiradio",0,{"$error":"#N/A"},"CE018",{"$error":"#N/A"},{"$f":"Pendientes!$Q653-Pendientes!$B653","v":43560},{"$f":"VLOOKUP(Pendientes!$AC653,Hoja1!A:B,2,TRUE)","v":"Mas de 10 días"}]
["WCS352",null,"Lucrecia","Adelanto",null,null,null,null,null,null,null,null,null,"no contamos con ninguna definicion para emitir la SOLPE","FIN","69396 /7000079681","2019-04-10",null,null,"\"Antena a definir por RDA\"",null,null,null,"Telxius",0,"Semana 3 Mayo","CS352","1342244-1",{"$f":"Pendientes!$Q654-Pendientes!$B654","v":43565},{"$f":"VLOOKUP(Pendientes!$AC654,Hoja1!A:B,2,TRUE)","v":"Mas de 10 días"}]
["WCS817",null,"Ricky","Media","SI","NO","NO","NO","NO","NO","No","NO","NO","SE USA PLANOS Y FUERZA DE TESUR","FIN-A",7000080178,"2019-05-09",null,"FALTA HACER SOLPE POR ANTENA","ASI-R3","Existente",null,null,"Sidaco","Prio 2","Semana 4 Mayo","CS817","1323610-1",{"$f":"Pendientes!$Q655-Pendientes!$B655","v":43594},{"$f":"VLOOKUP(Pendientes!$AC655,Hoja1!A:B,2,TRUE)","v":"Mas de 10 días"}]
["WCU024","2019-05-09","Lucrecia","Prio 2",null,null,null,null,null,null,null,null,null,null,"TO DO",null,null,null,null,null,null,null,null,"Guzmán Nacich",null,"Semana 4 Mayo","CU024","1252158-1",{"$f":"Pendientes!$Q656-Pendientes!$B656","v":-43594},{"$f":"VLOOKUP(Pendientes!$AC656,Hoja1!A:B,2,TRUE)","v":{"$error":"#N/A"}}]
["WCU087","2019-04-30","Ricky",null,"No","NO","NO","NO","NO","NO","NO","Ok","NO","Sin Stock Antena","FIN-A",7000080144,"2019-05-07",null,"Sin Stock Antena - DC3 + Sec + BB2",null,"Nueva",null,null,"Sidaco","Prio 1","Semana 3 Mayo","CU087","1320242-1",{"$f":"Pendientes!$Q657-Pendientes!$B657","v":7},{"$f":"VLOOKUP(Pendientes!$AC657,Hoja1!A:B,2,TRUE)","v":"Entre 5 y 10 dias"}]
["WFC003","2019-04-30","Cristian",null,"NO","NO","NO","NO","NO","NO","NO","SI","NO","Sin planos ","FIN","7000080233 / 7000080222","2019-05-10",null,null,"ODI2-065R16M18JGQ","Nueva",null,null,"Multiradio","Prio 1","Semana 3 Mayo Forzado","FC003","480053-1",{"$f":"Pendientes!$Q658-Pendientes!$B658","v":10},{"$f":"VLOOKUP(Pendientes!$AC658,Hoja1!A:B,2,TRUE)","v":"Mas de 10 días"}]
["WFE047",null,"Rodrigo",null,null,null,null,null,null,null,null,null,null,null,"FIN","7000078847/7000079682","2019-04-10",null,null,null,null,null,null,"CIS SRL",0,"Fin Semana 2 Abril","FE047","889179-1",{"$f":"Pendientes!$Q659-Pendientes!$B659","v":43565},{"$f":"VLOOKUP(Pendientes!$AC659,Hoja1!A:B,2,TRUE)","v":"Mas de 10 días"}]
["WFE048",null,"Rodrigo",null,null,null,null,null,null,null,null,null,null,null,"FIN","7000078846/7000079682","2019-04-10",null,null,null,null,null,null,"CIS SRL",0,"Fin Semana 2 Abril","FE048","919295-1",{"$f":"Pendientes!$Q660-Pendientes!$B660","v":43565},{"$f":"VLOOKUP(Pendientes!$AC660,Hoja1!A:B,2,TRUE)","v":"Mas de 10 días"}]
["WFE049",null,"Rodrigo",null,null,null,null,null,null,null,null,null,null,null,"FIN","7000078848/7000079682","2019-04-10",null,null,null,null,null,null,"CIS SRL",0,"Fin Semana 2 Abril","FE049","889178-1",{"$f":"Pendientes!$Q661-Pendientes!$B661","v":43565},{"$f":"VLOOKUP(Pendientes!$AC661,Hoja1!A:B,2,TRUE)","v":"Mas de 10 días"}]
["WFE052",null,"Rodrigo",null,null,null,null,null,null,null,null,null,null,null,"FIN","7000078849/7000079682","2019-04-10",null,null,null,null,null,null,"CIS SRL",0,"Fin Semana 2 Abril","FE052","889181-1",{"$f":"Pendientes!$Q662-Pendientes!$B662","v":43565},{"$f":"VLOOKUP(Pendientes!$AC662,Hoja1!A:B,2,TRUE)","v":"Mas de 10 días"}]
["WIN001",null,"Lucrecia","Adelanto",null,null,null,null,null,null,null,null,null,"Planos OK enviados 12-4-19","FIN",7000079506,"2019-03-29",null,null,null,null,null,null,"Guzmán Nacich",0,{"$error":"#N/A"},"IN001",{"$error":"#N/A"},{"$f":"Pendientes!$Q663-Pendientes!$B663","v":43553},{"$f":"VLOOKUP(Pendientes!$AC663,Hoja1!A:B,2,TRUE)","v":"Mas de 10 días"}]
["WIN004",null,"Lucrecia",null,null,null,null,null,null,null,null,null,null,null,"FIN",7000079507,"2019-03-29",null,null,null,null,null,null,"Guzmán Nacich",0,{"$error":"#N/A"},"IN004",{"$error":"#N/A"},{"$f":"Pendientes!$Q664-Pendientes!$B664","v":43553},{"$f":"VLOOKUP(Pendientes!$AC664,Hoja1!A:B,2,TRUE)","v":"Mas de 10 días"}]
["WJE008",null,"Rodrigo",null,null,null,null,null,null,null,"falta fuerza",null,null,"sin ingenieria falta DWG","FIN",7000079584,"2019-04-04",null,null,null,null,null,null,"Sidaco",0,"Fin Semana 2 Abril","JE008","1060560-1",{"$f":"Pendientes!$Q665-Pendientes!$B665","v":43559},{"$f":"VLOOKUP(Pendientes!$AC665,Hoja1!A:B,2,TRUE)","v":"Mas de 10 días"}]
["WJS015",null,"Lucrecia",null,null,null,null,null,null,null,"falta fuerza",null,null,"sin ingenieria falta DWG","FIN",7000079600,"2019-04-05",null,null,null,null,null,null,"Sidaco",0,"Fin Semana 2 Abril","JS015","477966-1",{"$f":"Pendientes!$Q666-Pendientes!$B666","v":43560},{"$f":"VLOOKUP(Pendientes!$AC666,Hoja1!A:B,2,TRUE)","v":"Mas de 10 días"}]
["WJS017",null,"Lucrecia",null,null,null,null,null,null,null,"falta fuerza",null,null,"verificar ingenieria","FIN",7000079589,"2019-04-05",null,null,null,null,null,null,"Sidaco",0,"Fin Semana 2 Abril","JS017","1087725-1",{"$f":"Pendientes!$Q667-Pendientes!$B667","v":43560},{"$f":"VLOOKUP(Pendientes!$AC667,Hoja1!A:B,2,TRUE)","v":"Mas de 10 días"}]
["WJS037",null,"Lucrecia",null,null,null,null,null,null,null,"falta fuerza",null,null,"sin ingenieria falta DWG","FIN",7000079601,"2019-04-05",null,null,null,null,null,null,"Sidaco",0,"Fin Semana 2 Abril","JS037","1087726-1",{"$f":"Pendientes!$Q668-Pendientes!$B668","v":43560},{"$f":"VLOOKUP(Pendientes!$AC668,Hoja1!A:B,2,TRUE)","v":"Mas de 10 días"}]
["WJS099",null,"Lucrecia",null,null,null,null,null,null,null,"Ingenieria a revision ( Fuerza + Materiales)",null,null,"se envio a Claudio Creteur para definicion /Según lo indicado por RDA se suma una RRU de 700 , se manda a ingenieria","FIN",7000079627,"2019-04-08",null,null,"ADU4518R7",null,null,null,"Sidaco",0,"Fin Semana 4 Abril","JS099","1087723-1",{"$f":"Pendientes!$Q669-Pendientes!$B669","v":43563},{"$f":"VLOOKUP(Pendientes!$AC669,Hoja1!A:B,2,TRUE)","v":"Mas de 10 días"}]
["WKN125","2019-04-30","Barbara","Alta","No","NO","NO","NO","SI","NO","No","SI","NO","El pedido llego por mail martes 30/04 desde PEM sin ingenierias, se valida con John Dario la fuerza","FIN",7000080093,"2019-05-06",null,"PEM pasa detalle de materiales para Cycsa",null,"Nueva",null,null,"PEM",null,{"$error":"#N/A"},"KN125",null,{"$f":"Pendientes!$Q670-Pendientes!$B670","v":6},{"$f":"VLOOKUP(Pendientes!$AC670,Hoja1!A:B,2,TRUE)","v":"Entre 5 y 10 dias"}]
["WKO180","2019-04-30","Barbara","Alta","No","NO","NO","NO","SI","NO","No","SI","NO","El pedido llego por mail martes 30/04 desde PEM sin ingenierias, se valida con John Dario la fuerza","FIN",7000080093,"2019-05-06",null,"PEM pasa detalle de materiales para Cycsa",null,"Nueva",null,null,"PEM",null,{"$error":"#N/A"},"KO180",null,{"$f":"Pendientes!$Q671-Pendientes!$B671","v":6},{"$f":"VLOOKUP(Pendientes!$AC671,Hoja1!A:B,2,TRUE)","v":"Entre 5 y 10 dias"}]
["WKO181","2019-04-30","Barbara","Alta","No","NO","NO","NO","SI","NO","No","SI","NO","El pedido llego por mail martes 30/04 desde PEM sin ingenierias, se valida con John Dario la fuerza","FIN",7000080093,"2019-05-06",null,"PEM pasa detalle de materiales para Cycsa",null,"Nueva",null,null,"PEM",null,{"$error":"#N/A"},"KO181",null,{"$f":"Pendientes!$Q672-Pendientes!$B672","v":6},{"$f":"VLOOKUP(Pendientes!$AC672,Hoja1!A:B,2,TRUE)","v":"Entre 5 y 10 dias"}]
["WKO210","2019-04-30","Barbara","Alta","No","NO","NO","NO","SI","NO","No","SI","NO","El pedido llego por mail martes 30/04 desde PEM sin ingenierias, se valida con John Dario la fuerza","FIN",7000080093,"2019-05-06",null,"PEM pasa detalle de materiales para Cycsa",null,"Nueva",null,null,"PEM",null,{"$error":"#N/A"},"KO210",null,{"$f":"Pendientes!$Q673-Pendientes!$B673","v":6},{"$f":"VLOOKUP(Pendientes!$AC673,Hoja1!A:B,2,TRUE)","v":"Entre 5 y 10 dias"}]
["WKO211","2019-04-30","Barbara","Alta","No","NO","NO","NO","SI","NO","No","SI","NO","El pedido llego por mail martes 30/04 desde PEM sin ingenierias, se valida con John Dario la fuerza","FIN",7000080093,"2019-05-06",null,"PEM pasa detalle de materiales para Cycsa",null,"Nueva",null,null,"PEM",null,{"$error":"#N/A"},"KO211",null,{"$f":"Pendientes!$Q674-Pendientes!$B674","v":6},{"$f":"VLOOKUP(Pendientes!$AC674,Hoja1!A:B,2,TRUE)","v":"Entre 5 y 10 dias"}]
["WKO902","2019-04-30","Barbara","Alta","No","NO","NO","NO","SI","NO","No","SI","NO","El pedido llego por mail martes 30/04 desde PEM sin ingenierias, se valida con John Dario la fuerza","FIN",7000080093,"2019-05-06",null,"PEM pasa detalle de materiales para Cycsa",null,"Nueva",null,null,"PEM",null,{"$error":"#N/A"},"KO902",null,{"$f":"Pendientes!$Q675-Pendientes!$B675","v":6},{"$f":"VLOOKUP(Pendientes!$AC675,Hoja1!A:B,2,TRUE)","v":"Entre 5 y 10 dias"}]
["WKO904","2019-04-30","Barbara","Alta","No","NO","NO","NO","SI","NO","No","SI","NO","El pedido llego por mail martes 30/04 desde PEM sin ingenierias, se valida con John Dario la fuerza","FIN",7000080093,"2019-05-06",null,"PEM pasa detalle de materiales para Cycsa",null,"Nueva",null,null,"PEM",null,{"$error":"#N/A"},"KO904",null,{"$f":"Pendientes!$Q676-Pendientes!$B676","v":6},{"$f":"VLOOKUP(Pendientes!$AC676,Hoja1!A:B,2,TRUE)","v":"Entre 5 y 10 dias"}]
["WKO905","2019-04-30","Barbara","Alta","No","NO","NO","NO","SI","NO","No","SI","NO","El pedido llego por mail martes 30/04 desde PEM sin ingenierias, se valida con John Dario la fuerza","FIN",7000080093,"2019-05-06",null,"PEM pasa detalle de materiales para Cycsa",null,"Nueva",null,null,"PEM",null,{"$error":"#N/A"},"KO905",null,{"$f":"Pendientes!$Q677-Pendientes!$B677","v":6},{"$f":"VLOOKUP(Pendientes!$AC677,Hoja1!A:B,2,TRUE)","v":"Entre 5 y 10 dias"}]
["WKO906","2019-04-30","Barbara","Alta","No","NO","NO","NO","SI","NO","No","SI","NO","El pedido llego por mail martes 30/04 desde PEM sin ingenierias, se valida con John Dario la fuerza","FIN",7000080093,"2019-05-06",null,"PEM pasa detalle de materiales para Cycsa",null,"Nueva",null,null,"PEM",null,{"$error":"#N/A"},"KO906",null,{"$f":"Pendientes!$Q678-Pendientes!$B678","v":6},{"$f":"VLOOKUP(Pendientes!$AC678,Hoja1!A:B,2,TRUE)","v":"Entre 5 y 10 dias"}]
["WKO907","2019-04-30","Barbara","Alta","No","NO","NO","NO","SI","NO","No","SI","NO","El pedido llego por mail martes 30/04 desde PEM sin ingenierias, se valida con John Dario la fuerza","FIN",7000080093,"2019-05-06",null,"PEM pasa detalle de materiales para Cycsa",null,"Nueva",null,null,"PEM",null,{"$error":"#N/A"},"KO907",null,{"$f":"Pendientes!$Q679-Pendientes!$B679","v":6},{"$f":"VLOOKUP(Pendientes!$AC679,Hoja1!A:B,2,TRUE)","v":"Entre 5 y 10 dias"}]
["WKO908","2019-04-30","Barbara","Alta","No","NO","NO","NO","SI","NO","No","SI","NO","El pedido llego por mail martes 30/04 desde PEM sin ingenierias, se valida con John Dario la fuerza","FIN",7000080093,"2019-05-06",null,"PEM pasa detalle de materiales para Cycsa",null,"Nueva",null,null,"PEM",null,{"$error":"#N/A"},"KO908",null,{"$f":"Pendientes!$Q680-Pendientes!$B680","v":6},{"$f":"VLOOKUP(Pendientes!$AC680,Hoja1!A:B,2,TRUE)","v":"Entre 5 y 10 dias"}]
["WKO909","2019-04-30","Barbara","Alta","No","NO","NO","NO","SI","NO","No","SI","NO","El pedido llego por mail martes 30/04 desde PEM sin ingenierias, se valida con John Dario la fuerza","FIN",7000080093,"2019-05-06",null,"PEM pasa detalle de materiales para Cycsa",null,"Nueva",null,null,"PEM",null,{"$error":"#N/A"},"KO909",null,{"$f":"Pendientes!$Q681-Pendientes!$B681","v":6},{"$f":"VLOOKUP(Pendientes!$AC681,Hoja1!A:B,2,TRUE)","v":"Entre 5 y 10 dias"}]
["WKO910","2019-04-30","Barbara","Alta","No","NO","NO","NO","SI","NO","No","SI","NO","El pedido llego por mail martes 30/04 desde PEM sin ingenierias, se valida con John Dario la fuerza","FIN",7000080093,"2019-05-06",null,"PEM pasa detalle de materiales para Cycsa",null,"Nueva",null,null,"PEM",null,{"$error":"#N/A"},"KO910",null,{"$f":"Pendientes!$Q682-Pendientes!$B682","v":6},{"$f":"VLOOKUP(Pendientes!$AC682,Hoja1!A:B,2,TRUE)","v":"Entre 5 y 10 dias"}]
["WKO911","2019-04-30","Barbara","Alta","No","NO","NO","NO","SI","NO","No","SI","NO","El pedido llego por mail martes 30/04 desde PEM sin ingenierias, se valida con John Dario la fuerza","FIN",7000080093,"2019-05-06",null,"PEM pasa detalle de materiales para Cycsa",null,"Nueva",null,null,"PEM",null,{"$error":"#N/A"},"KO911",null,{"$f":"Pendientes!$Q683-Pendientes!$B683","v":6},{"$f":"VLOOKUP(Pendientes!$AC683,Hoja1!A:B,2,TRUE)","v":"Entre 5 y 10 dias"}]
["WKO912","2019-04-30","Barbara","Alta","No","NO","NO","NO","SI","NO","No","SI","NO","El pedido llego por mail martes 30/04 desde PEM sin ingenierias, se valida con John Dario la fuerza","FIN",7000080093,"2019-05-06",null,"PEM pasa detalle de materiales para Cycsa",null,"Nueva",null,null,"PEM",null,{"$error":"#N/A"},"KO912",null,{"$f":"Pendientes!$Q684-Pendientes!$B684","v":6},{"$f":"VLOOKUP(Pendientes!$AC684,Hoja1!A:B,2,TRUE)","v":"Entre 5 y 10 dias"}]
["WKO913","2019-04-30","Barbara","Alta","No","NO","NO","NO","SI","NO","No","SI","NO","El pedido llego por mail martes 30/04 desde PEM sin ingenierias, se valida con John Dario la fuerza","FIN",7000080093,"2019-05-06",null,"PEM pasa detalle de materiales para Cycsa",null,"Nueva",null,null,"PEM",null,{"$error":"#N/A"},"KO913",null,{"$f":"Pendientes!$Q685-Pendientes!$B685","v":6},{"$f":"VLOOKUP(Pendientes!$AC685,Hoja1!A:B,2,TRUE)","v":"Entre 5 y 10 dias"}]
["WKO914","2019-04-30","Barbara","Alta","No","NO","NO","NO","SI","NO","No","SI","NO","El pedido llego por mail martes 30/04 desde PEM sin ingenierias, se valida con John Dario la fuerza","FIN",7000080093,"2019-05-06",null,"PEM pasa detalle de materiales para Cycsa",null,"Nueva",null,null,"PEM",null,{"$error":"#N/A"},"KO914",null,{"$f":"Pendientes!$Q686-Pendientes!$B686","v":6},{"$f":"VLOOKUP(Pendientes!$AC686,Hoja1!A:B,2,TRUE)","v":"Entre 5 y 10 dias"}]
["WKO915","2019-04-30","Barbara","Alta","No","NO","NO","NO","SI","NO","No","SI","NO","El pedido llego por mail martes 30/04 desde PEM sin ingenierias, se valida con John Dario la fuerza","FIN",7000080093,"2019-05-06",null,"PEM pasa detalle de materiales para Cycsa",null,"Nueva",null,null,"PEM",null,{"$error":"#N/A"},"KO915",null,{"$f":"Pendientes!$Q687-Pendientes!$B687","v":6},{"$f":"VLOOKUP(Pendientes!$AC687,Hoja1!A:B,2,TRUE)","v":"Entre 5 y 10 dias"}]
["WKO918","2019-04-30","Barbara","Alta","No","NO","NO","NO","SI","NO","No","SI","NO","El pedido llego por mail martes 30/04 desde PEM sin ingenierias, se valida con John Dario la fuerza","FIN",7000080093,"2019-05-06",null,"PEM pasa detalle de materiales para Cycsa",null,"Nueva",null,null,"PEM",null,{"$error":"#N/A"},"KO918",null,{"$f":"Pendientes!$Q688-Pendientes!$B688","v":6},{"$f":"VLOOKUP(Pendientes!$AC688,Hoja1!A:B,2,TRUE)","v":"Entre 5 y 10 dias"}]
["WKS119","2019-02-19","Lucrecia",null,null,null,null,null,null,null,null,null,null,"Sitio Finalizado","FIN","buscar ","2019-02-19",null,"Se toma la fecha de integracion 19/2/2019",null,null,null,null,"Sidaco",0,"Fin Semana 2 Marzo","KS119","1247968-1",{"$f":"Pendientes!$Q689-Pendientes!$B689","v":0},{"$f":"VLOOKUP(Pendientes!$AC689,Hoja1!A:B,2,TRUE)","v":"en 24hs"}]
["WKS280","2019-05-02","Ricky",null,"SI","NO","NO","Incompleto","NO","NO","SI","NO","NO",null,"DOING",null,null,null,"Sin antenas","TriTri",null,null,null,"Sidaco","Prio 1","Revisión Ing Fin","KS280","1150362-1",{"$f":"Pendientes!$Q690-Pendientes!$B690","v":-43587},{"$f":"VLOOKUP(Pendientes!$AC690,Hoja1!A:B,2,TRUE)","v":{"$error":"#N/A"}}]
["WKS323",null,"Ricky","Alta","SI","No","No","No","No","No","SI","No","No","RRU's de desmonte","FIN",7000080179,"2019-05-09",null,"RRU's de desmonte","ADU-R7","Nueva",null,null,"Sidaco","Prio 1","Semana 3 Mayo Forzado","KS323","1150642-1",{"$f":"Pendientes!$Q691-Pendientes!$B691","v":43594},{"$f":"VLOOKUP(Pendientes!$AC691,Hoja1!A:B,2,TRUE)","v":"Mas de 10 días"}]
["WKS463",null,"Ricky",null,"NO","NO","NO","NO","NO","NO","NO","NO",null,null,"FIN",7000080207,"2019-05-10",null,{"$error":"#N/A"},null,{"$error":"#N/A"},null,null,"Sidaco","Prio 1","Semana 3 Mayo Forzado","KS463","1149709-1",{"$f":"Pendientes!$Q692-Pendientes!$B692","v":43595},{"$f":"VLOOKUP(Pendientes!$AC692,Hoja1!A:B,2,TRUE)","v":"Mas de 10 días"}]
["WKS496",null,"Ricky",null,"NO","NO","NO","NO","NO","NO","NO","NO",null,null,"FIN",7000080208,"2019-05-10",null,{"$error":"#N/A"},null,{"$error":"#N/A"},null,null,"Sidaco","Prio 1","Semana 3 Mayo Forzado","KS496","1149713-1",{"$f":"Pendientes!$Q693-Pendientes!$B693","v":43595},{"$f":"VLOOKUP(Pendientes!$AC693,Hoja1!A:B,2,TRUE)","v":"Mas de 10 días"}]
["WKS604","2019-04-30","Rodrigo",null,null,null,null,null,null,null,null,null,null,null,"SITIOS",null,null,null,null,null,null,null,null,"Ericsson","Prio 1","Semana 4 Mayo","KS604","854829-1",{"$f":"Pendientes!$Q694-Pendientes!$B694","v":-43585},{"$f":"VLOOKUP(Pendientes!$AC694,Hoja1!A:B,2,TRUE)","v":{"$error":"#N/A"}}]
["WLP088","5/7/2019","Rodrigo","Media","SI","NO","NO","SI","NO","NO","SI","NO","NO","ERICSSON PROVEE 2100","FIN-A",7000080167,"2019-05-09","","","TNA770A00RI","",null,null,"Ericsson",null,"Semana 4 Mayo","LP088","1079006-1",{"$f":"Pendientes!$Q695-Pendientes!$B695","v":-57},{"$f":"VLOOKUP(Pendientes!$AC695,Hoja1!A:B,2,TRUE)","v":{"$error":"#N/A"}}]
["WLP148","2019-03-11","Rodrigo",null,null,null,null,null,null,null,"Validar planilla 2017",null,null,"ok stock","FIN",7000079403,"2019-03-22",null,null,"ODV065R16M18JG=4000084568",null,null,null,"Ericsson",0,"Fin Semana 2 Marzo","LP148","916520-1",{"$f":"Pendientes!$Q696-Pendientes!$B696","v":11},{"$f":"VLOOKUP(Pendientes!$AC696,Hoja1!A:B,2,TRUE)","v":"Mas de 10 días"}]
["WM0005",null,"Barbara",null,null,null,null,null,null,null,null,null,null,null,"FIN","7000079520/7000079521","2019-04-01",null,null,null,null,null,null,"PEM",0,"Fin Semana 4 Abril","M0005","1252051-1",{"$f":"Pendientes!$Q697-Pendientes!$B697","v":43556},{"$f":"VLOOKUP(Pendientes!$AC697,Hoja1!A:B,2,TRUE)","v":"Mas de 10 días"}]
["WMC004",null,"Rodrigo","Adelanto",null,null,null,null,null,null,null,null,null,null,"FIN",7000079482,"2019-03-29",null,null,null,null,null,null,"Sidaco",0,{"$error":"#N/A"},"MC004",{"$error":"#N/A"},{"$f":"Pendientes!$Q698-Pendientes!$B698","v":43553},{"$f":"VLOOKUP(Pendientes!$AC698,Hoja1!A:B,2,TRUE)","v":"Mas de 10 días"}]
["WMC017",null,"Rodrigo","Adelanto",null,null,null,null,null,null,null,null,null,null,"FIN",7000079483,"2019-03-29",null,null,null,null,null,null,"Sidaco",0,{"$error":"#N/A"},"MC017",{"$error":"#N/A"},{"$f":"Pendientes!$Q699-Pendientes!$B699","v":43553},{"$f":"VLOOKUP(Pendientes!$AC699,Hoja1!A:B,2,TRUE)","v":"Mas de 10 días"}]
["WMC028",null,"Rodrigo","Adelanto",null,null,null,null,null,null,null,null,null,null,"FIN",7000079485,"2019-03-29",null,null,null,null,null,null,"Sidaco",0,{"$error":"#N/A"},"MC028",{"$error":"#N/A"},{"$f":"Pendientes!$Q700-Pendientes!$B700","v":43553},{"$f":"VLOOKUP(Pendientes!$AC700,Hoja1!A:B,2,TRUE)","v":"Mas de 10 días"}]
["WMC038",null,"Rodrigo","Adelanto",null,null,null,null,null,null,null,null,null,null,"FIN",7000079484,"2019-03-29",null,null,null,null,null,null,"sidaco",0,{"$error":"#N/A"},"MC038",{"$error":"#N/A"},{"$f":"Pendientes!$Q701-Pendientes!$B701","v":43553},{"$f":"VLOOKUP(Pendientes!$AC701,Hoja1!A:B,2,TRUE)","v":"Mas de 10 días"}]
["WMC084","2019-04-25","Barbara","Adelanto",null,null,null,null,null,null,null,null,null,null,"FIN","7000079923 / 7000079900","2019-04-25",null,null,null,null,null,null,"CIS SRL",{"$error":"#N/A"},{"$error":"#N/A"},{"$error":"#N/A"},{"$error":"#N/A"},{"$f":"Pendientes!$Q702-Pendientes!$B702","v":0},{"$f":"VLOOKUP(Pendientes!$AC702,Hoja1!A:B,2,TRUE)","v":"en 24hs"}]
["WQCM12","2019-04-12","Ricky","Adelanto","No","No","No","No","No","No","No","SI","No","-          4 RRU’s 3952 de B5 (4T4R)","FIN",7000079869,"2019-04-24",null,"Fri Music",null,null,null,null,"PEM",0,{"$error":"#N/A"},"QCM12",{"$error":"#N/A"},{"$f":"Pendientes!$Q703-Pendientes!$B703","v":12},{"$f":"VLOOKUP(Pendientes!$AC703,Hoja1!A:B,2,TRUE)","v":"Mas de 10 días"}]
["WQN084",null,"Pendiente",null,null,null,null,null,null,null,null,null,null,null,"A REASIGNAR CONTRATA",null,null,null,null,null,null,null,null,"Sin Asignacion",0,"Vaca Muerta","QN084","516215-1",{"$f":"Pendientes!$Q704-Pendientes!$B704","v":0},{"$f":"VLOOKUP(Pendientes!$AC704,Hoja1!A:B,2,TRUE)","v":"en 24hs"}]
["WQW018",null,"RICKY",null,{"$error":"#N/A"},null,null,null,null,null,null,null,null,null,"FIN","7000079570 / 7000079573","2019-04-04",null,null,null,null,null,null,"PEM",0,"Fin Semana 2 Abril","QW018","916583-1",{"$f":"Pendientes!$Q705-Pendientes!$B705","v":43559},{"$f":"VLOOKUP(Pendientes!$AC705,Hoja1!A:B,2,TRUE)","v":"Mas de 10 días"}]
["WRE024","2019-04-30","Barbara","Alta","Si","NO","NO","NO","NO","NO","SI","NO","NO",null,"FIN",7000080019,"2019-05-03",null,null,"ADU4518R7","Existente",null,"CIS SRL","CIS SRL","Prio 1","Fin Semana 2 Mayo","RE024","1301868-1",{"$f":"Pendientes!$Q706-Pendientes!$B706","v":3},{"$f":"VLOOKUP(Pendientes!$AC706,Hoja1!A:B,2,TRUE)","v":"Entre 3 y 5 dias"}]
["WRN021","2019-05-02","Rodrigo","Adelanto","No","Si","No","No","No","No","No","No","No","PENDIENTE INGENIERIA - la fuerza es la subida para la contratista anterior . en BPM no hay ningun dato","FIN",7000080086,"2019-05-06","","El viernes 3/5 se recibio el DWG por mail","ADU4518R7 ","Nueva",null,null,"Huawei","Prio 1","Semana 4 Mayo","RN021","1301816-1",{"$f":"Pendientes!$Q707-Pendientes!$B707","v":4},{"$f":"VLOOKUP(Pendientes!$AC707,Hoja1!A:B,2,TRUE)","v":"Entre 3 y 5 dias"}]
["WRN063","2019-04-25","Lucrecia",null,null,null,null,null,null,null,null,null,null,null,"FIN",69602,"2019-04-26",null,null,null,null,null,null,"Huawei",0,"Fin Semana 1 Mayo","RN063","1301870-1",{"$f":"Pendientes!$Q708-Pendientes!$B708","v":1},{"$f":"VLOOKUP(Pendientes!$AC708,Hoja1!A:B,2,TRUE)","v":"en 24hs"}]
["WRN078","2019-03-11",null,null,null,null,null,null,null,null,"planilla ok 2019",null,null,"ok stock","FIN",7000079204,"2019-03-12",null,null,"RRZZ (AQU4518R24+ AAU3910)",null,null,null,"Sidaco",0,"Fin Semana 4 Marzo","RN078","888899-1",{"$f":"Pendientes!$Q709-Pendientes!$B709","v":1},{"$f":"VLOOKUP(Pendientes!$AC709,Hoja1!A:B,2,TRUE)","v":"en 24hs"}]
["WRN344","2019-03-11",null,null,null,null,null,null,null,null,"Validar planilla 2016",null,null,"ok stock","FIN",7000079206,"2019-03-12",null,null,"Hexabanda Chica",null,null,null,"Sidaco",0,"Fin Semana 2 Marzo","RN344","651482-1",{"$f":"Pendientes!$Q710-Pendientes!$B710","v":1},{"$f":"VLOOKUP(Pendientes!$AC710,Hoja1!A:B,2,TRUE)","v":"en 24hs"}]
["WUW019","2019-04-29","Ricky","Alta","NO","NO","NO","NO","NO","NO","NO","NO","NO",null,"FIN",7000080015,"2019-04-30",null,"6 ADU4518R7 + 6 DipB",null,null,null,null,"Huawei",0,"Semana 3 Mayo Forzado","UW019","1301884-1",{"$f":"Pendientes!$Q711-Pendientes!$B711","v":1},{"$f":"VLOOKUP(Pendientes!$AC711,Hoja1!A:B,2,TRUE)","v":"en 24hs"}]
["MBN014","2019-05-13","Ricky",null,null,null,null,null,null,null,null,null,null,null,"TO DO",null,null,null,null,null,null,null,null,"Sidaco",null,"No Liberado","BN014","1254867-1",{"$f":"Pendientes!$Q712-Pendientes!$B712","v":-43598},{"$f":"VLOOKUP(Pendientes!$AC712,Hoja1!A:B,2,TRUE)","v":{"$error":"#N/A"}}]
["OBN014","2019-05-13","Ricky",null,null,null,null,null,null,null,null,null,null,null,"TO DO",null,null,null,null,null,null,null,null,"Sidaco",null,"No Liberado","BN014","1254923-1",{"$f":"Pendientes!$Q713-Pendientes!$B713","v":-43598},{"$f":"VLOOKUP(Pendientes!$AC713,Hoja1!A:B,2,TRUE)","v":{"$error":"#N/A"}}]
["OBS066","2019-05-13","Ricky",null,null,null,null,null,null,null,null,null,null,null,"TO DO",null,null,null,null,null,null,null,null,"Sidaco",null,"Semana 4 Mayo","BS066","1255233-1",{"$f":"Pendientes!$Q714-Pendientes!$B714","v":-43598},{"$f":"VLOOKUP(Pendientes!$AC714,Hoja1!A:B,2,TRUE)","v":{"$error":"#N/A"}}]
["MBS159","2019-05-13","Ricky",null,null,null,null,null,null,null,null,null,null,null,"TO DO",null,null,null,null,null,null,null,null,"Sidaco",null,"Semana 4 Mayo","BS159","1254730-1",{"$f":"Pendientes!$Q715-Pendientes!$B715","v":-43598},{"$f":"VLOOKUP(Pendientes!$AC715,Hoja1!A:B,2,TRUE)","v":{"$error":"#N/A"}}]
["OBS159","2019-05-13","Ricky",null,null,null,null,null,null,null,null,null,null,null,"TO DO",null,null,null,null,null,null,null,null,"Sidaco",null,"Semana 4 Mayo","BS159","1254994-1",{"$f":"Pendientes!$Q716-Pendientes!$B716","v":-43598},{"$f":"VLOOKUP(Pendientes!$AC716,Hoja1!A:B,2,TRUE)","v":{"$error":"#N/A"}}]
["MBS167","2019-05-13","Ricky",null,null,null,null,null,null,null,null,null,null,null,"TO DO",null,null,null,null,null,null,null,null,"Sidaco",null,"Semana 4 Mayo","BS167","1254733-1",{"$f":"Pendientes!$Q717-Pendientes!$B717","v":-43598},{"$f":"VLOOKUP(Pendientes!$AC717,Hoja1!A:B,2,TRUE)","v":{"$error":"#N/A"}}]
["OBS167","2019-05-13","Ricky",null,null,null,null,null,null,null,null,null,null,null,"TO DO",null,null,null,null,null,null,null,null,"Sidaco",null,"Semana 4 Mayo","BS167","1254995-1",{"$f":"Pendientes!$Q718-Pendientes!$B718","v":-43598},{"$f":"VLOOKUP(Pendientes!$AC718,Hoja1!A:B,2,TRUE)","v":{"$error":"#N/A"}}]
["MCN219","2019-05-13","Lucrecia",null,null,null,null,null,null,null,null,null,null,null,"TO DO",null,null,null,null,null,null,null,null,"Guzmán Nacich",null,"Semana 4 Mayo","CN219","1254762-1",{"$f":"Pendientes!$Q719-Pendientes!$B719","v":-43598},{"$f":"VLOOKUP(Pendientes!$AC719,Hoja1!A:B,2,TRUE)","v":{"$error":"#N/A"}}]
["OCN333","2019-05-13","Cristian",null,null,null,null,null,null,null,null,null,null,null,"TO DO",null,null,null,null,null,null,null,null,"Multiradio",null,"Semana 4 Mayo","CN333","1255099-1",{"$f":"Pendientes!$Q720-Pendientes!$B720","v":-43598},{"$f":"VLOOKUP(Pendientes!$AC720,Hoja1!A:B,2,TRUE)","v":{"$error":"#N/A"}}]
["MCN352","2019-05-13","Lucrecia",null,null,null,null,null,null,null,null,null,null,null,"TO DO",null,null,null,null,null,null,null,null,"Guzmán Nacich",null,"Semana 4 Mayo","CN352","1254641-1",{"$f":"Pendientes!$Q721-Pendientes!$B721","v":-43598},{"$f":"VLOOKUP(Pendientes!$AC721,Hoja1!A:B,2,TRUE)","v":{"$error":"#N/A"}}]
["OCN352","2019-05-13","Cristian",null,null,null,null,null,null,null,null,null,null,null,"TO DO",null,null,null,null,null,null,null,null,"Multiradio",null,"Semana 4 Mayo","CN352","1254931-1",{"$f":"Pendientes!$Q722-Pendientes!$B722","v":-43598},{"$f":"VLOOKUP(Pendientes!$AC722,Hoja1!A:B,2,TRUE)","v":{"$error":"#N/A"}}]
["OCS165","2019-05-13","Barbara",null,"Incompleto","NO","NO","SI","NO","NO","SI","NO","NO","está mal el texto en el CAD, no tenés que enviar diplexores se utilizan los de banda baja existentes.","FIN-A",7000080218,"2019-05-14",null,"FALTA SOLPE POR ANTENAS POR FALTA DE STOCK","ASI4517R3v06",null,null,null,"CIS SRL",null,"Semana 4 Mayo","CS165","1255102-1",{"$f":"Pendientes!$Q723-Pendientes!$B723","v":1},{"$f":"VLOOKUP(Pendientes!$AC723,Hoja1!A:B,2,TRUE)","v":"en 24hs"}]
["LCS548","2019-05-13","Lucrecia",null,null,null,null,null,null,null,null,null,null,null,"TO DO",null,null,null,null,null,null,null,null,"PEM",null,"Semana 4 Mayo","CS548","1331085-1",{"$f":"Pendientes!$Q724-Pendientes!$B724","v":-43598},{"$f":"VLOOKUP(Pendientes!$AC724,Hoja1!A:B,2,TRUE)","v":{"$error":"#N/A"}}]
["LCU516","2019-05-13","Lucrecia",null,null,null,null,null,null,null,null,null,null,null,"TO DO",null,null,null,null,null,null,null,null,"PEM",null,"Semana 4 Mayo","CU516","1340915-1",{"$f":"Pendientes!$Q725-Pendientes!$B725","v":-43598},{"$f":"VLOOKUP(Pendientes!$AC725,Hoja1!A:B,2,TRUE)","v":{"$error":"#N/A"}}]
["LCU519","2019-05-13","Lucrecia",null,null,null,null,null,null,null,null,null,null,null,"TO DO",null,null,null,null,null,null,null,null,"PEM",null,"Semana 4 Mayo","CU519","1322741-1",{"$f":"Pendientes!$Q726-Pendientes!$B726","v":-43598},{"$f":"VLOOKUP(Pendientes!$AC726,Hoja1!A:B,2,TRUE)","v":{"$error":"#N/A"}}]
["LCU627","2019-05-13","Ricky",null,null,null,null,null,null,null,null,null,null,null,"TO DO",null,null,null,null,null,null,null,null,"Sidaco",null,"Semana 4 Mayo","CU627","1146429-1",{"$f":"Pendientes!$Q727-Pendientes!$B727","v":-43598},{"$f":"VLOOKUP(Pendientes!$AC727,Hoja1!A:B,2,TRUE)","v":{"$error":"#N/A"}}]
["MKS162","2019-05-13","Ricky",null,null,null,null,null,null,null,null,null,null,null,"TO DO",null,null,null,null,null,null,null,null,"Sidaco",null,"Semana 4 Mayo","KS162","1254947-1",{"$f":"Pendientes!$Q728-Pendientes!$B728","v":-43598},{"$f":"VLOOKUP(Pendientes!$AC728,Hoja1!A:B,2,TRUE)","v":{"$error":"#N/A"}}]
["OKS162","2019-05-13","Ricky",null,null,null,null,null,null,null,null,null,null,null,"TO DO",null,null,null,null,null,null,null,null,"Sidaco",null,"Semana 4 Mayo","KS162","1254982-1",{"$f":"Pendientes!$Q729-Pendientes!$B729","v":-43598},{"$f":"VLOOKUP(Pendientes!$AC729,Hoja1!A:B,2,TRUE)","v":{"$error":"#N/A"}}]
["MRN034","2019-05-10","Rodrigo","Prio 2","NO","SI","NO","NO","NO","NO",null,"NO","NO",null,"TO DO",null,null,null,null,null,null,null,null,"Huawei",null,"Semana 4 Mayo","RN034","1302360-1",{"$f":"Pendientes!$Q730-Pendientes!$B730","v":-43595},{"$f":"VLOOKUP(Pendientes!$AC730,Hoja1!A:B,2,TRUE)","v":{"$error":"#N/A"}}]
["OKS419","2019-05-13","Ricky",null,null,null,null,null,null,null,null,null,null,null,"TO DO",null,null,null,null,null,null,null,null,"Sidaco",null,"Semana 4 Mayo","KS419","1255357-1",{"$f":"Pendientes!$Q731-Pendientes!$B731","v":-43598},{"$f":"VLOOKUP(Pendientes!$AC731,Hoja1!A:B,2,TRUE)","v":{"$error":"#N/A"}}]
["SRN034","2019-05-10","Rodrigo","Prio 2","NO","SI","NO","NO","NO","NO",null,"NO","NO",null,"TO DO",null,null,null,null,null,null,null,null,"Huawei",null,"Semana 4 Mayo","RN034","1290921-1",{"$f":"Pendientes!$Q732-Pendientes!$B732","v":-43595},{"$f":"VLOOKUP(Pendientes!$AC732,Hoja1!A:B,2,TRUE)","v":{"$error":"#N/A"}}]
["OLC045","2019-05-13","Lucrecia",null,null,null,null,null,null,null,null,null,null,null,"TO DO",null,null,null,null,null,null,null,null,"Guzmán Nacich",null,"Semana 4 Mayo","LC045","1254895-1",{"$f":"Pendientes!$Q733-Pendientes!$B733","v":-43598},{"$f":"VLOOKUP(Pendientes!$AC733,Hoja1!A:B,2,TRUE)","v":{"$error":"#N/A"}}]
["SMC066","2019-05-13","Barbara",null,null,null,null,null,null,null,null,null,null,null,"TO DO",null,null,null,null,null,null,null,null,"CIS SRL",null,"Semana 4 Mayo","MC066","1129140-1",{"$f":"Pendientes!$Q734-Pendientes!$B734","v":-43598},{"$f":"VLOOKUP(Pendientes!$AC734,Hoja1!A:B,2,TRUE)","v":{"$error":"#N/A"}}]
["VMC213","2019-05-13","Lucrecia",null,null,null,null,null,null,null,null,null,null,null,"TO DO",null,null,null,null,null,null,null,null,"PEM",null,"Semana 4 Mayo","MC213","1284188-1",{"$f":"Pendientes!$Q735-Pendientes!$B735","v":-43598},{"$f":"VLOOKUP(Pendientes!$AC735,Hoja1!A:B,2,TRUE)","v":{"$error":"#N/A"}}]
["ORS040","2019-05-13","Rodrigo",null,null,null,null,null,null,null,null,null,null,null,"TO DO",null,null,null,null,null,null,null,null,"Huawei",null,"Semana 4 Mayo","RS040","905974-1",{"$f":"Pendientes!$Q736-Pendientes!$B736","v":-43598},{"$f":"VLOOKUP(Pendientes!$AC736,Hoja1!A:B,2,TRUE)","v":{"$error":"#N/A"}}]
["SRS040","2019-05-13","Rodrigo",null,null,null,null,null,null,null,null,null,null,null,"TO DO",null,null,null,null,null,null,null,null,"Huawei",null,"Semana 4 Mayo","RS040","1128949-1",{"$f":"Pendientes!$Q737-Pendientes!$B737","v":-43598},{"$f":"VLOOKUP(Pendientes!$AC737,Hoja1!A:B,2,TRUE)","v":{"$error":"#N/A"}}]
["LKS511","2019-05-13","Lucrecia",null,null,null,null,null,null,null,null,null,null,null,"TO DO",null,null,null,null,null,null,null,null,"PEM",null,"Semana 3 Mayo","KS511","1318409-1",{"$f":"Pendientes!$Q738-Pendientes!$B738","v":-43598},{"$f":"VLOOKUP(Pendientes!$AC738,Hoja1!A:B,2,TRUE)","v":{"$error":"#N/A"}}]
["CMS022","2019-05-13","Ricky",null,null,null,null,null,null,null,null,null,null,null,"TO DO",null,null,null,null,null,null,null,null,"Sidaco",null,"Semana 1 Junio","MS022","1131838-1",{"$f":"Pendientes!$Q739-Pendientes!$B739","v":-43598},{"$f":"VLOOKUP(Pendientes!$AC739,Hoja1!A:B,2,TRUE)","v":{"$error":"#N/A"}}]
["LMN042","2019-05-13","Barbara",null,"SI","NO","NO","No","No","No","SI","No","No",null,"FIN",7000080252,"2019-05-14",null,null,"ODI2-065R16M18J-GQ+AAUU3910",null,null,null,"CIS SRL",null,"Semana 4 Mayo","MN042","1059135-1",{"$f":"Pendientes!$Q740-Pendientes!$B740","v":1},{"$f":"VLOOKUP(Pendientes!$AC740,Hoja1!A:B,2,TRUE)","v":"en 24hs"}]
["MMN042","2019-05-13","Barbara",null,"SI","NO","NO","No","No","No","SI","No","No",null,"FIN",7000080252,"2019-05-14",null,null,"ODI2-065R16M18J-GQ+AAUU3910",null,null,null,"CIS SRL",null,"Semana 4 Mayo","MN042","1130612-1",{"$f":"Pendientes!$Q741-Pendientes!$B741","v":1},{"$f":"VLOOKUP(Pendientes!$AC741,Hoja1!A:B,2,TRUE)","v":"en 24hs"}]
["SMN042","2019-05-13","Barbara",null,"SI","NO","NO","No","No","No","SI","No","No",null,"FIN",7000080252,"2019-05-14",null,null,"ODI2-065R16M18J-GQ+AAUU3910",null,null,null,"CIS SRL",null,"Semana 4 Mayo","MN042","1129007-1",{"$f":"Pendientes!$Q742-Pendientes!$B742","v":1},{"$f":"VLOOKUP(Pendientes!$AC742,Hoja1!A:B,2,TRUE)","v":"en 24hs"}]

{"sheet":"Hoja1","index":2,"n_rows":10,"n_cols":2,"rows_kept":10,"cut":false,"hidden":true,"merged":[]}
[0,"en 24hs"]
[1,"en 24hs"]
[2,"en 24hs"]
[2,"Entre 24 y 72Hs"]
[3,"Entre 24 y 72Hs"]
[3,"Entre 3 y 5 dias"]
[5,"Entre 3 y 5 dias"]
[5,"Entre 5 y 10 dias"]
[10,"Entre 5 y 10 dias"]
[10,"Mas de 10 días"]

{"sheet":"Tablas dinamicas","index":3,"n_rows":17,"n_cols":14,"rows_kept":17,"cut":false,"hidden":false,"merged":[]}
["Etiquetas de fila","Cuenta de NODO",null,"ESTADO ","(Varios elementos)",null,"ESTADO ","(Varios elementos)",null,"ESTADO ","(Varios elementos)"]
["FIN",524,null,null,null,null,null,null,null,null,null,null,"FECHA_DE_INGRESO","(Varios elementos)"]
["FIN-A",54,null,"Cuenta de FECHA_FIN",null,null,"Etiquetas de fila","Cuenta de NODO",null,"Etiquetas de fila","Cuenta de NODO",null,"ESTADO ","(Varios elementos)"]
["Total general",578,null,576,null,null,"<4/2/2019 o (en blanco)",3,null,"Sidaco",198]
[null,null,null,null,null,null,"18/2/2019 - 24/2/2019",3,null,"CIS SRL",136,null,"Etiquetas de fila","Cuenta de NODO"]
[null,null,null,null,null,null,"4/3/2019 - 10/3/2019",6,null,"Guzmán Nacich",66,null,"en 24hs",89]
[null,null,null,null,null,null,"11/3/2019 - 17/3/2019",42,null,"Huawei",52,null,"Entre 24 y 72Hs",1]
[null,null,null,null,null,null,"18/3/2019 - 24/3/2019",28,null,"PEM",57,null,"Entre 3 y 5 dias",40]
[null,null,null,null,null,null,"25/3/2019 - 31/3/2019",62,null,"Multiradio",37,null,"Entre 5 y 10 dias",68]
[null,null,null,null,null,null,"1/4/2019 - 7/4/2019",63,null,"Ericsson",22,null,"Mas de 10 días",31]
[null,null,null,null,null,null,"8/4/2019 - 14/4/2019",86,null,"Tesur",5,null,"Total general",229]
[null,null,null,null,null,null,"15/4/2019 - 21/4/2019",13,null,"Telxius",5]
[null,null,null,null,null,null,"22/4/2019 - 28/4/2019",45,null,"Total general",578]
[null,null,null,null,null,null,"29/4/2019 - 5/5/2019",85]
[null,null,null,null,null,null,"6/5/2019 - 12/5/2019",126]
[null,null,null,null,null,null,"13/5/2019 - 15/5/2019",17]
[null,null,null,null,null,null,"Total general",579]

{"sheet":"Dashboard","index":4,"n_rows":15,"n_cols":11,"rows_kept":15,"cut":false,"hidden":false,"merged":[]}
[]
["Total de sitios con Solpe",{"$f":"GETPIVOTDATA(\"FECHA_FIN\",'Tablas dinamicas'!$D$3)","v":576},null,null,"Top por semana","Cantidad","Grafico",null,"Top Contratista","Cantidad","Grafico"]
[null,null,null,null,{"$f":"'Tablas dinamicas'!G4","v":"<4/2/2019 o (en blanco)"},{"$f":"GETPIVOTDATA(\"NODO\",'Tablas dinamicas'!$G$3,\"FECHA_FIN\",E3)","v":3},{"$f":"REPT(\"|\",F3/MAX($F$3:$F$12)*100)","v":"|||"},null,{"$f":"'Tablas dinamicas'!J4","v":"Sidaco"},{"$f":"GETPIVOTDATA(\"NODO\",'Tablas dinamicas'!$J$3,\"Contratista\",I3)","v":198},{"$f":"REPT(\"|\",J3/MAX($J$3:$J$12)*100)","v":"||||||||||||||||||||||||||||||||||||||||||||||||||||||||||||||||||||||||||||||||||||||||||||||||||||"}]
[null,null,null,null,{"$f":"'Tablas dinamicas'!G5","v":"18/2/2019 - 24/2/2019"},{"$f":"GETPIVOTDATA(\"NODO\",'Tablas dinamicas'!$G$3,\"FECHA_FIN\",E4)","v":3},{"$f":"REPT(\"|\",F4/MAX($F$3:$F$12)*100)","v":"|||"},null,{"$f":"'Tablas dinamicas'!J5","v":"CIS SRL"},{"$f":"GETPIVOTDATA(\"NODO\",'Tablas dinamicas'!$J$3,\"Contratista\",I4)","v":136},{"$f":"REPT(\"|\",J4/MAX($J$3:$J$12)*100)","v":"||||||||||||||||||||||||||||||||||||||||||||||||||||||||||||||||||||"}]
[null,null,null,null,{"$f":"'Tablas dinamicas'!G6","v":"4/3/2019 - 10/3/2019"},{"$f":"GETPIVOTDATA(\"NODO\",'Tablas dinamicas'!$G$3,\"FECHA_FIN\",E5)","v":6},"||||||",null,{"$f":"'Tablas dinamicas'!J6","v":"Guzmán Nacich"},{"$f":"GETPIVOTDATA(\"NODO\",'Tablas dinamicas'!$J$3,\"Contratista\",I5)","v":66},"|||||||||||||||||||||||||||||||||"]
[null,null,null,null,{"$f":"'Tablas dinamicas'!G7","v":"11/3/2019 - 17/3/2019"},{"$f":"GETPIVOTDATA(\"NODO\",'Tablas dinamicas'!$G$3,\"FECHA_FIN\",E6)","v":42},"||||||||||||||||||||||||||||||||||||||||||||||||",null,{"$f":"'Tablas dinamicas'!J7","v":"Huawei"},{"$f":"GETPIVOTDATA(\"NODO\",'Tablas dinamicas'!$J$3,\"Contratista\",I6)","v":52},"||||||||||||||||||||||||||"]
[null,null,null,null,{"$f":"'Tablas dinamicas'!G8","v":"18/3/2019 - 24/3/2019"},{"$f":"GETPIVOTDATA(\"NODO\",'Tablas dinamicas'!$G$3,\"FECHA_FIN\",E7)","v":28},"||||||||||||||||||||||||||||||||",null,{"$f":"'Tablas dinamicas'!J8","v":"PEM"},{"$f":"GETPIVOTDATA(\"NODO\",'Tablas dinamicas'!$J$3,\"Contratista\",I7)","v":57},"||||||||||||||||||||||||||||"]
[null,null,null,null,{"$f":"'Tablas dinamicas'!G9","v":"25/3/2019 - 31/3/2019"},{"$f":"GETPIVOTDATA(\"NODO\",'Tablas dinamicas'!$G$3,\"FECHA_FIN\",E8)","v":62},"||||||||||||||||||||||||||||||||||||||||||||||||||||||||||||||||||||||||",null,{"$f":"'Tablas dinamicas'!J9","v":"Multiradio"},{"$f":"GETPIVOTDATA(\"NODO\",'Tablas dinamicas'!$J$3,\"Contratista\",I8)","v":37},"||||||||||||||||||"]
[null,null,null,null,{"$f":"'Tablas dinamicas'!G10","v":"1/4/2019 - 7/4/2019"},{"$f":"GETPIVOTDATA(\"NODO\",'Tablas dinamicas'!$G$3,\"FECHA_FIN\",E9)","v":63},"|||||||||||||||||||||||||||||||||||||||||||||||||||||||||||||||||||||||||",null,{"$f":"'Tablas dinamicas'!J10","v":"Ericsson"},{"$f":"GETPIVOTDATA(\"NODO\",'Tablas dinamicas'!$J$3,\"Contratista\",I9)","v":22},"|||||||||||"]
[null,null,null,null,{"$f":"'Tablas dinamicas'!G11","v":"8/4/2019 - 14/4/2019"},{"$f":"GETPIVOTDATA(\"NODO\",'Tablas dinamicas'!$G$3,\"FECHA_FIN\",E10)","v":86},"||||||||||||||||||||||||||||||||||||||||||||||||||||||||||||||||||||||||||||||||||||||||||||||||||||",null,{"$f":"'Tablas dinamicas'!J11","v":"Tesur"},{"$f":"GETPIVOTDATA(\"NODO\",'Tablas dinamicas'!$J$3,\"Contratista\",I10)","v":5},"||"]
[null,null,null,null,{"$f":"'Tablas dinamicas'!G12","v":"15/4/2019 - 21/4/2019"},{"$f":"GETPIVOTDATA(\"NODO\",'Tablas dinamicas'!$G$3,\"FECHA_FIN\",E11)","v":13},"|||||||||||||||",null,{"$f":"'Tablas dinamicas'!J12","v":"Telxius"},{"$f":"GETPIVOTDATA(\"NODO\",'Tablas dinamicas'!$J$3,\"Contratista\",I11)","v":5},"||"]
[null,null,null,null,{"$f":"'Tablas dinamicas'!G13","v":"22/4/2019 - 28/4/2019"},{"$f":"GETPIVOTDATA(\"NODO\",'Tablas dinamicas'!$G$3,\"FECHA_FIN\",E12)","v":45},"||||||||||||||||||||||||||||||||||||||||||||||||||||"]
[null,null,null,null,{"$f":"'Tablas dinamicas'!G14","v":"29/4/2019 - 5/5/2019"},{"$f":"GETPIVOTDATA(\"NODO\",'Tablas dinamicas'!$G$3,\"FECHA_FIN\",E13)","v":85},{"$f":"REPT(\"|\",F13/MAX($F$3:$F$12)*100)","v":"||||||||||||||||||||||||||||||||||||||||||||||||||||||||||||||||||||||||||||||||||||||||||||||||||"}]
[null,null,null,null,{"$f":"'Tablas dinamicas'!G15","v":"6/5/2019 - 12/5/2019"},{"$f":"GETPIVOTDATA(\"NODO\",'Tablas dinamicas'!$G$3,\"FECHA_FIN\",E14)","v":126},{"$f":"REPT(\"|\",F14/MAX($F$3:$F$12)*100)","v":"||||||||||||||||||||||||||||||||||||||||||||||||||||||||||||||||||||||||||||||||||||||||||||||||||||||||||||||||||||||||||||||||||||||||||||||||||"}]
[null,null,null,null,{"$f":"'Tablas dinamicas'!G16","v":"13/5/2019 - 15/5/2019"},{"$f":"GETPIVOTDATA(\"NODO\",'Tablas dinamicas'!$G$3,\"FECHA_FIN\",E15)","v":17},{"$f":"REPT(\"|\",F15/MAX($F$3:$F$12)*100)","v":"|||||||||||||||||||"}]

{"sheet":"Hoja3","index":5,"n_rows":17,"n_cols":8,"rows_kept":17,"cut":false,"hidden":true,"merged":[]}
[]
[]
[]
[]
[]
[]
[null,null,null,null,null,"Sitio","Nodo"]
[null,null,null,null,null,"BS043","OBS043","ASI4517R3v06"]
[null,null,null,null,null,"BS104","OBS104","ASI4517R3v06"]
[null,null,null,null,null,"BS195","OBS195","ASI4517R3v06"]
[null,null,null,null,null,"CN266","OCN266","ASI4517R3v06"]
[null,null,null,null,null,"KN073","OKN073",{"$f":"VLOOKUP(G12,Pendientes!A:N,14,0)","v":"10/05 DWG cargado en asignación Tesur Estructura verificada - a verificar estructura por cambio de antena AIR32 x HEXA"}]
[null,null,null,null,null,"KO024","OKO024","ASI4517R3v06"]
[null,null,null,null,null,"KS050","NKS050",{"$f":"VLOOKUP(G14,Pendientes!A:N,14,0)","v":"a verificar estructura por cambio de antena AIR32 x HEXA"}]
[null,null,null,null,null,"KS050","OKS050",{"$f":"VLOOKUP(G15,Pendientes!A:N,14,0)","v":"a verificar estructura por cambio de antena AIR32 x HEXA"}]
[null,null,null,null,null,"KS457","MKS457","ASI4517R3v06"]
[null,null,null,null,null,"KS457","OKS457","ASI4517R3v06"]

{"sheet":"Combos","index":6,"n_rows":14,"n_cols":21,"rows_kept":14,"cut":false,"hidden":true,"merged":[]}
["NODO","FECHA_DE_INGRESO","PROPIETARIO","PRIORIDAD","DWG_BPM","DWG_MAIL","DWG_IU","MATERIALES_BPM","MATERIALES_MAIL","MATERIALES_IU","FUERZA_BPM","FUERZA_MAIL","FUERZA_IU","OBSERVACIONES_INGRESO","ESTADO","SOLPE_FUEGO","FECHA_FIN","HORAS_ESTIMADAS","OBSERVACIONES_FINALES","ANTENA_TIPO","ENERGIA"]
[null,null,"Barbara","Adelanto","Incompleto","Incompleto","Incompleto","Incompleto","Incompleto","Incompleto","Incompleto","Incompleto","Incompleto",null,"A REASIGNAR CONTRATA"]
[null,null,"CarolinaH","Alta","No","No","No","No","No","No","No","No","No",null,"DOING"]
[null,null,"CarolinaL","Baja","Si","Si","Si","Si","Si","Si","Si","Si","Si",null,"FIN"]
[null,null,"Cristian","Media",null,null,null,null,null,null,null,null,null,null,"FIN-A"]
[null,null,"Lucrecia",null,null,null,null,null,null,null,null,null,null,null,"PENDIENTE ENERGIA"]
[null,null,"Noelia",null,null,null,null,null,null,null,null,null,null,null,"PENDIENTE INGENIERIA "]
[null,null,"Ricky",null,null,null,null,null,null,null,null,null,null,null,"PENDIENTE INGENIERIA + ENERGIA"]
[null,null,"Rodrigo",null,null,null,null,null,null,null,null,null,null,null,"PENDIENTE RDA"]
[null,null,null,null,null,null,null,null,null,null,null,null,null,null,"SIN DATOS"]
[null,null,null,null,null,null,null,null,null,null,null,null,null,null,"SIN STOCK"]
[null,null,null,null,null,null,null,null,null,null,null,null,null,null,"SITIOS"]
[null,null,null,null,null,null,null,null,null,null,null,null,null,null,"STOP"]
[null,null,null,null,null,null,null,null,null,null,null,null,null,null,"TO DO"]